Workbook

Sheet Home
A7: Konversi Nilai dapat di SESUAIKAN, Nilai Ketrampilan > Nilai OPTIMUM, Nilai Sikap > Nilai MODUS | L7: Versi 11.14.50 (Fleksibel)
A8: Aplikasi Daftar Nilai untuk SMP/MTs, SMA/MA/MK, pasangan dari Aplikasi Raport SMP/MTs, SMA/SMK/MA
C12: Nama | D12: : | E12: Drs. Sarid Nugroho
C14: NIP/NIY/NUPTK | D14: : | E14: NIP. 19631223 198803 1 004
C16: Mata Pelajaran | D16: : | E16: PJOK
C18: Kelas | D18: : | E18: VII-A
C20: Capaian Kompetensi Minimal
C22: Pengetahuan | D22: : | E22: 2.67 | F22: B-
C24: Ketrampilan | D24: : | E24: 2.67 | F24: B-
C26: Sikap | D26: : | E26: 3 | F26: Baik (B)
B28: Ket: | C28: Aplikasi ini diprotect untuk melindungi link antar sheet dan rumus perhitungan. Tidak melayani permintaan password. Created by Purnawanto, S.Pd, M.Si

Sheet Menu (hidden)
B4: ASPEK SIKAP
I14: No. | J14: Nama | K14: NISN | L14: Nilai Ulangan Harian | P14: Rerata | Q14: Nilai Tugas / PR | U14: Rerata | V14: NP (NH) | W14: Nilai | X14: Nilai | Y14: Nilai | AC14: Unjuk Kerja | AF14: Rerata | AG14: Projek | AJ14: Rerata | AK14: Portofolio | AM14: Rerata | AN14: Nilai | AR14: Observasi | AU14: Penilaian Diri | AX14: Penilaian Teman | BA14: Jurnal | BB14: Nilai | BC14: Nilai
L15: UH1 | M15: UH2 | N15: UH3 | O15: UH4 | P15: NUH | Q15: T1 | R15: T2 | S15: T3 | T15: T4 | U15: Tg/PR | W15: UTS | X15: UAS | Y15: 0-100 | Z15: 0-4 | AA15: Konversi | AC15: UK 1 | AD15: UK 2 | AE15: UK 3 | AF15: U.Kerja | AG15: Pr1 | AH15: Pr2 | AI15: Pr3 | AJ15: Projek | AK15: Pf1 | AL15: Pf2 | AM15: Porto | AN15: 0-100 | AO15: 0-4 | AP15: Konversi | AR15: Ob1 | AS15: Ob2 | AT15: Rerata | AU15: Pd1 | AV15: Pd2 | AW15: Rerata | AX15: PT1 | AY15: PT2 | AZ15: Rerata | BB15: Raport | BC15: Konversi
I16: 1 | J16: ='Data '!D27 -> AHMAD ALEK BRIYANSAPUTRA | K16: ='Data '!B27 -> 9025 | L16: =Pengetahuan!C21 -> 80 | M16: =Pengetahuan!D21 -> 80 | N16: =Pengetahuan!E21 -> 80 | O16: =Pengetahuan!F21 -> 80 | P16: =Pengetahuan!H21 -> 80 | Q16: =Pengetahuan!I21 -> 80 | R16: =Pengetahuan!J21 -> 80 | S16: =Pengetahuan!K21 -> 80 | T16: =Pengetahuan!L21 -> 80 | U16: =Pengetahuan!N21 -> 80 | V16: =Pengetahuan!O21 -> 80 | W16: =Pengetahuan!P21 -> 75 | X16: =Pengetahuan!Q21 -> 75 | Y16: =Pengetahuan!R21 -> 77.5 | Z16: =Pengetahuan!S21 -> 3.1 | AA16: =Pengetahuan!T21 -> B | AC16: =Ketrampilan!C21 -> 80 | AD16: =Ketrampilan!D21 -> 80 | AE16: =Ketrampilan!E21 -> 80 | AF16: =Ketrampilan!G21 -> 80 | AG16: =Ketrampilan!H21 -> 80 | AH16: =Ketrampilan!I21 -> 0 | AI16: =Ketrampilan!J21 -> 0 | AJ16: =Ketrampilan!K21 -> 80 | AK16: =Ketrampilan!L21 -> 80 | AL16: =Ketrampilan!M21 -> 0 | AM16: =Ketrampilan!N21 -> 80 | AN16: =Ketrampilan!O21 -> 80 | AO16: =Ketrampilan!P21 -> 3.2 | AP16: =Ketrampilan!Q21 -> B+ | AR16: =Sikap!C14 -> 3 | AS16: =Sikap!D14 -> 3 | AT16: =Sikap!E14 -> 3 | AU16: =Sikap!F14 -> 3 | AV16: =Sikap!G14 -> 3 | AW16: =Sikap!H14 -> 3 | AX16: =Sikap!I14 -> 3 | AY16: =Sikap!J14 -> 3 | AZ16: =Sikap!K14 -> 3 | BA16: =Sikap!L14 -> 3 | BB16: =Sikap!M14 -> 3 | BC16: =Sikap!N14 -> B
I17: 2 | J17: ='Data '!D28 -> AULIA AYU FATINA | K17: ='Data '!B28 -> 9053 | L17: =Pengetahuan!C22 -> 80 | M17: =Pengetahuan!D22 -> 80 | N17: =Pengetahuan!E22 -> 80 | O17: =Pengetahuan!F22 -> 80 | P17: =Pengetahuan!H22 -> 80 | Q17: =Pengetahuan!I22 -> 80 | R17: =Pengetahuan!J22 -> 80 | S17: =Pengetahuan!K22 -> 80 | T17: =Pengetahuan!L22 -> 80 | U17: =Pengetahuan!N22 -> 80 | V17: =Pengetahuan!O22 -> 80 | W17: =Pengetahuan!P22 -> 75 | X17: =Pengetahuan!Q22 -> 75 | Y17: =Pengetahuan!R22 -> 77.5 | Z17: =Pengetahuan!S22 -> 3.1 | AA17: =Pengetahuan!T22 -> B | AC17: =Ketrampilan!C22 -> 80 | AD17: =Ketrampilan!D22 -> 80 | AE17: =Ketrampilan!E22 -> 80 | AF17: =Ketrampilan!G22 -> 80 | AG17: =Ketrampilan!H22 -> 80 | AH17: =Ketrampilan!I22 -> 0 | AI17: =Ketrampilan!J22 -> 0 | AJ17: =Ketrampilan!K22 -> 80 | AK17: =Ketrampilan!L22 -> 80 | AL17: =Ketrampilan!M22 -> 0 | AM17: =Ketrampilan!N22 -> 80 | AN17: =Ketrampilan!O22 -> 80 | AO17: =Ketrampilan!P22 -> 3.2 | AP17: =Ketrampilan!Q22 -> B+ | AR17: =Sikap!C15 -> 3 | AS17: =Sikap!D15 -> 3 | AT17: =Sikap!E15 -> 3 | AU17: =Sikap!F15 -> 3 | AV17: =Sikap!G15 -> 3 | AW17: =Sikap!H15 -> 3 | AX17: =Sikap!I15 -> 3 | AY17: =Sikap!J15 -> 3 | AZ17: =Sikap!K15 -> 3 | BA17: =Sikap!L15 -> 3 | BB17: =Sikap!M15 -> 3 | BC17: =Sikap!N15 -> B
I18: 3 | J18: ='Data '!D29 -> BAGAS YULANDRA PUTRA | K18: ='Data '!B29 -> 9060 | L18: =Pengetahuan!C23 -> 80 | M18: =Pengetahuan!D23 -> 80 | N18: =Pengetahuan!E23 -> 80 | O18: =Pengetahuan!F23 -> 80 | P18: =Pengetahuan!H23 -> 80 | Q18: =Pengetahuan!I23 -> 80 | R18: =Pengetahuan!J23 -> 80 | S18: =Pengetahuan!K23 -> 80 | T18: =Pengetahuan!L23 -> 80 | U18: =Pengetahuan!N23 -> 80 | V18: =Pengetahuan!O23 -> 80 | W18: =Pengetahuan!P23 -> 75 | X18: =Pengetahuan!Q23 -> 75 | Y18: =Pengetahuan!R23 -> 77.5 | Z18: =Pengetahuan!S23 -> 3.1 | AA18: =Pengetahuan!T23 -> B | AC18: =Ketrampilan!C23 -> 80 | AD18: =Ketrampilan!D23 -> 80 | AE18: =Ketrampilan!E23 -> 80 | AF18: =Ketrampilan!G23 -> 80 | AG18: =Ketrampilan!H23 -> 80 | AH18: =Ketrampilan!I23 -> 0 | AI18: =Ketrampilan!J23 -> 0 | AJ18: =Ketrampilan!K23 -> 80 | AK18: =Ketrampilan!L23 -> 80 | AL18: =Ketrampilan!M23 -> 0 | AM18: =Ketrampilan!N23 -> 80 | AN18: =Ketrampilan!O23 -> 80 | AO18: =Ketrampilan!P23 -> 3.2 | AP18: =Ketrampilan!Q23 -> B+ | AR18: =Sikap!C16 -> 3 | AS18: =Sikap!D16 -> 3 | AT18: =Sikap!E16 -> 3 | AU18: =Sikap!F16 -> 3 | AV18: =Sikap!G16 -> 3 | AW18: =Sikap!H16 -> 3 | AX18: =Sikap!I16 -> 3 | AY18: =Sikap!J16 -> 3 | AZ18: =Sikap!K16 -> 3 | BA18: =Sikap!L16 -> 3 | BB18: =Sikap!M16 -> 3 | BC18: =Sikap!N16 -> B
I19: 4 | J19: ='Data '!D30 -> CYNTIA AGUSTINA | K19: ='Data '!B30 -> 9068 | L19: =Pengetahuan!C24 -> 80 | M19: =Pengetahuan!D24 -> 80 | N19: =Pengetahuan!E24 -> 80 | O19: =Pengetahuan!F24 -> 80 | P19: =Pengetahuan!H24 -> 80 | Q19: =Pengetahuan!I24 -> 80 | R19: =Pengetahuan!J24 -> 80 | S19: =Pengetahuan!K24 -> 80 | T19: =Pengetahuan!L24 -> 80 | U19: =Pengetahuan!N24 -> 80 | V19: =Pengetahuan!O24 -> 80 | W19: =Pengetahuan!P24 -> 75 | X19: =Pengetahuan!Q24 -> 75 | Y19: =Pengetahuan!R24 -> 77.5 | Z19: =Pengetahuan!S24 -> 3.1 | AA19: =Pengetahuan!T24 -> B | AC19: =Ketrampilan!C24 -> 80 | AD19: =Ketrampilan!D24 -> 80 | AE19: =Ketrampilan!E24 -> 80 | AF19: =Ketrampilan!G24 -> 80 | AG19: =Ketrampilan!H24 -> 80 | AH19: =Ketrampilan!I24 -> 0 | AI19: =Ketrampilan!J24 -> 0 | AJ19: =Ketrampilan!K24 -> 80 | AK19: =Ketrampilan!L24 -> 80 | AL19: =Ketrampilan!M24 -> 0 | AM19: =Ketrampilan!N24 -> 80 | AN19: =Ketrampilan!O24 -> 80 | AO19: =Ketrampilan!P24 -> 3.2 | AP19: =Ketrampilan!Q24 -> B+ | AR19: =Sikap!C17 -> 3 | AS19: =Sikap!D17 -> 3 | AT19: =Sikap!E17 -> 3 | AU19: =Sikap!F17 -> 3 | AV19: =Sikap!G17 -> 3 | AW19: =Sikap!H17 -> 3 | AX19: =Sikap!I17 -> 3 | AY19: =Sikap!J17 -> 3 | AZ19: =Sikap!K17 -> 3 | BA19: =Sikap!L17 -> 3 | BB19: =Sikap!M17 -> 3 | BC19: =Sikap!N17 -> B
I20: 5 | J20: ='Data '!D31 -> DAFFA KRISNA PRAMUDYA | K20: ='Data '!B31 -> 9069 | L20: =Pengetahuan!C25 -> 80 | M20: =Pengetahuan!D25 -> 80 | N20: =Pengetahuan!E25 -> 80 | O20: =Pengetahuan!F25 -> 80 | P20: =Pengetahuan!H25 -> 80 | Q20: =Pengetahuan!I25 -> 80 | R20: =Pengetahuan!J25 -> 80 | S20: =Pengetahuan!K25 -> 80 | T20: =Pengetahuan!L25 -> 80 | U20: =Pengetahuan!N25 -> 80 | V20: =Pengetahuan!O25 -> 80 | W20: =Pengetahuan!P25 -> 75 | X20: =Pengetahuan!Q25 -> 75 | Y20: =Pengetahuan!R25 -> 77.5 | Z20: =Pengetahuan!S25 -> 3.1 | AA20: =Pengetahuan!T25 -> B | AC20: =Ketrampilan!C25 -> 80 | AD20: =Ketrampilan!D25 -> 80 | AE20: =Ketrampilan!E25 -> 80 | AF20: =Ketrampilan!G25 -> 80 | AG20: =Ketrampilan!H25 -> 80 | AH20: =Ketrampilan!I25 -> 0 | AI20: =Ketrampilan!J25 -> 0 | AJ20: =Ketrampilan!K25 -> 80 | AK20: =Ketrampilan!L25 -> 80 | AL20: =Ketrampilan!M25 -> 0 | AM20: =Ketrampilan!N25 -> 80 | AN20: =Ketrampilan!O25 -> 80 | AO20: =Ketrampilan!P25 -> 3.2 | AP20: =Ketrampilan!Q25 -> B+ | AR20: =Sikap!C18 -> 3 | AS20: =Sikap!D18 -> 3 | AT20: =Sikap!E18 -> 3 | AU20: =Sikap!F18 -> 3 | AV20: =Sikap!G18 -> 3 | AW20: =Sikap!H18 -> 3 | AX20: =Sikap!I18 -> 3 | AY20: =Sikap!J18 -> 3 | AZ20: =Sikap!K18 -> 3 | BA20: =Sikap!L18 -> 3 | BB20: =Sikap!M18 -> 3 | BC20: =Sikap!N18 -> B
I21: 6 | J21: ='Data '!D32 -> DANINDRA RAFIF IRAWAN | K21: ='Data '!B32 -> 9070 | L21: =Pengetahuan!C26 -> 80 | M21: =Pengetahuan!D26 -> 80 | N21: =Pengetahuan!E26 -> 80 | O21: =Pengetahuan!F26 -> 80 | P21: =Pengetahuan!H26 -> 80 | Q21: =Pengetahuan!I26 -> 80 | R21: =Pengetahuan!J26 -> 80 | S21: =Pengetahuan!K26 -> 80 | T21: =Pengetahuan!L26 -> 80 | U21: =Pengetahuan!N26 -> 80 | V21: =Pengetahuan!O26 -> 80 | W21: =Pengetahuan!P26 -> 75 | X21: =Pengetahuan!Q26 -> 75 | Y21: =Pengetahuan!R26 -> 77.5 | Z21: =Pengetahuan!S26 -> 3.1 | AA21: =Pengetahuan!T26 -> B | AC21: =Ketrampilan!C26 -> 80 | AD21: =Ketrampilan!D26 -> 80 | AE21: =Ketrampilan!E26 -> 80 | AF21: =Ketrampilan!G26 -> 80 | AG21: =Ketrampilan!H26 -> 80 | AH21: =Ketrampilan!I26 -> 0 | AI21: =Ketrampilan!J26 -> 0 | AJ21: =Ketrampilan!K26 -> 80 | AK21: =Ketrampilan!L26 -> 80 | AL21: =Ketrampilan!M26 -> 0 | AM21: =Ketrampilan!N26 -> 80 | AN21: =Ketrampilan!O26 -> 80 | AO21: =Ketrampilan!P26 -> 3.2 | AP21: =Ketrampilan!Q26 -> B+ | AR21: =Sikap!C19 -> 3 | AS21: =Sikap!D19 -> 3 | AT21: =Sikap!E19 -> 3 | AU21: =Sikap!F19 -> 3 | AV21: =Sikap!G19 -> 3 | AW21: =Sikap!H19 -> 3 | AX21: =Sikap!I19 -> 3 | AY21: =Sikap!J19 -> 3 | AZ21: =Sikap!K19 -> 3 | BA21: =Sikap!L19 -> 3 | BB21: =Sikap!M19 -> 3 | BC21: =Sikap!N19 -> B
I22: 7 | J22: ='Data '!D33 -> DENI PRATAMA | K22: ='Data '!B33 -> 9074 | L22: =Pengetahuan!C27 -> 80 | M22: =Pengetahuan!D27 -> 80 | N22: =Pengetahuan!E27 -> 80 | O22: =Pengetahuan!F27 -> 80 | P22: =Pengetahuan!H27 -> 80 | Q22: =Pengetahuan!I27 -> 80 | R22: =Pengetahuan!J27 -> 80 | S22: =Pengetahuan!K27 -> 80 | T22: =Pengetahuan!L27 -> 80 | U22: =Pengetahuan!N27 -> 80 | V22: =Pengetahuan!O27 -> 80 | W22: =Pengetahuan!P27 -> 75 | X22: =Pengetahuan!Q27 -> 75 | Y22: =Pengetahuan!R27 -> 77.5 | Z22: =Pengetahuan!S27 -> 3.1 | AA22: =Pengetahuan!T27 -> B | AC22: =Ketrampilan!C27 -> 80 | AD22: =Ketrampilan!D27 -> 80 | AE22: =Ketrampilan!E27 -> 80 | AF22: =Ketrampilan!G27 -> 80 | AG22: =Ketrampilan!H27 -> 80 | AH22: =Ketrampilan!I27 -> 0 | AI22: =Ketrampilan!J27 -> 0 | AJ22: =Ketrampilan!K27 -> 80 | AK22: =Ketrampilan!L27 -> 80 | AL22: =Ketrampilan!M27 -> 0 | AM22: =Ketrampilan!N27 -> 80 | AN22: =Ketrampilan!O27 -> 80 | AO22: =Ketrampilan!P27 -> 3.2 | AP22: =Ketrampilan!Q27 -> B+ | AR22: =Sikap!C20 -> 3 | AS22: =Sikap!D20 -> 3 | AT22: =Sikap!E20 -> 3 | AU22: =Sikap!F20 -> 3 | AV22: =Sikap!G20 -> 3 | AW22: =Sikap!H20 -> 3 | AX22: =Sikap!I20 -> 3 | AY22: =Sikap!J20 -> 3 | AZ22: =Sikap!K20 -> 3 | BA22: =Sikap!L20 -> 3 | BB22: =Sikap!M20 -> 3 | BC22: =Sikap!N20 -> B
I23: 8 | J23: ='Data '!D34 -> DIKA SUKMA AGUSTIN | K23: ='Data '!B34 -> 9081 | L23: =Pengetahuan!C28 -> 80 | M23: =Pengetahuan!D28 -> 80 | N23: =Pengetahuan!E28 -> 80 | O23: =Pengetahuan!F28 -> 80 | P23: =Pengetahuan!H28 -> 80 | Q23: =Pengetahuan!I28 -> 80 | R23: =Pengetahuan!J28 -> 80 | S23: =Pengetahuan!K28 -> 80 | T23: =Pengetahuan!L28 -> 80 | U23: =Pengetahuan!N28 -> 80 | V23: =Pengetahuan!O28 -> 80 | W23: =Pengetahuan!P28 -> 75 | X23: =Pengetahuan!Q28 -> 75 | Y23: =Pengetahuan!R28 -> 77.5 | Z23: =Pengetahuan!S28 -> 3.1 | AA23: =Pengetahuan!T28 -> B | AC23: =Ketrampilan!C28 -> 80 | AD23: =Ketrampilan!D28 -> 80 | AE23: =Ketrampilan!E28 -> 80 | AF23: =Ketrampilan!G28 -> 80 | AG23: =Ketrampilan!H28 -> 80 | AH23: =Ketrampilan!I28 -> 0 | AI23: =Ketrampilan!J28 -> 0 | AJ23: =Ketrampilan!K28 -> 80 | AK23: =Ketrampilan!L28 -> 80 | AL23: =Ketrampilan!M28 -> 0 | AM23: =Ketrampilan!N28 -> 80 | AN23: =Ketrampilan!O28 -> 80 | AO23: =Ketrampilan!P28 -> 3.2 | AP23: =Ketrampilan!Q28 -> B+ | AR23: =Sikap!C21 -> 3 | AS23: =Sikap!D21 -> 3 | AT23: =Sikap!E21 -> 3 | AU23: =Sikap!F21 -> 3 | AV23: =Sikap!G21 -> 3 | AW23: =Sikap!H21 -> 3 | AX23: =Sikap!I21 -> 3 | AY23: =Sikap!J21 -> 3 | AZ23: =Sikap!K21 -> 3 | BA23: =Sikap!L21 -> 3 | BB23: =Sikap!M21 -> 3 | BC23: =Sikap!N21 -> B
I24: 9 | J24: ='Data '!D35 -> DIVA ADITYA | K24: ='Data '!B35 -> 9087 | L24: =Pengetahuan!C29 -> 80 | M24: =Pengetahuan!D29 -> 80 | N24: =Pengetahuan!E29 -> 80 | O24: =Pengetahuan!F29 -> 80 | P24: =Pengetahuan!H29 -> 80 | Q24: =Pengetahuan!I29 -> 80 | R24: =Pengetahuan!J29 -> 80 | S24: =Pengetahuan!K29 -> 80 | T24: =Pengetahuan!L29 -> 80 | U24: =Pengetahuan!N29 -> 80 | V24: =Pengetahuan!O29 -> 80 | W24: =Pengetahuan!P29 -> 75 | X24: =Pengetahuan!Q29 -> 75 | Y24: =Pengetahuan!R29 -> 77.5 | Z24: =Pengetahuan!S29 -> 3.1 | AA24: =Pengetahuan!T29 -> B | AC24: =Ketrampilan!C29 -> 80 | AD24: =Ketrampilan!D29 -> 80 | AE24: =Ketrampilan!E29 -> 80 | AF24: =Ketrampilan!G29 -> 80 | AG24: =Ketrampilan!H29 -> 80 | AH24: =Ketrampilan!I29 -> 0 | AI24: =Ketrampilan!J29 -> 0 | AJ24: =Ketrampilan!K29 -> 80 | AK24: =Ketrampilan!L29 -> 80 | AL24: =Ketrampilan!M29 -> 0 | AM24: =Ketrampilan!N29 -> 80 | AN24: =Ketrampilan!O29 -> 80 | AO24: =Ketrampilan!P29 -> 3.2 | AP24: =Ketrampilan!Q29 -> B+ | AR24: =Sikap!C22 -> 3 | AS24: =Sikap!D22 -> 3 | AT24: =Sikap!E22 -> 3 | AU24: =Sikap!F22 -> 3 | AV24: =Sikap!G22 -> 3 | AW24: =Sikap!H22 -> 3 | AX24: =Sikap!I22 -> 3 | AY24: =Sikap!J22 -> 3 | AZ24: =Sikap!K22 -> 3 | BA24: =Sikap!L22 -> 3 | BB24: =Sikap!M22 -> 3 | BC24: =Sikap!N22 -> B
I25: 10 | J25: ='Data '!D36 -> EKO PRASTYO | K25: ='Data '!B36 -> 9098 | L25: =Pengetahuan!C30 -> 80 | M25: =Pengetahuan!D30 -> 80 | N25: =Pengetahuan!E30 -> 80 | O25: =Pengetahuan!F30 -> 80 | P25: =Pengetahuan!H30 -> 80 | Q25: =Pengetahuan!I30 -> 80 | R25: =Pengetahuan!J30 -> 80 | S25: =Pengetahuan!K30 -> 80 | T25: =Pengetahuan!L30 -> 80 | U25: =Pengetahuan!N30 -> 80 | V25: =Pengetahuan!O30 -> 80 | W25: =Pengetahuan!P30 -> 75 | X25: =Pengetahuan!Q30 -> 75 | Y25: =Pengetahuan!R30 -> 77.5 | Z25: =Pengetahuan!S30 -> 3.1 | AA25: =Pengetahuan!T30 -> B | AC25: =Ketrampilan!C30 -> 80 | AD25: =Ketrampilan!D30 -> 80 | AE25: =Ketrampilan!E30 -> 80 | AF25: =Ketrampilan!G30 -> 80 | AG25: =Ketrampilan!H30 -> 80 | AH25: =Ketrampilan!I30 -> 0 | AI25: =Ketrampilan!J30 -> 0 | AJ25: =Ketrampilan!K30 -> 80 | AK25: =Ketrampilan!L30 -> 80 | AL25: =Ketrampilan!M30 -> 0 | AM25: =Ketrampilan!N30 -> 80 | AN25: =Ketrampilan!O30 -> 80 | AO25: =Ketrampilan!P30 -> 3.2 | AP25: =Ketrampilan!Q30 -> B+ | AR25: =Sikap!C23 -> 3 | AS25: =Sikap!D23 -> 3 | AT25: =Sikap!E23 -> 3 | AU25: =Sikap!F23 -> 3 | AV25: =Sikap!G23 -> 3 | AW25: =Sikap!H23 -> 3 | AX25: =Sikap!I23 -> 3 | AY25: =Sikap!J23 -> 3 | AZ25: =Sikap!K23 -> 3 | BA25: =Sikap!L23 -> 3 | BB25: =Sikap!M23 -> 3 | BC25: =Sikap!N23 -> B
I26: 11 | J26: ='Data '!D37 -> FAIQUR RIJAL HAMMAM | K26: ='Data '!B37 -> 9107 | L26: =Pengetahuan!C31 -> 80 | M26: =Pengetahuan!D31 -> 80 | N26: =Pengetahuan!E31 -> 80 | O26: =Pengetahuan!F31 -> 80 | P26: =Pengetahuan!H31 -> 80 | Q26: =Pengetahuan!I31 -> 80 | R26: =Pengetahuan!J31 -> 80 | S26: =Pengetahuan!K31 -> 80 | T26: =Pengetahuan!L31 -> 80 | U26: =Pengetahuan!N31 -> 80 | V26: =Pengetahuan!O31 -> 80 | W26: =Pengetahuan!P31 -> 75 | X26: =Pengetahuan!Q31 -> 75 | Y26: =Pengetahuan!R31 -> 77.5 | Z26: =Pengetahuan!S31 -> 3.1 | AA26: =Pengetahuan!T31 -> B | AC26: =Ketrampilan!C31 -> 80 | AD26: =Ketrampilan!D31 -> 80 | AE26: =Ketrampilan!E31 -> 80 | AF26: =Ketrampilan!G31 -> 80 | AG26: =Ketrampilan!H31 -> 80 | AH26: =Ketrampilan!I31 -> 0 | AI26: =Ketrampilan!J31 -> 0 | AJ26: =Ketrampilan!K31 -> 80 | AK26: =Ketrampilan!L31 -> 80 | AL26: =Ketrampilan!M31 -> 0 | AM26: =Ketrampilan!N31 -> 80 | AN26: =Ketrampilan!O31 -> 80 | AO26: =Ketrampilan!P31 -> 3.2 | AP26: =Ketrampilan!Q31 -> B+ | AR26: =Sikap!C24 -> 3 | AS26: =Sikap!D24 -> 3 | AT26: =Sikap!E24 -> 3 | AU26: =Sikap!F24 -> 3 | AV26: =Sikap!G24 -> 3 | AW26: =Sikap!H24 -> 3 | AX26: =Sikap!I24 -> 3 | AY26: =Sikap!J24 -> 3 | AZ26: =Sikap!K24 -> 3 | BA26: =Sikap!L24 -> 3 | BB26: =Sikap!M24 -> 3 | BC26: =Sikap!N24 -> B
I27: 12 | J27: ='Data '!D38 -> FATESAR SARI PRASETYO | K27: ='Data '!B38 -> 9114 | L27: =Pengetahuan!C32 -> 80 | M27: =Pengetahuan!D32 -> 80 | N27: =Pengetahuan!E32 -> 80 | O27: =Pengetahuan!F32 -> 80 | P27: =Pengetahuan!H32 -> 80 | Q27: =Pengetahuan!I32 -> 80 | R27: =Pengetahuan!J32 -> 80 | S27: =Pengetahuan!K32 -> 80 | T27: =Pengetahuan!L32 -> 80 | U27: =Pengetahuan!N32 -> 80 | V27: =Pengetahuan!O32 -> 80 | W27: =Pengetahuan!P32 -> 75 | X27: =Pengetahuan!Q32 -> 75 | Y27: =Pengetahuan!R32 -> 77.5 | Z27: =Pengetahuan!S32 -> 3.1 | AA27: =Pengetahuan!T32 -> B | AC27: =Ketrampilan!C32 -> 80 | AD27: =Ketrampilan!D32 -> 80 | AE27: =Ketrampilan!E32 -> 80 | AF27: =Ketrampilan!G32 -> 80 | AG27: =Ketrampilan!H32 -> 80 | AH27: =Ketrampilan!I32 -> 0 | AI27: =Ketrampilan!J32 -> 0 | AJ27: =Ketrampilan!K32 -> 80 | AK27: =Ketrampilan!L32 -> 80 | AL27: =Ketrampilan!M32 -> 0 | AM27: =Ketrampilan!N32 -> 80 | AN27: =Ketrampilan!O32 -> 80 | AO27: =Ketrampilan!P32 -> 3.2 | AP27: =Ketrampilan!Q32 -> B+ | AR27: =Sikap!C25 -> 3 | AS27: =Sikap!D25 -> 3 | AT27: =Sikap!E25 -> 3 | AU27: =Sikap!F25 -> 3 | AV27: =Sikap!G25 -> 3 | AW27: =Sikap!H25 -> 3 | AX27: =Sikap!I25 -> 3 | AY27: =Sikap!J25 -> 3 | AZ27: =Sikap!K25 -> 3 | BA27: =Sikap!L25 -> 3 | BB27: =Sikap!M25 -> 3 | BC27: =Sikap!N25 -> B
I28: 13 | J28: ='Data '!D39 -> FEBRI SULISTIYO | K28: ='Data '!B39 -> 9115 | L28: =Pengetahuan!C33 -> 80 | M28: =Pengetahuan!D33 -> 80 | N28: =Pengetahuan!E33 -> 80 | O28: =Pengetahuan!F33 -> 80 | P28: =Pengetahuan!H33 -> 80 | Q28: =Pengetahuan!I33 -> 80 | R28: =Pengetahuan!J33 -> 80 | S28: =Pengetahuan!K33 -> 80 | T28: =Pengetahuan!L33 -> 80 | U28: =Pengetahuan!N33 -> 80 | V28: =Pengetahuan!O33 -> 80 | W28: =Pengetahuan!P33 -> 75 | X28: =Pengetahuan!Q33 -> 75 | Y28: =Pengetahuan!R33 -> 77.5 | Z28: =Pengetahuan!S33 -> 3.1 | AA28: =Pengetahuan!T33 -> B | AC28: =Ketrampilan!C33 -> 80 | AD28: =Ketrampilan!D33 -> 80 | AE28: =Ketrampilan!E33 -> 80 | AF28: =Ketrampilan!G33 -> 80 | AG28: =Ketrampilan!H33 -> 80 | AH28: =Ketrampilan!I33 -> 0 | AI28: =Ketrampilan!J33 -> 0 | AJ28: =Ketrampilan!K33 -> 80 | AK28: =Ketrampilan!L33 -> 80 | AL28: =Ketrampilan!M33 -> 0 | AM28: =Ketrampilan!N33 -> 80 | AN28: =Ketrampilan!O33 -> 80 | AO28: =Ketrampilan!P33 -> 3.2 | AP28: =Ketrampilan!Q33 -> B+ | AR28: =Sikap!C26 -> 3 | AS28: =Sikap!D26 -> 3 | AT28: =Sikap!E26 -> 3 | AU28: =Sikap!F26 -> 3 | AV28: =Sikap!G26 -> 3 | AW28: =Sikap!H26 -> 3 | AX28: =Sikap!I26 -> 3 | AY28: =Sikap!J26 -> 3 | AZ28: =Sikap!K26 -> 3 | BA28: =Sikap!L26 -> 3 | BB28: =Sikap!M26 -> 3 | BC28: =Sikap!N26 -> B
I29: 14 | J29: ='Data '!D40 -> FIONA NANDA FETRIAN | K29: ='Data '!B40 -> 9119 | L29: =Pengetahuan!C34 -> 80 | M29: =Pengetahuan!D34 -> 80 | N29: =Pengetahuan!E34 -> 80 | O29: =Pengetahuan!F34 -> 80 | P29: =Pengetahuan!H34 -> 80 | Q29: =Pengetahuan!I34 -> 80 | R29: =Pengetahuan!J34 -> 80 | S29: =Pengetahuan!K34 -> 80 | T29: =Pengetahuan!L34 -> 80 | U29: =Pengetahuan!N34 -> 80 | V29: =Pengetahuan!O34 -> 80 | W29: =Pengetahuan!P34 -> 75 | X29: =Pengetahuan!Q34 -> 75 | Y29: =Pengetahuan!R34 -> 77.5 | Z29: =Pengetahuan!S34 -> 3.1 | AA29: =Pengetahuan!T34 -> B | AC29: =Ketrampilan!C34 -> 80 | AD29: =Ketrampilan!D34 -> 80 | AE29: =Ketrampilan!E34 -> 80 | AF29: =Ketrampilan!G34 -> 80 | AG29: =Ketrampilan!H34 -> 80 | AH29: =Ketrampilan!I34 -> 0 | AI29: =Ketrampilan!J34 -> 0 | AJ29: =Ketrampilan!K34 -> 80 | AK29: =Ketrampilan!L34 -> 80 | AL29: =Ketrampilan!M34 -> 0 | AM29: =Ketrampilan!N34 -> 80 | AN29: =Ketrampilan!O34 -> 80 | AO29: =Ketrampilan!P34 -> 3.2 | AP29: =Ketrampilan!Q34 -> B+ | AR29: =Sikap!C27 -> 3 | AS29: =Sikap!D27 -> 3 | AT29: =Sikap!E27 -> 3 | AU29: =Sikap!F27 -> 3 | AV29: =Sikap!G27 -> 3 | AW29: =Sikap!H27 -> 3 | AX29: =Sikap!I27 -> 3 | AY29: =Sikap!J27 -> 3 | AZ29: =Sikap!K27 -> 3 | BA29: =Sikap!L27 -> 3 | BB29: =Sikap!M27 -> 3 | BC29: =Sikap!N27 -> B
I30: 15 | J30: ='Data '!D41 -> GILANG SYAHRUL RAMADHAN | K30: ='Data '!B41 -> 9125 | L30: =Pengetahuan!C35 -> 80 | M30: =Pengetahuan!D35 -> 80 | N30: =Pengetahuan!E35 -> 80 | O30: =Pengetahuan!F35 -> 80 | P30: =Pengetahuan!H35 -> 80 | Q30: =Pengetahuan!I35 -> 80 | R30: =Pengetahuan!J35 -> 80 | S30: =Pengetahuan!K35 -> 80 | T30: =Pengetahuan!L35 -> 80 | U30: =Pengetahuan!N35 -> 80 | V30: =Pengetahuan!O35 -> 80 | W30: =Pengetahuan!P35 -> 75 | X30: =Pengetahuan!Q35 -> 75 | Y30: =Pengetahuan!R35 -> 77.5 | Z30: =Pengetahuan!S35 -> 3.1 | AA30: =Pengetahuan!T35 -> B | AC30: =Ketrampilan!C35 -> 80 | AD30: =Ketrampilan!D35 -> 80 | AE30: =Ketrampilan!E35 -> 80 | AF30: =Ketrampilan!G35 -> 80 | AG30: =Ketrampilan!H35 -> 80 | AH30: =Ketrampilan!I35 -> 0 | AI30: =Ketrampilan!J35 -> 0 | AJ30: =Ketrampilan!K35 -> 80 | AK30: =Ketrampilan!L35 -> 80 | AL30: =Ketrampilan!M35 -> 0 | AM30: =Ketrampilan!N35 -> 80 | AN30: =Ketrampilan!O35 -> 80 | AO30: =Ketrampilan!P35 -> 3.2 | AP30: =Ketrampilan!Q35 -> B+ | AR30: =Sikap!C28 -> 3 | AS30: =Sikap!D28 -> 3 | AT30: =Sikap!E28 -> 3 | AU30: =Sikap!F28 -> 3 | AV30: =Sikap!G28 -> 3 | AW30: =Sikap!H28 -> 3 | AX30: =Sikap!I28 -> 3 | AY30: =Sikap!J28 -> 3 | AZ30: =Sikap!K28 -> 3 | BA30: =Sikap!L28 -> 3 | BB30: =Sikap!M28 -> 3 | BC30: =Sikap!N28 -> B
I31: 16 | J31: ='Data '!D42 -> IMAM AGUNG WAHYU PRATAMA | K31: ='Data '!B42 -> 9136 | L31: =Pengetahuan!C36 -> 80 | M31: =Pengetahuan!D36 -> 80 | N31: =Pengetahuan!E36 -> 80 | O31: =Pengetahuan!F36 -> 80 | P31: =Pengetahuan!H36 -> 80 | Q31: =Pengetahuan!I36 -> 80 | R31: =Pengetahuan!J36 -> 80 | S31: =Pengetahuan!K36 -> 80 | T31: =Pengetahuan!L36 -> 80 | U31: =Pengetahuan!N36 -> 80 | V31: =Pengetahuan!O36 -> 80 | W31: =Pengetahuan!P36 -> 75 | X31: =Pengetahuan!Q36 -> 75 | Y31: =Pengetahuan!R36 -> 77.5 | Z31: =Pengetahuan!S36 -> 3.1 | AA31: =Pengetahuan!T36 -> B | AC31: =Ketrampilan!C36 -> 80 | AD31: =Ketrampilan!D36 -> 80 | AE31: =Ketrampilan!E36 -> 80 | AF31: =Ketrampilan!G36 -> 80 | AG31: =Ketrampilan!H36 -> 80 | AH31: =Ketrampilan!I36 -> 0 | AI31: =Ketrampilan!J36 -> 0 | AJ31: =Ketrampilan!K36 -> 80 | AK31: =Ketrampilan!L36 -> 80 | AL31: =Ketrampilan!M36 -> 0 | AM31: =Ketrampilan!N36 -> 80 | AN31: =Ketrampilan!O36 -> 80 | AO31: =Ketrampilan!P36 -> 3.2 | AP31: =Ketrampilan!Q36 -> B+ | AR31: =Sikap!C29 -> 3 | AS31: =Sikap!D29 -> 3 | AT31: =Sikap!E29 -> 3 | AU31: =Sikap!F29 -> 3 | AV31: =Sikap!G29 -> 3 | AW31: =Sikap!H29 -> 3 | AX31: =Sikap!I29 -> 3 | AY31: =Sikap!J29 -> 3 | AZ31: =Sikap!K29 -> 3 | BA31: =Sikap!L29 -> 3 | BB31: =Sikap!M29 -> 3 | BC31: =Sikap!N29 -> B
I32: 17 | J32: ='Data '!D43 -> JOHAN MAULANA | K32: ='Data '!B43 -> 9149 | L32: =Pengetahuan!C37 -> 80 | M32: =Pengetahuan!D37 -> 80 | N32: =Pengetahuan!E37 -> 80 | O32: =Pengetahuan!F37 -> 80 | P32: =Pengetahuan!H37 -> 80 | Q32: =Pengetahuan!I37 -> 80 | R32: =Pengetahuan!J37 -> 80 | S32: =Pengetahuan!K37 -> 80 | T32: =Pengetahuan!L37 -> 80 | U32: =Pengetahuan!N37 -> 80 | V32: =Pengetahuan!O37 -> 80 | W32: =Pengetahuan!P37 -> 75 | X32: =Pengetahuan!Q37 -> 75 | Y32: =Pengetahuan!R37 -> 77.5 | Z32: =Pengetahuan!S37 -> 3.1 | AA32: =Pengetahuan!T37 -> B | AC32: =Ketrampilan!C37 -> 80 | AD32: =Ketrampilan!D37 -> 80 | AE32: =Ketrampilan!E37 -> 80 | AF32: =Ketrampilan!G37 -> 80 | AG32: =Ketrampilan!H37 -> 80 | AH32: =Ketrampilan!I37 -> 0 | AI32: =Ketrampilan!J37 -> 0 | AJ32: =Ketrampilan!K37 -> 80 | AK32: =Ketrampilan!L37 -> 80 | AL32: =Ketrampilan!M37 -> 0 | AM32: =Ketrampilan!N37 -> 80 | AN32: =Ketrampilan!O37 -> 80 | AO32: =Ketrampilan!P37 -> 3.2 | AP32: =Ketrampilan!Q37 -> B+ | AR32: =Sikap!C30 -> 3 | AS32: =Sikap!D30 -> 3 | AT32: =Sikap!E30 -> 3 | AU32: =Sikap!F30 -> 3 | AV32: =Sikap!G30 -> 3 | AW32: =Sikap!H30 -> 3 | AX32: =Sikap!I30 -> 3 | AY32: =Sikap!J30 -> 3 | AZ32: =Sikap!K30 -> 3 | BA32: =Sikap!L30 -> 3 | BB32: =Sikap!M30 -> 3 | BC32: =Sikap!N30 -> B
I33: 18 | J33: ='Data '!D44 -> JOKO SETIAWAN | K33: ='Data '!B44 -> 9150 | L33: =Pengetahuan!C38 -> 80 | M33: =Pengetahuan!D38 -> 80 | N33: =Pengetahuan!E38 -> 80 | O33: =Pengetahuan!F38 -> 80 | P33: =Pengetahuan!H38 -> 80 | Q33: =Pengetahuan!I38 -> 80 | R33: =Pengetahuan!J38 -> 80 | S33: =Pengetahuan!K38 -> 80 | T33: =Pengetahuan!L38 -> 80 | U33: =Pengetahuan!N38 -> 80 | V33: =Pengetahuan!O38 -> 80 | W33: =Pengetahuan!P38 -> 75 | X33: =Pengetahuan!Q38 -> 75 | Y33: =Pengetahuan!R38 -> 77.5 | Z33: =Pengetahuan!S38 -> 3.1 | AA33: =Pengetahuan!T38 -> B | AC33: =Ketrampilan!C38 -> 80 | AD33: =Ketrampilan!D38 -> 80 | AE33: =Ketrampilan!E38 -> 80 | AF33: =Ketrampilan!G38 -> 80 | AG33: =Ketrampilan!H38 -> 80 | AH33: =Ketrampilan!I38 -> 0 | AI33: =Ketrampilan!J38 -> 0 | AJ33: =Ketrampilan!K38 -> 80 | AK33: =Ketrampilan!L38 -> 80 | AL33: =Ketrampilan!M38 -> 0 | AM33: =Ketrampilan!N38 -> 80 | AN33: =Ketrampilan!O38 -> 80 | AO33: =Ketrampilan!P38 -> 3.2 | AP33: =Ketrampilan!Q38 -> B+ | AR33: =Sikap!C31 -> 3 | AS33: =Sikap!D31 -> 3 | AT33: =Sikap!E31 -> 3 | AU33: =Sikap!F31 -> 3 | AV33: =Sikap!G31 -> 3 | AW33: =Sikap!H31 -> 3 | AX33: =Sikap!I31 -> 3 | AY33: =Sikap!J31 -> 3 | AZ33: =Sikap!K31 -> 3 | BA33: =Sikap!L31 -> 3 | BB33: =Sikap!M31 -> 3 | BC33: =Sikap!N31 -> B
I34: 19 | J34: ='Data '!D45 -> LISA OKTAVINASARI | K34: ='Data '!B45 -> 9159 | L34: =Pengetahuan!C39 -> 80 | M34: =Pengetahuan!D39 -> 80 | N34: =Pengetahuan!E39 -> 80 | O34: =Pengetahuan!F39 -> 80 | P34: =Pengetahuan!H39 -> 80 | Q34: =Pengetahuan!I39 -> 80 | R34: =Pengetahuan!J39 -> 80 | S34: =Pengetahuan!K39 -> 80 | T34: =Pengetahuan!L39 -> 80 | U34: =Pengetahuan!N39 -> 80 | V34: =Pengetahuan!O39 -> 80 | W34: =Pengetahuan!P39 -> 75 | X34: =Pengetahuan!Q39 -> 75 | Y34: =Pengetahuan!R39 -> 77.5 | Z34: =Pengetahuan!S39 -> 3.1 | AA34: =Pengetahuan!T39 -> B | AC34: =Ketrampilan!C39 -> 80 | AD34: =Ketrampilan!D39 -> 80 | AE34: =Ketrampilan!E39 -> 80 | AF34: =Ketrampilan!G39 -> 80 | AG34: =Ketrampilan!H39 -> 80 | AH34: =Ketrampilan!I39 -> 0 | AI34: =Ketrampilan!J39 -> 0 | AJ34: =Ketrampilan!K39 -> 80 | AK34: =Ketrampilan!L39 -> 80 | AL34: =Ketrampilan!M39 -> 0 | AM34: =Ketrampilan!N39 -> 80 | AN34: =Ketrampilan!O39 -> 80 | AO34: =Ketrampilan!P39 -> 3.2 | AP34: =Ketrampilan!Q39 -> B+ | AR34: =Sikap!C32 -> 3 | AS34: =Sikap!D32 -> 3 | AT34: =Sikap!E32 -> 3 | AU34: =Sikap!F32 -> 3 | AV34: =Sikap!G32 -> 3 | AW34: =Sikap!H32 -> 3 | AX34: =Sikap!I32 -> 3 | AY34: =Sikap!J32 -> 3 | AZ34: =Sikap!K32 -> 3 | BA34: =Sikap!L32 -> 3 | BB34: =Sikap!M32 -> 3 | BC34: =Sikap!N32 -> B
I35: 20 | J35: ='Data '!D46 -> MARIA GILDA SIREGAR | K35: ='Data '!B46 -> 9163 | L35: =Pengetahuan!C40 -> 80 | M35: =Pengetahuan!D40 -> 80 | N35: =Pengetahuan!E40 -> 80 | O35: =Pengetahuan!F40 -> 80 | P35: =Pengetahuan!H40 -> 80 | Q35: =Pengetahuan!I40 -> 80 | R35: =Pengetahuan!J40 -> 80 | S35: =Pengetahuan!K40 -> 80 | T35: =Pengetahuan!L40 -> 80 | U35: =Pengetahuan!N40 -> 80 | V35: =Pengetahuan!O40 -> 80 | W35: =Pengetahuan!P40 -> 75 | X35: =Pengetahuan!Q40 -> 75 | Y35: =Pengetahuan!R40 -> 77.5 | Z35: =Pengetahuan!S40 -> 3.1 | AA35: =Pengetahuan!T40 -> B | AC35: =Ketrampilan!C40 -> 80 | AD35: =Ketrampilan!D40 -> 80 | AE35: =Ketrampilan!E40 -> 80 | AF35: =Ketrampilan!G40 -> 80 | AG35: =Ketrampilan!H40 -> 80 | AH35: =Ketrampilan!I40 -> 0 | AI35: =Ketrampilan!J40 -> 0 | AJ35: =Ketrampilan!K40 -> 80 | AK35: =Ketrampilan!L40 -> 80 | AL35: =Ketrampilan!M40 -> 0 | AM35: =Ketrampilan!N40 -> 80 | AN35: =Ketrampilan!O40 -> 80 | AO35: =Ketrampilan!P40 -> 3.2 | AP35: =Ketrampilan!Q40 -> B+ | AR35: =Sikap!C33 -> 3 | AS35: =Sikap!D33 -> 3 | AT35: =Sikap!E33 -> 3 | AU35: =Sikap!F33 -> 3 | AV35: =Sikap!G33 -> 3 | AW35: =Sikap!H33 -> 3 | AX35: =Sikap!I33 -> 3 | AY35: =Sikap!J33 -> 3 | AZ35: =Sikap!K33 -> 3 | BA35: =Sikap!L33 -> 3 | BB35: =Sikap!M33 -> 3 | BC35: =Sikap!N33 -> B
I36: 21 | J36: ='Data '!D47 -> MOHAMMAD NURKHOLISH | K36: ='Data '!B47 -> 9178 | L36: =Pengetahuan!C41 -> 80 | M36: =Pengetahuan!D41 -> 80 | N36: =Pengetahuan!E41 -> 80 | O36: =Pengetahuan!F41 -> 80 | P36: =Pengetahuan!H41 -> 80 | Q36: =Pengetahuan!I41 -> 80 | R36: =Pengetahuan!J41 -> 80 | S36: =Pengetahuan!K41 -> 80 | T36: =Pengetahuan!L41 -> 80 | U36: =Pengetahuan!N41 -> 80 | V36: =Pengetahuan!O41 -> 80 | W36: =Pengetahuan!P41 -> 75 | X36: =Pengetahuan!Q41 -> 75 | Y36: =Pengetahuan!R41 -> 77.5 | Z36: =Pengetahuan!S41 -> 3.1 | AA36: =Pengetahuan!T41 -> B | AC36: =Ketrampilan!C41 -> 80 | AD36: =Ketrampilan!D41 -> 80 | AE36: =Ketrampilan!E41 -> 80 | AF36: =Ketrampilan!G41 -> 80 | AG36: =Ketrampilan!H41 -> 80 | AH36: =Ketrampilan!I41 -> 0 | AI36: =Ketrampilan!J41 -> 0 | AJ36: =Ketrampilan!K41 -> 80 | AK36: =Ketrampilan!L41 -> 80 | AL36: =Ketrampilan!M41 -> 0 | AM36: =Ketrampilan!N41 -> 80 | AN36: =Ketrampilan!O41 -> 80 | AO36: =Ketrampilan!P41 -> 3.2 | AP36: =Ketrampilan!Q41 -> B+ | AR36: =Sikap!C34 -> 3 | AS36: =Sikap!D34 -> 3 | AT36: =Sikap!E34 -> 3 | AU36: =Sikap!F34 -> 3 | AV36: =Sikap!G34 -> 3 | AW36: =Sikap!H34 -> 3 | AX36: =Sikap!I34 -> 3 | AY36: =Sikap!J34 -> 3 | AZ36: =Sikap!K34 -> 3 | BA36: =Sikap!L34 -> 3 | BB36: =Sikap!M34 -> 3 | BC36: =Sikap!N34 -> B
I37: 22 | J37: ='Data '!D48 -> MUHAMAD FARIS ULIN NUHA | K37: ='Data '!B48 -> 9185 | L37: =Pengetahuan!C42 -> 80 | M37: =Pengetahuan!D42 -> 80 | N37: =Pengetahuan!E42 -> 80 | O37: =Pengetahuan!F42 -> 80 | P37: =Pengetahuan!H42 -> 80 | Q37: =Pengetahuan!I42 -> 80 | R37: =Pengetahuan!J42 -> 80 | S37: =Pengetahuan!K42 -> 80 | T37: =Pengetahuan!L42 -> 80 | U37: =Pengetahuan!N42 -> 80 | V37: =Pengetahuan!O42 -> 80 | W37: =Pengetahuan!P42 -> 75 | X37: =Pengetahuan!Q42 -> 75 | Y37: =Pengetahuan!R42 -> 77.5 | Z37: =Pengetahuan!S42 -> 3.1 | AA37: =Pengetahuan!T42 -> B | AC37: =Ketrampilan!C42 -> 80 | AD37: =Ketrampilan!D42 -> 80 | AE37: =Ketrampilan!E42 -> 80 | AF37: =Ketrampilan!G42 -> 80 | AG37: =Ketrampilan!H42 -> 80 | AH37: =Ketrampilan!I42 -> 0 | AI37: =Ketrampilan!J42 -> 0 | AJ37: =Ketrampilan!K42 -> 80 | AK37: =Ketrampilan!L42 -> 80 | AL37: =Ketrampilan!M42 -> 0 | AM37: =Ketrampilan!N42 -> 80 | AN37: =Ketrampilan!O42 -> 80 | AO37: =Ketrampilan!P42 -> 3.2 | AP37: =Ketrampilan!Q42 -> B+ | AR37: =Sikap!C35 -> 3 | AS37: =Sikap!D35 -> 3 | AT37: =Sikap!E35 -> 3 | AU37: =Sikap!F35 -> 3 | AV37: =Sikap!G35 -> 3 | AW37: =Sikap!H35 -> 3 | AX37: =Sikap!I35 -> 3 | AY37: =Sikap!J35 -> 3 | AZ37: =Sikap!K35 -> 3 | BA37: =Sikap!L35 -> 3 | BB37: =Sikap!M35 -> 3 | BC37: =Sikap!N35 -> B
I38: 23 | J38: ='Data '!D49 -> MUHAMMAD MUSTOFA | K38: ='Data '!B49 -> 9322 | L38: =Pengetahuan!C43 -> 80 | M38: =Pengetahuan!D43 -> 80 | N38: =Pengetahuan!E43 -> 80 | O38: =Pengetahuan!F43 -> 80 | P38: =Pengetahuan!H43 -> 80 | Q38: =Pengetahuan!I43 -> 80 | R38: =Pengetahuan!J43 -> 80 | S38: =Pengetahuan!K43 -> 80 | T38: =Pengetahuan!L43 -> 80 | U38: =Pengetahuan!N43 -> 80 | V38: =Pengetahuan!O43 -> 80 | W38: =Pengetahuan!P43 -> 75 | X38: =Pengetahuan!Q43 -> 75 | Y38: =Pengetahuan!R43 -> 77.5 | Z38: =Pengetahuan!S43 -> 3.1 | AA38: =Pengetahuan!T43 -> B | AC38: =Ketrampilan!C43 -> 80 | AD38: =Ketrampilan!D43 -> 80 | AE38: =Ketrampilan!E43 -> 80 | AF38: =Ketrampilan!G43 -> 80 | AG38: =Ketrampilan!H43 -> 80 | AH38: =Ketrampilan!I43 -> 0 | AI38: =Ketrampilan!J43 -> 0 | AJ38: =Ketrampilan!K43 -> 80 | AK38: =Ketrampilan!L43 -> 80 | AL38: =Ketrampilan!M43 -> 0 | AM38: =Ketrampilan!N43 -> 80 | AN38: =Ketrampilan!O43 -> 80 | AO38: =Ketrampilan!P43 -> 3.2 | AP38: =Ketrampilan!Q43 -> B+ | AR38: =Sikap!C36 -> 3 | AS38: =Sikap!D36 -> 3 | AT38: =Sikap!E36 -> 3 | AU38: =Sikap!F36 -> 3 | AV38: =Sikap!G36 -> 3 | AW38: =Sikap!H36 -> 3 | AX38: =Sikap!I36 -> 3 | AY38: =Sikap!J36 -> 3 | AZ38: =Sikap!K36 -> 3 | BA38: =Sikap!L36 -> 3 | BB38: =Sikap!M36 -> 3 | BC38: =Sikap!N36 -> B
I39: 24 | J39: ='Data '!D50 -> NANDA WINTYA PUTRI | K39: ='Data '!B50 -> 9204 | L39: =Pengetahuan!C44 -> 80 | M39: =Pengetahuan!D44 -> 80 | N39: =Pengetahuan!E44 -> 80 | O39: =Pengetahuan!F44 -> 80 | P39: =Pengetahuan!H44 -> 80 | Q39: =Pengetahuan!I44 -> 80 | R39: =Pengetahuan!J44 -> 80 | S39: =Pengetahuan!K44 -> 80 | T39: =Pengetahuan!L44 -> 80 | U39: =Pengetahuan!N44 -> 80 | V39: =Pengetahuan!O44 -> 80 | W39: =Pengetahuan!P44 -> 75 | X39: =Pengetahuan!Q44 -> 75 | Y39: =Pengetahuan!R44 -> 77.5 | Z39: =Pengetahuan!S44 -> 3.1 | AA39: =Pengetahuan!T44 -> B | AC39: =Ketrampilan!C44 -> 80 | AD39: =Ketrampilan!D44 -> 80 | AE39: =Ketrampilan!E44 -> 80 | AF39: =Ketrampilan!G44 -> 80 | AG39: =Ketrampilan!H44 -> 80 | AH39: =Ketrampilan!I44 -> 0 | AI39: =Ketrampilan!J44 -> 0 | AJ39: =Ketrampilan!K44 -> 80 | AK39: =Ketrampilan!L44 -> 80 | AL39: =Ketrampilan!M44 -> 0 | AM39: =Ketrampilan!N44 -> 80 | AN39: =Ketrampilan!O44 -> 80 | AO39: =Ketrampilan!P44 -> 3.2 | AP39: =Ketrampilan!Q44 -> B+ | AR39: =Sikap!C37 -> 3 | AS39: =Sikap!D37 -> 3 | AT39: =Sikap!E37 -> 3 | AU39: =Sikap!F37 -> 3 | AV39: =Sikap!G37 -> 3 | AW39: =Sikap!H37 -> 3 | AX39: =Sikap!I37 -> 3 | AY39: =Sikap!J37 -> 3 | AZ39: =Sikap!K37 -> 3 | BA39: =Sikap!L37 -> 3 | BB39: =Sikap!M37 -> 3 | BC39: =Sikap!N37 -> B
I40: 25 | J40: ='Data '!D51 -> NI'MA NOVA NUR FADHILAH | K40: ='Data '!B51 -> 9210 | L40: =Pengetahuan!C45 -> 80 | M40: =Pengetahuan!D45 -> 80 | N40: =Pengetahuan!E45 -> 80 | O40: =Pengetahuan!F45 -> 80 | P40: =Pengetahuan!H45 -> 80 | Q40: =Pengetahuan!I45 -> 80 | R40: =Pengetahuan!J45 -> 80 | S40: =Pengetahuan!K45 -> 80 | T40: =Pengetahuan!L45 -> 80 | U40: =Pengetahuan!N45 -> 80 | V40: =Pengetahuan!O45 -> 80 | W40: =Pengetahuan!P45 -> 75 | X40: =Pengetahuan!Q45 -> 75 | Y40: =Pengetahuan!R45 -> 77.5 | Z40: =Pengetahuan!S45 -> 3.1 | AA40: =Pengetahuan!T45 -> B | AC40: =Ketrampilan!C45 -> 80 | AD40: =Ketrampilan!D45 -> 80 | AE40: =Ketrampilan!E45 -> 80 | AF40: =Ketrampilan!G45 -> 80 | AG40: =Ketrampilan!H45 -> 80 | AH40: =Ketrampilan!I45 -> 0 | AI40: =Ketrampilan!J45 -> 0 | AJ40: =Ketrampilan!K45 -> 80 | AK40: =Ketrampilan!L45 -> 80 | AL40: =Ketrampilan!M45 -> 0 | AM40: =Ketrampilan!N45 -> 80 | AN40: =Ketrampilan!O45 -> 80 | AO40: =Ketrampilan!P45 -> 3.2 | AP40: =Ketrampilan!Q45 -> B+ | AR40: =Sikap!C38 -> 3 | AS40: =Sikap!D38 -> 3 | AT40: =Sikap!E38 -> 3 | AU40: =Sikap!F38 -> 3 | AV40: =Sikap!G38 -> 3 | AW40: =Sikap!H38 -> 3 | AX40: =Sikap!I38 -> 3 | AY40: =Sikap!J38 -> 3 | AZ40: =Sikap!K38 -> 3 | BA40: =Sikap!L38 -> 3 | BB40: =Sikap!M38 -> 3 | BC40: =Sikap!N38 -> B
I41: 26 | J41: ='Data '!D52 -> NITA ZUMROTUT TAQIYAH | K41: ='Data '!B52 -> 9212 | L41: =Pengetahuan!C46 -> 80 | M41: =Pengetahuan!D46 -> 80 | N41: =Pengetahuan!E46 -> 80 | O41: =Pengetahuan!F46 -> 80 | P41: =Pengetahuan!H46 -> 80 | Q41: =Pengetahuan!I46 -> 80 | R41: =Pengetahuan!J46 -> 80 | S41: =Pengetahuan!K46 -> 80 | T41: =Pengetahuan!L46 -> 80 | U41: =Pengetahuan!N46 -> 80 | V41: =Pengetahuan!O46 -> 80 | W41: =Pengetahuan!P46 -> 75 | X41: =Pengetahuan!Q46 -> 75 | Y41: =Pengetahuan!R46 -> 77.5 | Z41: =Pengetahuan!S46 -> 3.1 | AA41: =Pengetahuan!T46 -> B | AC41: =Ketrampilan!C46 -> 80 | AD41: =Ketrampilan!D46 -> 80 | AE41: =Ketrampilan!E46 -> 80 | AF41: =Ketrampilan!G46 -> 80 | AG41: =Ketrampilan!H46 -> 80 | AH41: =Ketrampilan!I46 -> 0 | AI41: =Ketrampilan!J46 -> 0 | AJ41: =Ketrampilan!K46 -> 80 | AK41: =Ketrampilan!L46 -> 80 | AL41: =Ketrampilan!M46 -> 0 | AM41: =Ketrampilan!N46 -> 80 | AN41: =Ketrampilan!O46 -> 80 | AO41: =Ketrampilan!P46 -> 3.2 | AP41: =Ketrampilan!Q46 -> B+ | AR41: =Sikap!C39 -> 3 | AS41: =Sikap!D39 -> 3 | AT41: =Sikap!E39 -> 3 | AU41: =Sikap!F39 -> 3 | AV41: =Sikap!G39 -> 3 | AW41: =Sikap!H39 -> 3 | AX41: =Sikap!I39 -> 3 | AY41: =Sikap!J39 -> 3 | AZ41: =Sikap!K39 -> 3 | BA41: =Sikap!L39 -> 3 | BB41: =Sikap!M39 -> 3 | BC41: =Sikap!N39 -> B
I42: 27 | J42: ='Data '!D53 -> RACHMAT SAPUTRA ANDRIANSYAH | K42: ='Data '!B53 -> 9234 | L42: =Pengetahuan!C47 -> 80 | M42: =Pengetahuan!D47 -> 80 | N42: =Pengetahuan!E47 -> 80 | O42: =Pengetahuan!F47 -> 80 | P42: =Pengetahuan!H47 -> 80 | Q42: =Pengetahuan!I47 -> 80 | R42: =Pengetahuan!J47 -> 80 | S42: =Pengetahuan!K47 -> 80 | T42: =Pengetahuan!L47 -> 80 | U42: =Pengetahuan!N47 -> 80 | V42: =Pengetahuan!O47 -> 80 | W42: =Pengetahuan!P47 -> 75 | X42: =Pengetahuan!Q47 -> 75 | Y42: =Pengetahuan!R47 -> 77.5 | Z42: =Pengetahuan!S47 -> 3.1 | AA42: =Pengetahuan!T47 -> B | AC42: =Ketrampilan!C47 -> 80 | AD42: =Ketrampilan!D47 -> 80 | AE42: =Ketrampilan!E47 -> 80 | AF42: =Ketrampilan!G47 -> 80 | AG42: =Ketrampilan!H47 -> 80 | AH42: =Ketrampilan!I47 -> 0 | AI42: =Ketrampilan!J47 -> 0 | AJ42: =Ketrampilan!K47 -> 80 | AK42: =Ketrampilan!L47 -> 80 | AL42: =Ketrampilan!M47 -> 0 | AM42: =Ketrampilan!N47 -> 80 | AN42: =Ketrampilan!O47 -> 80 | AO42: =Ketrampilan!P47 -> 3.2 | AP42: =Ketrampilan!Q47 -> B+ | AR42: =Sikap!C40 -> 3 | AS42: =Sikap!D40 -> 3 | AT42: =Sikap!E40 -> 3 | AU42: =Sikap!F40 -> 3 | AV42: =Sikap!G40 -> 3 | AW42: =Sikap!H40 -> 3 | AX42: =Sikap!I40 -> 3 | AY42: =Sikap!J40 -> 3 | AZ42: =Sikap!K40 -> 3 | BA42: =Sikap!L40 -> 3 | BB42: =Sikap!M40 -> 3 | BC42: =Sikap!N40 -> B
I43: 28 | J43: ='Data '!D54 -> RIZAL ANDRIYAN SAPUTRA | K43: ='Data '!B54 -> 9255 | L43: =Pengetahuan!C48 -> 80 | M43: =Pengetahuan!D48 -> 80 | N43: =Pengetahuan!E48 -> 80 | O43: =Pengetahuan!F48 -> 80 | P43: =Pengetahuan!H48 -> 80 | Q43: =Pengetahuan!I48 -> 80 | R43: =Pengetahuan!J48 -> 80 | S43: =Pengetahuan!K48 -> 80 | T43: =Pengetahuan!L48 -> 80 | U43: =Pengetahuan!N48 -> 80 | V43: =Pengetahuan!O48 -> 80 | W43: =Pengetahuan!P48 -> 75 | X43: =Pengetahuan!Q48 -> 75 | Y43: =Pengetahuan!R48 -> 77.5 | Z43: =Pengetahuan!S48 -> 3.1 | AA43: =Pengetahuan!T48 -> B | AC43: =Ketrampilan!C48 -> 80 | AD43: =Ketrampilan!D48 -> 80 | AE43: =Ketrampilan!E48 -> 80 | AF43: =Ketrampilan!G48 -> 80 | AG43: =Ketrampilan!H48 -> 80 | AH43: =Ketrampilan!I48 -> 0 | AI43: =Ketrampilan!J48 -> 0 | AJ43: =Ketrampilan!K48 -> 80 | AK43: =Ketrampilan!L48 -> 80 | AL43: =Ketrampilan!M48 -> 0 | AM43: =Ketrampilan!N48 -> 80 | AN43: =Ketrampilan!O48 -> 80 | AO43: =Ketrampilan!P48 -> 3.2 | AP43: =Ketrampilan!Q48 -> B+ | AR43: =Sikap!C41 -> 3 | AS43: =Sikap!D41 -> 3 | AT43: =Sikap!E41 -> 3 | AU43: =Sikap!F41 -> 3 | AV43: =Sikap!G41 -> 3 | AW43: =Sikap!H41 -> 3 | AX43: =Sikap!I41 -> 3 | AY43: =Sikap!J41 -> 3 | AZ43: =Sikap!K41 -> 3 | BA43: =Sikap!L41 -> 3 | BB43: =Sikap!M41 -> 3 | BC43: =Sikap!N41 -> B
I44: 29 | J44: ='Data '!D55 -> SAIFUL ANNAS | K44: ='Data '!B55 -> 9265 | L44: =Pengetahuan!C49 -> 80 | M44: =Pengetahuan!D49 -> 80 | N44: =Pengetahuan!E49 -> 80 | O44: =Pengetahuan!F49 -> 80 | P44: =Pengetahuan!H49 -> 80 | Q44: =Pengetahuan!I49 -> 80 | R44: =Pengetahuan!J49 -> 80 | S44: =Pengetahuan!K49 -> 80 | T44: =Pengetahuan!L49 -> 80 | U44: =Pengetahuan!N49 -> 80 | V44: =Pengetahuan!O49 -> 80 | W44: =Pengetahuan!P49 -> 75 | X44: =Pengetahuan!Q49 -> 75 | Y44: =Pengetahuan!R49 -> 77.5 | Z44: =Pengetahuan!S49 -> 3.1 | AA44: =Pengetahuan!T49 -> B | AC44: =Ketrampilan!C49 -> 80 | AD44: =Ketrampilan!D49 -> 80 | AE44: =Ketrampilan!E49 -> 80 | AF44: =Ketrampilan!G49 -> 80 | AG44: =Ketrampilan!H49 -> 80 | AH44: =Ketrampilan!I49 -> 0 | AI44: =Ketrampilan!J49 -> 0 | AJ44: =Ketrampilan!K49 -> 80 | AK44: =Ketrampilan!L49 -> 80 | AL44: =Ketrampilan!M49 -> 0 | AM44: =Ketrampilan!N49 -> 80 | AN44: =Ketrampilan!O49 -> 80 | AO44: =Ketrampilan!P49 -> 3.2 | AP44: =Ketrampilan!Q49 -> B+ | AR44: =Sikap!C42 -> 3 | AS44: =Sikap!D42 -> 3 | AT44: =Sikap!E42 -> 3 | AU44: =Sikap!F42 -> 3 | AV44: =Sikap!G42 -> 3 | AW44: =Sikap!H42 -> 3 | AX44: =Sikap!I42 -> 3 | AY44: =Sikap!J42 -> 3 | AZ44: =Sikap!K42 -> 3 | BA44: =Sikap!L42 -> 3 | BB44: =Sikap!M42 -> 3 | BC44: =Sikap!N42 -> B
I45: 30 | J45: ='Data '!D56 -> SELINA SEPTIANI | K45: ='Data '!B56 -> 9270 | L45: =Pengetahuan!C50 -> 80 | M45: =Pengetahuan!D50 -> 80 | N45: =Pengetahuan!E50 -> 80 | O45: =Pengetahuan!F50 -> 80 | P45: =Pengetahuan!H50 -> 80 | Q45: =Pengetahuan!I50 -> 80 | R45: =Pengetahuan!J50 -> 80 | S45: =Pengetahuan!K50 -> 80 | T45: =Pengetahuan!L50 -> 80 | U45: =Pengetahuan!N50 -> 80 | V45: =Pengetahuan!O50 -> 80 | W45: =Pengetahuan!P50 -> 75 | X45: =Pengetahuan!Q50 -> 75 | Y45: =Pengetahuan!R50 -> 77.5 | Z45: =Pengetahuan!S50 -> 3.1 | AA45: =Pengetahuan!T50 -> B | AC45: =Ketrampilan!C50 -> 80 | AD45: =Ketrampilan!D50 -> 80 | AE45: =Ketrampilan!E50 -> 80 | AF45: =Ketrampilan!G50 -> 80 | AG45: =Ketrampilan!H50 -> 80 | AH45: =Ketrampilan!I50 -> 0 | AI45: =Ketrampilan!J50 -> 0 | AJ45: =Ketrampilan!K50 -> 80 | AK45: =Ketrampilan!L50 -> 80 | AL45: =Ketrampilan!M50 -> 0 | AM45: =Ketrampilan!N50 -> 80 | AN45: =Ketrampilan!O50 -> 80 | AO45: =Ketrampilan!P50 -> 3.2 | AP45: =Ketrampilan!Q50 -> B+ | AR45: =Sikap!C43 -> 3 | AS45: =Sikap!D43 -> 3 | AT45: =Sikap!E43 -> 3 | AU45: =Sikap!F43 -> 3 | AV45: =Sikap!G43 -> 3 | AW45: =Sikap!H43 -> 3 | AX45: =Sikap!I43 -> 3 | AY45: =Sikap!J43 -> 3 | AZ45: =Sikap!K43 -> 3 | BA45: =Sikap!L43 -> 3 | BB45: =Sikap!M43 -> 3 | BC45: =Sikap!N43 -> B
I46: 31 | J46: ='Data '!D57 -> SHALSABILA SHINTA NIRMALA | K46: ='Data '!B57 -> 9275 | L46: =Pengetahuan!C51 -> 80 | M46: =Pengetahuan!D51 -> 80 | N46: =Pengetahuan!E51 -> 80 | O46: =Pengetahuan!F51 -> 80 | P46: =Pengetahuan!H51 -> 80 | Q46: =Pengetahuan!I51 -> 80 | R46: =Pengetahuan!J51 -> 80 | S46: =Pengetahuan!K51 -> 80 | T46: =Pengetahuan!L51 -> 80 | U46: =Pengetahuan!N51 -> 80 | V46: =Pengetahuan!O51 -> 80 | W46: =Pengetahuan!P51 -> 75 | X46: =Pengetahuan!Q51 -> 75 | Y46: =Pengetahuan!R51 -> 77.5 | Z46: =Pengetahuan!S51 -> 3.1 | AA46: =Pengetahuan!T51 -> B | AC46: =Ketrampilan!C51 -> 80 | AD46: =Ketrampilan!D51 -> 80 | AE46: =Ketrampilan!E51 -> 80 | AF46: =Ketrampilan!G51 -> 80 | AG46: =Ketrampilan!H51 -> 80 | AH46: =Ketrampilan!I51 -> 0 | AI46: =Ketrampilan!J51 -> 0 | AJ46: =Ketrampilan!K51 -> 80 | AK46: =Ketrampilan!L51 -> 80 | AL46: =Ketrampilan!M51 -> 0 | AM46: =Ketrampilan!N51 -> 80 | AN46: =Ketrampilan!O51 -> 80 | AO46: =Ketrampilan!P51 -> 3.2 | AP46: =Ketrampilan!Q51 -> B+ | AR46: =Sikap!C44 -> 3 | AS46: =Sikap!D44 -> 3 | AT46: =Sikap!E44 -> 3 | AU46: =Sikap!F44 -> 3 | AV46: =Sikap!G44 -> 3 | AW46: =Sikap!H44 -> 3 | AX46: =Sikap!I44 -> 3 | AY46: =Sikap!J44 -> 3 | AZ46: =Sikap!K44 -> 3 | BA46: =Sikap!L44 -> 3 | BB46: =Sikap!M44 -> 3 | BC46: =Sikap!N44 -> B
I47: 32 | J47: ='Data '!D58 -> SITI CHOIRIATUS SA'ADAH | K47: ='Data '!B58 -> 9281 | L47: =Pengetahuan!C52 -> 80 | M47: =Pengetahuan!D52 -> 80 | N47: =Pengetahuan!E52 -> 80 | O47: =Pengetahuan!F52 -> 80 | P47: =Pengetahuan!H52 -> 80 | Q47: =Pengetahuan!I52 -> 80 | R47: =Pengetahuan!J52 -> 80 | S47: =Pengetahuan!K52 -> 80 | T47: =Pengetahuan!L52 -> 80 | U47: =Pengetahuan!N52 -> 80 | V47: =Pengetahuan!O52 -> 80 | W47: =Pengetahuan!P52 -> 75 | X47: =Pengetahuan!Q52 -> 75 | Y47: =Pengetahuan!R52 -> 77.5 | Z47: =Pengetahuan!S52 -> 3.1 | AA47: =Pengetahuan!T52 -> B | AC47: =Ketrampilan!C52 -> 80 | AD47: =Ketrampilan!D52 -> 80 | AE47: =Ketrampilan!E52 -> 80 | AF47: =Ketrampilan!G52 -> 80 | AG47: =Ketrampilan!H52 -> 80 | AH47: =Ketrampilan!I52 -> 0 | AI47: =Ketrampilan!J52 -> 0 | AJ47: =Ketrampilan!K52 -> 80 | AK47: =Ketrampilan!L52 -> 80 | AL47: =Ketrampilan!M52 -> 0 | AM47: =Ketrampilan!N52 -> 80 | AN47: =Ketrampilan!O52 -> 80 | AO47: =Ketrampilan!P52 -> 3.2 | AP47: =Ketrampilan!Q52 -> B+ | AR47: =Sikap!C45 -> 3 | AS47: =Sikap!D45 -> 3 | AT47: =Sikap!E45 -> 3 | AU47: =Sikap!F45 -> 3 | AV47: =Sikap!G45 -> 3 | AW47: =Sikap!H45 -> 3 | AX47: =Sikap!I45 -> 3 | AY47: =Sikap!J45 -> 3 | AZ47: =Sikap!K45 -> 3 | BA47: =Sikap!L45 -> 3 | BB47: =Sikap!M45 -> 3 | BC47: =Sikap!N45 -> B
I48: 33 | J48: ='Data '!D59 -> SITI NURFAN AZIZAH | K48: ='Data '!B59 -> 9284 | L48: =Pengetahuan!C53 -> 80 | M48: =Pengetahuan!D53 -> 80 | N48: =Pengetahuan!E53 -> 80 | O48: =Pengetahuan!F53 -> 80 | P48: =Pengetahuan!H53 -> 80 | Q48: =Pengetahuan!I53 -> 80 | R48: =Pengetahuan!J53 -> 80 | S48: =Pengetahuan!K53 -> 80 | T48: =Pengetahuan!L53 -> 80 | U48: =Pengetahuan!N53 -> 80 | V48: =Pengetahuan!O53 -> 80 | W48: =Pengetahuan!P53 -> 75 | X48: =Pengetahuan!Q53 -> 75 | Y48: =Pengetahuan!R53 -> 77.5 | Z48: =Pengetahuan!S53 -> 3.1 | AA48: =Pengetahuan!T53 -> B | AC48: =Ketrampilan!C53 -> 80 | AD48: =Ketrampilan!D53 -> 80 | AE48: =Ketrampilan!E53 -> 80 | AF48: =Ketrampilan!G53 -> 80 | AG48: =Ketrampilan!H53 -> 80 | AH48: =Ketrampilan!I53 -> 0 | AI48: =Ketrampilan!J53 -> 0 | AJ48: =Ketrampilan!K53 -> 80 | AK48: =Ketrampilan!L53 -> 80 | AL48: =Ketrampilan!M53 -> 0 | AM48: =Ketrampilan!N53 -> 80 | AN48: =Ketrampilan!O53 -> 80 | AO48: =Ketrampilan!P53 -> 3.2 | AP48: =Ketrampilan!Q53 -> B+ | AR48: =Sikap!C46 -> 3 | AS48: =Sikap!D46 -> 3 | AT48: =Sikap!E46 -> 3 | AU48: =Sikap!F46 -> 3 | AV48: =Sikap!G46 -> 3 | AW48: =Sikap!H46 -> 3 | AX48: =Sikap!I46 -> 3 | AY48: =Sikap!J46 -> 3 | AZ48: =Sikap!K46 -> 3 | BA48: =Sikap!L46 -> 3 | BB48: =Sikap!M46 -> 3 | BC48: =Sikap!N46 -> B
I49: 34 | J49: ='Data '!D60 -> SITI RAHAYU | K49: ='Data '!B60 -> 9286 | L49: =Pengetahuan!C54 -> 80 | M49: =Pengetahuan!D54 -> 80 | N49: =Pengetahuan!E54 -> 80 | O49: =Pengetahuan!F54 -> 80 | P49: =Pengetahuan!H54 -> 80 | Q49: =Pengetahuan!I54 -> 80 | R49: =Pengetahuan!J54 -> 80 | S49: =Pengetahuan!K54 -> 80 | T49: =Pengetahuan!L54 -> 80 | U49: =Pengetahuan!N54 -> 80 | V49: =Pengetahuan!O54 -> 80 | W49: =Pengetahuan!P54 -> 75 | X49: =Pengetahuan!Q54 -> 75 | Y49: =Pengetahuan!R54 -> 77.5 | Z49: =Pengetahuan!S54 -> 3.1 | AA49: =Pengetahuan!T54 -> B | AC49: =Ketrampilan!C54 -> 80 | AD49: =Ketrampilan!D54 -> 80 | AE49: =Ketrampilan!E54 -> 80 | AF49: =Ketrampilan!G54 -> 80 | AG49: =Ketrampilan!H54 -> 80 | AH49: =Ketrampilan!I54 -> 0 | AI49: =Ketrampilan!J54 -> 0 | AJ49: =Ketrampilan!K54 -> 80 | AK49: =Ketrampilan!L54 -> 80 | AL49: =Ketrampilan!M54 -> 0 | AM49: =Ketrampilan!N54 -> 80 | AN49: =Ketrampilan!O54 -> 80 | AO49: =Ketrampilan!P54 -> 3.2 | AP49: =Ketrampilan!Q54 -> B+ | AR49: =Sikap!C47 -> 3 | AS49: =Sikap!D47 -> 3 | AT49: =Sikap!E47 -> 3 | AU49: =Sikap!F47 -> 3 | AV49: =Sikap!G47 -> 3 | AW49: =Sikap!H47 -> 3 | AX49: =Sikap!I47 -> 3 | AY49: =Sikap!J47 -> 3 | AZ49: =Sikap!K47 -> 3 | BA49: =Sikap!L47 -> 3 | BB49: =Sikap!M47 -> 3 | BC49: =Sikap!N47 -> B
I50: 35 | J50: ='Data '!D61 -> STEVIANA PUSPITA SARI | K50: ='Data '!B61 -> 9289 | L50: =Pengetahuan!C55 -> 80 | M50: =Pengetahuan!D55 -> 80 | N50: =Pengetahuan!E55 -> 80 | O50: =Pengetahuan!F55 -> 80 | P50: =Pengetahuan!H55 -> 80 | Q50: =Pengetahuan!I55 -> 80 | R50: =Pengetahuan!J55 -> 80 | S50: =Pengetahuan!K55 -> 80 | T50: =Pengetahuan!L55 -> 80 | U50: =Pengetahuan!N55 -> 80 | V50: =Pengetahuan!O55 -> 80 | W50: =Pengetahuan!P55 -> 75 | X50: =Pengetahuan!Q55 -> 75 | Y50: =Pengetahuan!R55 -> 77.5 | Z50: =Pengetahuan!S55 -> 3.1 | AA50: =Pengetahuan!T55 -> B | AC50: =Ketrampilan!C55 -> 80 | AD50: =Ketrampilan!D55 -> 80 | AE50: =Ketrampilan!E55 -> 80 | AF50: =Ketrampilan!G55 -> 80 | AG50: =Ketrampilan!H55 -> 80 | AH50: =Ketrampilan!I55 -> 0 | AI50: =Ketrampilan!J55 -> 0 | AJ50: =Ketrampilan!K55 -> 80 | AK50: =Ketrampilan!L55 -> 80 | AL50: =Ketrampilan!M55 -> 0 | AM50: =Ketrampilan!N55 -> 80 | AN50: =Ketrampilan!O55 -> 80 | AO50: =Ketrampilan!P55 -> 3.2 | AP50: =Ketrampilan!Q55 -> B+ | AR50: =Sikap!C48 -> 3 | AS50: =Sikap!D48 -> 3 | AT50: =Sikap!E48 -> 3 | AU50: =Sikap!F48 -> 3 | AV50: =Sikap!G48 -> 3 | AW50: =Sikap!H48 -> 3 | AX50: =Sikap!I48 -> 3 | AY50: =Sikap!J48 -> 3 | AZ50: =Sikap!K48 -> 3 | BA50: =Sikap!L48 -> 3 | BB50: =Sikap!M48 -> 3 | BC50: =Sikap!N48 -> B
I51: 36 | J51: ='Data '!D62 -> TAN LINGGAR PRAMUDITA | K51: ='Data '!B62 -> 9290 | L51: =Pengetahuan!C56 -> 80 | M51: =Pengetahuan!D56 -> 80 | N51: =Pengetahuan!E56 -> 80 | O51: =Pengetahuan!F56 -> 80 | P51: =Pengetahuan!H56 -> 80 | Q51: =Pengetahuan!I56 -> 80 | R51: =Pengetahuan!J56 -> 80 | S51: =Pengetahuan!K56 -> 80 | T51: =Pengetahuan!L56 -> 80 | U51: =Pengetahuan!N56 -> 80 | V51: =Pengetahuan!O56 -> 80 | W51: =Pengetahuan!P56 -> 75 | X51: =Pengetahuan!Q56 -> 75 | Y51: =Pengetahuan!R56 -> 77.5 | Z51: =Pengetahuan!S56 -> 3.1 | AA51: =Pengetahuan!T56 -> B | AC51: =Ketrampilan!C56 -> 80 | AD51: =Ketrampilan!D56 -> 80 | AE51: =Ketrampilan!E56 -> 80 | AF51: =Ketrampilan!G56 -> 80 | AG51: =Ketrampilan!H56 -> 80 | AH51: =Ketrampilan!I56 -> 0 | AI51: =Ketrampilan!J56 -> 0 | AJ51: =Ketrampilan!K56 -> 80 | AK51: =Ketrampilan!L56 -> 80 | AL51: =Ketrampilan!M56 -> 0 | AM51: =Ketrampilan!N56 -> 80 | AN51: =Ketrampilan!O56 -> 80 | AO51: =Ketrampilan!P56 -> 3.2 | AP51: =Ketrampilan!Q56 -> B+ | AR51: =Sikap!C49 -> 3 | AS51: =Sikap!D49 -> 3 | AT51: =Sikap!E49 -> 3 | AU51: =Sikap!F49 -> 3 | AV51: =Sikap!G49 -> 3 | AW51: =Sikap!H49 -> 3 | AX51: =Sikap!I49 -> 3 | AY51: =Sikap!J49 -> 3 | AZ51: =Sikap!K49 -> 3 | BA51: =Sikap!L49 -> 3 | BB51: =Sikap!M49 -> 3 | BC51: =Sikap!N49 -> B
I52: 37 | J52: ='Data '!D63 -> TAUFIK NUR AZIZ DANUARTA | K52: ='Data '!B63 -> 9291 | L52: =Pengetahuan!C57 -> 80 | M52: =Pengetahuan!D57 -> 80 | N52: =Pengetahuan!E57 -> 80 | O52: =Pengetahuan!F57 -> 80 | P52: =Pengetahuan!H57 -> 80 | Q52: =Pengetahuan!I57 -> 80 | R52: =Pengetahuan!J57 -> 80 | S52: =Pengetahuan!K57 -> 80 | T52: =Pengetahuan!L57 -> 80 | U52: =Pengetahuan!N57 -> 80 | V52: =Pengetahuan!O57 -> 80 | W52: =Pengetahuan!P57 -> 75 | X52: =Pengetahuan!Q57 -> 75 | Y52: =Pengetahuan!R57 -> 77.5 | Z52: =Pengetahuan!S57 -> 3.1 | AA52: =Pengetahuan!T57 -> B | AC52: =Ketrampilan!C57 -> 80 | AD52: =Ketrampilan!D57 -> 80 | AE52: =Ketrampilan!E57 -> 80 | AF52: =Ketrampilan!G57 -> 80 | AG52: =Ketrampilan!H57 -> 80 | AH52: =Ketrampilan!I57 -> 0 | AI52: =Ketrampilan!J57 -> 0 | AJ52: =Ketrampilan!K57 -> 80 | AK52: =Ketrampilan!L57 -> 80 | AL52: =Ketrampilan!M57 -> 0 | AM52: =Ketrampilan!N57 -> 80 | AN52: =Ketrampilan!O57 -> 80 | AO52: =Ketrampilan!P57 -> 3.2 | AP52: =Ketrampilan!Q57 -> B+ | AR52: =Sikap!C50 -> 3 | AS52: =Sikap!D50 -> 3 | AT52: =Sikap!E50 -> 3 | AU52: =Sikap!F50 -> 3 | AV52: =Sikap!G50 -> 3 | AW52: =Sikap!H50 -> 3 | AX52: =Sikap!I50 -> 3 | AY52: =Sikap!J50 -> 3 | AZ52: =Sikap!K50 -> 3 | BA52: =Sikap!L50 -> 3 | BB52: =Sikap!M50 -> 3 | BC52: =Sikap!N50 -> B
I53: 38 | J53: ='Data '!D64 -> TIARA PUTRI AYUNINGTIAS | K53: ='Data '!B64 -> 9293 | L53: =Pengetahuan!C58 -> 80 | M53: =Pengetahuan!D58 -> 80 | N53: =Pengetahuan!E58 -> 80 | O53: =Pengetahuan!F58 -> 80 | P53: =Pengetahuan!H58 -> 80 | Q53: =Pengetahuan!I58 -> 80 | R53: =Pengetahuan!J58 -> 80 | S53: =Pengetahuan!K58 -> 80 | T53: =Pengetahuan!L58 -> 80 | U53: =Pengetahuan!N58 -> 80 | V53: =Pengetahuan!O58 -> 80 | W53: =Pengetahuan!P58 -> 75 | X53: =Pengetahuan!Q58 -> 75 | Y53: =Pengetahuan!R58 -> 77.5 | Z53: =Pengetahuan!S58 -> 3.1 | AA53: =Pengetahuan!T58 -> B | AC53: =Ketrampilan!C58 -> 80 | AD53: =Ketrampilan!D58 -> 80 | AE53: =Ketrampilan!E58 -> 80 | AF53: =Ketrampilan!G58 -> 80 | AG53: =Ketrampilan!H58 -> 80 | AH53: =Ketrampilan!I58 -> 0 | AI53: =Ketrampilan!J58 -> 0 | AJ53: =Ketrampilan!K58 -> 80 | AK53: =Ketrampilan!L58 -> 80 | AL53: =Ketrampilan!M58 -> 0 | AM53: =Ketrampilan!N58 -> 80 | AN53: =Ketrampilan!O58 -> 80 | AO53: =Ketrampilan!P58 -> 3.2 | AP53: =Ketrampilan!Q58 -> B+ | AR53: =Sikap!C51 -> 3 | AS53: =Sikap!D51 -> 3 | AT53: =Sikap!E51 -> 3 | AU53: =Sikap!F51 -> 3 | AV53: =Sikap!G51 -> 3 | AW53: =Sikap!H51 -> 3 | AX53: =Sikap!I51 -> 3 | AY53: =Sikap!J51 -> 3 | AZ53: =Sikap!K51 -> 3 | BA53: =Sikap!L51 -> 3 | BB53: =Sikap!M51 -> 3 | BC53: =Sikap!N51 -> B
I54: 39 | J54: ='Data '!D65 -> TITANIA GAYATRI PRIANJANI | K54: ='Data '!B65 -> 9294 | L54: =Pengetahuan!C59 -> 80 | M54: =Pengetahuan!D59 -> 80 | N54: =Pengetahuan!E59 -> 80 | O54: =Pengetahuan!F59 -> 80 | P54: =Pengetahuan!H59 -> 80 | Q54: =Pengetahuan!I59 -> 80 | R54: =Pengetahuan!J59 -> 80 | S54: =Pengetahuan!K59 -> 80 | T54: =Pengetahuan!L59 -> 80 | U54: =Pengetahuan!N59 -> 80 | V54: =Pengetahuan!O59 -> 80 | W54: =Pengetahuan!P59 -> 75 | X54: =Pengetahuan!Q59 -> 75 | Y54: =Pengetahuan!R59 -> 77.5 | Z54: =Pengetahuan!S59 -> 3.1 | AA54: =Pengetahuan!T59 -> B | AC54: =Ketrampilan!C59 -> 80 | AD54: =Ketrampilan!D59 -> 80 | AE54: =Ketrampilan!E59 -> 80 | AF54: =Ketrampilan!G59 -> 80 | AG54: =Ketrampilan!H59 -> 80 | AH54: =Ketrampilan!I59 -> 0 | AI54: =Ketrampilan!J59 -> 0 | AJ54: =Ketrampilan!K59 -> 80 | AK54: =Ketrampilan!L59 -> 80 | AL54: =Ketrampilan!M59 -> 0 | AM54: =Ketrampilan!N59 -> 80 | AN54: =Ketrampilan!O59 -> 80 | AO54: =Ketrampilan!P59 -> 3.2 | AP54: =Ketrampilan!Q59 -> B+ | AR54: =Sikap!C52 -> 3 | AS54: =Sikap!D52 -> 3 | AT54: =Sikap!E52 -> 3 | AU54: =Sikap!F52 -> 3 | AV54: =Sikap!G52 -> 3 | AW54: =Sikap!H52 -> 3 | AX54: =Sikap!I52 -> 3 | AY54: =Sikap!J52 -> 3 | AZ54: =Sikap!K52 -> 3 | BA54: =Sikap!L52 -> 3 | BB54: =Sikap!M52 -> 3 | BC54: =Sikap!N52 -> B
I55: 40 | J55: ='Data '!D66 -> ULFATUN NI'MAH | K55: ='Data '!B66 -> 9296 | L55: =Pengetahuan!C60 -> 80 | M55: =Pengetahuan!D60 -> 80 | N55: =Pengetahuan!E60 -> 80 | O55: =Pengetahuan!F60 -> 80 | P55: =Pengetahuan!H60 -> 80 | Q55: =Pengetahuan!I60 -> 80 | R55: =Pengetahuan!J60 -> 80 | S55: =Pengetahuan!K60 -> 80 | T55: =Pengetahuan!L60 -> 80 | U55: =Pengetahuan!N60 -> 80 | V55: =Pengetahuan!O60 -> 80 | W55: =Pengetahuan!P60 -> 75 | X55: =Pengetahuan!Q60 -> 75 | Y55: =Pengetahuan!R60 -> 77.5 | Z55: =Pengetahuan!S60 -> 3.1 | AA55: =Pengetahuan!T60 -> B | AC55: =Ketrampilan!C60 -> 80 | AD55: =Ketrampilan!D60 -> 80 | AE55: =Ketrampilan!E60 -> 80 | AF55: =Ketrampilan!G60 -> 80 | AG55: =Ketrampilan!H60 -> 80 | AH55: =Ketrampilan!I60 -> 0 | AI55: =Ketrampilan!J60 -> 0 | AJ55: =Ketrampilan!K60 -> 80 | AK55: =Ketrampilan!L60 -> 80 | AL55: =Ketrampilan!M60 -> 0 | AM55: =Ketrampilan!N60 -> 80 | AN55: =Ketrampilan!O60 -> 80 | AO55: =Ketrampilan!P60 -> 3.2 | AP55: =Ketrampilan!Q60 -> B+ | AR55: =Sikap!C53 -> 3 | AS55: =Sikap!D53 -> 3 | AT55: =Sikap!E53 -> 3 | AU55: =Sikap!F53 -> 3 | AV55: =Sikap!G53 -> 3 | AW55: =Sikap!H53 -> 3 | AX55: =Sikap!I53 -> 3 | AY55: =Sikap!J53 -> 3 | AZ55: =Sikap!K53 -> 3 | BA55: =Sikap!L53 -> 3 | BB55: =Sikap!M53 -> 3 | BC55: =Sikap!N53 -> B
I56: 41 | J56: ='Data '!D67 -> 0 | K56: ='Data '!B67 -> 0 | L56: =Pengetahuan!C61 -> 0 | M56: =Pengetahuan!D61 -> 0 | N56: =Pengetahuan!E61 -> 0 | O56: =Pengetahuan!F61 -> 0 | P56: =Pengetahuan!H61 ->  | Q56: =Pengetahuan!I61 -> 0 | R56: =Pengetahuan!J61 -> 0 | S56: =Pengetahuan!K61 -> 0 | T56: =Pengetahuan!L61 -> 0 | U56: =Pengetahuan!N61 ->  | V56: =Pengetahuan!O61 ->  | W56: =Pengetahuan!P61 -> 0 | X56: =Pengetahuan!Q61 -> 0 | Y56: =Pengetahuan!R61 ->  | Z56: =Pengetahuan!S61 ->  | AA56: =Pengetahuan!T61 ->  | AC56: =Ketrampilan!C61 -> 0 | AD56: =Ketrampilan!D61 -> 0 | AE56: =Ketrampilan!E61 -> 0 | AF56: =Ketrampilan!G61 -> 0 | AG56: =Ketrampilan!H61 -> 0 | AH56: =Ketrampilan!I61 -> 0 | AI56: =Ketrampilan!J61 -> 0 | AJ56: =Ketrampilan!K61 -> 0 | AK56: =Ketrampilan!L61 -> 0 | AL56: =Ketrampilan!M61 -> 0 | AM56: =Ketrampilan!N61 -> 0 | AN56: =Ketrampilan!O61 -> 0 | AO56: =Ketrampilan!P61 -> 0 | AP56: =Ketrampilan!Q61 -> D | AR56: =Sikap!C54 ->  | AS56: =Sikap!D54 ->  | AT56: =Sikap!E54 ->  | AU56: =Sikap!F54 ->  | AV56: =Sikap!G54 ->  | AW56: =Sikap!H54 ->  | AX56: =Sikap!I54 ->  | AY56: =Sikap!J54 ->  | AZ56: =Sikap!K54 ->  | BA56: =Sikap!L54 ->  | BB56: =Sikap!M54 ->  | BC56: =Sikap!N54 -> SB
I57: 42 | J57: ='Data '!D68 -> 0 | K57: ='Data '!B68 -> 0 | L57: =Pengetahuan!C62 -> 0 | M57: =Pengetahuan!D62 -> 0 | N57: =Pengetahuan!E62 -> 0 | O57: =Pengetahuan!F62 -> 0 | P57: =Pengetahuan!H62 ->  | Q57: =Pengetahuan!I62 -> 0 | R57: =Pengetahuan!J62 -> 0 | S57: =Pengetahuan!K62 -> 0 | T57: =Pengetahuan!L62 -> 0 | U57: =Pengetahuan!N62 ->  | V57: =Pengetahuan!O62 ->  | W57: =Pengetahuan!P62 -> 0 | X57: =Pengetahuan!Q62 -> 0 | Y57: =Pengetahuan!R62 ->  | Z57: =Pengetahuan!S62 ->  | AA57: =Pengetahuan!T62 ->  | AC57: =Ketrampilan!C62 -> 0 | AD57: =Ketrampilan!D62 -> 0 | AE57: =Ketrampilan!E62 -> 0 | AF57: =Ketrampilan!G62 -> 0 | AG57: =Ketrampilan!H62 -> 0 | AH57: =Ketrampilan!I62 -> 0 | AI57: =Ketrampilan!J62 -> 0 | AJ57: =Ketrampilan!K62 -> 0 | AK57: =Ketrampilan!L62 -> 0 | AL57: =Ketrampilan!M62 -> 0 | AM57: =Ketrampilan!N62 -> 0 | AN57: =Ketrampilan!O62 -> 0 | AO57: =Ketrampilan!P62 -> 0 | AP57: =Ketrampilan!Q62 -> D | AR57: =Sikap!C55 ->  | AS57: =Sikap!D55 ->  | AT57: =Sikap!E55 ->  | AU57: =Sikap!F55 ->  | AV57: =Sikap!G55 ->  | AW57: =Sikap!H55 ->  | AX57: =Sikap!I55 ->  | AY57: =Sikap!J55 ->  | AZ57: =Sikap!K55 ->  | BA57: =Sikap!L55 ->  | BB57: =Sikap!M55 ->  | BC57: =Sikap!N55 -> SB
I58: 43 | J58: ='Data '!D69 -> 0 | K58: ='Data '!B69 -> 0 | L58: =Pengetahuan!C63 -> 0 | M58: =Pengetahuan!D63 -> 0 | N58: =Pengetahuan!E63 -> 0 | O58: =Pengetahuan!F63 -> 0 | P58: =Pengetahuan!H63 ->  | Q58: =Pengetahuan!I63 -> 0 | R58: =Pengetahuan!J63 -> 0 | S58: =Pengetahuan!K63 -> 0 | T58: =Pengetahuan!L63 -> 0 | U58: =Pengetahuan!N63 ->  | V58: =Pengetahuan!O63 ->  | W58: =Pengetahuan!P63 -> 0 | X58: =Pengetahuan!Q63 -> 0 | Y58: =Pengetahuan!R63 ->  | Z58: =Pengetahuan!S63 ->  | AA58: =Pengetahuan!T63 ->  | AC58: =Ketrampilan!C63 -> 0 | AD58: =Ketrampilan!D63 -> 0 | AE58: =Ketrampilan!E63 -> 0 | AF58: =Ketrampilan!G63 -> 0 | AG58: =Ketrampilan!H63 -> 0 | AH58: =Ketrampilan!I63 -> 0 | AI58: =Ketrampilan!J63 -> 0 | AJ58: =Ketrampilan!K63 -> 0 | AK58: =Ketrampilan!L63 -> 0 | AL58: =Ketrampilan!M63 -> 0 | AM58: =Ketrampilan!N63 -> 0 | AN58: =Ketrampilan!O63 -> 0 | AO58: =Ketrampilan!P63 -> 0 | AP58: =Ketrampilan!Q63 -> D | AR58: =Sikap!C56 ->  | AS58: =Sikap!D56 ->  | AT58: =Sikap!E56 ->  | AU58: =Sikap!F56 ->  | AV58: =Sikap!G56 ->  | AW58: =Sikap!H56 ->  | AX58: =Sikap!I56 ->  | AY58: =Sikap!J56 ->  | AZ58: =Sikap!K56 ->  | BA58: =Sikap!L56 ->  | BB58: =Sikap!M56 ->  | BC58: =Sikap!N56 -> SB
I59: 44 | J59: ='Data '!D70 -> 0 | K59: ='Data '!B70 -> 0 | L59: =Pengetahuan!C64 -> 0 | M59: =Pengetahuan!D64 -> 0 | N59: =Pengetahuan!E64 -> 0 | O59: =Pengetahuan!F64 -> 0 | P59: =Pengetahuan!H64 ->  | Q59: =Pengetahuan!I64 -> 0 | R59: =Pengetahuan!J64 -> 0 | S59: =Pengetahuan!K64 -> 0 | T59: =Pengetahuan!L64 -> 0 | U59: =Pengetahuan!N64 ->  | V59: =Pengetahuan!O64 ->  | W59: =Pengetahuan!P64 -> 0 | X59: =Pengetahuan!Q64 -> 0 | Y59: =Pengetahuan!R64 ->  | Z59: =Pengetahuan!S64 ->  | AA59: =Pengetahuan!T64 ->  | AC59: =Ketrampilan!C64 -> 0 | AD59: =Ketrampilan!D64 -> 0 | AE59: =Ketrampilan!E64 -> 0 | AF59: =Ketrampilan!G64 -> 0 | AG59: =Ketrampilan!H64 -> 0 | AH59: =Ketrampilan!I64 -> 0 | AI59: =Ketrampilan!J64 -> 0 | AJ59: =Ketrampilan!K64 -> 0 | AK59: =Ketrampilan!L64 -> 0 | AL59: =Ketrampilan!M64 -> 0 | AM59: =Ketrampilan!N64 -> 0 | AN59: =Ketrampilan!O64 -> 0 | AO59: =Ketrampilan!P64 -> 0 | AP59: =Ketrampilan!Q64 -> D | AR59: =Sikap!C57 ->  | AS59: =Sikap!D57 ->  | AT59: =Sikap!E57 ->  | AU59: =Sikap!F57 ->  | AV59: =Sikap!G57 ->  | AW59: =Sikap!H57 ->  | AX59: =Sikap!I57 ->  | AY59: =Sikap!J57 ->  | AZ59: =Sikap!K57 ->  | BA59: =Sikap!L57 ->  | BB59: =Sikap!M57 ->  | BC59: =Sikap!N57 -> SB
I60: 45 | J60: ='Data '!D71 -> 0 | K60: ='Data '!B71 -> 0 | L60: =Pengetahuan!C65 -> 0 | M60: =Pengetahuan!D65 -> 0 | N60: =Pengetahuan!E65 -> 0 | O60: =Pengetahuan!F65 -> 0 | P60: =Pengetahuan!H65 ->  | Q60: =Pengetahuan!I65 -> 0 | R60: =Pengetahuan!J65 -> 0 | S60: =Pengetahuan!K65 -> 0 | T60: =Pengetahuan!L65 -> 0 | U60: =Pengetahuan!N65 ->  | V60: =Pengetahuan!O65 ->  | W60: =Pengetahuan!P65 -> 0 | X60: =Pengetahuan!Q65 -> 0 | Y60: =Pengetahuan!R65 ->  | Z60: =Pengetahuan!S65 ->  | AA60: =Pengetahuan!T65 ->  | AC60: =Ketrampilan!C65 -> 0 | AD60: =Ketrampilan!D65 -> 0 | AE60: =Ketrampilan!E65 -> 0 | AF60: =Ketrampilan!G65 -> 0 | AG60: =Ketrampilan!H65 -> 0 | AH60: =Ketrampilan!I65 -> 0 | AI60: =Ketrampilan!J65 -> 0 | AJ60: =Ketrampilan!K65 -> 0 | AK60: =Ketrampilan!L65 -> 0 | AL60: =Ketrampilan!M65 -> 0 | AM60: =Ketrampilan!N65 -> 0 | AN60: =Ketrampilan!O65 -> 0 | AO60: =Ketrampilan!P65 -> 0 | AP60: =Ketrampilan!Q65 -> D | AR60: =Sikap!C58 ->  | AS60: =Sikap!D58 ->  | AT60: =Sikap!E58 ->  | AU60: =Sikap!F58 ->  | AV60: =Sikap!G58 ->  | AW60: =Sikap!H58 ->  | AX60: =Sikap!I58 ->  | AY60: =Sikap!J58 ->  | AZ60: =Sikap!K58 ->  | BA60: =Sikap!L58 ->  | BB60: =Sikap!M58 ->  | BC60: =Sikap!N58 -> SB
I61: 46 | J61: ='Data '!D72 -> 0 | K61: ='Data '!B72 -> 0 | L61: =Pengetahuan!C66 -> 0 | M61: =Pengetahuan!D66 -> 0 | N61: =Pengetahuan!E66 -> 0 | O61: =Pengetahuan!F66 -> 0 | P61: =Pengetahuan!H66 ->  | Q61: =Pengetahuan!I66 -> 0 | R61: =Pengetahuan!J66 -> 0 | S61: =Pengetahuan!K66 -> 0 | T61: =Pengetahuan!L66 -> 0 | U61: =Pengetahuan!N66 ->  | V61: =Pengetahuan!O66 ->  | W61: =Pengetahuan!P66 -> 0 | X61: =Pengetahuan!Q66 -> 0 | Y61: =Pengetahuan!R66 ->  | Z61: =Pengetahuan!S66 ->  | AA61: =Pengetahuan!T66 ->  | AC61: =Ketrampilan!C66 -> 0 | AD61: =Ketrampilan!D66 -> 0 | AE61: =Ketrampilan!E66 -> 0 | AF61: =Ketrampilan!G66 -> 0 | AG61: =Ketrampilan!H66 -> 0 | AH61: =Ketrampilan!I66 -> 0 | AI61: =Ketrampilan!J66 -> 0 | AJ61: =Ketrampilan!K66 -> 0 | AK61: =Ketrampilan!L66 -> 0 | AL61: =Ketrampilan!M66 -> 0 | AM61: =Ketrampilan!N66 -> 0 | AN61: =Ketrampilan!O66 -> 0 | AO61: =Ketrampilan!P66 -> 0 | AP61: =Ketrampilan!Q66 -> D | AR61: =Sikap!C59 ->  | AS61: =Sikap!D59 ->  | AT61: =Sikap!E59 ->  | AU61: =Sikap!F59 ->  | AV61: =Sikap!G59 ->  | AW61: =Sikap!H59 ->  | AX61: =Sikap!I59 ->  | AY61: =Sikap!J59 ->  | AZ61: =Sikap!K59 ->  | BA61: =Sikap!L59 ->  | BB61: =Sikap!M59 ->  | BC61: =Sikap!N59 -> SB
I62: 47 | J62: ='Data '!D73 -> 0 | K62: ='Data '!B73 -> 0 | L62: =Pengetahuan!C67 -> 0 | M62: =Pengetahuan!D67 -> 0 | N62: =Pengetahuan!E67 -> 0 | O62: =Pengetahuan!F67 -> 0 | P62: =Pengetahuan!H67 ->  | Q62: =Pengetahuan!I67 -> 0 | R62: =Pengetahuan!J67 -> 0 | S62: =Pengetahuan!K67 -> 0 | T62: =Pengetahuan!L67 -> 0 | U62: =Pengetahuan!N67 ->  | V62: =Pengetahuan!O67 ->  | W62: =Pengetahuan!P67 -> 0 | X62: =Pengetahuan!Q67 -> 0 | Y62: =Pengetahuan!R67 ->  | Z62: =Pengetahuan!S67 ->  | AA62: =Pengetahuan!T67 ->  | AC62: =Ketrampilan!C67 -> 0 | AD62: =Ketrampilan!D67 -> 0 | AE62: =Ketrampilan!E67 -> 0 | AF62: =Ketrampilan!G67 -> 0 | AG62: =Ketrampilan!H67 -> 0 | AH62: =Ketrampilan!I67 -> 0 | AI62: =Ketrampilan!J67 -> 0 | AJ62: =Ketrampilan!K67 -> 0 | AK62: =Ketrampilan!L67 -> 0 | AL62: =Ketrampilan!M67 -> 0 | AM62: =Ketrampilan!N67 -> 0 | AN62: =Ketrampilan!O67 -> 0 | AO62: =Ketrampilan!P67 -> 0 | AP62: =Ketrampilan!Q67 -> D | AR62: =Sikap!C60 ->  | AS62: =Sikap!D60 ->  | AT62: =Sikap!E60 ->  | AU62: =Sikap!F60 ->  | AV62: =Sikap!G60 ->  | AW62: =Sikap!H60 ->  | AX62: =Sikap!I60 ->  | AY62: =Sikap!J60 ->  | AZ62: =Sikap!K60 ->  | BA62: =Sikap!L60 ->  | BB62: =Sikap!M60 ->  | BC62: =Sikap!N60 -> SB
I63: 48 | J63: ='Data '!D74 -> 0 | K63: ='Data '!B74 -> 0 | L63: =Pengetahuan!C68 -> 0 | M63: =Pengetahuan!D68 -> 0 | N63: =Pengetahuan!E68 -> 0 | O63: =Pengetahuan!F68 -> 0 | P63: =Pengetahuan!H68 ->  | Q63: =Pengetahuan!I68 -> 0 | R63: =Pengetahuan!J68 -> 0 | S63: =Pengetahuan!K68 -> 0 | T63: =Pengetahuan!L68 -> 0 | U63: =Pengetahuan!N68 ->  | V63: =Pengetahuan!O68 ->  | W63: =Pengetahuan!P68 -> 0 | X63: =Pengetahuan!Q68 -> 0 | Y63: =Pengetahuan!R68 ->  | Z63: =Pengetahuan!S68 ->  | AA63: =Pengetahuan!T68 ->  | AC63: =Ketrampilan!C68 -> 0 | AD63: =Ketrampilan!D68 -> 0 | AE63: =Ketrampilan!E68 -> 0 | AF63: =Ketrampilan!G68 -> 0 | AG63: =Ketrampilan!H68 -> 0 | AH63: =Ketrampilan!I68 -> 0 | AI63: =Ketrampilan!J68 -> 0 | AJ63: =Ketrampilan!K68 -> 0 | AK63: =Ketrampilan!L68 -> 0 | AL63: =Ketrampilan!M68 -> 0 | AM63: =Ketrampilan!N68 -> 0 | AN63: =Ketrampilan!O68 -> 0 | AO63: =Ketrampilan!P68 -> 0 | AP63: =Ketrampilan!Q68 -> D | AR63: =Sikap!C61 ->  | AS63: =Sikap!D61 ->  | AT63: =Sikap!E61 ->  | AU63: =Sikap!F61 ->  | AV63: =Sikap!G61 ->  | AW63: =Sikap!H61 ->  | AX63: =Sikap!I61 ->  | AY63: =Sikap!J61 ->  | AZ63: =Sikap!K61 ->  | BA63: =Sikap!L61 ->  | BB63: =Sikap!M61 ->  | BC63: =Sikap!N61 -> SB
I64: 49 | J64: ='Data '!D75 -> 0 | K64: ='Data '!B75 -> 0 | L64: =Pengetahuan!C69 -> 0 | M64: =Pengetahuan!D69 -> 0 | N64: =Pengetahuan!E69 -> 0 | O64: =Pengetahuan!F69 -> 0 | P64: =Pengetahuan!H69 ->  | Q64: =Pengetahuan!I69 -> 0 | R64: =Pengetahuan!J69 -> 0 | S64: =Pengetahuan!K69 -> 0 | T64: =Pengetahuan!L69 -> 0 | U64: =Pengetahuan!N69 ->  | V64: =Pengetahuan!O69 ->  | W64: =Pengetahuan!P69 -> 0 | X64: =Pengetahuan!Q69 -> 0 | Y64: =Pengetahuan!R69 ->  | Z64: =Pengetahuan!S69 ->  | AA64: =Pengetahuan!T69 ->  | AC64: =Ketrampilan!C69 -> 0 | AD64: =Ketrampilan!D69 -> 0 | AE64: =Ketrampilan!E69 -> 0 | AF64: =Ketrampilan!G69 -> 0 | AG64: =Ketrampilan!H69 -> 0 | AH64: =Ketrampilan!I69 -> 0 | AI64: =Ketrampilan!J69 -> 0 | AJ64: =Ketrampilan!K69 -> 0 | AK64: =Ketrampilan!L69 -> 0 | AL64: =Ketrampilan!M69 -> 0 | AM64: =Ketrampilan!N69 -> 0 | AN64: =Ketrampilan!O69 -> 0 | AO64: =Ketrampilan!P69 -> 0 | AP64: =Ketrampilan!Q69 -> D | AR64: =Sikap!C62 ->  | AS64: =Sikap!D62 ->  | AT64: =Sikap!E62 ->  | AU64: =Sikap!F62 ->  | AV64: =Sikap!G62 ->  | AW64: =Sikap!H62 ->  | AX64: =Sikap!I62 ->  | AY64: =Sikap!J62 ->  | AZ64: =Sikap!K62 ->  | BA64: =Sikap!L62 ->  | BB64: =Sikap!M62 ->  | BC64: =Sikap!N62 -> SB
I65: 50 | J65: ='Data '!D76 -> 0 | K65: ='Data '!B76 -> 0 | L65: =Pengetahuan!C70 -> 67 | M65: =Pengetahuan!D70 -> 0 | N65: =Pengetahuan!E70 -> 0 | O65: =Pengetahuan!F70 -> 0 | P65: =Pengetahuan!H70 -> 67 | Q65: =Pengetahuan!I70 -> 90 | R65: =Pengetahuan!J70 -> 0 | S65: =Pengetahuan!K70 -> 0 | T65: =Pengetahuan!L70 -> 0 | U65: =Pengetahuan!N70 -> 90 | V65: =Pengetahuan!O70 -> 78.5 | W65: =Pengetahuan!P70 -> 78 | X65: =Pengetahuan!Q70 -> 90 | Y65: =Pengetahuan!R70 -> 81.25 | Z65: =Pengetahuan!S70 -> 3.25 | AA65: =Pengetahuan!T70 -> B+ | AC65: =Ketrampilan!C70 -> 56 | AD65: =Ketrampilan!D70 -> 8 | AE65: =Ketrampilan!E70 -> 0 | AF65: =Ketrampilan!G70 -> 56 | AG65: =Ketrampilan!H70 -> 90 | AH65: =Ketrampilan!I70 -> 0 | AI65: =Ketrampilan!J70 -> 0 | AJ65: =Ketrampilan!K70 -> 90 | AK65: =Ketrampilan!L70 -> 78 | AL65: =Ketrampilan!M70 -> 0 | AM65: =Ketrampilan!N70 -> 78 | AN65: =Ketrampilan!O70 -> 70 | AO65: =Ketrampilan!P70 -> 2.8 | AP65: =Ketrampilan!Q70 -> B- | AR65: =Sikap!C63 ->  | AS65: =Sikap!D63 ->  | AT65: =Sikap!E63 ->  | AU65: =Sikap!F63 ->  | AV65: =Sikap!G63 ->  | AW65: =Sikap!H63 ->  | AX65: =Sikap!I63 ->  | AY65: =Sikap!J63 ->  | AZ65: =Sikap!K63 ->  | BA65: =Sikap!L63 ->  | BB65: =Sikap!M63 ->  | BC65: =Sikap!N63 -> SB

Sheet Kriteria
B7: Tentukan Tabel Nilai Konversi berikut sesuai keperluan sekolah atau juknis yang berlaku/digunakan di sekolah.
B9: KONVERSI NILAI
B10: Nilai | C10: Pengetahuan | F10: Ketrampilan | I10: Sikap | N10: Input Rentang Kriteria yang digunakan di Sekolah Bapak/Ibu. Rentang Kriteria ini harus sama dengan Rentang Kriteria pada Aplikasi Raport yang digunakan.
B11: A | C11: 3.84 | D11: < x ≤ | E11: 4 | F11: 3.84 | G11: < x ≤ | H11: 4 | I11: 4 | J11: ≤ x < | K11: ... | L11: SB
B12: A- | C12: 3.5 | D12: < x ≤ | E12: 3.84 | F12: 3.5 | G12: < x ≤ | H12: 3.84
B13: B+ | C13: 3.17 | D13: < x ≤ | E13: 3.5 | F13: 3.17 | G13: < x ≤ | H13: 3.5 | I13: 3 | J13: ≤ x < | K13: 4 | L13: B
B14: B | C14: 2.84 | D14: < x ≤ | E14: 3.17 | F14: 2.84 | G14: < x ≤ | H14: 3.17
B15: B- | C15: 2.5 | D15: < x ≤ | E15: 2.84 | F15: 2.5 | G15: < x ≤ | H15: 2.84
B16: C+ | C16: 2.17 | D16: < x ≤ | E16: 2.5 | F16: 2.17 | G16: < x ≤ | H16: 2.5 | I16: 2 | J16: ≤ x < | K16: 3 | L16: C
B17: C | C17: 1.84 | D17: < x ≤ | E17: 2.17 | F17: 1.84 | G17: < x ≤ | H17: 2.17
B18: C- | C18: 1.5 | D18: < x ≤ | E18: 1.84 | F18: 1.5 | G18: < x ≤ | H18: 1.84
B19: D+ | C19: 1.17 | D19: < x ≤ | E19: 1.5 | F19: 1.17 | G19: < x ≤ | H19: 1.5 | I19: 1 | J19: ≤ x < | K19: 2 | L19: K
B20: D | C20: 1 | D20: < x ≤ | E20: 1.17 | F20: 1 | G20: < x ≤ | H20: 1.17
B27: KONVERSI NILAI BERDASARKAN PERMEN 104 Tahun 2014 Ttg Penilaian Hasil Belajar
B28: Nilai | C28: Pengetahuan | F28: Ketrampilan | I28: Sikap
B29: A | C29: 3.84 | D29: < x ≤ | E29: 4 | F29: 3.84 | G29: < x ≤ | H29: 4 | I29: 4 | J29: ≤ x < | K29: ... | L29: SB
B30: A- | C30: 3.5 | D30: < x ≤ | E30: 3.84 | F30: 3.5 | G30: < x ≤ | H30: 3.84
B31: B+ | C31: 3.17 | D31: < x ≤ | E31: 3.5 | F31: 3.17 | G31: < x ≤ | H31: 3.5 | I31: 3 | J31: ≤ x < | K31: 4 | L31: B
B32: B | C32: 2.84 | D32: < x ≤ | E32: 3.17 | F32: 2.84 | G32: < x ≤ | H32: 3.17
B33: B- | C33: 2.5 | D33: < x ≤ | E33: 2.84 | F33: 2.5 | G33: < x ≤ | H33: 2.84
B34: C+ | C34: 2.17 | D34: < x ≤ | E34: 2.5 | F34: 2.17 | G34: < x ≤ | H34: 2.5 | I34: 2 | J34: ≤ x < | K34: 3 | L34: C
B35: C | C35: 1.84 | D35: < x ≤ | E35: 2.17 | F35: 1.84 | G35: < x ≤ | H35: 2.17
B36: C- | C36: 1.5 | D36: < x ≤ | E36: 1.84 | F36: 1.5 | G36: < x ≤ | H36: 1.84
B37: D+ | C37: 1.17 | D37: < x ≤ | E37: 1.5 | F37: 1.17 | G37: < x ≤ | H37: 1.5 | I37: 1 | J37: ≤ x < | K37: 2 | L37: K
B38: D | C38: 1 | D38: < x ≤ | E38: 1.17 | F38: 1 | G38: < x ≤ | H38: 1.17
B41: KONVERSI NILAI BERDASARKAN LAMPIRAN 3 PERMEN 58/59/60 PMP PKn
B42: Nilai | C42: Pengetahuan | F42: Ketrampilan | I42: Sikap
B43: A | C43: 3.83 | D43: < x ≤ | E43: 4 | F43: 3.83 | G43: < x ≤ | H43: 4 | I43: 3.5 | J43: < x ≤ | K43: 4 | L43: SB
B44: A- | C44: 3.5 | D44: < x ≤ | E44: 3.83 | F44: 3.5 | G44: < x ≤ | H44: 3.83
B45: B+ | C45: 3.17 | D45: < x ≤ | E45: 3.5 | F45: 3.17 | G45: < x ≤ | H45: 3.5 | I45: 2.5 | J45: < x ≤ | K45: 3.5 | L45: B
B46: B | C46: 2.83 | D46: < x ≤ | E46: 3.17 | F46: 2.83 | G46: < x ≤ | H46: 3.17
B47: B- | C47: 2.5 | D47: < x ≤ | E47: 2.83 | F47: 2.5 | G47: < x ≤ | H47: 2.83
B48: C+ | C48: 2.17 | D48: < x ≤ | E48: 2.5 | F48: 2.17 | G48: < x ≤ | H48: 2.5 | I48: 1.5 | J48: < x ≤ | K48: 2.5 | L48: C
B49: C | C49: 1.83 | D49: < x ≤ | E49: 2.17 | F49: 1.83 | G49: < x ≤ | H49: 2.17
B50: C- | C50: 1.5 | D50: < x ≤ | E50: 1.83 | F50: 1.5 | G50: < x ≤ | H50: 1.83
B51: D+ | C51: 1.17 | D51: < x ≤ | E51: 1.5 | F51: 1.17 | G51: < x ≤ | H51: 1.5 | I51: 1 | J51: < x ≤ | K51: 1.5 | L51: K
B52: D | C52: 1 | D52: < x ≤ | E52: 1.17 | F52: 1 | G52: < x ≤ | H52: 1.17
B55: KONVERSI NILAI BERDASARKAN PERMEN 81 A
B56: Nilai | C56: Pengetahuan | F56: Ketrampilan | I56: Sikap
B57: A | C57: 3.66 | D57: < x ≤ | E57: 4 | F57: 3.66 | G57: < x ≤ | H57: 4 | I57: 3.33 | J57: < x ≤ | K57: 4 | L57: SB
B58: A- | C58: 3.33 | D58: < x ≤ | E58: 3.66 | F58: 3.33 | G58: < x ≤ | H58: 3.66
B59: B+ | C59: 3 | D59: < x ≤ | E59: 3.33 | F59: 3 | G59: < x ≤ | H59: 3.33 | I59: 2.33 | J59: < x ≤ | K59: 3.5 | L59: B
B60: B | C60: 2.66 | D60: < x ≤ | E60: 3 | F60: 2.66 | G60: < x ≤ | H60: 3
B61: B- | C61: 2.33 | D61: < x ≤ | E61: 2.66 | F61: 2.33 | G61: < x ≤ | H61: 2.66
B62: C+ | C62: 2 | D62: < x ≤ | E62: 2.33 | F62: 2 | G62: < x ≤ | H62: 2.33 | I62: 1.33 | J62: < x ≤ | K62: 2.5 | L62: C
B63: C | C63: 1.66 | D63: < x ≤ | E63: 2 | F63: 1.66 | G63: < x ≤ | H63: 2
B64: C- | C64: 1.33 | D64: < x ≤ | E64: 1.66 | F64: 1.33 | G64: < x ≤ | H64: 1.66
B65: D+ | C65: 1 | D65: < x ≤ | E65: 1.33 | F65: 1 | G65: < x ≤ | H65: 1.33 | I65: 0 | J65: < x ≤ | K65: 1.5 | L65: K
B66: D | C66: 0 | D66: < x ≤ | E66: 1 | F66: 0 | G66: < x ≤ | H66: 1
B69: KONVERSI NILAI BERDASARKAN .......???
B70: Nilai | C70: Pengetahuan | F70: Ketrampilan | I70: Sikap
B71: A | C71: ??? | D71: < x ≤ | E71: ??? | F71: ??? | G71: < x ≤ | H71: ??? | J71: < x ≤ | L71: SB
B72: A- | D72: < x ≤ | G72: < x ≤
B73: B+ | D73: < x ≤ | G73: < x ≤ | J73: < x ≤ | L73: B
B74: B | D74: < x ≤ | G74: < x ≤
B75: B- | D75: < x ≤ | G75: < x ≤
B76: C+ | D76: < x ≤ | G76: < x ≤ | J76: < x ≤ | L76: C
B77: C | D77: < x ≤ | G77: < x ≤
B78: C- | D78: < x ≤ | G78: < x ≤
B79: D+ | D79: < x ≤ | G79: < x ≤ | J79: < x ≤ | L79: K
B80: D | D80: < x ≤ | G80: < x ≤

Sheet Input
B4: ASPEK SIKAP | E4: ASPEK KETRAMPILAN

Sheet Data
A6: Nama Instansi | C6: : | D6: Dinas Pendidikan Pemuda dan Olahraga
A7: Nama Sekolah | C7: : | D7: SMP Negeri 6 Blora
A8: Alamat | C8: : | D8: Jl. A Yani No. 36A Blora
A9: Kecamatan | C9: : | D9: Blora Kota
A10: Kabupaten/Kota | D10: Pemerintah Kabupaten Blora
A11: Propinsi | C11: : | D11: Jawa Tengah
A12: Telp/Faks | C12: : | D12: 0296 - 531288
A13: Tahun Pelajaran | C13: : | D13: 2014/2015
A14: Semester | C14: : | D14: Ganjil
A15: Nama Kepala Sekolah | C15: : | D15: Suparno, S.Pd.,M.Hum
A16: NIP/NIY | C16: : | D16: NIP. 19620712 198403 1 012 | F16: Tabel Nilai Konversi berikut sesuai keperluan sekolah atau juknis yang berlaku/digunakan di sekolah.
A17: Nama Wali Kelas | C17: : | D17: Mundari, S.Pd.
A18: Dokumen | C18: : | D18: Kurikulum | F18: KONVERSI NILAI
A19: Revisi | C19: : | D19: Juli 2014 | F19: Nilai | G19: Pengetahuan | J19: Ketrampilan | M19: Sikap
A20: Tgl. Efektif | C20: : | D20: 01 Juli 2014 | F20: A | G20: =Kriteria!C11 -> 3.84 | H20: < x ≤ | I20: =Kriteria!E11 -> 4 | J20: =Kriteria!F11 -> 3.84 | K20: < x ≤ | L20: =Kriteria!H11 -> 4 | M20: =Kriteria!I11 -> 4 | N20: < x ≤ | O20: =Kriteria!K11 -> ... | P20: SB
A21: Tanggal Daftar Nilai | C21: : | D21: Blora, 20 Desember 2014 | F21: A- | G21: =Kriteria!C12 -> 3.5 | H21: < x ≤ | I21: =Kriteria!E12 -> 3.84 | J21: =Kriteria!F12 -> 3.5 | K21: < x ≤ | L21: =Kriteria!H12 -> 3.84
F22: B+ | G22: =Kriteria!C13 -> 3.17 | H22: < x ≤ | I22: =Kriteria!E13 -> 3.5 | J22: =Kriteria!F13 -> 3.17 | K22: < x ≤ | L22: =Kriteria!H13 -> 3.5 | M22: =Kriteria!I13 -> 3 | N22: < x ≤ | O22: =Kriteria!K13 -> 4 | P22: B
F23: B | G23: =Kriteria!C14 -> 2.84 | H23: < x ≤ | I23: =Kriteria!E14 -> 3.17 | J23: =Kriteria!F14 -> 2.84 | K23: < x ≤ | L23: =Kriteria!H14 -> 3.17
F24: B- | G24: =Kriteria!C15 -> 2.5 | H24: < x ≤ | I24: =Kriteria!E15 -> 2.84 | J24: =Kriteria!F15 -> 2.5 | K24: < x ≤ | L24: =Kriteria!H15 -> 2.84
F25: C+ | G25: =Kriteria!C16 -> 2.17 | H25: < x ≤ | I25: =Kriteria!E16 -> 2.5 | J25: =Kriteria!F16 -> 2.17 | K25: < x ≤ | L25: =Kriteria!H16 -> 2.5 | M25: =Kriteria!I16 -> 2 | N25: < x ≤ | O25: =Kriteria!K16 -> 3 | P25: C
A26: No. | B26: NIS / NISN | D26: Nama | F26: C | G26: =Kriteria!C17 -> 1.84 | H26: < x ≤ | I26: =Kriteria!E17 -> 2.17 | J26: =Kriteria!F17 -> 1.84 | K26: < x ≤ | L26: =Kriteria!H17 -> 2.17
A27: 1 | B27: 9025 | D27: AHMAD ALEK BRIYANSAPUTRA | F27: C- | G27: =Kriteria!C18 -> 1.5 | H27: < x ≤ | I27: =Kriteria!E18 -> 1.84 | J27: =Kriteria!F18 -> 1.5 | K27: < x ≤ | L27: =Kriteria!H18 -> 1.84
A28: 2 | B28: 9053 | D28: AULIA AYU FATINA | F28: D+ | G28: =Kriteria!C19 -> 1.17 | H28: < x ≤ | I28: =Kriteria!E19 -> 1.5 | J28: =Kriteria!F19 -> 1.17 | K28: < x ≤ | L28: =Kriteria!H19 -> 1.5 | M28: =Kriteria!I19 -> 1 | N28: < x ≤ | O28: =Kriteria!K19 -> 2 | P28: K
A29: 3 | B29: 9060 | D29: BAGAS YULANDRA PUTRA | F29: D | G29: =Kriteria!C20 -> 1 | H29: < x ≤ | I29: =Kriteria!E20 -> 1.17 | J29: =Kriteria!F20 -> 1 | K29: < x ≤ | L29: =Kriteria!H20 -> 1.17
A30: 4 | B30: 9068 | D30: CYNTIA AGUSTINA
A31: 5 | B31: 9069 | D31: DAFFA KRISNA PRAMUDYA
A32: 6 | B32: 9070 | D32: DANINDRA RAFIF IRAWAN
A33: 7 | B33: 9074 | D33: DENI PRATAMA
A34: 8 | B34: 9081 | D34: DIKA SUKMA AGUSTIN
A35: 9 | B35: 9087 | D35: DIVA ADITYA
A36: 10 | B36: 9098 | D36: EKO PRASTYO
A37: 11 | B37: 9107 | D37: FAIQUR RIJAL HAMMAM
A38: 12 | B38: 9114 | D38: FATESAR SARI PRASETYO
A39: 13 | B39: 9115 | D39: FEBRI SULISTIYO
A40: 14 | B40: 9119 | D40: FIONA NANDA FETRIAN
A41: 15 | B41: 9125 | D41: GILANG SYAHRUL RAMADHAN
A42: 16 | B42: 9136 | D42: IMAM AGUNG WAHYU PRATAMA
A43: 17 | B43: 9149 | D43: JOHAN MAULANA
A44: 18 | B44: 9150 | D44: JOKO SETIAWAN
A45: 19 | B45: 9159 | D45: LISA OKTAVINASARI
A46: 20 | B46: 9163 | D46: MARIA GILDA SIREGAR
A47: 21 | B47: 9178 | D47: MOHAMMAD NURKHOLISH
A48: 22 | B48: 9185 | D48: MUHAMAD FARIS ULIN NUHA
A49: 23 | B49: 9322 | D49: MUHAMMAD MUSTOFA
A50: 24 | B50: 9204 | D50: NANDA WINTYA PUTRI
A51: 25 | B51: 9210 | D51: NI'MA NOVA NUR FADHILAH
A52: 26 | B52: 9212 | D52: NITA ZUMROTUT TAQIYAH
A53: 27 | B53: 9234 | D53: RACHMAT SAPUTRA ANDRIANSYAH
A54: 28 | B54: 9255 | D54: RIZAL ANDRIYAN SAPUTRA
A55: 29 | B55: 9265 | D55: SAIFUL ANNAS
A56: 30 | B56: 9270 | D56: SELINA SEPTIANI
A57: 31 | B57: 9275 | D57: SHALSABILA SHINTA NIRMALA
A58: 32 | B58: 9281 | D58: SITI CHOIRIATUS SA'ADAH
A59: 33 | B59: 9284 | D59: SITI NURFAN AZIZAH
A60: 34 | B60: 9286 | D60: SITI RAHAYU
A61: 35 | B61: 9289 | D61: STEVIANA PUSPITA SARI
A62: 36 | B62: 9290 | D62: TAN LINGGAR PRAMUDITA
A63: 37 | B63: 9291 | D63: TAUFIK NUR AZIZ DANUARTA
A64: 38 | B64: 9293 | D64: TIARA PUTRI AYUNINGTIAS
A65: 39 | B65: 9294 | D65: TITANIA GAYATRI PRIANJANI
A66: 40 | B66: 9296 | D66: ULFATUN NI'MAH
A67: 41
A68: 42
A69: 43
A70: 44
A71: 45
A72: 46
A73: 47
A74: 48
A75: 49
A76: 50
D77: Created by Purnawanto, M.Si

Sheet Pengetahuan
C1: =UPPER('Data '!D10) -> PEMERINTAH KABUPATEN BLORA
C2: =UPPER('Data '!D6) -> DINAS PENDIDIKAN PEMUDA DAN OLAHRAGA
C3: =UPPER('Data '!D7) -> SMP NEGERI 6 BLORA
C4: DAFTAR NILAI SISWA ASPEK PENGETAHUAN (KI - 3)
B8: Mata Pelajaran : | C8: =Home!E16 -> PJOK | J8: Semester : | M8: ='Data '!D14 -> Ganjil | Q8: KKM : | S8: =Home!E22 -> 2.67 | T8: =S8*25 -> 66.75
B9: Kelas : | C9: =Home!E18 -> VII-A | J9: Tahun Pelajaran : | M9: ='Data '!D13 -> 2014/2015 | Q9: Wali Kelas : | S9: ='Data '!D17 -> Mundari, S.Pd.
B10: Aspek : | C10: Pengetahuan
B12: Ketikkan Materi Pokok dari KD agar deskripsi capaian tidak terlalu panjang.
B13: KD/Materi Pokok UH 1 | C13: Atletik
B14: KD/Materi Pokok UH 2 | C14: Senam
B15: KD/Materi Pokok UH 3 | C15: Bola Volley
B16: KD/Materi Pokok UH 4 | C16: Sepak Bola
B17: KD/Materi Pokok UH 5
A19: No. | B19: Nama | C19: Nilai Ulangan Harian | H19: Rerata | I19: Nilai Tugas / PR | N19: Rerata | O19: NP (NH) | P19: Nilai | Q19: Nilai | R19: Nilai | U19: Ket | Z19: 0-4 | AF19: Tabel Konversi | AM19: Nilai
C20: KD1 | D20: KD2 | E20: KD3 | F20: KD4 | G20: KD5 | H20: NUH | I20: KD1 | J20: KD2 | K20: KD3 | L20: KD4 | M20: KD5 | N20: Tg/PR | P20: UTS | Q20: UAS | R20: 0-100 | S20: 1-4 | T20: Konversi | U20: T/TT | Y20: =IFERROR((O21*$E$74+P21*$F$74)/($I$74-$H$74)," ") -> 78.33333333 | Z20: =IFERROR((Y20/100)*4," ") -> 3.133333333 | AA20: =IF(Z20=" "," ",IF(Z20>3.83,"A",IF(Z20>3.5,"A-",IF(Z20>3.17,"B+",IF(Z20>2.83,"B",IF(Z20>2.5,"B-",IF(Z20>2.17,"C+",IF(Z20>1.83,"C",IF(Z20>1.5,"C-",IF(Z20>1.17,"D+","D")))))))))) -> B
A21: 1 | B21: ='Data '!D27 -> AHMAD ALEK BRIYANSAPUTRA | C21: 80 | D21: 80 | E21: 80 | F21: 80 | H21: =IFERROR(AVERAGE(C21:G21)," ") -> 80 | I21: 80 | J21: 80 | K21: 80 | L21: 80 | N21: =IFERROR(AVERAGE(I21:M21)," ") -> 80 | O21: =IFERROR((H21+N21)/2," ") -> 80 | P21: 75 | Q21: 75 | R21: =IFERROR((O21*$E$74+P21*$F$74+Q21*$H$74)/$I$74," ") -> 77.5 | S21: =IFERROR((R21/100)*4," ") -> 3.1 | T21: =IF(S21=" "," ",IF(S21>$AF$21,"A",IF(S21>$AF$22,"A-",IF(S21>$AF$23,"B+",IF(S21>$AF$24,"B",IF(S21>$AF$25,"B-",IF(S21>$AF$26,"C+",IF(S21>$AF$27,"C",IF(S21>$AF$28,"C-",IF(S21>$AF$29,"D+","D")))))))))) -> B | U21: =IF(S21=" "," ",IF(S21>=$S$8,"Tuntas","Tidak Tuntas")) -> Tuntas | Y21: =IFERROR((O22*$E$74+P22*$F$74)/($I$74-$H$74)," ") -> 78.33333333 | Z21: =IFERROR((Y21/100)*4," ") -> 3.133333333 | AA21: =IF(Z21=" "," ",IF(Z21>3.83,"A",IF(Z21>3.5,"A-",IF(Z21>3.17,"B+",IF(Z21>2.83,"B",IF(Z21>2.5,"B-",IF(Z21>2.17,"C+",IF(Z21>1.83,"C",IF(Z21>1.5,"C-",IF(Z21>1.17,"D+","D")))))))))) -> B | AB21: =IF(Y20>$AF$22,"Kompetensi pengetahuan rerata sangat baik. ",IF(Y20>$S$8,"Kompetensi pengetahuan rerata baik. ",IF(Y20>$AF$28,"Kompetensi pengetahuan rerata cukup. ",IF(Y20>$AF$30,"Kompetensi pengetahuan rerata kurang. ",IF(Y20=" "," "))))) -> Kompetensi pengetahuan rerata sangat baik. | AD21: =CONCATENATE(IF(S21>$AF$22,"Kompetensi pengetahuan rerata sangat baik. ",IF(S21>$S$8,"Kompetensi pengetahuan rerata baik. ",IF(S21>$AF$28,"Kompetensi pengetahuan rerata cukup. ",IF(S21>1,"Kompetensi pengetahuan rerata kurang. ",IF(S21="",""))))),IF(C21>$AN$22,"Sangat menguasai "&$C$13,IF(C21>$T$8,"Menguasai "&$C$13,IF(C21>$AN$28,"Masih perlu latihan "&$C$13,IF(C21>$AN$30,"Perlu bimbingan "&$C$13,IF(C21="",""))))),IF(D21>$AN$22,", sangat menguasai "&$C$14,IF(D21>$T$8,", menguasai "&$C$14,IF(D21>$AN$28,", masih perlu latihan "&$C$14,IF(D21>$AN$30,", perlu bimbingan "&$C$14,IF(D21="",""))))),IF(E21>$AN$22,". Sangat menguasai "&$C$15,IF(E21>$T$8,". Menguasai "&$C$15,IF(E21>$AN$28,". Masih perlu latihan "&$C$15,IF(E21>$AN$30,". Perlu bimbingan "&$C$15,IF(E21="",""))))),IF(F21>$AN$22,", sangat menguasai "&$C$16,IF(F21>$T$8,", menguasai "&$C$16,IF(F21>$AN$28,", masih perlu latihan "&$C$16,IF(F21>$AN$30,", perlu bimbingan "&$C$16,IF(F21="",""))))),IF(G21>$AN$22,", sangat menguasai "&$C$17,IF(G21>$T$8,", menguasai "&$C$17,IF(G21>$AN$28,", masih perlu latihan "&$C$17,IF(G21>$AN$30,", perlu bimbingan "&$C$17,IF(G21="","")))))) -> Kompetensi pengetahuan rerata baik. Menguasai Atletik, menguasai Senam. Menguasai Bola Volley, menguasai Sepak Bola | AE21: A | AF21: ='Data '!G20 -> 3.84 | AG21: < x ≤ | AH21: ='Data '!I20 -> 4 | AM21: A | AN21: =AF21*25 -> 96
A22: 2 | B22: ='Data '!D28 -> AULIA AYU FATINA | C22: 80 | D22: 80 | E22: 80 | F22: 80 | H22: =IFERROR(AVERAGE(C22:G22)," ") -> 80 | I22: 80 | J22: 80 | K22: 80 | L22: 80 | N22: =IFERROR(AVERAGE(I22:M22)," ") -> 80 | O22: =IFERROR((H22+N22)/2," ") -> 80 | P22: 75 | Q22: 75 | R22: =IFERROR((O22*$E$74+P22*$F$74+Q22*$H$74)/$I$74," ") -> 77.5 | S22: =IFERROR((R22/100)*4," ") -> 3.1 | T22: =IF(S22=" "," ",IF(S22>$AF$21,"A",IF(S22>$AF$22,"A-",IF(S22>$AF$23,"B+",IF(S22>$AF$24,"B",IF(S22>$AF$25,"B-",IF(S22>$AF$26,"C+",IF(S22>$AF$27,"C",IF(S22>$AF$28,"C-",IF(S22>$AF$29,"D+","D")))))))))) -> B | U22: =IF(S22=" "," ",IF(S22>=$S$8,"Tuntas","Tidak Tuntas")) -> Tuntas | Y22: =IFERROR((O23*$E$74+P23*$F$74)/($I$74-$H$74)," ") -> 78.33333333 | Z22: 3.133333333 | AA22: B | AB22: =IF(Y21>$AF$22,"Kompetensi pengetahuan rerata sangat baik. ",IF(Y21>$S$8,"Kompetensi pengetahuan rerata baik. ",IF(Y21>$AF$28,"Kompetensi pengetahuan rerata cukup. ",IF(Y21>$AF$30,"Kompetensi pengetahuan rerata kurang. ",IF(Y21=" "," "))))) -> Kompetensi pengetahuan rerata sangat baik. | AD22: =CONCATENATE(IF(S22>$AF$22,"Kompetensi pengetahuan rerata sangat baik. ",IF(S22>$S$8,"Kompetensi pengetahuan rerata baik. ",IF(S22>$AF$28,"Kompetensi pengetahuan rerata cukup. ",IF(S22>1,"Kompetensi pengetahuan rerata kurang. ",IF(S22="",""))))),IF(C22>$AN$22,"Sangat menguasai "&$C$13,IF(C22>$T$8,"Menguasai "&$C$13,IF(C22>$AN$28,"Masih perlu latihan "&$C$13,IF(C22>$AN$30,"Perlu bimbingan "&$C$13,IF(C22="",""))))),IF(D22>$AN$22,", sangat menguasai "&$C$14,IF(D22>$T$8,", menguasai "&$C$14,IF(D22>$AN$28,", masih perlu latihan "&$C$14,IF(D22>$AN$30,", perlu bimbingan "&$C$14,IF(D22="",""))))),IF(E22>$AN$22,". Sangat menguasai "&$C$15,IF(E22>$T$8,". Menguasai "&$C$15,IF(E22>$AN$28,". Masih perlu latihan "&$C$15,IF(E22>$AN$30,". Perlu bimbingan "&$C$15,IF(E22="",""))))),IF(F22>$AN$22,", sangat menguasai "&$C$16,IF(F22>$T$8,", menguasai "&$C$16,IF(F22>$AN$28,", masih perlu latihan "&$C$16,IF(F22>$AN$30,", perlu bimbingan "&$C$16,IF(F22="",""))))),IF(G22>$AN$22,", sangat menguasai "&$C$17,IF(G22>$T$8,", menguasai "&$C$17,IF(G22>$AN$28,", masih perlu latihan "&$C$17,IF(G22>$AN$30,", perlu bimbingan "&$C$17,IF(G22="","")))))) -> Kompetensi pengetahuan rerata baik. Menguasai Atletik, menguasai Senam. Menguasai Bola Volley, menguasai Sepak Bola | AE22: A- | AF22: ='Data '!G21 -> 3.5 | AG22: < x ≤ | AH22: ='Data '!I21 -> 3.84 | AM22: A- | AN22: =AF22*25 -> 87.5
A23: 3 | B23: ='Data '!D29 -> BAGAS YULANDRA PUTRA | C23: 80 | D23: 80 | E23: 80 | F23: 80 | H23: 80 | I23: 80 | J23: 80 | K23: 80 | L23: 80 | N23: 80 | O23: 80 | P23: 75 | Q23: 75 | R23: 77.5 | S23: 3.1 | T23: B | U23: Tuntas | Y23: 78.33333333 | Z23: 3.133333333 | AA23: B | AB23: =IF(Y22>$AF$22,"Kompetensi pengetahuan rerata sangat baik. ",IF(Y22>$S$8,"Kompetensi pengetahuan rerata baik. ",IF(Y22>$AF$28,"Kompetensi pengetahuan rerata cukup. ",IF(Y22>$AF$30,"Kompetensi pengetahuan rerata kurang. ",IF(Y22=" "," "))))) -> Kompetensi pengetahuan rerata sangat baik. | AD23: Kompetensi pengetahuan rerata baik. Menguasai Atletik, menguasai Senam. Menguasai Bola Volley, menguasai Sepak Bola | AE23: B+ | AF23: ='Data '!G22 -> 3.17 | AG23: < x ≤ | AH23: ='Data '!I22 -> 3.5 | AM23: B+ | AN23: 79.25
A24: 4 | B24: ='Data '!D30 -> CYNTIA AGUSTINA | C24: 80 | D24: 80 | E24: 80 | F24: 80 | H24: 80 | I24: 80 | J24: 80 | K24: 80 | L24: 80 | N24: 80 | O24: 80 | P24: 75 | Q24: 75 | R24: 77.5 | S24: 3.1 | T24: B | U24: Tuntas | Y24: 78.33333333 | Z24: 3.133333333 | AA24: B | AB24: Kompetensi pengetahuan rerata sangat baik. | AD24: Kompetensi pengetahuan rerata baik. Menguasai Atletik, menguasai Senam. Menguasai Bola Volley, menguasai Sepak Bola | AE24: B | AF24: ='Data '!G23 -> 2.84 | AG24: < x ≤ | AH24: ='Data '!I23 -> 3.17 | AM24: B | AN24: 71
A25: 5 | B25: ='Data '!D31 -> DAFFA KRISNA PRAMUDYA | C25: 80 | D25: 80 | E25: 80 | F25: 80 | H25: 80 | I25: 80 | J25: 80 | K25: 80 | L25: 80 | N25: 80 | O25: 80 | P25: 75 | Q25: 75 | R25: 77.5 | S25: 3.1 | T25: B | U25: Tuntas | Y25: 78.33333333 | Z25: 3.133333333 | AA25: B | AB25: Kompetensi pengetahuan rerata sangat baik. | AD25: Kompetensi pengetahuan rerata baik. Menguasai Atletik, menguasai Senam. Menguasai Bola Volley, menguasai Sepak Bola | AE25: B- | AF25: ='Data '!G24 -> 2.5 | AG25: < x ≤ | AH25: ='Data '!I24 -> 2.84 | AM25: B- | AN25: 62.5
A26: 6 | B26: ='Data '!D32 -> DANINDRA RAFIF IRAWAN | C26: 80 | D26: 80 | E26: 80 | F26: 80 | H26: 80 | I26: 80 | J26: 80 | K26: 80 | L26: 80 | N26: 80 | O26: 80 | P26: 75 | Q26: 75 | R26: 77.5 | S26: 3.1 | T26: B | U26: Tuntas | Y26: 78.33333333 | Z26: 3.133333333 | AA26: B | AB26: Kompetensi pengetahuan rerata sangat baik. | AD26: Kompetensi pengetahuan rerata baik. Menguasai Atletik, menguasai Senam. Menguasai Bola Volley, menguasai Sepak Bola | AE26: C+ | AF26: ='Data '!G25 -> 2.17 | AG26: < x ≤ | AH26: ='Data '!I25 -> 2.5 | AM26: C+ | AN26: 54.25
A27: 7 | B27: ='Data '!D33 -> DENI PRATAMA | C27: 80 | D27: 80 | E27: 80 | F27: 80 | H27: 80 | I27: 80 | J27: 80 | K27: 80 | L27: 80 | N27: 80 | O27: 80 | P27: 75 | Q27: 75 | R27: 77.5 | S27: 3.1 | T27: B | U27: Tuntas | Y27: 78.33333333 | Z27: 3.133333333 | AA27: B | AB27: Kompetensi pengetahuan rerata sangat baik. | AD27: Kompetensi pengetahuan rerata baik. Menguasai Atletik, menguasai Senam. Menguasai Bola Volley, menguasai Sepak Bola | AE27: C | AF27: ='Data '!G26 -> 1.84 | AG27: < x ≤ | AH27: ='Data '!I26 -> 2.17 | AM27: C | AN27: 46
A28: 8 | B28: ='Data '!D34 -> DIKA SUKMA AGUSTIN | C28: 80 | D28: 80 | E28: 80 | F28: 80 | H28: 80 | I28: 80 | J28: 80 | K28: 80 | L28: 80 | N28: 80 | O28: 80 | P28: 75 | Q28: 75 | R28: 77.5 | S28: 3.1 | T28: B | U28: Tuntas | Y28: 78.33333333 | Z28: 3.133333333 | AA28: B | AB28: Kompetensi pengetahuan rerata sangat baik. | AD28: Kompetensi pengetahuan rerata baik. Menguasai Atletik, menguasai Senam. Menguasai Bola Volley, menguasai Sepak Bola | AE28: C- | AF28: ='Data '!G27 -> 1.5 | AG28: < x ≤ | AH28: ='Data '!I27 -> 1.84 | AM28: C- | AN28: 37.5
A29: 9 | B29: ='Data '!D35 -> DIVA ADITYA | C29: 80 | D29: 80 | E29: 80 | F29: 80 | H29: 80 | I29: 80 | J29: 80 | K29: 80 | L29: 80 | N29: 80 | O29: 80 | P29: 75 | Q29: 75 | R29: 77.5 | S29: 3.1 | T29: B | U29: Tuntas | Y29: 78.33333333 | Z29: 3.133333333 | AA29: B | AB29: Kompetensi pengetahuan rerata sangat baik. | AD29: Kompetensi pengetahuan rerata baik. Menguasai Atletik, menguasai Senam. Menguasai Bola Volley, menguasai Sepak Bola | AE29: D+ | AF29: ='Data '!G28 -> 1.17 | AG29: < x ≤ | AH29: ='Data '!I28 -> 1.5 | AM29: D+ | AN29: 29.25
A30: 10 | B30: ='Data '!D36 -> EKO PRASTYO | C30: 80 | D30: 80 | E30: 80 | F30: 80 | H30: 80 | I30: 80 | J30: 80 | K30: 80 | L30: 80 | N30: 80 | O30: 80 | P30: 75 | Q30: 75 | R30: 77.5 | S30: 3.1 | T30: B | U30: Tuntas | Y30: 78.33333333 | Z30: 3.133333333 | AA30: B | AB30: Kompetensi pengetahuan rerata sangat baik. | AD30: Kompetensi pengetahuan rerata baik. Menguasai Atletik, menguasai Senam. Menguasai Bola Volley, menguasai Sepak Bola | AE30: D | AF30: ='Data '!G29 -> 1 | AG30: < x ≤ | AH30: ='Data '!I29 -> 1.17 | AM30: D | AN30: 25
A31: 11 | B31: ='Data '!D37 -> FAIQUR RIJAL HAMMAM | C31: 80 | D31: 80 | E31: 80 | F31: 80 | H31: 80 | I31: 80 | J31: 80 | K31: 80 | L31: 80 | N31: 80 | O31: 80 | P31: 75 | Q31: 75 | R31: 77.5 | S31: 3.1 | T31: B | U31: Tuntas | Y31: 78.33333333 | Z31: 3.133333333 | AA31: B | AB31: Kompetensi pengetahuan rerata sangat baik. | AD31: Kompetensi pengetahuan rerata baik. Menguasai Atletik, menguasai Senam. Menguasai Bola Volley, menguasai Sepak Bola
A32: 12 | B32: ='Data '!D38 -> FATESAR SARI PRASETYO | C32: 80 | D32: 80 | E32: 80 | F32: 80 | H32: 80 | I32: 80 | J32: 80 | K32: 80 | L32: 80 | N32: 80 | O32: 80 | P32: 75 | Q32: 75 | R32: 77.5 | S32: 3.1 | T32: B | U32: Tuntas | Y32: 78.33333333 | Z32: 3.133333333 | AA32: B | AB32: Kompetensi pengetahuan rerata sangat baik. | AD32: Kompetensi pengetahuan rerata baik. Menguasai Atletik, menguasai Senam. Menguasai Bola Volley, menguasai Sepak Bola
A33: 13 | B33: ='Data '!D39 -> FEBRI SULISTIYO | C33: 80 | D33: 80 | E33: 80 | F33: 80 | H33: 80 | I33: 80 | J33: 80 | K33: 80 | L33: 80 | N33: 80 | O33: 80 | P33: 75 | Q33: 75 | R33: 77.5 | S33: 3.1 | T33: B | U33: Tuntas | Y33: 78.33333333 | Z33: 3.133333333 | AA33: B | AB33: Kompetensi pengetahuan rerata sangat baik. | AD33: Kompetensi pengetahuan rerata baik. Menguasai Atletik, menguasai Senam. Menguasai Bola Volley, menguasai Sepak Bola
A34: 14 | B34: ='Data '!D40 -> FIONA NANDA FETRIAN | C34: 80 | D34: 80 | E34: 80 | F34: 80 | H34: 80 | I34: 80 | J34: 80 | K34: 80 | L34: 80 | N34: 80 | O34: 80 | P34: 75 | Q34: 75 | R34: 77.5 | S34: 3.1 | T34: B | U34: Tuntas | Y34: 78.33333333 | Z34: 3.133333333 | AA34: B | AB34: Kompetensi pengetahuan rerata sangat baik. | AD34: Kompetensi pengetahuan rerata baik. Menguasai Atletik, menguasai Senam. Menguasai Bola Volley, menguasai Sepak Bola
A35: 15 | B35: ='Data '!D41 -> GILANG SYAHRUL RAMADHAN | C35: 80 | D35: 80 | E35: 80 | F35: 80 | H35: 80 | I35: 80 | J35: 80 | K35: 80 | L35: 80 | N35: 80 | O35: 80 | P35: 75 | Q35: 75 | R35: 77.5 | S35: 3.1 | T35: B | U35: Tuntas | Y35: 78.33333333 | Z35: 3.133333333 | AA35: B | AB35: Kompetensi pengetahuan rerata sangat baik. | AD35: Kompetensi pengetahuan rerata baik. Menguasai Atletik, menguasai Senam. Menguasai Bola Volley, menguasai Sepak Bola
A36: 16 | B36: ='Data '!D42 -> IMAM AGUNG WAHYU PRATAMA | C36: 80 | D36: 80 | E36: 80 | F36: 80 | H36: 80 | I36: 80 | J36: 80 | K36: 80 | L36: 80 | N36: 80 | O36: 80 | P36: 75 | Q36: 75 | R36: 77.5 | S36: 3.1 | T36: B | U36: Tuntas | Y36: 78.33333333 | Z36: 3.133333333 | AA36: B | AB36: Kompetensi pengetahuan rerata sangat baik. | AD36: Kompetensi pengetahuan rerata baik. Menguasai Atletik, menguasai Senam. Menguasai Bola Volley, menguasai Sepak Bola
A37: 17 | B37: ='Data '!D43 -> JOHAN MAULANA | C37: 80 | D37: 80 | E37: 80 | F37: 80 | H37: 80 | I37: 80 | J37: 80 | K37: 80 | L37: 80 | N37: 80 | O37: 80 | P37: 75 | Q37: 75 | R37: 77.5 | S37: 3.1 | T37: B | U37: Tuntas | Y37: 78.33333333 | Z37: 3.133333333 | AA37: B | AB37: Kompetensi pengetahuan rerata sangat baik. | AD37: Kompetensi pengetahuan rerata baik. Menguasai Atletik, menguasai Senam. Menguasai Bola Volley, menguasai Sepak Bola
A38: 18 | B38: ='Data '!D44 -> JOKO SETIAWAN | C38: 80 | D38: 80 | E38: 80 | F38: 80 | H38: 80 | I38: 80 | J38: 80 | K38: 80 | L38: 80 | N38: 80 | O38: 80 | P38: 75 | Q38: 75 | R38: 77.5 | S38: 3.1 | T38: B | U38: Tuntas | Y38: 78.33333333 | Z38: 3.133333333 | AA38: B | AB38: Kompetensi pengetahuan rerata sangat baik. | AD38: Kompetensi pengetahuan rerata baik. Menguasai Atletik, menguasai Senam. Menguasai Bola Volley, menguasai Sepak Bola
A39: 19 | B39: ='Data '!D45 -> LISA OKTAVINASARI | C39: 80 | D39: 80 | E39: 80 | F39: 80 | H39: 80 | I39: 80 | J39: 80 | K39: 80 | L39: 80 | N39: 80 | O39: 80 | P39: 75 | Q39: 75 | R39: 77.5 | S39: 3.1 | T39: B | U39: Tuntas | Y39: 78.33333333 | Z39: 3.133333333 | AA39: B | AB39: Kompetensi pengetahuan rerata sangat baik. | AD39: Kompetensi pengetahuan rerata baik. Menguasai Atletik, menguasai Senam. Menguasai Bola Volley, menguasai Sepak Bola
A40: 20 | B40: ='Data '!D46 -> MARIA GILDA SIREGAR | C40: 80 | D40: 80 | E40: 80 | F40: 80 | H40: 80 | I40: 80 | J40: 80 | K40: 80 | L40: 80 | N40: 80 | O40: 80 | P40: 75 | Q40: 75 | R40: 77.5 | S40: 3.1 | T40: B | U40: Tuntas | Y40: 78.33333333 | Z40: 3.133333333 | AA40: B | AB40: Kompetensi pengetahuan rerata sangat baik. | AD40: Kompetensi pengetahuan rerata baik. Menguasai Atletik, menguasai Senam. Menguasai Bola Volley, menguasai Sepak Bola
A41: 21 | B41: ='Data '!D47 -> MOHAMMAD NURKHOLISH | C41: 80 | D41: 80 | E41: 80 | F41: 80 | H41: 80 | I41: 80 | J41: 80 | K41: 80 | L41: 80 | N41: 80 | O41: 80 | P41: 75 | Q41: 75 | R41: 77.5 | S41: 3.1 | T41: B | U41: Tuntas | Y41: 78.33333333 | Z41: 3.133333333 | AA41: B | AB41: Kompetensi pengetahuan rerata sangat baik. | AD41: Kompetensi pengetahuan rerata baik. Menguasai Atletik, menguasai Senam. Menguasai Bola Volley, menguasai Sepak Bola
A42: 22 | B42: ='Data '!D48 -> MUHAMAD FARIS ULIN NUHA | C42: 80 | D42: 80 | E42: 80 | F42: 80 | H42: 80 | I42: 80 | J42: 80 | K42: 80 | L42: 80 | N42: 80 | O42: 80 | P42: 75 | Q42: 75 | R42: 77.5 | S42: 3.1 | T42: B | U42: Tuntas | Y42: 78.33333333 | Z42: 3.133333333 | AA42: B | AB42: Kompetensi pengetahuan rerata sangat baik. | AD42: Kompetensi pengetahuan rerata baik. Menguasai Atletik, menguasai Senam. Menguasai Bola Volley, menguasai Sepak Bola
A43: 23 | B43: ='Data '!D49 -> MUHAMMAD MUSTOFA | C43: 80 | D43: 80 | E43: 80 | F43: 80 | H43: 80 | I43: 80 | J43: 80 | K43: 80 | L43: 80 | N43: 80 | O43: 80 | P43: 75 | Q43: 75 | R43: 77.5 | S43: 3.1 | T43: B | U43: Tuntas | Y43: 78.33333333 | Z43: 3.133333333 | AA43: B | AB43: Kompetensi pengetahuan rerata sangat baik. | AD43: Kompetensi pengetahuan rerata baik. Menguasai Atletik, menguasai Senam. Menguasai Bola Volley, menguasai Sepak Bola
A44: 24 | B44: ='Data '!D50 -> NANDA WINTYA PUTRI | C44: 80 | D44: 80 | E44: 80 | F44: 80 | H44: 80 | I44: 80 | J44: 80 | K44: 80 | L44: 80 | N44: 80 | O44: 80 | P44: 75 | Q44: 75 | R44: 77.5 | S44: 3.1 | T44: B | U44: Tuntas | Y44: 78.33333333 | Z44: 3.133333333 | AA44: B | AB44: Kompetensi pengetahuan rerata sangat baik. | AD44: Kompetensi pengetahuan rerata baik. Menguasai Atletik, menguasai Senam. Menguasai Bola Volley, menguasai Sepak Bola
A45: 25 | B45: ='Data '!D51 -> NI'MA NOVA NUR FADHILAH | C45: 80 | D45: 80 | E45: 80 | F45: 80 | H45: 80 | I45: 80 | J45: 80 | K45: 80 | L45: 80 | N45: 80 | O45: 80 | P45: 75 | Q45: 75 | R45: 77.5 | S45: 3.1 | T45: B | U45: Tuntas | Y45: 78.33333333 | Z45: 3.133333333 | AA45: B | AB45: Kompetensi pengetahuan rerata sangat baik. | AD45: Kompetensi pengetahuan rerata baik. Menguasai Atletik, menguasai Senam. Menguasai Bola Volley, menguasai Sepak Bola
A46: 26 | B46: ='Data '!D52 -> NITA ZUMROTUT TAQIYAH | C46: 80 | D46: 80 | E46: 80 | F46: 80 | H46: 80 | I46: 80 | J46: 80 | K46: 80 | L46: 80 | N46: 80 | O46: 80 | P46: 75 | Q46: 75 | R46: 77.5 | S46: 3.1 | T46: B | U46: Tuntas | Y46: 78.33333333 | Z46: 3.133333333 | AA46: B | AB46: Kompetensi pengetahuan rerata sangat baik. | AD46: Kompetensi pengetahuan rerata baik. Menguasai Atletik, menguasai Senam. Menguasai Bola Volley, menguasai Sepak Bola
A47: 27 | B47: ='Data '!D53 -> RACHMAT SAPUTRA ANDRIANSYAH | C47: 80 | D47: 80 | E47: 80 | F47: 80 | H47: 80 | I47: 80 | J47: 80 | K47: 80 | L47: 80 | N47: 80 | O47: 80 | P47: 75 | Q47: 75 | R47: 77.5 | S47: 3.1 | T47: B | U47: Tuntas | Y47: 78.33333333 | Z47: 3.133333333 | AA47: B | AB47: Kompetensi pengetahuan rerata sangat baik. | AD47: Kompetensi pengetahuan rerata baik. Menguasai Atletik, menguasai Senam. Menguasai Bola Volley, menguasai Sepak Bola
A48: 28 | B48: ='Data '!D54 -> RIZAL ANDRIYAN SAPUTRA | C48: 80 | D48: 80 | E48: 80 | F48: 80 | H48: 80 | I48: 80 | J48: 80 | K48: 80 | L48: 80 | N48: 80 | O48: 80 | P48: 75 | Q48: 75 | R48: 77.5 | S48: 3.1 | T48: B | U48: Tuntas | Y48: 78.33333333 | Z48: 3.133333333 | AA48: B | AB48: Kompetensi pengetahuan rerata sangat baik. | AD48: Kompetensi pengetahuan rerata baik. Menguasai Atletik, menguasai Senam. Menguasai Bola Volley, menguasai Sepak Bola
A49: 29 | B49: ='Data '!D55 -> SAIFUL ANNAS | C49: 80 | D49: 80 | E49: 80 | F49: 80 | H49: 80 | I49: 80 | J49: 80 | K49: 80 | L49: 80 | N49: 80 | O49: 80 | P49: 75 | Q49: 75 | R49: 77.5 | S49: 3.1 | T49: B | U49: Tuntas | Y49: 78.33333333 | Z49: 3.133333333 | AA49: B | AB49: Kompetensi pengetahuan rerata sangat baik. | AD49: Kompetensi pengetahuan rerata baik. Menguasai Atletik, menguasai Senam. Menguasai Bola Volley, menguasai Sepak Bola
A50: 30 | B50: ='Data '!D56 -> SELINA SEPTIANI | C50: 80 | D50: 80 | E50: 80 | F50: 80 | H50: 80 | I50: 80 | J50: 80 | K50: 80 | L50: 80 | N50: 80 | O50: 80 | P50: 75 | Q50: 75 | R50: 77.5 | S50: 3.1 | T50: B | U50: Tuntas | Y50: 78.33333333 | Z50: 3.133333333 | AA50: B | AB50: Kompetensi pengetahuan rerata sangat baik. | AD50: Kompetensi pengetahuan rerata baik. Menguasai Atletik, menguasai Senam. Menguasai Bola Volley, menguasai Sepak Bola
A51: 31 | B51: ='Data '!D57 -> SHALSABILA SHINTA NIRMALA | C51: 80 | D51: 80 | E51: 80 | F51: 80 | H51: 80 | I51: 80 | J51: 80 | K51: 80 | L51: 80 | N51: 80 | O51: 80 | P51: 75 | Q51: 75 | R51: 77.5 | S51: 3.1 | T51: B | U51: Tuntas | Y51: 78.33333333 | Z51: 3.133333333 | AA51: B | AB51: Kompetensi pengetahuan rerata sangat baik. | AD51: Kompetensi pengetahuan rerata baik. Menguasai Atletik, menguasai Senam. Menguasai Bola Volley, menguasai Sepak Bola
A52: 32 | B52: ='Data '!D58 -> SITI CHOIRIATUS SA'ADAH | C52: 80 | D52: 80 | E52: 80 | F52: 80 | H52: 80 | I52: 80 | J52: 80 | K52: 80 | L52: 80 | N52: 80 | O52: 80 | P52: 75 | Q52: 75 | R52: 77.5 | S52: 3.1 | T52: B | U52: Tuntas | Y52: 78.33333333 | Z52: 3.133333333 | AA52: B | AB52: Kompetensi pengetahuan rerata sangat baik. | AD52: Kompetensi pengetahuan rerata baik. Menguasai Atletik, menguasai Senam. Menguasai Bola Volley, menguasai Sepak Bola
A53: 33 | B53: ='Data '!D59 -> SITI NURFAN AZIZAH | C53: 80 | D53: 80 | E53: 80 | F53: 80 | H53: 80 | I53: 80 | J53: 80 | K53: 80 | L53: 80 | N53: 80 | O53: 80 | P53: 75 | Q53: 75 | R53: 77.5 | S53: 3.1 | T53: B | U53: Tuntas | Y53: 78.33333333 | Z53: 3.133333333 | AA53: B | AB53: Kompetensi pengetahuan rerata sangat baik. | AD53: Kompetensi pengetahuan rerata baik. Menguasai Atletik, menguasai Senam. Menguasai Bola Volley, menguasai Sepak Bola
A54: 34 | B54: ='Data '!D60 -> SITI RAHAYU | C54: 80 | D54: 80 | E54: 80 | F54: 80 | H54: 80 | I54: 80 | J54: 80 | K54: 80 | L54: 80 | N54: 80 | O54: 80 | P54: 75 | Q54: 75 | R54: 77.5 | S54: 3.1 | T54: B | U54: Tuntas | Y54: 78.33333333 | Z54: 3.133333333 | AA54: B | AB54: Kompetensi pengetahuan rerata sangat baik. | AD54: Kompetensi pengetahuan rerata baik. Menguasai Atletik, menguasai Senam. Menguasai Bola Volley, menguasai Sepak Bola
A55: 35 | B55: ='Data '!D61 -> STEVIANA PUSPITA SARI | C55: 80 | D55: 80 | E55: 80 | F55: 80 | H55: 80 | I55: 80 | J55: 80 | K55: 80 | L55: 80 | N55: 80 | O55: 80 | P55: 75 | Q55: 75 | R55: 77.5 | S55: 3.1 | T55: B | U55: Tuntas | Y55: 78.33333333 | Z55: 3.133333333 | AA55: B | AB55: Kompetensi pengetahuan rerata sangat baik. | AD55: Kompetensi pengetahuan rerata baik. Menguasai Atletik, menguasai Senam. Menguasai Bola Volley, menguasai Sepak Bola
A56: 36 | B56: ='Data '!D62 -> TAN LINGGAR PRAMUDITA | C56: 80 | D56: 80 | E56: 80 | F56: 80 | H56: 80 | I56: 80 | J56: 80 | K56: 80 | L56: 80 | N56: 80 | O56: 80 | P56: 75 | Q56: 75 | R56: 77.5 | S56: 3.1 | T56: B | U56: Tuntas | Y56: 78.33333333 | Z56: 3.133333333 | AA56: B | AB56: Kompetensi pengetahuan rerata sangat baik. | AD56: Kompetensi pengetahuan rerata baik. Menguasai Atletik, menguasai Senam. Menguasai Bola Volley, menguasai Sepak Bola
A57: 37 | B57: ='Data '!D63 -> TAUFIK NUR AZIZ DANUARTA | C57: 80 | D57: 80 | E57: 80 | F57: 80 | H57: 80 | I57: 80 | J57: 80 | K57: 80 | L57: 80 | N57: 80 | O57: 80 | P57: 75 | Q57: 75 | R57: 77.5 | S57: 3.1 | T57: B | U57: Tuntas | Y57: 78.33333333 | Z57: 3.133333333 | AA57: B | AB57: Kompetensi pengetahuan rerata sangat baik. | AD57: Kompetensi pengetahuan rerata baik. Menguasai Atletik, menguasai Senam. Menguasai Bola Volley, menguasai Sepak Bola
A58: 38 | B58: ='Data '!D64 -> TIARA PUTRI AYUNINGTIAS | C58: 80 | D58: 80 | E58: 80 | F58: 80 | H58: 80 | I58: 80 | J58: 80 | K58: 80 | L58: 80 | N58: 80 | O58: 80 | P58: 75 | Q58: 75 | R58: 77.5 | S58: 3.1 | T58: B | U58: Tuntas | Y58: 78.33333333 | Z58: 3.133333333 | AA58: B | AB58: Kompetensi pengetahuan rerata sangat baik. | AD58: Kompetensi pengetahuan rerata baik. Menguasai Atletik, menguasai Senam. Menguasai Bola Volley, menguasai Sepak Bola
A59: 39 | B59: ='Data '!D65 -> TITANIA GAYATRI PRIANJANI | C59: 80 | D59: 80 | E59: 80 | F59: 80 | H59: 80 | I59: 80 | J59: 80 | K59: 80 | L59: 80 | N59: 80 | O59: 80 | P59: 75 | Q59: 75 | R59: 77.5 | S59: 3.1 | T59: B | U59: Tuntas | Y59: 78.33333333 | Z59: 3.133333333 | AA59: B | AB59: Kompetensi pengetahuan rerata sangat baik. | AD59: Kompetensi pengetahuan rerata baik. Menguasai Atletik, menguasai Senam. Menguasai Bola Volley, menguasai Sepak Bola
A60: 40 | B60: ='Data '!D66 -> ULFATUN NI'MAH | C60: 80 | D60: 80 | E60: 80 | F60: 80 | H60: 80 | I60: 80 | J60: 80 | K60: 80 | L60: 80 | N60: 80 | O60: 80 | P60: 75 | Q60: 75 | R60: 77.5 | S60: 3.1 | T60: B | U60: Tuntas | AB60: Kompetensi pengetahuan rerata sangat baik. | AD60: Kompetensi pengetahuan rerata baik. Menguasai Atletik, menguasai Senam. Menguasai Bola Volley, menguasai Sepak Bola
A61: 41 | B61: ='Data '!D67 -> 0 | O61: =IFERROR((H61+N61)/2," ") ->  | S61: =IFERROR((R61/100)*4," ") ->  | U61: =IF(S61=" "," ",IF(S61>=$S$8,"Tuntas","Tidak Tuntas")) ->  | AB61: Kompetensi pengetahuan rerata sangat baik. | AD61: Kompetensi pengetahuan rerata sangat baik.
A62: 42 | B62: ='Data '!D68 -> 0 | AB62: Kompetensi pengetahuan rerata sangat baik. | AD62: Kompetensi pengetahuan rerata sangat baik.
A63: 43 | B63: ='Data '!D69 -> 0 | AB63: Kompetensi pengetahuan rerata sangat baik. | AD63: Kompetensi pengetahuan rerata sangat baik.
A64: 44 | B64: ='Data '!D70 -> 0 | AB64: Kompetensi pengetahuan rerata sangat baik. | AD64: Kompetensi pengetahuan rerata sangat baik.
A65: 45 | B65: ='Data '!D71 -> 0 | Y65: =IFERROR((O66*$E$74+P66*$F$74)/($I$74-$H$74)," ") ->  | Z65: =IFERROR((Y65/100)*4," ") ->  | AA65: =IF(Z65=" "," ",IF(Z65>3.83,"A",IF(Z65>3.5,"A-",IF(Z65>3.17,"B+",IF(Z65>2.83,"B",IF(Z65>2.5,"B-",IF(Z65>2.17,"C+",IF(Z65>1.83,"C",IF(Z65>1.5,"C-",IF(Z65>1.17,"D+","D")))))))))) ->  | AB65: Kompetensi pengetahuan rerata sangat baik. | AD65: Kompetensi pengetahuan rerata sangat baik.
A66: 46 | B66: ='Data '!D72 -> 0 | O66: =IFERROR((H66+N66)/2," ") ->  | R66: =IFERROR((O66*$E$74+P66*$F$74+Q66*$H$74)/$I$74," ") ->  | S66: =IFERROR((R66/100)*4," ") ->  | U66: =IF(S66=" "," ",IF(S66>=$S$8,"Tuntas","Tidak Tuntas")) ->  | AB66: Kompetensi pengetahuan rerata sangat baik. | AD66: Kompetensi pengetahuan rerata sangat baik.
A67: 47 | B67: ='Data '!D73 -> 0 | AB67: Kompetensi pengetahuan rerata sangat baik. | AD67: Kompetensi pengetahuan rerata sangat baik.
A68: 48 | B68: ='Data '!D74 -> 0 | AB68: Kompetensi pengetahuan rerata sangat baik. | AD68: Kompetensi pengetahuan rerata sangat baik.
A69: 49 | B69: ='Data '!D75 -> 0 | Y69: 78.33333333 | Z69: 3.133333333 | AA69: B | AB69: Kompetensi pengetahuan rerata sangat baik. | AD69: Kompetensi pengetahuan rerata sangat baik.
A70: 50 | B70: ='Data '!D76 -> 0 | C70: 67 | H70: 67 | I70: 90 | N70: 90 | O70: 78.5 | P70: 78 | Q70: 90 | R70: 81.25 | S70: 3.25 | T70: B+ | U70: Tuntas | Y70: =IFERROR(AVERAGE(Y20:Y69)," ") -> 78.33333333 | Z70: =IFERROR(AVERAGE(Z20:Z69)," ") -> 3.133333333 | AB70: Kompetensi pengetahuan rerata sangat baik. | AD70: Kompetensi pengetahuan rerata baik. Menguasai Atletik
B71: Nilai Rata-rata | C71: =IFERROR(AVERAGE(C21:C70)," ") -> 79.68292683 | D71: =IFERROR(AVERAGE(D21:D70)," ") -> 80 | E71: 80 | F71: 80 | H71: 79.68292683 | I71: 80.24390244 | J71: 80 | K71: 80 | L71: 80 | N71: 80.24390244 | O71: 79.96341463 | P71: 75.07317073 | Q71: 75.36585366 | R71: 77.59146341 | S71: 3.103658537
C73: Jenis | E73: NP | F73: UTS | G73: UAS | I73: Jlh
C74: Bobot | E74: 2 | F74: 1 | H74: 1 | I74: =SUM(E74:H74) -> 4
B76: Mengetahui: | S76: ='Data '!D21 -> Blora, 20 Desember 2014
B77: ="Ka. " &'Data '!D7 -> Ka. SMP Negeri 6 Blora | S77: Guru Mata Pelajaran
B81: ='Data '!D15 -> Suparno, S.Pd.,M.Hum | S81: =Home!E12 -> Drs. Sarid Nugroho
B82: ='Data '!D16 -> NIP. 19620712 198403 1 012 | S82: =Home!E14 -> NIP. 19631223 198803 1 004
X142: Batas Halaman

Sheet Ketrampilan
C1: =UPPER('Data '!D10) -> PEMERINTAH KABUPATEN BLORA
C2: =UPPER('Data '!D6) -> DINAS PENDIDIKAN PEMUDA DAN OLAHRAGA
C3: =UPPER('Data '!D7) -> SMP NEGERI 6 BLORA
C4: DAFTAR NILAI SISWA ASPEK KETRAMPILAN (KI - 4)
B8: Mata Pelajaran : | C8: =Home!E16 -> PJOK | H8: Semester : | K8: ='Data '!D14 -> Ganjil | N8: KKM : | P8: =Home!E24 -> 2.67 | Q8: =P8*25 -> 66.75
B9: Kelas : | C9: =Home!E18 -> VII-A | H9: Tahun Pelajaran : | K9: ='Data '!D13 -> 2014/2015 | N9: Wali Kelas : | P9: ='Data '!D17 -> Mundari, S.Pd.
B10: Aspek : | C10: Ketrampilan
B12: KOMPETENSI DASAR ASPEK KETRAMPILAN (KI - 4)
B13: KD/Materi Pokok UK 1 | C13: Atletik
B14: KD/Materi Pokok UK 2 | C14: Senam
B15: KD/Materi Pokok UK 3 | C15: Bola Volley
B16: KD/Materi Pokok UK 4 | C16: Sepak Bola
A19: No. | B19: Nama | C19: Unjuk Kerja | G19: Rerata | H19: Projek | K19: Rerata | L19: Portofolio | N19: Rerata | O19: Nilai | R19: Ket | AG19: TABEL KONVERSI
C20: KD1 | D20: KD2 | E20: KD3 | F20: KD4 | G20: Ujk Kerja | H20: Pr1 | I20: Pr2 | J20: Pr3 | K20: Projek | L20: Pf1 | M20: Pf2 | N20: Porto | O20: 0-100 | P20: 1-4 | Q20: Konversi | R20: T/TT | AL20: KD1
A21: 1 | B21: ='Data '!D27 -> AHMAD ALEK BRIYANSAPUTRA | C21: 80 | D21: 80 | E21: 80 | F21: 80 | G21: =IFERROR(MAX(C21:F21)," ") -> 80 | H21: 80 | J21: ='PrJ-3'!K25 -> 0 | K21: =IFERROR(MAX(H21:J21)," ") -> 80 | L21: 80 | M21: ='Pf-2'!K25 -> 0 | N21: =IFERROR(MAX(L21:M21)," ") -> 80 | O21: =IFERROR((G21*$D$74+K21*$E$74+N21*$G$74)/$H$74," ") -> 80 | P21: =IFERROR((O21/100)*4," ") -> 3.2 | Q21: =IF(P21=" "," ",IF(P21>$AG$21,"A",IF(P21>$AG$22,"A-",IF(P21>$AG$23,"B+",IF(P21>$AG$24,"B",IF(P21>$AG$25,"B-",IF(P21>$AG$26,"C+",IF(P21>$AG$27,"C",IF(P21>$AG$28,"C-",IF(P21>$AG$29,"D+","D")))))))))) -> B+ | R21: =IF(P21=" "," ",IF(P21>=$P$8,"Tuntas","Tidak Tuntas")) -> Tuntas | AA21: =IF(P21>$AG$22,"Kompetensi ketrampilan rerata sangat baik. ",IF(P21>$P$8,"Kompetensi ketrampilan rerata baik. ",IF(P21>$AG$28,"Kompetensi ketrampilan rerata cukup. ",IF(P21>$AG$30,"Kompetensi ketrampilan rerata kurang. "," ")))) -> Kompetensi ketrampilan rerata baik. | AG21: ='Data '!J20 -> 3.84 | AH21: < x ≤ | AI21: ='Data '!L20 -> 4 | AJ21: A | AL21: =AG21*25 -> 96 | BA21: =CONCATENATE(IF(P21>$AG$22,"Kompetensi ketrampilan rerata sangat baik. ",IF(P21>$P$8,"Kompetensi ketrampilan rerata baik. ",IF(P21>$AG$28,"Kompetensi ketrampilan rerata cukup. ",IF(P21>$AG$30,"Kompetensi ketrampilan rerata kurang. "," ")))),IF(C21>$AL$22,"Sangat trampil "&$C$13,IF(C21>$Q$8,"Sudah trampil "&$C$13,IF(C21>$AL$28,"Masih perlu latihan "&$C$13,IF(C21>$AL$30,"Perlu bimbingan "&$C$13,IF(C21="",""))))),IF(D21>$AL$22,", sangat trampil "&$C$14,IF(D21>$Q$8,", sudah trampil "&$C$14,IF(D21>$AL$28,", masih perlu latihan "&$C$14,IF(D21>$AL$30,", perlu bimbingan "&$C$14,IF(D21="",""))))),IF(E21>$AL$22,", sangat trampil "&$C$15,IF(E21>$Q$8,", sudah trampil "&$C$15,IF(E21>$AL$28,", masih perlu latihan "&$C$15,IF(E21>$AL$30,", perlu bimbingan "&$C$15,IF(E21="",""))))),IF(F21>$AL$22,", sangat trampil "&$C$16,IF(F21>$Q$8,", sudah trampil "&$C$16,IF(F21>$AL$28,", masih perlu latihan "&$C$16,IF(F21>$AL$30,", perlu bimbingan "&$C$16,IF(F21="","")))))) -> Kompetensi ketrampilan rerata baik. Sudah trampil Atletik, sudah trampil Senam, sudah trampil Bola Volley, sudah trampil Sepak Bola
A22: 2 | B22: ='Data '!D28 -> AULIA AYU FATINA | C22: 80 | D22: 80 | E22: 80 | F22: 80 | G22: =IFERROR(MAX(C22:F22)," ") -> 80 | H22: 80 | I22: ='PrJ-2'!K26 -> 0 | J22: ='PrJ-3'!K26 -> 0 | K22: =IFERROR(MAX(H22:J22)," ") -> 80 | L22: 80 | M22: ='Pf-2'!K26 -> 0 | N22: =IFERROR(MAX(L22:M22)," ") -> 80 | O22: =IFERROR((G22*$D$74+K22*$E$74+N22*$G$74)/$H$74," ") -> 80 | P22: =IFERROR((O22/100)*4," ") -> 3.2 | Q22: =IF(P22=" "," ",IF(P22>$AG$21,"A",IF(P22>$AG$22,"A-",IF(P22>$AG$23,"B+",IF(P22>$AG$24,"B",IF(P22>$AG$25,"B-",IF(P22>$AG$26,"C+",IF(P22>$AG$27,"C",IF(P22>$AG$28,"C-",IF(P22>$AG$29,"D+","D")))))))))) -> B+ | R22: =IF(P22=" "," ",IF(P22>=$P$8,"Tuntas","Tidak Tuntas")) -> Tuntas | AA22: =IF(P22>$AG$22,"Kompetensi ketrampilan rerata sangat baik. ",IF(P22>$P$8,"Kompetensi ketrampilan rerata baik. ",IF(P22>$AG$28,"Kompetensi ketrampilan rerata cukup. ",IF(P22>$AG$30,"Kompetensi ketrampilan rerata kurang. "," ")))) -> Kompetensi ketrampilan rerata baik. | AG22: ='Data '!J21 -> 3.5 | AH22: < x ≤ | AI22: ='Data '!L21 -> 3.84 | AJ22: A- | AL22: =AG22*25 -> 87.5 | BA22: =CONCATENATE(IF(P22>$AG$22,"Kompetensi ketrampilan rerata sangat baik. ",IF(P22>$P$8,"Kompetensi ketrampilan rerata baik. ",IF(P22>$AG$28,"Kompetensi ketrampilan rerata cukup. ",IF(P22>$AG$30,"Kompetensi ketrampilan rerata kurang. "," ")))),IF(C22>$AL$22,"Sangat trampil "&$C$13,IF(C22>$Q$8,"Sudah trampil "&$C$13,IF(C22>$AL$28,"Masih perlu latihan "&$C$13,IF(C22>$AL$30,"Perlu bimbingan "&$C$13,IF(C22="",""))))),IF(D22>$AL$22,", sangat trampil "&$C$14,IF(D22>$Q$8,", sudah trampil "&$C$14,IF(D22>$AL$28,", masih perlu latihan "&$C$14,IF(D22>$AL$30,", perlu bimbingan "&$C$14,IF(D22="",""))))),IF(E22>$AL$22,", sangat trampil "&$C$15,IF(E22>$Q$8,", sudah trampil "&$C$15,IF(E22>$AL$28,", masih perlu latihan "&$C$15,IF(E22>$AL$30,", perlu bimbingan "&$C$15,IF(E22="",""))))),IF(F22>$AL$22,", sangat trampil "&$C$16,IF(F22>$Q$8,", sudah trampil "&$C$16,IF(F22>$AL$28,", masih perlu latihan "&$C$16,IF(F22>$AL$30,", perlu bimbingan "&$C$16,IF(F22="","")))))) -> Kompetensi ketrampilan rerata baik. Sudah trampil Atletik, sudah trampil Senam, sudah trampil Bola Volley, sudah trampil Sepak Bola
A23: 3 | B23: ='Data '!D29 -> BAGAS YULANDRA PUTRA | C23: 80 | D23: 80 | E23: 80 | F23: 80 | G23: 80 | H23: 80 | I23: ='PrJ-2'!K27 -> 0 | J23: ='PrJ-3'!K27 -> 0 | K23: 80 | L23: 80 | M23: ='Pf-2'!K27 -> 0 | N23: 80 | O23: 80 | P23: 3.2 | Q23: B+ | R23: Tuntas | AA23: Kompetensi ketrampilan rerata baik. | AG23: ='Data '!J22 -> 3.17 | AH23: < x ≤ | AI23: ='Data '!L22 -> 3.5 | AJ23: B+ | AL23: 79.25 | BA23: Kompetensi ketrampilan rerata baik. Sudah trampil Atletik, sudah trampil Senam, sudah trampil Bola Volley, sudah trampil Sepak Bola
A24: 4 | B24: ='Data '!D30 -> CYNTIA AGUSTINA | C24: 80 | D24: 80 | E24: 80 | F24: 80 | G24: 80 | H24: 80 | I24: ='PrJ-2'!K28 -> 0 | J24: ='PrJ-3'!K28 -> 0 | K24: 80 | L24: 80 | M24: ='Pf-2'!K28 -> 0 | N24: 80 | O24: 80 | P24: 3.2 | Q24: B+ | R24: Tuntas | AA24: Kompetensi ketrampilan rerata baik. | AG24: ='Data '!J23 -> 2.84 | AH24: < x ≤ | AI24: ='Data '!L23 -> 3.17 | AJ24: B | AL24: 71 | BA24: Kompetensi ketrampilan rerata baik. Sudah trampil Atletik, sudah trampil Senam, sudah trampil Bola Volley, sudah trampil Sepak Bola
A25: 5 | B25: ='Data '!D31 -> DAFFA KRISNA PRAMUDYA | C25: 80 | D25: 80 | E25: 80 | F25: 80 | G25: 80 | H25: 80 | I25: ='PrJ-2'!K29 -> 0 | J25: ='PrJ-3'!K29 -> 0 | K25: 80 | L25: 80 | M25: ='Pf-2'!K29 -> 0 | N25: 80 | O25: 80 | P25: 3.2 | Q25: B+ | R25: Tuntas | AA25: Kompetensi ketrampilan rerata baik. | AG25: ='Data '!J24 -> 2.5 | AH25: < x ≤ | AI25: ='Data '!L24 -> 2.84 | AJ25: B- | AL25: 62.5 | BA25: Kompetensi ketrampilan rerata baik. Sudah trampil Atletik, sudah trampil Senam, sudah trampil Bola Volley, sudah trampil Sepak Bola
A26: 6 | B26: ='Data '!D32 -> DANINDRA RAFIF IRAWAN | C26: 80 | D26: 80 | E26: 80 | F26: 80 | G26: 80 | H26: 80 | I26: ='PrJ-2'!K30 -> 0 | J26: ='PrJ-3'!K30 -> 0 | K26: 80 | L26: 80 | M26: ='Pf-2'!K30 -> 0 | N26: 80 | O26: 80 | P26: 3.2 | Q26: B+ | R26: Tuntas | AA26: Kompetensi ketrampilan rerata baik. | AG26: ='Data '!J25 -> 2.17 | AH26: < x ≤ | AI26: ='Data '!L25 -> 2.5 | AJ26: C+ | AL26: 54.25 | BA26: Kompetensi ketrampilan rerata baik. Sudah trampil Atletik, sudah trampil Senam, sudah trampil Bola Volley, sudah trampil Sepak Bola
A27: 7 | B27: ='Data '!D33 -> DENI PRATAMA | C27: 80 | D27: 80 | E27: 80 | F27: 80 | G27: 80 | H27: 80 | I27: ='PrJ-2'!K31 -> 0 | J27: ='PrJ-3'!K31 -> 0 | K27: 80 | L27: 80 | M27: ='Pf-2'!K31 -> 0 | N27: 80 | O27: 80 | P27: 3.2 | Q27: B+ | R27: Tuntas | AA27: Kompetensi ketrampilan rerata baik. | AG27: ='Data '!J26 -> 1.84 | AH27: < x ≤ | AI27: ='Data '!L26 -> 2.17 | AJ27: C | AL27: 46 | BA27: Kompetensi ketrampilan rerata baik. Sudah trampil Atletik, sudah trampil Senam, sudah trampil Bola Volley, sudah trampil Sepak Bola
A28: 8 | B28: ='Data '!D34 -> DIKA SUKMA AGUSTIN | C28: 80 | D28: 80 | E28: 80 | F28: 80 | G28: 80 | H28: 80 | I28: ='PrJ-2'!K32 -> 0 | J28: ='PrJ-3'!K32 -> 0 | K28: 80 | L28: 80 | M28: ='Pf-2'!K32 -> 0 | N28: 80 | O28: 80 | P28: 3.2 | Q28: B+ | R28: Tuntas | AA28: Kompetensi ketrampilan rerata baik. | AG28: ='Data '!J27 -> 1.5 | AH28: < x ≤ | AI28: ='Data '!L27 -> 1.84 | AJ28: C- | AL28: 37.5 | BA28: Kompetensi ketrampilan rerata baik. Sudah trampil Atletik, sudah trampil Senam, sudah trampil Bola Volley, sudah trampil Sepak Bola
A29: 9 | B29: ='Data '!D35 -> DIVA ADITYA | C29: 80 | D29: 80 | E29: 80 | F29: 80 | G29: 80 | H29: 80 | I29: ='PrJ-2'!K33 -> 0 | J29: ='PrJ-3'!K33 -> 0 | K29: 80 | L29: 80 | M29: ='Pf-2'!K33 -> 0 | N29: 80 | O29: 80 | P29: 3.2 | Q29: B+ | R29: Tuntas | AA29: Kompetensi ketrampilan rerata baik. | AG29: ='Data '!J28 -> 1.17 | AH29: < x ≤ | AI29: ='Data '!L28 -> 1.5 | AJ29: D+ | AL29: 29.25 | BA29: Kompetensi ketrampilan rerata baik. Sudah trampil Atletik, sudah trampil Senam, sudah trampil Bola Volley, sudah trampil Sepak Bola
A30: 10 | B30: ='Data '!D36 -> EKO PRASTYO | C30: 80 | D30: 80 | E30: 80 | F30: 80 | G30: 80 | H30: 80 | I30: ='PrJ-2'!K34 -> 0 | J30: ='PrJ-3'!K34 -> 0 | K30: 80 | L30: 80 | M30: ='Pf-2'!K34 -> 0 | N30: 80 | O30: 80 | P30: 3.2 | Q30: B+ | R30: Tuntas | AA30: Kompetensi ketrampilan rerata baik. | AG30: ='Data '!J29 -> 1 | AH30: < x ≤ | AI30: ='Data '!L29 -> 1.17 | AJ30: D | AL30: 25 | BA30: Kompetensi ketrampilan rerata baik. Sudah trampil Atletik, sudah trampil Senam, sudah trampil Bola Volley, sudah trampil Sepak Bola
A31: 11 | B31: ='Data '!D37 -> FAIQUR RIJAL HAMMAM | C31: 80 | D31: 80 | E31: 80 | F31: 80 | G31: 80 | H31: 80 | I31: ='PrJ-2'!K35 -> 0 | J31: ='PrJ-3'!K35 -> 0 | K31: 80 | L31: 80 | M31: ='Pf-2'!K35 -> 0 | N31: 80 | O31: 80 | P31: 3.2 | Q31: B+ | R31: Tuntas | AA31: Kompetensi ketrampilan rerata baik. | BA31: Kompetensi ketrampilan rerata baik. Sudah trampil Atletik, sudah trampil Senam, sudah trampil Bola Volley, sudah trampil Sepak Bola
A32: 12 | B32: ='Data '!D38 -> FATESAR SARI PRASETYO | C32: 80 | D32: 80 | E32: 80 | F32: 80 | G32: 80 | H32: 80 | I32: ='PrJ-2'!K36 -> 0 | J32: ='PrJ-3'!K36 -> 0 | K32: 80 | L32: 80 | M32: ='Pf-2'!K36 -> 0 | N32: 80 | O32: 80 | P32: 3.2 | Q32: B+ | R32: Tuntas | AA32: Kompetensi ketrampilan rerata baik. | BA32: Kompetensi ketrampilan rerata baik. Sudah trampil Atletik, sudah trampil Senam, sudah trampil Bola Volley, sudah trampil Sepak Bola
A33: 13 | B33: ='Data '!D39 -> FEBRI SULISTIYO | C33: 80 | D33: 80 | E33: 80 | F33: 80 | G33: 80 | H33: 80 | I33: ='PrJ-2'!K37 -> 0 | J33: ='PrJ-3'!K37 -> 0 | K33: 80 | L33: 80 | M33: ='Pf-2'!K37 -> 0 | N33: 80 | O33: 80 | P33: 3.2 | Q33: B+ | R33: Tuntas | X33: halaman 2 | AA33: Kompetensi ketrampilan rerata baik. | BA33: Kompetensi ketrampilan rerata baik. Sudah trampil Atletik, sudah trampil Senam, sudah trampil Bola Volley, sudah trampil Sepak Bola
A34: 14 | B34: ='Data '!D40 -> FIONA NANDA FETRIAN | C34: 80 | D34: 80 | E34: 80 | F34: 80 | G34: 80 | H34: 80 | I34: ='PrJ-2'!K38 -> 0 | J34: ='PrJ-3'!K38 -> 0 | K34: 80 | L34: 80 | M34: ='Pf-2'!K38 -> 0 | N34: 80 | O34: 80 | P34: 3.2 | Q34: B+ | R34: Tuntas | AA34: Kompetensi ketrampilan rerata baik. | BA34: Kompetensi ketrampilan rerata baik. Sudah trampil Atletik, sudah trampil Senam, sudah trampil Bola Volley, sudah trampil Sepak Bola
A35: 15 | B35: ='Data '!D41 -> GILANG SYAHRUL RAMADHAN | C35: 80 | D35: 80 | E35: 80 | F35: 80 | G35: 80 | H35: 80 | I35: ='PrJ-2'!K39 -> 0 | J35: ='PrJ-3'!K39 -> 0 | K35: 80 | L35: 80 | M35: ='Pf-2'!K39 -> 0 | N35: 80 | O35: 80 | P35: 3.2 | Q35: B+ | R35: Tuntas | AA35: Kompetensi ketrampilan rerata baik. | BA35: Kompetensi ketrampilan rerata baik. Sudah trampil Atletik, sudah trampil Senam, sudah trampil Bola Volley, sudah trampil Sepak Bola
A36: 16 | B36: ='Data '!D42 -> IMAM AGUNG WAHYU PRATAMA | C36: 80 | D36: 80 | E36: 80 | F36: 80 | G36: 80 | H36: 80 | I36: ='PrJ-2'!K40 -> 0 | J36: ='PrJ-3'!K40 -> 0 | K36: 80 | L36: 80 | M36: ='Pf-2'!K40 -> 0 | N36: 80 | O36: 80 | P36: 3.2 | Q36: B+ | R36: Tuntas | AA36: Kompetensi ketrampilan rerata baik. | BA36: Kompetensi ketrampilan rerata baik. Sudah trampil Atletik, sudah trampil Senam, sudah trampil Bola Volley, sudah trampil Sepak Bola
A37: 17 | B37: ='Data '!D43 -> JOHAN MAULANA | C37: 80 | D37: 80 | E37: 80 | F37: 80 | G37: 80 | H37: 80 | I37: ='PrJ-2'!K41 -> 0 | J37: ='PrJ-3'!K41 -> 0 | K37: 80 | L37: 80 | M37: ='Pf-2'!K41 -> 0 | N37: 80 | O37: 80 | P37: 3.2 | Q37: B+ | R37: Tuntas | AA37: Kompetensi ketrampilan rerata baik. | BA37: Kompetensi ketrampilan rerata baik. Sudah trampil Atletik, sudah trampil Senam, sudah trampil Bola Volley, sudah trampil Sepak Bola
A38: 18 | B38: ='Data '!D44 -> JOKO SETIAWAN | C38: 80 | D38: 80 | E38: 80 | F38: 80 | G38: 80 | H38: 80 | I38: ='PrJ-2'!K42 -> 0 | J38: ='PrJ-3'!K42 -> 0 | K38: 80 | L38: 80 | M38: ='Pf-2'!K42 -> 0 | N38: 80 | O38: 80 | P38: 3.2 | Q38: B+ | R38: Tuntas | AA38: Kompetensi ketrampilan rerata baik. | BA38: Kompetensi ketrampilan rerata baik. Sudah trampil Atletik, sudah trampil Senam, sudah trampil Bola Volley, sudah trampil Sepak Bola
A39: 19 | B39: ='Data '!D45 -> LISA OKTAVINASARI | C39: 80 | D39: 80 | E39: 80 | F39: 80 | G39: 80 | H39: 80 | I39: ='PrJ-2'!K43 -> 0 | J39: ='PrJ-3'!K43 -> 0 | K39: 80 | L39: 80 | M39: ='Pf-2'!K43 -> 0 | N39: 80 | O39: 80 | P39: 3.2 | Q39: B+ | R39: Tuntas | AA39: Kompetensi ketrampilan rerata baik. | BA39: Kompetensi ketrampilan rerata baik. Sudah trampil Atletik, sudah trampil Senam, sudah trampil Bola Volley, sudah trampil Sepak Bola
A40: 20 | B40: ='Data '!D46 -> MARIA GILDA SIREGAR | C40: 80 | D40: 80 | E40: 80 | F40: 80 | G40: 80 | H40: 80 | I40: ='PrJ-2'!K44 -> 0 | J40: ='PrJ-3'!K44 -> 0 | K40: 80 | L40: 80 | M40: ='Pf-2'!K44 -> 0 | N40: 80 | O40: 80 | P40: 3.2 | Q40: B+ | R40: Tuntas | AA40: Kompetensi ketrampilan rerata baik. | BA40: Kompetensi ketrampilan rerata baik. Sudah trampil Atletik, sudah trampil Senam, sudah trampil Bola Volley, sudah trampil Sepak Bola
A41: 21 | B41: ='Data '!D47 -> MOHAMMAD NURKHOLISH | C41: 80 | D41: 80 | E41: 80 | F41: 80 | G41: 80 | H41: 80 | I41: ='PrJ-2'!K45 -> 0 | J41: ='PrJ-3'!K45 -> 0 | K41: 80 | L41: 80 | M41: ='Pf-2'!K45 -> 0 | N41: 80 | O41: 80 | P41: 3.2 | Q41: B+ | R41: Tuntas | AA41: Kompetensi ketrampilan rerata baik. | BA41: Kompetensi ketrampilan rerata baik. Sudah trampil Atletik, sudah trampil Senam, sudah trampil Bola Volley, sudah trampil Sepak Bola
A42: 22 | B42: ='Data '!D48 -> MUHAMAD FARIS ULIN NUHA | C42: 80 | D42: 80 | E42: 80 | F42: 80 | G42: 80 | H42: 80 | I42: ='PrJ-2'!K46 -> 0 | J42: ='PrJ-3'!K46 -> 0 | K42: 80 | L42: 80 | M42: ='Pf-2'!K46 -> 0 | N42: 80 | O42: 80 | P42: 3.2 | Q42: B+ | R42: Tuntas | AA42: Kompetensi ketrampilan rerata baik. | BA42: Kompetensi ketrampilan rerata baik. Sudah trampil Atletik, sudah trampil Senam, sudah trampil Bola Volley, sudah trampil Sepak Bola
A43: 23 | B43: ='Data '!D49 -> MUHAMMAD MUSTOFA | C43: 80 | D43: 80 | E43: 80 | F43: 80 | G43: 80 | H43: 80 | I43: ='PrJ-2'!K47 -> 0 | J43: ='PrJ-3'!K47 -> 0 | K43: 80 | L43: 80 | M43: ='Pf-2'!K47 -> 0 | N43: 80 | O43: 80 | P43: 3.2 | Q43: B+ | R43: Tuntas | AA43: Kompetensi ketrampilan rerata baik. | BA43: Kompetensi ketrampilan rerata baik. Sudah trampil Atletik, sudah trampil Senam, sudah trampil Bola Volley, sudah trampil Sepak Bola
A44: 24 | B44: ='Data '!D50 -> NANDA WINTYA PUTRI | C44: 80 | D44: 80 | E44: 80 | F44: 80 | G44: 80 | H44: 80 | I44: ='PrJ-2'!K48 -> 0 | J44: ='PrJ-3'!K48 -> 0 | K44: 80 | L44: 80 | M44: ='Pf-2'!K48 -> 0 | N44: 80 | O44: 80 | P44: 3.2 | Q44: B+ | R44: Tuntas | AA44: Kompetensi ketrampilan rerata baik. | BA44: Kompetensi ketrampilan rerata baik. Sudah trampil Atletik, sudah trampil Senam, sudah trampil Bola Volley, sudah trampil Sepak Bola
A45: 25 | B45: ='Data '!D51 -> NI'MA NOVA NUR FADHILAH | C45: 80 | D45: 80 | E45: 80 | F45: 80 | G45: 80 | H45: 80 | I45: ='PrJ-2'!K49 -> 0 | J45: ='PrJ-3'!K49 -> 0 | K45: 80 | L45: 80 | M45: ='Pf-2'!K49 -> 0 | N45: 80 | O45: 80 | P45: 3.2 | Q45: B+ | R45: Tuntas | AA45: Kompetensi ketrampilan rerata baik. | BA45: Kompetensi ketrampilan rerata baik. Sudah trampil Atletik, sudah trampil Senam, sudah trampil Bola Volley, sudah trampil Sepak Bola
A46: 26 | B46: ='Data '!D52 -> NITA ZUMROTUT TAQIYAH | C46: 80 | D46: 80 | E46: 80 | F46: 80 | G46: 80 | H46: 80 | I46: ='PrJ-2'!K50 -> 0 | J46: ='PrJ-3'!K50 -> 0 | K46: 80 | L46: 80 | M46: ='Pf-2'!K50 -> 0 | N46: 80 | O46: 80 | P46: 3.2 | Q46: B+ | R46: Tuntas | AA46: Kompetensi ketrampilan rerata baik. | BA46: Kompetensi ketrampilan rerata baik. Sudah trampil Atletik, sudah trampil Senam, sudah trampil Bola Volley, sudah trampil Sepak Bola
A47: 27 | B47: ='Data '!D53 -> RACHMAT SAPUTRA ANDRIANSYAH | C47: 80 | D47: 80 | E47: 80 | F47: 80 | G47: 80 | H47: 80 | I47: ='PrJ-2'!K51 -> 0 | J47: ='PrJ-3'!K51 -> 0 | K47: 80 | L47: 80 | M47: ='Pf-2'!K51 -> 0 | N47: 80 | O47: 80 | P47: 3.2 | Q47: B+ | R47: Tuntas | AA47: Kompetensi ketrampilan rerata baik. | BA47: Kompetensi ketrampilan rerata baik. Sudah trampil Atletik, sudah trampil Senam, sudah trampil Bola Volley, sudah trampil Sepak Bola
A48: 28 | B48: ='Data '!D54 -> RIZAL ANDRIYAN SAPUTRA | C48: 80 | D48: 80 | E48: 80 | F48: 80 | G48: 80 | H48: 80 | I48: ='PrJ-2'!K52 -> 0 | J48: ='PrJ-3'!K52 -> 0 | K48: 80 | L48: 80 | M48: ='Pf-2'!K52 -> 0 | N48: 80 | O48: 80 | P48: 3.2 | Q48: B+ | R48: Tuntas | AA48: Kompetensi ketrampilan rerata baik. | BA48: Kompetensi ketrampilan rerata baik. Sudah trampil Atletik, sudah trampil Senam, sudah trampil Bola Volley, sudah trampil Sepak Bola
A49: 29 | B49: ='Data '!D55 -> SAIFUL ANNAS | C49: 80 | D49: 80 | E49: 80 | F49: 80 | G49: 80 | H49: 80 | I49: ='PrJ-2'!K53 -> 0 | J49: ='PrJ-3'!K53 -> 0 | K49: 80 | L49: 80 | M49: ='Pf-2'!K53 -> 0 | N49: 80 | O49: 80 | P49: 3.2 | Q49: B+ | R49: Tuntas | AA49: Kompetensi ketrampilan rerata baik. | BA49: Kompetensi ketrampilan rerata baik. Sudah trampil Atletik, sudah trampil Senam, sudah trampil Bola Volley, sudah trampil Sepak Bola
A50: 30 | B50: ='Data '!D56 -> SELINA SEPTIANI | C50: 80 | D50: 80 | E50: 80 | F50: 80 | G50: 80 | H50: 80 | I50: ='PrJ-2'!K54 -> 0 | J50: ='PrJ-3'!K54 -> 0 | K50: 80 | L50: 80 | M50: ='Pf-2'!K54 -> 0 | N50: 80 | O50: 80 | P50: 3.2 | Q50: B+ | R50: Tuntas | AA50: Kompetensi ketrampilan rerata baik. | BA50: Kompetensi ketrampilan rerata baik. Sudah trampil Atletik, sudah trampil Senam, sudah trampil Bola Volley, sudah trampil Sepak Bola
A51: 31 | B51: ='Data '!D57 -> SHALSABILA SHINTA NIRMALA | C51: 80 | D51: 80 | E51: 80 | F51: 80 | G51: 80 | H51: 80 | I51: ='PrJ-2'!K55 -> 0 | J51: ='PrJ-3'!K55 -> 0 | K51: 80 | L51: 80 | M51: ='Pf-2'!K55 -> 0 | N51: 80 | O51: 80 | P51: 3.2 | Q51: B+ | R51: Tuntas | AA51: Kompetensi ketrampilan rerata baik. | BA51: Kompetensi ketrampilan rerata baik. Sudah trampil Atletik, sudah trampil Senam, sudah trampil Bola Volley, sudah trampil Sepak Bola
A52: 32 | B52: ='Data '!D58 -> SITI CHOIRIATUS SA'ADAH | C52: 80 | D52: 80 | E52: 80 | F52: 80 | G52: 80 | H52: 80 | I52: ='PrJ-2'!K56 -> 0 | J52: ='PrJ-3'!K56 -> 0 | K52: 80 | L52: 80 | M52: ='Pf-2'!K56 -> 0 | N52: 80 | O52: 80 | P52: 3.2 | Q52: B+ | R52: Tuntas | AA52: Kompetensi ketrampilan rerata baik. | BA52: Kompetensi ketrampilan rerata baik. Sudah trampil Atletik, sudah trampil Senam, sudah trampil Bola Volley, sudah trampil Sepak Bola
A53: 33 | B53: ='Data '!D59 -> SITI NURFAN AZIZAH | C53: 80 | D53: 80 | E53: 80 | F53: 80 | G53: 80 | H53: 80 | I53: ='PrJ-2'!K57 -> 0 | J53: ='PrJ-3'!K57 -> 0 | K53: 80 | L53: 80 | M53: ='Pf-2'!K57 -> 0 | N53: 80 | O53: 80 | P53: 3.2 | Q53: B+ | R53: Tuntas | AA53: Kompetensi ketrampilan rerata baik. | BA53: Kompetensi ketrampilan rerata baik. Sudah trampil Atletik, sudah trampil Senam, sudah trampil Bola Volley, sudah trampil Sepak Bola
A54: 34 | B54: ='Data '!D60 -> SITI RAHAYU | C54: 80 | D54: 80 | E54: 80 | F54: 80 | G54: 80 | H54: 80 | I54: ='PrJ-2'!K58 -> 0 | J54: ='PrJ-3'!K58 -> 0 | K54: 80 | L54: 80 | M54: ='Pf-2'!K58 -> 0 | N54: 80 | O54: 80 | P54: 3.2 | Q54: B+ | R54: Tuntas | AA54: Kompetensi ketrampilan rerata baik. | BA54: Kompetensi ketrampilan rerata baik. Sudah trampil Atletik, sudah trampil Senam, sudah trampil Bola Volley, sudah trampil Sepak Bola
A55: 35 | B55: ='Data '!D61 -> STEVIANA PUSPITA SARI | C55: 80 | D55: 80 | E55: 80 | F55: 80 | G55: 80 | H55: 80 | I55: ='PrJ-2'!K59 -> 0 | J55: ='PrJ-3'!K59 -> 0 | K55: 80 | L55: 80 | M55: ='Pf-2'!K59 -> 0 | N55: 80 | O55: 80 | P55: 3.2 | Q55: B+ | R55: Tuntas | AA55: Kompetensi ketrampilan rerata baik. | BA55: Kompetensi ketrampilan rerata baik. Sudah trampil Atletik, sudah trampil Senam, sudah trampil Bola Volley, sudah trampil Sepak Bola
A56: 36 | B56: ='Data '!D62 -> TAN LINGGAR PRAMUDITA | C56: 80 | D56: 80 | E56: 80 | F56: 80 | G56: 80 | H56: 80 | I56: ='PrJ-2'!K60 -> 0 | J56: ='PrJ-3'!K60 -> 0 | K56: 80 | L56: 80 | M56: ='Pf-2'!K60 -> 0 | N56: 80 | O56: 80 | P56: 3.2 | Q56: B+ | R56: Tuntas | AA56: Kompetensi ketrampilan rerata baik. | BA56: Kompetensi ketrampilan rerata baik. Sudah trampil Atletik, sudah trampil Senam, sudah trampil Bola Volley, sudah trampil Sepak Bola
A57: 37 | B57: ='Data '!D63 -> TAUFIK NUR AZIZ DANUARTA | C57: 80 | D57: 80 | E57: 80 | F57: 80 | G57: 80 | H57: 80 | I57: ='PrJ-2'!K61 -> 0 | J57: ='PrJ-3'!K61 -> 0 | K57: 80 | L57: 80 | M57: ='Pf-2'!K61 -> 0 | N57: 80 | O57: 80 | P57: 3.2 | Q57: B+ | R57: Tuntas | AA57: Kompetensi ketrampilan rerata baik. | BA57: Kompetensi ketrampilan rerata baik. Sudah trampil Atletik, sudah trampil Senam, sudah trampil Bola Volley, sudah trampil Sepak Bola
A58: 38 | B58: ='Data '!D64 -> TIARA PUTRI AYUNINGTIAS | C58: 80 | D58: 80 | E58: 80 | F58: 80 | G58: 80 | H58: 80 | I58: ='PrJ-2'!K62 -> 0 | J58: ='PrJ-3'!K62 -> 0 | K58: 80 | L58: 80 | M58: ='Pf-2'!K62 -> 0 | N58: 80 | O58: 80 | P58: 3.2 | Q58: B+ | R58: Tuntas | X58: halaman 3 | AA58: Kompetensi ketrampilan rerata baik. | BA58: Kompetensi ketrampilan rerata baik. Sudah trampil Atletik, sudah trampil Senam, sudah trampil Bola Volley, sudah trampil Sepak Bola
A59: 39 | B59: ='Data '!D65 -> TITANIA GAYATRI PRIANJANI | C59: 80 | D59: 80 | E59: 80 | F59: 80 | G59: 80 | H59: 80 | I59: ='PrJ-2'!K63 -> 0 | J59: ='PrJ-3'!K63 -> 0 | K59: 80 | L59: 80 | M59: ='Pf-2'!K63 -> 0 | N59: 80 | O59: 80 | P59: 3.2 | Q59: B+ | R59: Tuntas | AA59: Kompetensi ketrampilan rerata baik. | BA59: Kompetensi ketrampilan rerata baik. Sudah trampil Atletik, sudah trampil Senam, sudah trampil Bola Volley, sudah trampil Sepak Bola
A60: 40 | B60: ='Data '!D66 -> ULFATUN NI'MAH | C60: 80 | D60: 80 | E60: 80 | F60: 80 | G60: 80 | H60: 80 | I60: ='PrJ-2'!K64 -> 0 | J60: ='PrJ-3'!K64 -> 0 | K60: 80 | L60: 80 | M60: ='Pf-2'!K64 -> 0 | N60: 80 | O60: 80 | P60: 3.2 | Q60: B+ | R60: Tuntas | AA60: Kompetensi ketrampilan rerata baik. | BA60: Kompetensi ketrampilan rerata baik. Sudah trampil Atletik, sudah trampil Senam, sudah trampil Bola Volley, sudah trampil Sepak Bola
A61: 41 | B61: ='Data '!D67 -> 0 | G61: 0 | H61: ='PrJ-1'!K65 -> 0 | I61: ='PrJ-2'!K65 -> 0 | J61: ='PrJ-3'!K65 -> 0 | K61: 0 | L61: ='Pf-1'!K65 -> 0 | M61: ='Pf-2'!K65 -> 0 | N61: 0 | O61: =IFERROR((G61*$D$74+K61*$E$74+N61*$G$74)/$H$74," ") -> 0 | P61: =IFERROR((O61/100)*4," ") -> 0 | Q61: D | R61: =IF(P61=" "," ",IF(P61>=$P$8,"Tuntas","Tidak Tuntas")) -> Tidak Tuntas
A62: 42 | B62: ='Data '!D68 -> 0 | G62: 0 | H62: ='PrJ-1'!K66 -> 0 | I62: ='PrJ-2'!K66 -> 0 | J62: ='PrJ-3'!K66 -> 0 | K62: 0 | L62: ='Pf-1'!K66 -> 0 | M62: ='Pf-2'!K66 -> 0 | N62: 0 | O62: 0 | P62: 0 | Q62: D | R62: Tidak Tuntas
A63: 43 | B63: ='Data '!D69 -> 0 | G63: 0 | H63: ='PrJ-1'!K67 -> 0 | I63: ='PrJ-2'!K67 -> 0 | J63: ='PrJ-3'!K67 -> 0 | K63: 0 | L63: ='Pf-1'!K67 -> 0 | M63: ='Pf-2'!K67 -> 0 | N63: 0 | O63: 0 | P63: 0 | Q63: D | R63: Tidak Tuntas
A64: 44 | B64: ='Data '!D70 -> 0 | G64: 0 | H64: ='PrJ-1'!K68 -> 0 | I64: ='PrJ-2'!K68 -> 0 | J64: ='PrJ-3'!K68 -> 0 | K64: 0 | L64: ='Pf-1'!K68 -> 0 | M64: ='Pf-2'!K68 -> 0 | N64: 0 | O64: 0 | P64: 0 | Q64: D | R64: Tidak Tuntas
A65: 45 | B65: ='Data '!D71 -> 0 | G65: 0 | H65: ='PrJ-1'!K69 -> 0 | I65: ='PrJ-2'!K69 -> 0 | J65: ='PrJ-3'!K69 -> 0 | K65: 0 | L65: ='Pf-1'!K69 -> 0 | M65: ='Pf-2'!K69 -> 0 | N65: 0 | O65: 0 | P65: 0 | Q65: D | R65: Tidak Tuntas
A66: 46 | B66: ='Data '!D72 -> 0 | G66: 0 | H66: ='PrJ-1'!K70 -> 0 | I66: ='PrJ-2'!K70 -> 0 | J66: ='PrJ-3'!K70 -> 0 | K66: 0 | L66: ='Pf-1'!K70 -> 0 | M66: ='Pf-2'!K70 -> 0 | N66: 0 | O66: =IFERROR((G66*$D$74+K66*$E$74+N66*$G$74)/$H$74," ") -> 0 | P66: =IFERROR((O66/100)*4," ") -> 0 | Q66: D | R66: =IF(P66=" "," ",IF(P66>=$P$8,"Tuntas","Tidak Tuntas")) -> Tidak Tuntas
A67: 47 | B67: ='Data '!D73 -> 0 | G67: 0 | H67: ='PrJ-1'!K71 -> 0 | I67: ='PrJ-2'!K71 -> 0 | J67: ='PrJ-3'!K71 -> 0 | K67: 0 | L67: ='Pf-1'!K71 -> 0 | M67: ='Pf-2'!K71 -> 0 | N67: 0 | O67: 0 | P67: 0 | Q67: D | R67: Tidak Tuntas
A68: 48 | B68: ='Data '!D74 -> 0 | G68: 0 | H68: ='PrJ-1'!K72 -> 0 | I68: ='PrJ-2'!K72 -> 0 | J68: ='PrJ-3'!K72 -> 0 | K68: 0 | L68: ='Pf-1'!K72 -> 0 | M68: ='Pf-2'!K72 -> 0 | N68: 0 | O68: 0 | P68: 0 | Q68: D | R68: Tidak Tuntas
A69: 49 | B69: ='Data '!D75 -> 0 | G69: 0 | H69: ='PrJ-1'!K73 -> 0 | I69: ='PrJ-2'!K73 -> 0 | J69: ='PrJ-3'!K73 -> 0 | K69: 0 | L69: ='Pf-1'!K73 -> 0 | M69: ='Pf-2'!K73 -> 0 | N69: 0 | O69: 0 | P69: 0 | Q69: D | R69: Tidak Tuntas
A70: 50 | B70: ='Data '!D76 -> 0 | C70: 56 | D70: 8 | G70: 56 | H70: 90 | I70: ='PrJ-2'!K74 -> 0 | J70: ='PrJ-3'!K74 -> 0 | K70: 90 | L70: 78 | M70: ='Pf-2'!K74 -> 0 | N70: 78 | O70: 70 | P70: 2.8 | Q70: B- | R70: Tuntas | AA70: Kompetensi ketrampilan rerata baik. | BA70: Kompetensi ketrampilan rerata baik. Masih perlu latihan AtletikFALSE
B71: Nilai Rata-rata | C71: =IFERROR(AVERAGE(C21:C70)," ") -> 79.41463415 | D71: =IFERROR(AVERAGE(D21:D70)," ") -> 78.24390244 | E71: 80 | F71: 80 | G71: 65.12 | H71: 65.8 | I71: 0 | J71: 0 | K71: 65.8 | L71: 65.56 | M71: 0 | N71: 65.56 | O71: 65.4 | P71: 2.616 | BA71: Kompetensi ketrampilan rerata cukup. Sudah trampil Atletik, sudah trampil Senam, sudah trampil Bola Volley, sudah trampil Sepak Bola
BA72: =CONCATENATE(IF(P72>$AG$22,"Kompetensi ketrampilan rerata sangat baik. ",IF(P72>$AG$25,"Kompetensi ketrampilan rerata baik. ",IF(P72>$AG$28,"Kompetensi ketrampilan rerata cukup. ",IF(P72>$AG$30,"Kompetensi ketrampilan rerata kurang. "," ")))),IF(C72>$AL$22,"Sangat trampil "&$C$13,IF(C72>$Q$8,"Sudah trampil "&$C$13,IF(C72>$AL$28,"Masih perlu latihan "&$C$13,IF(C72>$AL$30,"Perlu bimbingan "&$C$13,IF(C72="",""))))),IF(D72>$AL$22,", sangat trampil "&$C$14,IF(D72>$Q$8,", sudah trampil "&$C$14,IF(D72>$AL$28,", masih perlu latihan "&$C$14,IF(D72>$AL$30,", perlu bimbingan "&$C$14,IF(D72="",""))))),IF(E72>$AL$22,", sangat trampil "&$C$15,IF(E72>$Q$8,", sudah trampil "&$C$15,IF(E72>$AL$28,", masih perlu latihan "&$C$15,IF(E72>$AL$30,", perlu bimbingan "&$C$15,IF(E72="",""))))),IF(F72>$Q$8,", sangat trampil "&$C$16,IF(F72>$AL$25,", sudah trampil "&$C$16,IF(F72>$AL$28,", masih perlu latihan "&$C$16,IF(F72>$AL$30,", perlu bimbingan "&$C$16,IF(F72="","")))))) -> 
C73: Jenis | D73: Uj.K | E73: Proj | G73: Port | H73: Jlh
C74: Bobot | D74: 2 | E74: 1 | G74: 1 | H74: =SUM(D74:G74) -> 4
B76: Mengetahui: | P76: ='Data '!D21 -> Blora, 20 Desember 2014
B77: ="Ka. "&'Data '!D7 -> Ka. SMP Negeri 6 Blora | P77: Guru Mata Pelajaran
B81: ='Data '!D15 -> Suparno, S.Pd.,M.Hum | P81: =Home!E12 -> Drs. Sarid Nugroho
B82: ='Data '!D16 -> NIP. 19620712 198403 1 012 | P82: =Home!E14 -> NIP. 19631223 198803 1 004

Sheet Cognitif
C1: =UPPER('Data '!D10) -> PEMERINTAH KABUPATEN BLORA
C2: =UPPER('Data '!D6) -> DINAS PENDIDIKAN PEMUDA DAN OLAHRAGA
C3: =UPPER('Data '!D7) -> SMP NEGERI 6 BLORA
C4: DAFTAR NILAI SISWA ASPEK PENGETAHUAN (KI - 3)
B8: Mata Pelajaran : | C8: =Home!E16 -> PJOK | J8: Semester : | N8: ='Data '!D14 -> Ganjil | Q8: KKM : | S8: =Home!E22 -> 2.67
B9: Kelas : | C9: =Home!E18 -> VII-A | J9: Tahun Pelajaran : | N9: ='Data '!D13 -> 2014/2015 | Q9: Wali Kelas : | S9: ='Data '!D17 -> Mundari, S.Pd.
B10: Aspek : | C10: Pengetahuan
B13: KD/Materi Pokok UH 1 | C13: aritmatika sosial
B14: KD/Materi Pokok UH 2 | C14: himpunan
B15: KD/Materi Pokok UH 3 | C15: bilangan
B16: KD/Materi Pokok UH 4 | C16: perbandingan
A18: No. | B18: Nama | C18: Nilai Ulangan Harian | H18: Rerata | I18: Nilai Tugas / PR | N18: Rerata | O18: NP (NH) | P18: Nilai | Q18: Nilai | R18: Nilai | U18: Ket
C19: KD1 | D19: KD2 | E19: KD3 | F19: KD4 | G19: KD5 | H19: NUH | I19: KD1 | J19: KD2 | K19: KD3 | L19: KD4 | M19: KD5 | N19: Tg/PR | P19: UTS | Q19: UAS | R19: 0-100 | S19: 0-4 | T19: Konversi | U19: T/TT
A20: 1 | B20: ='Data '!D27 -> AHMAD ALEK BRIYANSAPUTRA | C20: =IF(Pengetahuan!C21="","",Pengetahuan!C21) -> 80 | D20: =IF(Pengetahuan!D21="","",Pengetahuan!D21) -> 80 | E20: =IF(Pengetahuan!E21="","",Pengetahuan!E21) -> 80 | F20: =IF(Pengetahuan!F21="","",Pengetahuan!F21) -> 80 | G20: =IF(Pengetahuan!G21="","",Pengetahuan!G21) ->  | H20: =IF(Pengetahuan!H21="","",Pengetahuan!H21) -> 80 | I20: =IF(Pengetahuan!I21="","",Pengetahuan!I21) -> 80 | J20: =IF(Pengetahuan!J21="","",Pengetahuan!J21) -> 80 | K20: =IF(Pengetahuan!K21="","",Pengetahuan!K21) -> 80 | L20: =IF(Pengetahuan!L21="","",Pengetahuan!L21) -> 80 | M20: =IF(Pengetahuan!M21="","",Pengetahuan!M21) ->  | N20: =IF(Pengetahuan!N21="","",Pengetahuan!N21) -> 80 | O20: =IF(Pengetahuan!O21="","",Pengetahuan!O21) -> 80 | P20: =IF(Pengetahuan!P21="","",Pengetahuan!P21) -> 75 | Q20: =IF(Pengetahuan!Q21="","",Pengetahuan!Q21) -> 75 | R20: =IF(Pengetahuan!R21="","",Pengetahuan!R21) -> 77.5 | S20: =IF(Pengetahuan!S21="","",Pengetahuan!S21) -> 3.1 | T20: =IF(Pengetahuan!T21="","",Pengetahuan!T21) -> B | U20: =IF(Pengetahuan!U21="","",Pengetahuan!U21) -> Tuntas | X20: PETUNJUK UNTUK MENCETAK/PRINT OUT
A21: 2 | B21: ='Data '!D28 -> AULIA AYU FATINA | C21: =IF(Pengetahuan!C22="","",Pengetahuan!C22) -> 80 | D21: =IF(Pengetahuan!D22="","",Pengetahuan!D22) -> 80 | E21: =IF(Pengetahuan!E22="","",Pengetahuan!E22) -> 80 | F21: =IF(Pengetahuan!F22="","",Pengetahuan!F22) -> 80 | G21: =IF(Pengetahuan!G22="","",Pengetahuan!G22) ->  | H21: =IF(Pengetahuan!H22="","",Pengetahuan!H22) -> 80 | I21: =IF(Pengetahuan!I22="","",Pengetahuan!I22) -> 80 | J21: =IF(Pengetahuan!J22="","",Pengetahuan!J22) -> 80 | K21: =IF(Pengetahuan!K22="","",Pengetahuan!K22) -> 80 | L21: =IF(Pengetahuan!L22="","",Pengetahuan!L22) -> 80 | M21: =IF(Pengetahuan!M22="","",Pengetahuan!M22) ->  | N21: =IF(Pengetahuan!N22="","",Pengetahuan!N22) -> 80 | O21: =IF(Pengetahuan!O22="","",Pengetahuan!O22) -> 80 | P21: =IF(Pengetahuan!P22="","",Pengetahuan!P22) -> 75 | Q21: =IF(Pengetahuan!Q22="","",Pengetahuan!Q22) -> 75 | R21: =IF(Pengetahuan!R22="","",Pengetahuan!R22) -> 77.5 | S21: =IF(Pengetahuan!S22="","",Pengetahuan!S22) -> 3.1 | T21: =IF(Pengetahuan!T22="","",Pengetahuan!T22) -> B | U21: =IF(Pengetahuan!U22="","",Pengetahuan!U22) -> Tuntas
A22: 3 | B22: ='Data '!D29 -> BAGAS YULANDRA PUTRA | C22: =IF(Pengetahuan!C23="","",Pengetahuan!C23) -> 80 | D22: =IF(Pengetahuan!D23="","",Pengetahuan!D23) -> 80 | E22: =IF(Pengetahuan!E23="","",Pengetahuan!E23) -> 80 | F22: =IF(Pengetahuan!F23="","",Pengetahuan!F23) -> 80 | G22: =IF(Pengetahuan!G23="","",Pengetahuan!G23) ->  | H22: =IF(Pengetahuan!H23="","",Pengetahuan!H23) -> 80 | I22: =IF(Pengetahuan!I23="","",Pengetahuan!I23) -> 80 | J22: =IF(Pengetahuan!J23="","",Pengetahuan!J23) -> 80 | K22: =IF(Pengetahuan!K23="","",Pengetahuan!K23) -> 80 | L22: =IF(Pengetahuan!L23="","",Pengetahuan!L23) -> 80 | M22: =IF(Pengetahuan!M23="","",Pengetahuan!M23) ->  | N22: =IF(Pengetahuan!N23="","",Pengetahuan!N23) -> 80 | O22: =IF(Pengetahuan!O23="","",Pengetahuan!O23) -> 80 | P22: =IF(Pengetahuan!P23="","",Pengetahuan!P23) -> 75 | Q22: =IF(Pengetahuan!Q23="","",Pengetahuan!Q23) -> 75 | R22: =IF(Pengetahuan!R23="","",Pengetahuan!R23) -> 77.5 | S22: =IF(Pengetahuan!S23="","",Pengetahuan!S23) -> 3.1 | T22: =IF(Pengetahuan!T23="","",Pengetahuan!T23) -> B | U22: =IF(Pengetahuan!U23="","",Pengetahuan!U23) -> Tuntas | X22: Password pada sheet ini purnawanto. Gunakan untuk mengedit page setup halaman, dsb. Jika ingin mengurangi jumlah baris (misal jumlah siswa hanya 30 orang), JANGAN MENGHAPUS BARIS. Blok baris, klik kanan, pilih HIDE. Protek kembali sheet untuk keamanan rumus dan link antar sheet. TERIMA KASIH
A23: 4 | B23: ='Data '!D30 -> CYNTIA AGUSTINA | C23: =IF(Pengetahuan!C24="","",Pengetahuan!C24) -> 80 | D23: =IF(Pengetahuan!D24="","",Pengetahuan!D24) -> 80 | E23: =IF(Pengetahuan!E24="","",Pengetahuan!E24) -> 80 | F23: =IF(Pengetahuan!F24="","",Pengetahuan!F24) -> 80 | G23: =IF(Pengetahuan!G24="","",Pengetahuan!G24) ->  | H23: =IF(Pengetahuan!H24="","",Pengetahuan!H24) -> 80 | I23: =IF(Pengetahuan!I24="","",Pengetahuan!I24) -> 80 | J23: =IF(Pengetahuan!J24="","",Pengetahuan!J24) -> 80 | K23: =IF(Pengetahuan!K24="","",Pengetahuan!K24) -> 80 | L23: =IF(Pengetahuan!L24="","",Pengetahuan!L24) -> 80 | M23: =IF(Pengetahuan!M24="","",Pengetahuan!M24) ->  | N23: =IF(Pengetahuan!N24="","",Pengetahuan!N24) -> 80 | O23: =IF(Pengetahuan!O24="","",Pengetahuan!O24) -> 80 | P23: =IF(Pengetahuan!P24="","",Pengetahuan!P24) -> 75 | Q23: =IF(Pengetahuan!Q24="","",Pengetahuan!Q24) -> 75 | R23: =IF(Pengetahuan!R24="","",Pengetahuan!R24) -> 77.5 | S23: =IF(Pengetahuan!S24="","",Pengetahuan!S24) -> 3.1 | T23: =IF(Pengetahuan!T24="","",Pengetahuan!T24) -> B | U23: =IF(Pengetahuan!U24="","",Pengetahuan!U24) -> Tuntas
A24: 5 | B24: ='Data '!D31 -> DAFFA KRISNA PRAMUDYA | C24: =IF(Pengetahuan!C25="","",Pengetahuan!C25) -> 80 | D24: =IF(Pengetahuan!D25="","",Pengetahuan!D25) -> 80 | E24: =IF(Pengetahuan!E25="","",Pengetahuan!E25) -> 80 | F24: =IF(Pengetahuan!F25="","",Pengetahuan!F25) -> 80 | G24: =IF(Pengetahuan!G25="","",Pengetahuan!G25) ->  | H24: =IF(Pengetahuan!H25="","",Pengetahuan!H25) -> 80 | I24: =IF(Pengetahuan!I25="","",Pengetahuan!I25) -> 80 | J24: =IF(Pengetahuan!J25="","",Pengetahuan!J25) -> 80 | K24: =IF(Pengetahuan!K25="","",Pengetahuan!K25) -> 80 | L24: =IF(Pengetahuan!L25="","",Pengetahuan!L25) -> 80 | M24: =IF(Pengetahuan!M25="","",Pengetahuan!M25) ->  | N24: =IF(Pengetahuan!N25="","",Pengetahuan!N25) -> 80 | O24: =IF(Pengetahuan!O25="","",Pengetahuan!O25) -> 80 | P24: =IF(Pengetahuan!P25="","",Pengetahuan!P25) -> 75 | Q24: =IF(Pengetahuan!Q25="","",Pengetahuan!Q25) -> 75 | R24: =IF(Pengetahuan!R25="","",Pengetahuan!R25) -> 77.5 | S24: =IF(Pengetahuan!S25="","",Pengetahuan!S25) -> 3.1 | T24: =IF(Pengetahuan!T25="","",Pengetahuan!T25) -> B | U24: =IF(Pengetahuan!U25="","",Pengetahuan!U25) -> Tuntas
A25: 6 | B25: ='Data '!D32 -> DANINDRA RAFIF IRAWAN | C25: =IF(Pengetahuan!C26="","",Pengetahuan!C26) -> 80 | D25: =IF(Pengetahuan!D26="","",Pengetahuan!D26) -> 80 | E25: =IF(Pengetahuan!E26="","",Pengetahuan!E26) -> 80 | F25: =IF(Pengetahuan!F26="","",Pengetahuan!F26) -> 80 | G25: =IF(Pengetahuan!G26="","",Pengetahuan!G26) ->  | H25: =IF(Pengetahuan!H26="","",Pengetahuan!H26) -> 80 | I25: =IF(Pengetahuan!I26="","",Pengetahuan!I26) -> 80 | J25: =IF(Pengetahuan!J26="","",Pengetahuan!J26) -> 80 | K25: =IF(Pengetahuan!K26="","",Pengetahuan!K26) -> 80 | L25: =IF(Pengetahuan!L26="","",Pengetahuan!L26) -> 80 | M25: =IF(Pengetahuan!M26="","",Pengetahuan!M26) ->  | N25: =IF(Pengetahuan!N26="","",Pengetahuan!N26) -> 80 | O25: =IF(Pengetahuan!O26="","",Pengetahuan!O26) -> 80 | P25: =IF(Pengetahuan!P26="","",Pengetahuan!P26) -> 75 | Q25: =IF(Pengetahuan!Q26="","",Pengetahuan!Q26) -> 75 | R25: =IF(Pengetahuan!R26="","",Pengetahuan!R26) -> 77.5 | S25: =IF(Pengetahuan!S26="","",Pengetahuan!S26) -> 3.1 | T25: =IF(Pengetahuan!T26="","",Pengetahuan!T26) -> B | U25: =IF(Pengetahuan!U26="","",Pengetahuan!U26) -> Tuntas
A26: 7 | B26: ='Data '!D33 -> DENI PRATAMA | C26: =IF(Pengetahuan!C27="","",Pengetahuan!C27) -> 80 | D26: =IF(Pengetahuan!D27="","",Pengetahuan!D27) -> 80 | E26: =IF(Pengetahuan!E27="","",Pengetahuan!E27) -> 80 | F26: =IF(Pengetahuan!F27="","",Pengetahuan!F27) -> 80 | G26: =IF(Pengetahuan!G27="","",Pengetahuan!G27) ->  | H26: =IF(Pengetahuan!H27="","",Pengetahuan!H27) -> 80 | I26: =IF(Pengetahuan!I27="","",Pengetahuan!I27) -> 80 | J26: =IF(Pengetahuan!J27="","",Pengetahuan!J27) -> 80 | K26: =IF(Pengetahuan!K27="","",Pengetahuan!K27) -> 80 | L26: =IF(Pengetahuan!L27="","",Pengetahuan!L27) -> 80 | M26: =IF(Pengetahuan!M27="","",Pengetahuan!M27) ->  | N26: =IF(Pengetahuan!N27="","",Pengetahuan!N27) -> 80 | O26: =IF(Pengetahuan!O27="","",Pengetahuan!O27) -> 80 | P26: =IF(Pengetahuan!P27="","",Pengetahuan!P27) -> 75 | Q26: =IF(Pengetahuan!Q27="","",Pengetahuan!Q27) -> 75 | R26: =IF(Pengetahuan!R27="","",Pengetahuan!R27) -> 77.5 | S26: =IF(Pengetahuan!S27="","",Pengetahuan!S27) -> 3.1 | T26: =IF(Pengetahuan!T27="","",Pengetahuan!T27) -> B | U26: =IF(Pengetahuan!U27="","",Pengetahuan!U27) -> Tuntas
A27: 8 | B27: ='Data '!D34 -> DIKA SUKMA AGUSTIN | C27: =IF(Pengetahuan!C28="","",Pengetahuan!C28) -> 80 | D27: =IF(Pengetahuan!D28="","",Pengetahuan!D28) -> 80 | E27: =IF(Pengetahuan!E28="","",Pengetahuan!E28) -> 80 | F27: =IF(Pengetahuan!F28="","",Pengetahuan!F28) -> 80 | G27: =IF(Pengetahuan!G28="","",Pengetahuan!G28) ->  | H27: =IF(Pengetahuan!H28="","",Pengetahuan!H28) -> 80 | I27: =IF(Pengetahuan!I28="","",Pengetahuan!I28) -> 80 | J27: =IF(Pengetahuan!J28="","",Pengetahuan!J28) -> 80 | K27: =IF(Pengetahuan!K28="","",Pengetahuan!K28) -> 80 | L27: =IF(Pengetahuan!L28="","",Pengetahuan!L28) -> 80 | M27: =IF(Pengetahuan!M28="","",Pengetahuan!M28) ->  | N27: =IF(Pengetahuan!N28="","",Pengetahuan!N28) -> 80 | O27: =IF(Pengetahuan!O28="","",Pengetahuan!O28) -> 80 | P27: =IF(Pengetahuan!P28="","",Pengetahuan!P28) -> 75 | Q27: =IF(Pengetahuan!Q28="","",Pengetahuan!Q28) -> 75 | R27: =IF(Pengetahuan!R28="","",Pengetahuan!R28) -> 77.5 | S27: =IF(Pengetahuan!S28="","",Pengetahuan!S28) -> 3.1 | T27: =IF(Pengetahuan!T28="","",Pengetahuan!T28) -> B | U27: =IF(Pengetahuan!U28="","",Pengetahuan!U28) -> Tuntas
A28: 9 | B28: ='Data '!D35 -> DIVA ADITYA | C28: =IF(Pengetahuan!C29="","",Pengetahuan!C29) -> 80 | D28: =IF(Pengetahuan!D29="","",Pengetahuan!D29) -> 80 | E28: =IF(Pengetahuan!E29="","",Pengetahuan!E29) -> 80 | F28: =IF(Pengetahuan!F29="","",Pengetahuan!F29) -> 80 | G28: =IF(Pengetahuan!G29="","",Pengetahuan!G29) ->  | H28: =IF(Pengetahuan!H29="","",Pengetahuan!H29) -> 80 | I28: =IF(Pengetahuan!I29="","",Pengetahuan!I29) -> 80 | J28: =IF(Pengetahuan!J29="","",Pengetahuan!J29) -> 80 | K28: =IF(Pengetahuan!K29="","",Pengetahuan!K29) -> 80 | L28: =IF(Pengetahuan!L29="","",Pengetahuan!L29) -> 80 | M28: =IF(Pengetahuan!M29="","",Pengetahuan!M29) ->  | N28: =IF(Pengetahuan!N29="","",Pengetahuan!N29) -> 80 | O28: =IF(Pengetahuan!O29="","",Pengetahuan!O29) -> 80 | P28: =IF(Pengetahuan!P29="","",Pengetahuan!P29) -> 75 | Q28: =IF(Pengetahuan!Q29="","",Pengetahuan!Q29) -> 75 | R28: =IF(Pengetahuan!R29="","",Pengetahuan!R29) -> 77.5 | S28: =IF(Pengetahuan!S29="","",Pengetahuan!S29) -> 3.1 | T28: =IF(Pengetahuan!T29="","",Pengetahuan!T29) -> B | U28: =IF(Pengetahuan!U29="","",Pengetahuan!U29) -> Tuntas
A29: 10 | B29: ='Data '!D36 -> EKO PRASTYO | C29: =IF(Pengetahuan!C30="","",Pengetahuan!C30) -> 80 | D29: =IF(Pengetahuan!D30="","",Pengetahuan!D30) -> 80 | E29: =IF(Pengetahuan!E30="","",Pengetahuan!E30) -> 80 | F29: =IF(Pengetahuan!F30="","",Pengetahuan!F30) -> 80 | G29: =IF(Pengetahuan!G30="","",Pengetahuan!G30) ->  | H29: =IF(Pengetahuan!H30="","",Pengetahuan!H30) -> 80 | I29: =IF(Pengetahuan!I30="","",Pengetahuan!I30) -> 80 | J29: =IF(Pengetahuan!J30="","",Pengetahuan!J30) -> 80 | K29: =IF(Pengetahuan!K30="","",Pengetahuan!K30) -> 80 | L29: =IF(Pengetahuan!L30="","",Pengetahuan!L30) -> 80 | M29: =IF(Pengetahuan!M30="","",Pengetahuan!M30) ->  | N29: =IF(Pengetahuan!N30="","",Pengetahuan!N30) -> 80 | O29: =IF(Pengetahuan!O30="","",Pengetahuan!O30) -> 80 | P29: =IF(Pengetahuan!P30="","",Pengetahuan!P30) -> 75 | Q29: =IF(Pengetahuan!Q30="","",Pengetahuan!Q30) -> 75 | R29: =IF(Pengetahuan!R30="","",Pengetahuan!R30) -> 77.5 | S29: =IF(Pengetahuan!S30="","",Pengetahuan!S30) -> 3.1 | T29: =IF(Pengetahuan!T30="","",Pengetahuan!T30) -> B | U29: =IF(Pengetahuan!U30="","",Pengetahuan!U30) -> Tuntas
A30: 11 | B30: ='Data '!D37 -> FAIQUR RIJAL HAMMAM | C30: =IF(Pengetahuan!C31="","",Pengetahuan!C31) -> 80 | D30: =IF(Pengetahuan!D31="","",Pengetahuan!D31) -> 80 | E30: =IF(Pengetahuan!E31="","",Pengetahuan!E31) -> 80 | F30: =IF(Pengetahuan!F31="","",Pengetahuan!F31) -> 80 | G30: =IF(Pengetahuan!G31="","",Pengetahuan!G31) ->  | H30: =IF(Pengetahuan!H31="","",Pengetahuan!H31) -> 80 | I30: =IF(Pengetahuan!I31="","",Pengetahuan!I31) -> 80 | J30: =IF(Pengetahuan!J31="","",Pengetahuan!J31) -> 80 | K30: =IF(Pengetahuan!K31="","",Pengetahuan!K31) -> 80 | L30: =IF(Pengetahuan!L31="","",Pengetahuan!L31) -> 80 | M30: =IF(Pengetahuan!M31="","",Pengetahuan!M31) ->  | N30: =IF(Pengetahuan!N31="","",Pengetahuan!N31) -> 80 | O30: =IF(Pengetahuan!O31="","",Pengetahuan!O31) -> 80 | P30: =IF(Pengetahuan!P31="","",Pengetahuan!P31) -> 75 | Q30: =IF(Pengetahuan!Q31="","",Pengetahuan!Q31) -> 75 | R30: =IF(Pengetahuan!R31="","",Pengetahuan!R31) -> 77.5 | S30: =IF(Pengetahuan!S31="","",Pengetahuan!S31) -> 3.1 | T30: =IF(Pengetahuan!T31="","",Pengetahuan!T31) -> B | U30: =IF(Pengetahuan!U31="","",Pengetahuan!U31) -> Tuntas
A31: 12 | B31: ='Data '!D38 -> FATESAR SARI PRASETYO | C31: =IF(Pengetahuan!C32="","",Pengetahuan!C32) -> 80 | D31: =IF(Pengetahuan!D32="","",Pengetahuan!D32) -> 80 | E31: =IF(Pengetahuan!E32="","",Pengetahuan!E32) -> 80 | F31: =IF(Pengetahuan!F32="","",Pengetahuan!F32) -> 80 | G31: =IF(Pengetahuan!G32="","",Pengetahuan!G32) ->  | H31: =IF(Pengetahuan!H32="","",Pengetahuan!H32) -> 80 | I31: =IF(Pengetahuan!I32="","",Pengetahuan!I32) -> 80 | J31: =IF(Pengetahuan!J32="","",Pengetahuan!J32) -> 80 | K31: =IF(Pengetahuan!K32="","",Pengetahuan!K32) -> 80 | L31: =IF(Pengetahuan!L32="","",Pengetahuan!L32) -> 80 | M31: =IF(Pengetahuan!M32="","",Pengetahuan!M32) ->  | N31: =IF(Pengetahuan!N32="","",Pengetahuan!N32) -> 80 | O31: =IF(Pengetahuan!O32="","",Pengetahuan!O32) -> 80 | P31: =IF(Pengetahuan!P32="","",Pengetahuan!P32) -> 75 | Q31: =IF(Pengetahuan!Q32="","",Pengetahuan!Q32) -> 75 | R31: =IF(Pengetahuan!R32="","",Pengetahuan!R32) -> 77.5 | S31: =IF(Pengetahuan!S32="","",Pengetahuan!S32) -> 3.1 | T31: =IF(Pengetahuan!T32="","",Pengetahuan!T32) -> B | U31: =IF(Pengetahuan!U32="","",Pengetahuan!U32) -> Tuntas
A32: 13 | B32: ='Data '!D39 -> FEBRI SULISTIYO | C32: =IF(Pengetahuan!C33="","",Pengetahuan!C33) -> 80 | D32: =IF(Pengetahuan!D33="","",Pengetahuan!D33) -> 80 | E32: =IF(Pengetahuan!E33="","",Pengetahuan!E33) -> 80 | F32: =IF(Pengetahuan!F33="","",Pengetahuan!F33) -> 80 | G32: =IF(Pengetahuan!G33="","",Pengetahuan!G33) ->  | H32: =IF(Pengetahuan!H33="","",Pengetahuan!H33) -> 80 | I32: =IF(Pengetahuan!I33="","",Pengetahuan!I33) -> 80 | J32: =IF(Pengetahuan!J33="","",Pengetahuan!J33) -> 80 | K32: =IF(Pengetahuan!K33="","",Pengetahuan!K33) -> 80 | L32: =IF(Pengetahuan!L33="","",Pengetahuan!L33) -> 80 | M32: =IF(Pengetahuan!M33="","",Pengetahuan!M33) ->  | N32: =IF(Pengetahuan!N33="","",Pengetahuan!N33) -> 80 | O32: =IF(Pengetahuan!O33="","",Pengetahuan!O33) -> 80 | P32: =IF(Pengetahuan!P33="","",Pengetahuan!P33) -> 75 | Q32: =IF(Pengetahuan!Q33="","",Pengetahuan!Q33) -> 75 | R32: =IF(Pengetahuan!R33="","",Pengetahuan!R33) -> 77.5 | S32: =IF(Pengetahuan!S33="","",Pengetahuan!S33) -> 3.1 | T32: =IF(Pengetahuan!T33="","",Pengetahuan!T33) -> B | U32: =IF(Pengetahuan!U33="","",Pengetahuan!U33) -> Tuntas
A33: 14 | B33: ='Data '!D40 -> FIONA NANDA FETRIAN | C33: =IF(Pengetahuan!C34="","",Pengetahuan!C34) -> 80 | D33: =IF(Pengetahuan!D34="","",Pengetahuan!D34) -> 80 | E33: =IF(Pengetahuan!E34="","",Pengetahuan!E34) -> 80 | F33: =IF(Pengetahuan!F34="","",Pengetahuan!F34) -> 80 | G33: =IF(Pengetahuan!G34="","",Pengetahuan!G34) ->  | H33: =IF(Pengetahuan!H34="","",Pengetahuan!H34) -> 80 | I33: =IF(Pengetahuan!I34="","",Pengetahuan!I34) -> 80 | J33: =IF(Pengetahuan!J34="","",Pengetahuan!J34) -> 80 | K33: =IF(Pengetahuan!K34="","",Pengetahuan!K34) -> 80 | L33: =IF(Pengetahuan!L34="","",Pengetahuan!L34) -> 80 | M33: =IF(Pengetahuan!M34="","",Pengetahuan!M34) ->  | N33: =IF(Pengetahuan!N34="","",Pengetahuan!N34) -> 80 | O33: =IF(Pengetahuan!O34="","",Pengetahuan!O34) -> 80 | P33: =IF(Pengetahuan!P34="","",Pengetahuan!P34) -> 75 | Q33: =IF(Pengetahuan!Q34="","",Pengetahuan!Q34) -> 75 | R33: =IF(Pengetahuan!R34="","",Pengetahuan!R34) -> 77.5 | S33: =IF(Pengetahuan!S34="","",Pengetahuan!S34) -> 3.1 | T33: =IF(Pengetahuan!T34="","",Pengetahuan!T34) -> B | U33: =IF(Pengetahuan!U34="","",Pengetahuan!U34) -> Tuntas
A34: 15 | B34: ='Data '!D41 -> GILANG SYAHRUL RAMADHAN | C34: =IF(Pengetahuan!C35="","",Pengetahuan!C35) -> 80 | D34: =IF(Pengetahuan!D35="","",Pengetahuan!D35) -> 80 | E34: =IF(Pengetahuan!E35="","",Pengetahuan!E35) -> 80 | F34: =IF(Pengetahuan!F35="","",Pengetahuan!F35) -> 80 | G34: =IF(Pengetahuan!G35="","",Pengetahuan!G35) ->  | H34: =IF(Pengetahuan!H35="","",Pengetahuan!H35) -> 80 | I34: =IF(Pengetahuan!I35="","",Pengetahuan!I35) -> 80 | J34: =IF(Pengetahuan!J35="","",Pengetahuan!J35) -> 80 | K34: =IF(Pengetahuan!K35="","",Pengetahuan!K35) -> 80 | L34: =IF(Pengetahuan!L35="","",Pengetahuan!L35) -> 80 | M34: =IF(Pengetahuan!M35="","",Pengetahuan!M35) ->  | N34: =IF(Pengetahuan!N35="","",Pengetahuan!N35) -> 80 | O34: =IF(Pengetahuan!O35="","",Pengetahuan!O35) -> 80 | P34: =IF(Pengetahuan!P35="","",Pengetahuan!P35) -> 75 | Q34: =IF(Pengetahuan!Q35="","",Pengetahuan!Q35) -> 75 | R34: =IF(Pengetahuan!R35="","",Pengetahuan!R35) -> 77.5 | S34: =IF(Pengetahuan!S35="","",Pengetahuan!S35) -> 3.1 | T34: =IF(Pengetahuan!T35="","",Pengetahuan!T35) -> B | U34: =IF(Pengetahuan!U35="","",Pengetahuan!U35) -> Tuntas
A35: 16 | B35: ='Data '!D42 -> IMAM AGUNG WAHYU PRATAMA | C35: =IF(Pengetahuan!C36="","",Pengetahuan!C36) -> 80 | D35: =IF(Pengetahuan!D36="","",Pengetahuan!D36) -> 80 | E35: =IF(Pengetahuan!E36="","",Pengetahuan!E36) -> 80 | F35: =IF(Pengetahuan!F36="","",Pengetahuan!F36) -> 80 | G35: =IF(Pengetahuan!G36="","",Pengetahuan!G36) ->  | H35: =IF(Pengetahuan!H36="","",Pengetahuan!H36) -> 80 | I35: =IF(Pengetahuan!I36="","",Pengetahuan!I36) -> 80 | J35: =IF(Pengetahuan!J36="","",Pengetahuan!J36) -> 80 | K35: =IF(Pengetahuan!K36="","",Pengetahuan!K36) -> 80 | L35: =IF(Pengetahuan!L36="","",Pengetahuan!L36) -> 80 | M35: =IF(Pengetahuan!M36="","",Pengetahuan!M36) ->  | N35: =IF(Pengetahuan!N36="","",Pengetahuan!N36) -> 80 | O35: =IF(Pengetahuan!O36="","",Pengetahuan!O36) -> 80 | P35: =IF(Pengetahuan!P36="","",Pengetahuan!P36) -> 75 | Q35: =IF(Pengetahuan!Q36="","",Pengetahuan!Q36) -> 75 | R35: =IF(Pengetahuan!R36="","",Pengetahuan!R36) -> 77.5 | S35: =IF(Pengetahuan!S36="","",Pengetahuan!S36) -> 3.1 | T35: =IF(Pengetahuan!T36="","",Pengetahuan!T36) -> B | U35: =IF(Pengetahuan!U36="","",Pengetahuan!U36) -> Tuntas
A36: 17 | B36: ='Data '!D43 -> JOHAN MAULANA | C36: =IF(Pengetahuan!C37="","",Pengetahuan!C37) -> 80 | D36: =IF(Pengetahuan!D37="","",Pengetahuan!D37) -> 80 | E36: =IF(Pengetahuan!E37="","",Pengetahuan!E37) -> 80 | F36: =IF(Pengetahuan!F37="","",Pengetahuan!F37) -> 80 | G36: =IF(Pengetahuan!G37="","",Pengetahuan!G37) ->  | H36: =IF(Pengetahuan!H37="","",Pengetahuan!H37) -> 80 | I36: =IF(Pengetahuan!I37="","",Pengetahuan!I37) -> 80 | J36: =IF(Pengetahuan!J37="","",Pengetahuan!J37) -> 80 | K36: =IF(Pengetahuan!K37="","",Pengetahuan!K37) -> 80 | L36: =IF(Pengetahuan!L37="","",Pengetahuan!L37) -> 80 | M36: =IF(Pengetahuan!M37="","",Pengetahuan!M37) ->  | N36: =IF(Pengetahuan!N37="","",Pengetahuan!N37) -> 80 | O36: =IF(Pengetahuan!O37="","",Pengetahuan!O37) -> 80 | P36: =IF(Pengetahuan!P37="","",Pengetahuan!P37) -> 75 | Q36: =IF(Pengetahuan!Q37="","",Pengetahuan!Q37) -> 75 | R36: =IF(Pengetahuan!R37="","",Pengetahuan!R37) -> 77.5 | S36: =IF(Pengetahuan!S37="","",Pengetahuan!S37) -> 3.1 | T36: =IF(Pengetahuan!T37="","",Pengetahuan!T37) -> B | U36: =IF(Pengetahuan!U37="","",Pengetahuan!U37) -> Tuntas | X36: halaman 2
A37: 18 | B37: ='Data '!D44 -> JOKO SETIAWAN | C37: =IF(Pengetahuan!C38="","",Pengetahuan!C38) -> 80 | D37: =IF(Pengetahuan!D38="","",Pengetahuan!D38) -> 80 | E37: =IF(Pengetahuan!E38="","",Pengetahuan!E38) -> 80 | F37: =IF(Pengetahuan!F38="","",Pengetahuan!F38) -> 80 | G37: =IF(Pengetahuan!G38="","",Pengetahuan!G38) ->  | H37: =IF(Pengetahuan!H38="","",Pengetahuan!H38) -> 80 | I37: =IF(Pengetahuan!I38="","",Pengetahuan!I38) -> 80 | J37: =IF(Pengetahuan!J38="","",Pengetahuan!J38) -> 80 | K37: =IF(Pengetahuan!K38="","",Pengetahuan!K38) -> 80 | L37: =IF(Pengetahuan!L38="","",Pengetahuan!L38) -> 80 | M37: =IF(Pengetahuan!M38="","",Pengetahuan!M38) ->  | N37: =IF(Pengetahuan!N38="","",Pengetahuan!N38) -> 80 | O37: =IF(Pengetahuan!O38="","",Pengetahuan!O38) -> 80 | P37: =IF(Pengetahuan!P38="","",Pengetahuan!P38) -> 75 | Q37: =IF(Pengetahuan!Q38="","",Pengetahuan!Q38) -> 75 | R37: =IF(Pengetahuan!R38="","",Pengetahuan!R38) -> 77.5 | S37: =IF(Pengetahuan!S38="","",Pengetahuan!S38) -> 3.1 | T37: =IF(Pengetahuan!T38="","",Pengetahuan!T38) -> B | U37: =IF(Pengetahuan!U38="","",Pengetahuan!U38) -> Tuntas
A38: 19 | B38: ='Data '!D45 -> LISA OKTAVINASARI | C38: =IF(Pengetahuan!C39="","",Pengetahuan!C39) -> 80 | D38: =IF(Pengetahuan!D39="","",Pengetahuan!D39) -> 80 | E38: =IF(Pengetahuan!E39="","",Pengetahuan!E39) -> 80 | F38: =IF(Pengetahuan!F39="","",Pengetahuan!F39) -> 80 | G38: =IF(Pengetahuan!G39="","",Pengetahuan!G39) ->  | H38: =IF(Pengetahuan!H39="","",Pengetahuan!H39) -> 80 | I38: =IF(Pengetahuan!I39="","",Pengetahuan!I39) -> 80 | J38: =IF(Pengetahuan!J39="","",Pengetahuan!J39) -> 80 | K38: =IF(Pengetahuan!K39="","",Pengetahuan!K39) -> 80 | L38: =IF(Pengetahuan!L39="","",Pengetahuan!L39) -> 80 | M38: =IF(Pengetahuan!M39="","",Pengetahuan!M39) ->  | N38: =IF(Pengetahuan!N39="","",Pengetahuan!N39) -> 80 | O38: =IF(Pengetahuan!O39="","",Pengetahuan!O39) -> 80 | P38: =IF(Pengetahuan!P39="","",Pengetahuan!P39) -> 75 | Q38: =IF(Pengetahuan!Q39="","",Pengetahuan!Q39) -> 75 | R38: =IF(Pengetahuan!R39="","",Pengetahuan!R39) -> 77.5 | S38: =IF(Pengetahuan!S39="","",Pengetahuan!S39) -> 3.1 | T38: =IF(Pengetahuan!T39="","",Pengetahuan!T39) -> B | U38: =IF(Pengetahuan!U39="","",Pengetahuan!U39) -> Tuntas
A39: 20 | B39: ='Data '!D46 -> MARIA GILDA SIREGAR | C39: =IF(Pengetahuan!C40="","",Pengetahuan!C40) -> 80 | D39: =IF(Pengetahuan!D40="","",Pengetahuan!D40) -> 80 | E39: =IF(Pengetahuan!E40="","",Pengetahuan!E40) -> 80 | F39: =IF(Pengetahuan!F40="","",Pengetahuan!F40) -> 80 | G39: =IF(Pengetahuan!G40="","",Pengetahuan!G40) ->  | H39: =IF(Pengetahuan!H40="","",Pengetahuan!H40) -> 80 | I39: =IF(Pengetahuan!I40="","",Pengetahuan!I40) -> 80 | J39: =IF(Pengetahuan!J40="","",Pengetahuan!J40) -> 80 | K39: =IF(Pengetahuan!K40="","",Pengetahuan!K40) -> 80 | L39: =IF(Pengetahuan!L40="","",Pengetahuan!L40) -> 80 | M39: =IF(Pengetahuan!M40="","",Pengetahuan!M40) ->  | N39: =IF(Pengetahuan!N40="","",Pengetahuan!N40) -> 80 | O39: =IF(Pengetahuan!O40="","",Pengetahuan!O40) -> 80 | P39: =IF(Pengetahuan!P40="","",Pengetahuan!P40) -> 75 | Q39: =IF(Pengetahuan!Q40="","",Pengetahuan!Q40) -> 75 | R39: =IF(Pengetahuan!R40="","",Pengetahuan!R40) -> 77.5 | S39: =IF(Pengetahuan!S40="","",Pengetahuan!S40) -> 3.1 | T39: =IF(Pengetahuan!T40="","",Pengetahuan!T40) -> B | U39: =IF(Pengetahuan!U40="","",Pengetahuan!U40) -> Tuntas
A40: 21 | B40: ='Data '!D47 -> MOHAMMAD NURKHOLISH | C40: =IF(Pengetahuan!C41="","",Pengetahuan!C41) -> 80 | D40: =IF(Pengetahuan!D41="","",Pengetahuan!D41) -> 80 | E40: =IF(Pengetahuan!E41="","",Pengetahuan!E41) -> 80 | F40: =IF(Pengetahuan!F41="","",Pengetahuan!F41) -> 80 | G40: =IF(Pengetahuan!G41="","",Pengetahuan!G41) ->  | H40: =IF(Pengetahuan!H41="","",Pengetahuan!H41) -> 80 | I40: =IF(Pengetahuan!I41="","",Pengetahuan!I41) -> 80 | J40: =IF(Pengetahuan!J41="","",Pengetahuan!J41) -> 80 | K40: =IF(Pengetahuan!K41="","",Pengetahuan!K41) -> 80 | L40: =IF(Pengetahuan!L41="","",Pengetahuan!L41) -> 80 | M40: =IF(Pengetahuan!M41="","",Pengetahuan!M41) ->  | N40: =IF(Pengetahuan!N41="","",Pengetahuan!N41) -> 80 | O40: =IF(Pengetahuan!O41="","",Pengetahuan!O41) -> 80 | P40: =IF(Pengetahuan!P41="","",Pengetahuan!P41) -> 75 | Q40: =IF(Pengetahuan!Q41="","",Pengetahuan!Q41) -> 75 | R40: =IF(Pengetahuan!R41="","",Pengetahuan!R41) -> 77.5 | S40: =IF(Pengetahuan!S41="","",Pengetahuan!S41) -> 3.1 | T40: =IF(Pengetahuan!T41="","",Pengetahuan!T41) -> B | U40: =IF(Pengetahuan!U41="","",Pengetahuan!U41) -> Tuntas
A41: 22 | B41: ='Data '!D48 -> MUHAMAD FARIS ULIN NUHA | C41: =IF(Pengetahuan!C42="","",Pengetahuan!C42) -> 80 | D41: =IF(Pengetahuan!D42="","",Pengetahuan!D42) -> 80 | E41: =IF(Pengetahuan!E42="","",Pengetahuan!E42) -> 80 | F41: =IF(Pengetahuan!F42="","",Pengetahuan!F42) -> 80 | G41: =IF(Pengetahuan!G42="","",Pengetahuan!G42) ->  | H41: =IF(Pengetahuan!H42="","",Pengetahuan!H42) -> 80 | I41: =IF(Pengetahuan!I42="","",Pengetahuan!I42) -> 80 | J41: =IF(Pengetahuan!J42="","",Pengetahuan!J42) -> 80 | K41: =IF(Pengetahuan!K42="","",Pengetahuan!K42) -> 80 | L41: =IF(Pengetahuan!L42="","",Pengetahuan!L42) -> 80 | M41: =IF(Pengetahuan!M42="","",Pengetahuan!M42) ->  | N41: =IF(Pengetahuan!N42="","",Pengetahuan!N42) -> 80 | O41: =IF(Pengetahuan!O42="","",Pengetahuan!O42) -> 80 | P41: =IF(Pengetahuan!P42="","",Pengetahuan!P42) -> 75 | Q41: =IF(Pengetahuan!Q42="","",Pengetahuan!Q42) -> 75 | R41: =IF(Pengetahuan!R42="","",Pengetahuan!R42) -> 77.5 | S41: =IF(Pengetahuan!S42="","",Pengetahuan!S42) -> 3.1 | T41: =IF(Pengetahuan!T42="","",Pengetahuan!T42) -> B | U41: =IF(Pengetahuan!U42="","",Pengetahuan!U42) -> Tuntas
A42: 23 | B42: ='Data '!D49 -> MUHAMMAD MUSTOFA | C42: =IF(Pengetahuan!C43="","",Pengetahuan!C43) -> 80 | D42: =IF(Pengetahuan!D43="","",Pengetahuan!D43) -> 80 | E42: =IF(Pengetahuan!E43="","",Pengetahuan!E43) -> 80 | F42: =IF(Pengetahuan!F43="","",Pengetahuan!F43) -> 80 | G42: =IF(Pengetahuan!G43="","",Pengetahuan!G43) ->  | H42: =IF(Pengetahuan!H43="","",Pengetahuan!H43) -> 80 | I42: =IF(Pengetahuan!I43="","",Pengetahuan!I43) -> 80 | J42: =IF(Pengetahuan!J43="","",Pengetahuan!J43) -> 80 | K42: =IF(Pengetahuan!K43="","",Pengetahuan!K43) -> 80 | L42: =IF(Pengetahuan!L43="","",Pengetahuan!L43) -> 80 | M42: =IF(Pengetahuan!M43="","",Pengetahuan!M43) ->  | N42: =IF(Pengetahuan!N43="","",Pengetahuan!N43) -> 80 | O42: =IF(Pengetahuan!O43="","",Pengetahuan!O43) -> 80 | P42: =IF(Pengetahuan!P43="","",Pengetahuan!P43) -> 75 | Q42: =IF(Pengetahuan!Q43="","",Pengetahuan!Q43) -> 75 | R42: =IF(Pengetahuan!R43="","",Pengetahuan!R43) -> 77.5 | S42: =IF(Pengetahuan!S43="","",Pengetahuan!S43) -> 3.1 | T42: =IF(Pengetahuan!T43="","",Pengetahuan!T43) -> B | U42: =IF(Pengetahuan!U43="","",Pengetahuan!U43) -> Tuntas
A43: 24 | B43: ='Data '!D50 -> NANDA WINTYA PUTRI | C43: =IF(Pengetahuan!C44="","",Pengetahuan!C44) -> 80 | D43: =IF(Pengetahuan!D44="","",Pengetahuan!D44) -> 80 | E43: =IF(Pengetahuan!E44="","",Pengetahuan!E44) -> 80 | F43: =IF(Pengetahuan!F44="","",Pengetahuan!F44) -> 80 | G43: =IF(Pengetahuan!G44="","",Pengetahuan!G44) ->  | H43: =IF(Pengetahuan!H44="","",Pengetahuan!H44) -> 80 | I43: =IF(Pengetahuan!I44="","",Pengetahuan!I44) -> 80 | J43: =IF(Pengetahuan!J44="","",Pengetahuan!J44) -> 80 | K43: =IF(Pengetahuan!K44="","",Pengetahuan!K44) -> 80 | L43: =IF(Pengetahuan!L44="","",Pengetahuan!L44) -> 80 | M43: =IF(Pengetahuan!M44="","",Pengetahuan!M44) ->  | N43: =IF(Pengetahuan!N44="","",Pengetahuan!N44) -> 80 | O43: =IF(Pengetahuan!O44="","",Pengetahuan!O44) -> 80 | P43: =IF(Pengetahuan!P44="","",Pengetahuan!P44) -> 75 | Q43: =IF(Pengetahuan!Q44="","",Pengetahuan!Q44) -> 75 | R43: =IF(Pengetahuan!R44="","",Pengetahuan!R44) -> 77.5 | S43: =IF(Pengetahuan!S44="","",Pengetahuan!S44) -> 3.1 | T43: =IF(Pengetahuan!T44="","",Pengetahuan!T44) -> B | U43: =IF(Pengetahuan!U44="","",Pengetahuan!U44) -> Tuntas
A44: 25 | B44: ='Data '!D51 -> NI'MA NOVA NUR FADHILAH | C44: =IF(Pengetahuan!C45="","",Pengetahuan!C45) -> 80 | D44: =IF(Pengetahuan!D45="","",Pengetahuan!D45) -> 80 | E44: =IF(Pengetahuan!E45="","",Pengetahuan!E45) -> 80 | F44: =IF(Pengetahuan!F45="","",Pengetahuan!F45) -> 80 | G44: =IF(Pengetahuan!G45="","",Pengetahuan!G45) ->  | H44: =IF(Pengetahuan!H45="","",Pengetahuan!H45) -> 80 | I44: =IF(Pengetahuan!I45="","",Pengetahuan!I45) -> 80 | J44: =IF(Pengetahuan!J45="","",Pengetahuan!J45) -> 80 | K44: =IF(Pengetahuan!K45="","",Pengetahuan!K45) -> 80 | L44: =IF(Pengetahuan!L45="","",Pengetahuan!L45) -> 80 | M44: =IF(Pengetahuan!M45="","",Pengetahuan!M45) ->  | N44: =IF(Pengetahuan!N45="","",Pengetahuan!N45) -> 80 | O44: =IF(Pengetahuan!O45="","",Pengetahuan!O45) -> 80 | P44: =IF(Pengetahuan!P45="","",Pengetahuan!P45) -> 75 | Q44: =IF(Pengetahuan!Q45="","",Pengetahuan!Q45) -> 75 | R44: =IF(Pengetahuan!R45="","",Pengetahuan!R45) -> 77.5 | S44: =IF(Pengetahuan!S45="","",Pengetahuan!S45) -> 3.1 | T44: =IF(Pengetahuan!T45="","",Pengetahuan!T45) -> B | U44: =IF(Pengetahuan!U45="","",Pengetahuan!U45) -> Tuntas
A45: 26 | B45: ='Data '!D52 -> NITA ZUMROTUT TAQIYAH | C45: =IF(Pengetahuan!C46="","",Pengetahuan!C46) -> 80 | D45: =IF(Pengetahuan!D46="","",Pengetahuan!D46) -> 80 | E45: =IF(Pengetahuan!E46="","",Pengetahuan!E46) -> 80 | F45: =IF(Pengetahuan!F46="","",Pengetahuan!F46) -> 80 | G45: =IF(Pengetahuan!G46="","",Pengetahuan!G46) ->  | H45: =IF(Pengetahuan!H46="","",Pengetahuan!H46) -> 80 | I45: =IF(Pengetahuan!I46="","",Pengetahuan!I46) -> 80 | J45: =IF(Pengetahuan!J46="","",Pengetahuan!J46) -> 80 | K45: =IF(Pengetahuan!K46="","",Pengetahuan!K46) -> 80 | L45: =IF(Pengetahuan!L46="","",Pengetahuan!L46) -> 80 | M45: =IF(Pengetahuan!M46="","",Pengetahuan!M46) ->  | N45: =IF(Pengetahuan!N46="","",Pengetahuan!N46) -> 80 | O45: =IF(Pengetahuan!O46="","",Pengetahuan!O46) -> 80 | P45: =IF(Pengetahuan!P46="","",Pengetahuan!P46) -> 75 | Q45: =IF(Pengetahuan!Q46="","",Pengetahuan!Q46) -> 75 | R45: =IF(Pengetahuan!R46="","",Pengetahuan!R46) -> 77.5 | S45: =IF(Pengetahuan!S46="","",Pengetahuan!S46) -> 3.1 | T45: =IF(Pengetahuan!T46="","",Pengetahuan!T46) -> B | U45: =IF(Pengetahuan!U46="","",Pengetahuan!U46) -> Tuntas
A46: 27 | B46: ='Data '!D53 -> RACHMAT SAPUTRA ANDRIANSYAH | C46: =IF(Pengetahuan!C47="","",Pengetahuan!C47) -> 80 | D46: =IF(Pengetahuan!D47="","",Pengetahuan!D47) -> 80 | E46: =IF(Pengetahuan!E47="","",Pengetahuan!E47) -> 80 | F46: =IF(Pengetahuan!F47="","",Pengetahuan!F47) -> 80 | G46: =IF(Pengetahuan!G47="","",Pengetahuan!G47) ->  | H46: =IF(Pengetahuan!H47="","",Pengetahuan!H47) -> 80 | I46: =IF(Pengetahuan!I47="","",Pengetahuan!I47) -> 80 | J46: =IF(Pengetahuan!J47="","",Pengetahuan!J47) -> 80 | K46: =IF(Pengetahuan!K47="","",Pengetahuan!K47) -> 80 | L46: =IF(Pengetahuan!L47="","",Pengetahuan!L47) -> 80 | M46: =IF(Pengetahuan!M47="","",Pengetahuan!M47) ->  | N46: =IF(Pengetahuan!N47="","",Pengetahuan!N47) -> 80 | O46: =IF(Pengetahuan!O47="","",Pengetahuan!O47) -> 80 | P46: =IF(Pengetahuan!P47="","",Pengetahuan!P47) -> 75 | Q46: =IF(Pengetahuan!Q47="","",Pengetahuan!Q47) -> 75 | R46: =IF(Pengetahuan!R47="","",Pengetahuan!R47) -> 77.5 | S46: =IF(Pengetahuan!S47="","",Pengetahuan!S47) -> 3.1 | T46: =IF(Pengetahuan!T47="","",Pengetahuan!T47) -> B | U46: =IF(Pengetahuan!U47="","",Pengetahuan!U47) -> Tuntas
A47: 28 | B47: ='Data '!D54 -> RIZAL ANDRIYAN SAPUTRA | C47: =IF(Pengetahuan!C48="","",Pengetahuan!C48) -> 80 | D47: =IF(Pengetahuan!D48="","",Pengetahuan!D48) -> 80 | E47: =IF(Pengetahuan!E48="","",Pengetahuan!E48) -> 80 | F47: =IF(Pengetahuan!F48="","",Pengetahuan!F48) -> 80 | G47: =IF(Pengetahuan!G48="","",Pengetahuan!G48) ->  | H47: =IF(Pengetahuan!H48="","",Pengetahuan!H48) -> 80 | I47: =IF(Pengetahuan!I48="","",Pengetahuan!I48) -> 80 | J47: =IF(Pengetahuan!J48="","",Pengetahuan!J48) -> 80 | K47: =IF(Pengetahuan!K48="","",Pengetahuan!K48) -> 80 | L47: =IF(Pengetahuan!L48="","",Pengetahuan!L48) -> 80 | M47: =IF(Pengetahuan!M48="","",Pengetahuan!M48) ->  | N47: =IF(Pengetahuan!N48="","",Pengetahuan!N48) -> 80 | O47: =IF(Pengetahuan!O48="","",Pengetahuan!O48) -> 80 | P47: =IF(Pengetahuan!P48="","",Pengetahuan!P48) -> 75 | Q47: =IF(Pengetahuan!Q48="","",Pengetahuan!Q48) -> 75 | R47: =IF(Pengetahuan!R48="","",Pengetahuan!R48) -> 77.5 | S47: =IF(Pengetahuan!S48="","",Pengetahuan!S48) -> 3.1 | T47: =IF(Pengetahuan!T48="","",Pengetahuan!T48) -> B | U47: =IF(Pengetahuan!U48="","",Pengetahuan!U48) -> Tuntas
A48: 29 | B48: ='Data '!D55 -> SAIFUL ANNAS | C48: =IF(Pengetahuan!C49="","",Pengetahuan!C49) -> 80 | D48: =IF(Pengetahuan!D49="","",Pengetahuan!D49) -> 80 | E48: =IF(Pengetahuan!E49="","",Pengetahuan!E49) -> 80 | F48: =IF(Pengetahuan!F49="","",Pengetahuan!F49) -> 80 | G48: =IF(Pengetahuan!G49="","",Pengetahuan!G49) ->  | H48: =IF(Pengetahuan!H49="","",Pengetahuan!H49) -> 80 | I48: =IF(Pengetahuan!I49="","",Pengetahuan!I49) -> 80 | J48: =IF(Pengetahuan!J49="","",Pengetahuan!J49) -> 80 | K48: =IF(Pengetahuan!K49="","",Pengetahuan!K49) -> 80 | L48: =IF(Pengetahuan!L49="","",Pengetahuan!L49) -> 80 | M48: =IF(Pengetahuan!M49="","",Pengetahuan!M49) ->  | N48: =IF(Pengetahuan!N49="","",Pengetahuan!N49) -> 80 | O48: =IF(Pengetahuan!O49="","",Pengetahuan!O49) -> 80 | P48: =IF(Pengetahuan!P49="","",Pengetahuan!P49) -> 75 | Q48: =IF(Pengetahuan!Q49="","",Pengetahuan!Q49) -> 75 | R48: =IF(Pengetahuan!R49="","",Pengetahuan!R49) -> 77.5 | S48: =IF(Pengetahuan!S49="","",Pengetahuan!S49) -> 3.1 | T48: =IF(Pengetahuan!T49="","",Pengetahuan!T49) -> B | U48: =IF(Pengetahuan!U49="","",Pengetahuan!U49) -> Tuntas
A49: 30 | B49: ='Data '!D56 -> SELINA SEPTIANI | C49: =IF(Pengetahuan!C50="","",Pengetahuan!C50) -> 80 | D49: =IF(Pengetahuan!D50="","",Pengetahuan!D50) -> 80 | E49: =IF(Pengetahuan!E50="","",Pengetahuan!E50) -> 80 | F49: =IF(Pengetahuan!F50="","",Pengetahuan!F50) -> 80 | G49: =IF(Pengetahuan!G50="","",Pengetahuan!G50) ->  | H49: =IF(Pengetahuan!H50="","",Pengetahuan!H50) -> 80 | I49: =IF(Pengetahuan!I50="","",Pengetahuan!I50) -> 80 | J49: =IF(Pengetahuan!J50="","",Pengetahuan!J50) -> 80 | K49: =IF(Pengetahuan!K50="","",Pengetahuan!K50) -> 80 | L49: =IF(Pengetahuan!L50="","",Pengetahuan!L50) -> 80 | M49: =IF(Pengetahuan!M50="","",Pengetahuan!M50) ->  | N49: =IF(Pengetahuan!N50="","",Pengetahuan!N50) -> 80 | O49: =IF(Pengetahuan!O50="","",Pengetahuan!O50) -> 80 | P49: =IF(Pengetahuan!P50="","",Pengetahuan!P50) -> 75 | Q49: =IF(Pengetahuan!Q50="","",Pengetahuan!Q50) -> 75 | R49: =IF(Pengetahuan!R50="","",Pengetahuan!R50) -> 77.5 | S49: =IF(Pengetahuan!S50="","",Pengetahuan!S50) -> 3.1 | T49: =IF(Pengetahuan!T50="","",Pengetahuan!T50) -> B | U49: =IF(Pengetahuan!U50="","",Pengetahuan!U50) -> Tuntas
A50: 31 | B50: ='Data '!D57 -> SHALSABILA SHINTA NIRMALA | C50: =IF(Pengetahuan!C51="","",Pengetahuan!C51) -> 80 | D50: =IF(Pengetahuan!D51="","",Pengetahuan!D51) -> 80 | E50: =IF(Pengetahuan!E51="","",Pengetahuan!E51) -> 80 | F50: =IF(Pengetahuan!F51="","",Pengetahuan!F51) -> 80 | G50: =IF(Pengetahuan!G51="","",Pengetahuan!G51) ->  | H50: =IF(Pengetahuan!H51="","",Pengetahuan!H51) -> 80 | I50: =IF(Pengetahuan!I51="","",Pengetahuan!I51) -> 80 | J50: =IF(Pengetahuan!J51="","",Pengetahuan!J51) -> 80 | K50: =IF(Pengetahuan!K51="","",Pengetahuan!K51) -> 80 | L50: =IF(Pengetahuan!L51="","",Pengetahuan!L51) -> 80 | M50: =IF(Pengetahuan!M51="","",Pengetahuan!M51) ->  | N50: =IF(Pengetahuan!N51="","",Pengetahuan!N51) -> 80 | O50: =IF(Pengetahuan!O51="","",Pengetahuan!O51) -> 80 | P50: =IF(Pengetahuan!P51="","",Pengetahuan!P51) -> 75 | Q50: =IF(Pengetahuan!Q51="","",Pengetahuan!Q51) -> 75 | R50: =IF(Pengetahuan!R51="","",Pengetahuan!R51) -> 77.5 | S50: =IF(Pengetahuan!S51="","",Pengetahuan!S51) -> 3.1 | T50: =IF(Pengetahuan!T51="","",Pengetahuan!T51) -> B | U50: =IF(Pengetahuan!U51="","",Pengetahuan!U51) -> Tuntas
A51: 32 | B51: ='Data '!D58 -> SITI CHOIRIATUS SA'ADAH | C51: =IF(Pengetahuan!C52="","",Pengetahuan!C52) -> 80 | D51: =IF(Pengetahuan!D52="","",Pengetahuan!D52) -> 80 | E51: =IF(Pengetahuan!E52="","",Pengetahuan!E52) -> 80 | F51: =IF(Pengetahuan!F52="","",Pengetahuan!F52) -> 80 | G51: =IF(Pengetahuan!G52="","",Pengetahuan!G52) ->  | H51: =IF(Pengetahuan!H52="","",Pengetahuan!H52) -> 80 | I51: =IF(Pengetahuan!I52="","",Pengetahuan!I52) -> 80 | J51: =IF(Pengetahuan!J52="","",Pengetahuan!J52) -> 80 | K51: =IF(Pengetahuan!K52="","",Pengetahuan!K52) -> 80 | L51: =IF(Pengetahuan!L52="","",Pengetahuan!L52) -> 80 | M51: =IF(Pengetahuan!M52="","",Pengetahuan!M52) ->  | N51: =IF(Pengetahuan!N52="","",Pengetahuan!N52) -> 80 | O51: =IF(Pengetahuan!O52="","",Pengetahuan!O52) -> 80 | P51: =IF(Pengetahuan!P52="","",Pengetahuan!P52) -> 75 | Q51: =IF(Pengetahuan!Q52="","",Pengetahuan!Q52) -> 75 | R51: =IF(Pengetahuan!R52="","",Pengetahuan!R52) -> 77.5 | S51: =IF(Pengetahuan!S52="","",Pengetahuan!S52) -> 3.1 | T51: =IF(Pengetahuan!T52="","",Pengetahuan!T52) -> B | U51: =IF(Pengetahuan!U52="","",Pengetahuan!U52) -> Tuntas
A52: 33 | B52: ='Data '!D59 -> SITI NURFAN AZIZAH | C52: =IF(Pengetahuan!C53="","",Pengetahuan!C53) -> 80 | D52: =IF(Pengetahuan!D53="","",Pengetahuan!D53) -> 80 | E52: =IF(Pengetahuan!E53="","",Pengetahuan!E53) -> 80 | F52: =IF(Pengetahuan!F53="","",Pengetahuan!F53) -> 80 | G52: =IF(Pengetahuan!G53="","",Pengetahuan!G53) ->  | H52: =IF(Pengetahuan!H53="","",Pengetahuan!H53) -> 80 | I52: =IF(Pengetahuan!I53="","",Pengetahuan!I53) -> 80 | J52: =IF(Pengetahuan!J53="","",Pengetahuan!J53) -> 80 | K52: =IF(Pengetahuan!K53="","",Pengetahuan!K53) -> 80 | L52: =IF(Pengetahuan!L53="","",Pengetahuan!L53) -> 80 | M52: =IF(Pengetahuan!M53="","",Pengetahuan!M53) ->  | N52: =IF(Pengetahuan!N53="","",Pengetahuan!N53) -> 80 | O52: =IF(Pengetahuan!O53="","",Pengetahuan!O53) -> 80 | P52: =IF(Pengetahuan!P53="","",Pengetahuan!P53) -> 75 | Q52: =IF(Pengetahuan!Q53="","",Pengetahuan!Q53) -> 75 | R52: =IF(Pengetahuan!R53="","",Pengetahuan!R53) -> 77.5 | S52: =IF(Pengetahuan!S53="","",Pengetahuan!S53) -> 3.1 | T52: =IF(Pengetahuan!T53="","",Pengetahuan!T53) -> B | U52: =IF(Pengetahuan!U53="","",Pengetahuan!U53) -> Tuntas
A53: 34 | B53: ='Data '!D60 -> SITI RAHAYU | C53: =IF(Pengetahuan!C54="","",Pengetahuan!C54) -> 80 | D53: =IF(Pengetahuan!D54="","",Pengetahuan!D54) -> 80 | E53: =IF(Pengetahuan!E54="","",Pengetahuan!E54) -> 80 | F53: =IF(Pengetahuan!F54="","",Pengetahuan!F54) -> 80 | G53: =IF(Pengetahuan!G54="","",Pengetahuan!G54) ->  | H53: =IF(Pengetahuan!H54="","",Pengetahuan!H54) -> 80 | I53: =IF(Pengetahuan!I54="","",Pengetahuan!I54) -> 80 | J53: =IF(Pengetahuan!J54="","",Pengetahuan!J54) -> 80 | K53: =IF(Pengetahuan!K54="","",Pengetahuan!K54) -> 80 | L53: =IF(Pengetahuan!L54="","",Pengetahuan!L54) -> 80 | M53: =IF(Pengetahuan!M54="","",Pengetahuan!M54) ->  | N53: =IF(Pengetahuan!N54="","",Pengetahuan!N54) -> 80 | O53: =IF(Pengetahuan!O54="","",Pengetahuan!O54) -> 80 | P53: =IF(Pengetahuan!P54="","",Pengetahuan!P54) -> 75 | Q53: =IF(Pengetahuan!Q54="","",Pengetahuan!Q54) -> 75 | R53: =IF(Pengetahuan!R54="","",Pengetahuan!R54) -> 77.5 | S53: =IF(Pengetahuan!S54="","",Pengetahuan!S54) -> 3.1 | T53: =IF(Pengetahuan!T54="","",Pengetahuan!T54) -> B | U53: =IF(Pengetahuan!U54="","",Pengetahuan!U54) -> Tuntas
A54: 35 | B54: ='Data '!D61 -> STEVIANA PUSPITA SARI | C54: =IF(Pengetahuan!C55="","",Pengetahuan!C55) -> 80 | D54: =IF(Pengetahuan!D55="","",Pengetahuan!D55) -> 80 | E54: =IF(Pengetahuan!E55="","",Pengetahuan!E55) -> 80 | F54: =IF(Pengetahuan!F55="","",Pengetahuan!F55) -> 80 | G54: =IF(Pengetahuan!G55="","",Pengetahuan!G55) ->  | H54: =IF(Pengetahuan!H55="","",Pengetahuan!H55) -> 80 | I54: =IF(Pengetahuan!I55="","",Pengetahuan!I55) -> 80 | J54: =IF(Pengetahuan!J55="","",Pengetahuan!J55) -> 80 | K54: =IF(Pengetahuan!K55="","",Pengetahuan!K55) -> 80 | L54: =IF(Pengetahuan!L55="","",Pengetahuan!L55) -> 80 | M54: =IF(Pengetahuan!M55="","",Pengetahuan!M55) ->  | N54: =IF(Pengetahuan!N55="","",Pengetahuan!N55) -> 80 | O54: =IF(Pengetahuan!O55="","",Pengetahuan!O55) -> 80 | P54: =IF(Pengetahuan!P55="","",Pengetahuan!P55) -> 75 | Q54: =IF(Pengetahuan!Q55="","",Pengetahuan!Q55) -> 75 | R54: =IF(Pengetahuan!R55="","",Pengetahuan!R55) -> 77.5 | S54: =IF(Pengetahuan!S55="","",Pengetahuan!S55) -> 3.1 | T54: =IF(Pengetahuan!T55="","",Pengetahuan!T55) -> B | U54: =IF(Pengetahuan!U55="","",Pengetahuan!U55) -> Tuntas
A55: 36 | B55: ='Data '!D62 -> TAN LINGGAR PRAMUDITA | C55: =IF(Pengetahuan!C56="","",Pengetahuan!C56) -> 80 | D55: =IF(Pengetahuan!D56="","",Pengetahuan!D56) -> 80 | E55: =IF(Pengetahuan!E56="","",Pengetahuan!E56) -> 80 | F55: =IF(Pengetahuan!F56="","",Pengetahuan!F56) -> 80 | G55: =IF(Pengetahuan!G56="","",Pengetahuan!G56) ->  | H55: =IF(Pengetahuan!H56="","",Pengetahuan!H56) -> 80 | I55: =IF(Pengetahuan!I56="","",Pengetahuan!I56) -> 80 | J55: =IF(Pengetahuan!J56="","",Pengetahuan!J56) -> 80 | K55: =IF(Pengetahuan!K56="","",Pengetahuan!K56) -> 80 | L55: =IF(Pengetahuan!L56="","",Pengetahuan!L56) -> 80 | M55: =IF(Pengetahuan!M56="","",Pengetahuan!M56) ->  | N55: =IF(Pengetahuan!N56="","",Pengetahuan!N56) -> 80 | O55: =IF(Pengetahuan!O56="","",Pengetahuan!O56) -> 80 | P55: =IF(Pengetahuan!P56="","",Pengetahuan!P56) -> 75 | Q55: =IF(Pengetahuan!Q56="","",Pengetahuan!Q56) -> 75 | R55: =IF(Pengetahuan!R56="","",Pengetahuan!R56) -> 77.5 | S55: =IF(Pengetahuan!S56="","",Pengetahuan!S56) -> 3.1 | T55: =IF(Pengetahuan!T56="","",Pengetahuan!T56) -> B | U55: =IF(Pengetahuan!U56="","",Pengetahuan!U56) -> Tuntas
A56: 37 | B56: ='Data '!D63 -> TAUFIK NUR AZIZ DANUARTA | C56: =IF(Pengetahuan!C57="","",Pengetahuan!C57) -> 80 | D56: =IF(Pengetahuan!D57="","",Pengetahuan!D57) -> 80 | E56: =IF(Pengetahuan!E57="","",Pengetahuan!E57) -> 80 | F56: =IF(Pengetahuan!F57="","",Pengetahuan!F57) -> 80 | G56: =IF(Pengetahuan!G57="","",Pengetahuan!G57) ->  | H56: =IF(Pengetahuan!H57="","",Pengetahuan!H57) -> 80 | I56: =IF(Pengetahuan!I57="","",Pengetahuan!I57) -> 80 | J56: =IF(Pengetahuan!J57="","",Pengetahuan!J57) -> 80 | K56: =IF(Pengetahuan!K57="","",Pengetahuan!K57) -> 80 | L56: =IF(Pengetahuan!L57="","",Pengetahuan!L57) -> 80 | M56: =IF(Pengetahuan!M57="","",Pengetahuan!M57) ->  | N56: =IF(Pengetahuan!N57="","",Pengetahuan!N57) -> 80 | O56: =IF(Pengetahuan!O57="","",Pengetahuan!O57) -> 80 | P56: =IF(Pengetahuan!P57="","",Pengetahuan!P57) -> 75 | Q56: =IF(Pengetahuan!Q57="","",Pengetahuan!Q57) -> 75 | R56: =IF(Pengetahuan!R57="","",Pengetahuan!R57) -> 77.5 | S56: =IF(Pengetahuan!S57="","",Pengetahuan!S57) -> 3.1 | T56: =IF(Pengetahuan!T57="","",Pengetahuan!T57) -> B | U56: =IF(Pengetahuan!U57="","",Pengetahuan!U57) -> Tuntas | X56: halaman 3
A57: 38 | B57: ='Data '!D64 -> TIARA PUTRI AYUNINGTIAS | C57: =IF(Pengetahuan!C58="","",Pengetahuan!C58) -> 80 | D57: =IF(Pengetahuan!D58="","",Pengetahuan!D58) -> 80 | E57: =IF(Pengetahuan!E58="","",Pengetahuan!E58) -> 80 | F57: =IF(Pengetahuan!F58="","",Pengetahuan!F58) -> 80 | G57: =IF(Pengetahuan!G58="","",Pengetahuan!G58) ->  | H57: =IF(Pengetahuan!H58="","",Pengetahuan!H58) -> 80 | I57: =IF(Pengetahuan!I58="","",Pengetahuan!I58) -> 80 | J57: =IF(Pengetahuan!J58="","",Pengetahuan!J58) -> 80 | K57: =IF(Pengetahuan!K58="","",Pengetahuan!K58) -> 80 | L57: =IF(Pengetahuan!L58="","",Pengetahuan!L58) -> 80 | M57: =IF(Pengetahuan!M58="","",Pengetahuan!M58) ->  | N57: =IF(Pengetahuan!N58="","",Pengetahuan!N58) -> 80 | O57: =IF(Pengetahuan!O58="","",Pengetahuan!O58) -> 80 | P57: =IF(Pengetahuan!P58="","",Pengetahuan!P58) -> 75 | Q57: =IF(Pengetahuan!Q58="","",Pengetahuan!Q58) -> 75 | R57: =IF(Pengetahuan!R58="","",Pengetahuan!R58) -> 77.5 | S57: =IF(Pengetahuan!S58="","",Pengetahuan!S58) -> 3.1 | T57: =IF(Pengetahuan!T58="","",Pengetahuan!T58) -> B | U57: =IF(Pengetahuan!U58="","",Pengetahuan!U58) -> Tuntas
A58: 39 | B58: ='Data '!D65 -> TITANIA GAYATRI PRIANJANI | C58: =IF(Pengetahuan!C59="","",Pengetahuan!C59) -> 80 | D58: =IF(Pengetahuan!D59="","",Pengetahuan!D59) -> 80 | E58: =IF(Pengetahuan!E59="","",Pengetahuan!E59) -> 80 | F58: =IF(Pengetahuan!F59="","",Pengetahuan!F59) -> 80 | G58: =IF(Pengetahuan!G59="","",Pengetahuan!G59) ->  | H58: =IF(Pengetahuan!H59="","",Pengetahuan!H59) -> 80 | I58: =IF(Pengetahuan!I59="","",Pengetahuan!I59) -> 80 | J58: =IF(Pengetahuan!J59="","",Pengetahuan!J59) -> 80 | K58: =IF(Pengetahuan!K59="","",Pengetahuan!K59) -> 80 | L58: =IF(Pengetahuan!L59="","",Pengetahuan!L59) -> 80 | M58: =IF(Pengetahuan!M59="","",Pengetahuan!M59) ->  | N58: =IF(Pengetahuan!N59="","",Pengetahuan!N59) -> 80 | O58: =IF(Pengetahuan!O59="","",Pengetahuan!O59) -> 80 | P58: =IF(Pengetahuan!P59="","",Pengetahuan!P59) -> 75 | Q58: =IF(Pengetahuan!Q59="","",Pengetahuan!Q59) -> 75 | R58: =IF(Pengetahuan!R59="","",Pengetahuan!R59) -> 77.5 | S58: =IF(Pengetahuan!S59="","",Pengetahuan!S59) -> 3.1 | T58: =IF(Pengetahuan!T59="","",Pengetahuan!T59) -> B | U58: =IF(Pengetahuan!U59="","",Pengetahuan!U59) -> Tuntas
A59: 40 | B59: ='Data '!D66 -> ULFATUN NI'MAH | C59: =IF(Pengetahuan!C60="","",Pengetahuan!C60) -> 80 | D59: =IF(Pengetahuan!D60="","",Pengetahuan!D60) -> 80 | E59: =IF(Pengetahuan!E60="","",Pengetahuan!E60) -> 80 | F59: =IF(Pengetahuan!F60="","",Pengetahuan!F60) -> 80 | G59: =IF(Pengetahuan!G60="","",Pengetahuan!G60) ->  | H59: =IF(Pengetahuan!H60="","",Pengetahuan!H60) -> 80 | I59: =IF(Pengetahuan!I60="","",Pengetahuan!I60) -> 80 | J59: =IF(Pengetahuan!J60="","",Pengetahuan!J60) -> 80 | K59: =IF(Pengetahuan!K60="","",Pengetahuan!K60) -> 80 | L59: =IF(Pengetahuan!L60="","",Pengetahuan!L60) -> 80 | M59: =IF(Pengetahuan!M60="","",Pengetahuan!M60) ->  | N59: =IF(Pengetahuan!N60="","",Pengetahuan!N60) -> 80 | O59: =IF(Pengetahuan!O60="","",Pengetahuan!O60) -> 80 | P59: =IF(Pengetahuan!P60="","",Pengetahuan!P60) -> 75 | Q59: =IF(Pengetahuan!Q60="","",Pengetahuan!Q60) -> 75 | R59: =IF(Pengetahuan!R60="","",Pengetahuan!R60) -> 77.5 | S59: =IF(Pengetahuan!S60="","",Pengetahuan!S60) -> 3.1 | T59: =IF(Pengetahuan!T60="","",Pengetahuan!T60) -> B | U59: =IF(Pengetahuan!U60="","",Pengetahuan!U60) -> Tuntas
A60: 41 | B60: ='Data '!D67 -> 0 | C60: =IF(Pengetahuan!C61="","",Pengetahuan!C61) ->  | D60: =IF(Pengetahuan!D61="","",Pengetahuan!D61) ->  | E60: =IF(Pengetahuan!E61="","",Pengetahuan!E61) ->  | F60: =IF(Pengetahuan!F61="","",Pengetahuan!F61) ->  | G60: =IF(Pengetahuan!G61="","",Pengetahuan!G61) ->  | H60: =IF(Pengetahuan!H61="","",Pengetahuan!H61) ->  | I60: =IF(Pengetahuan!I61="","",Pengetahuan!I61) ->  | J60: =IF(Pengetahuan!J61="","",Pengetahuan!J61) ->  | K60: =IF(Pengetahuan!K61="","",Pengetahuan!K61) ->  | L60: =IF(Pengetahuan!L61="","",Pengetahuan!L61) ->  | M60: =IF(Pengetahuan!M61="","",Pengetahuan!M61) ->  | N60: =IF(Pengetahuan!N61="","",Pengetahuan!N61) ->  | O60: =IF(Pengetahuan!O61="","",Pengetahuan!O61) ->  | P60: =IF(Pengetahuan!P61="","",Pengetahuan!P61) ->  | Q60: =IF(Pengetahuan!Q61="","",Pengetahuan!Q61) ->  | R60: =IF(Pengetahuan!R61="","",Pengetahuan!R61) ->  | S60: =IF(Pengetahuan!S61="","",Pengetahuan!S61) ->  | T60: =IF(Pengetahuan!T61="","",Pengetahuan!T61) ->  | U60: =IF(Pengetahuan!U61="","",Pengetahuan!U61) -> 
A61: 42 | B61: ='Data '!D68 -> 0 | C61: =IF(Pengetahuan!C62="","",Pengetahuan!C62) ->  | D61: =IF(Pengetahuan!D62="","",Pengetahuan!D62) ->  | E61: =IF(Pengetahuan!E62="","",Pengetahuan!E62) ->  | F61: =IF(Pengetahuan!F62="","",Pengetahuan!F62) ->  | G61: =IF(Pengetahuan!G62="","",Pengetahuan!G62) ->  | H61: =IF(Pengetahuan!H62="","",Pengetahuan!H62) ->  | I61: =IF(Pengetahuan!I62="","",Pengetahuan!I62) ->  | J61: =IF(Pengetahuan!J62="","",Pengetahuan!J62) ->  | K61: =IF(Pengetahuan!K62="","",Pengetahuan!K62) ->  | L61: =IF(Pengetahuan!L62="","",Pengetahuan!L62) ->  | M61: =IF(Pengetahuan!M62="","",Pengetahuan!M62) ->  | N61: =IF(Pengetahuan!N62="","",Pengetahuan!N62) ->  | O61: =IF(Pengetahuan!O62="","",Pengetahuan!O62) ->  | P61: =IF(Pengetahuan!P62="","",Pengetahuan!P62) ->  | Q61: =IF(Pengetahuan!Q62="","",Pengetahuan!Q62) ->  | R61: =IF(Pengetahuan!R62="","",Pengetahuan!R62) ->  | S61: =IF(Pengetahuan!S62="","",Pengetahuan!S62) ->  | T61: =IF(Pengetahuan!T62="","",Pengetahuan!T62) ->  | U61: =IF(Pengetahuan!U62="","",Pengetahuan!U62) -> 
A62: 43 | B62: ='Data '!D69 -> 0 | C62: =IF(Pengetahuan!C63="","",Pengetahuan!C63) ->  | D62: =IF(Pengetahuan!D63="","",Pengetahuan!D63) ->  | E62: =IF(Pengetahuan!E63="","",Pengetahuan!E63) ->  | F62: =IF(Pengetahuan!F63="","",Pengetahuan!F63) ->  | G62: =IF(Pengetahuan!G63="","",Pengetahuan!G63) ->  | H62: =IF(Pengetahuan!H63="","",Pengetahuan!H63) ->  | I62: =IF(Pengetahuan!I63="","",Pengetahuan!I63) ->  | J62: =IF(Pengetahuan!J63="","",Pengetahuan!J63) ->  | K62: =IF(Pengetahuan!K63="","",Pengetahuan!K63) ->  | L62: =IF(Pengetahuan!L63="","",Pengetahuan!L63) ->  | M62: =IF(Pengetahuan!M63="","",Pengetahuan!M63) ->  | N62: =IF(Pengetahuan!N63="","",Pengetahuan!N63) ->  | O62: =IF(Pengetahuan!O63="","",Pengetahuan!O63) ->  | P62: =IF(Pengetahuan!P63="","",Pengetahuan!P63) ->  | Q62: =IF(Pengetahuan!Q63="","",Pengetahuan!Q63) ->  | R62: =IF(Pengetahuan!R63="","",Pengetahuan!R63) ->  | S62: =IF(Pengetahuan!S63="","",Pengetahuan!S63) ->  | T62: =IF(Pengetahuan!T63="","",Pengetahuan!T63) ->  | U62: =IF(Pengetahuan!U63="","",Pengetahuan!U63) -> 
A63: 44 | B63: ='Data '!D70 -> 0 | C63: =IF(Pengetahuan!C64="","",Pengetahuan!C64) ->  | D63: =IF(Pengetahuan!D64="","",Pengetahuan!D64) ->  | E63: =IF(Pengetahuan!E64="","",Pengetahuan!E64) ->  | F63: =IF(Pengetahuan!F64="","",Pengetahuan!F64) ->  | G63: =IF(Pengetahuan!G64="","",Pengetahuan!G64) ->  | H63: =IF(Pengetahuan!H64="","",Pengetahuan!H64) ->  | I63: =IF(Pengetahuan!I64="","",Pengetahuan!I64) ->  | J63: =IF(Pengetahuan!J64="","",Pengetahuan!J64) ->  | K63: =IF(Pengetahuan!K64="","",Pengetahuan!K64) ->  | L63: =IF(Pengetahuan!L64="","",Pengetahuan!L64) ->  | M63: =IF(Pengetahuan!M64="","",Pengetahuan!M64) ->  | N63: =IF(Pengetahuan!N64="","",Pengetahuan!N64) ->  | O63: =IF(Pengetahuan!O64="","",Pengetahuan!O64) ->  | P63: =IF(Pengetahuan!P64="","",Pengetahuan!P64) ->  | Q63: =IF(Pengetahuan!Q64="","",Pengetahuan!Q64) ->  | R63: =IF(Pengetahuan!R64="","",Pengetahuan!R64) ->  | S63: =IF(Pengetahuan!S64="","",Pengetahuan!S64) ->  | T63: =IF(Pengetahuan!T64="","",Pengetahuan!T64) ->  | U63: =IF(Pengetahuan!U64="","",Pengetahuan!U64) -> 
A64: 45 | B64: ='Data '!D71 -> 0 | C64: =IF(Pengetahuan!C65="","",Pengetahuan!C65) ->  | D64: =IF(Pengetahuan!D65="","",Pengetahuan!D65) ->  | E64: =IF(Pengetahuan!E65="","",Pengetahuan!E65) ->  | F64: =IF(Pengetahuan!F65="","",Pengetahuan!F65) ->  | G64: =IF(Pengetahuan!G65="","",Pengetahuan!G65) ->  | H64: =IF(Pengetahuan!H65="","",Pengetahuan!H65) ->  | I64: =IF(Pengetahuan!I65="","",Pengetahuan!I65) ->  | J64: =IF(Pengetahuan!J65="","",Pengetahuan!J65) ->  | K64: =IF(Pengetahuan!K65="","",Pengetahuan!K65) ->  | L64: =IF(Pengetahuan!L65="","",Pengetahuan!L65) ->  | M64: =IF(Pengetahuan!M65="","",Pengetahuan!M65) ->  | N64: =IF(Pengetahuan!N65="","",Pengetahuan!N65) ->  | O64: =IF(Pengetahuan!O65="","",Pengetahuan!O65) ->  | P64: =IF(Pengetahuan!P65="","",Pengetahuan!P65) ->  | Q64: =IF(Pengetahuan!Q65="","",Pengetahuan!Q65) ->  | R64: =IF(Pengetahuan!R65="","",Pengetahuan!R65) ->  | S64: =IF(Pengetahuan!S65="","",Pengetahuan!S65) ->  | T64: =IF(Pengetahuan!T65="","",Pengetahuan!T65) ->  | U64: =IF(Pengetahuan!U65="","",Pengetahuan!U65) -> 
A65: 46 | B65: ='Data '!D72 -> 0 | C65: =IF(Pengetahuan!C66="","",Pengetahuan!C66) ->  | D65: =IF(Pengetahuan!D66="","",Pengetahuan!D66) ->  | E65: =IF(Pengetahuan!E66="","",Pengetahuan!E66) ->  | F65: =IF(Pengetahuan!F66="","",Pengetahuan!F66) ->  | G65: =IF(Pengetahuan!G66="","",Pengetahuan!G66) ->  | H65: =IF(Pengetahuan!H66="","",Pengetahuan!H66) ->  | I65: =IF(Pengetahuan!I66="","",Pengetahuan!I66) ->  | J65: =IF(Pengetahuan!J66="","",Pengetahuan!J66) ->  | K65: =IF(Pengetahuan!K66="","",Pengetahuan!K66) ->  | L65: =IF(Pengetahuan!L66="","",Pengetahuan!L66) ->  | M65: =IF(Pengetahuan!M66="","",Pengetahuan!M66) ->  | N65: =IF(Pengetahuan!N66="","",Pengetahuan!N66) ->  | O65: =IF(Pengetahuan!O66="","",Pengetahuan!O66) ->  | P65: =IF(Pengetahuan!P66="","",Pengetahuan!P66) ->  | Q65: =IF(Pengetahuan!Q66="","",Pengetahuan!Q66) ->  | R65: =IF(Pengetahuan!R66="","",Pengetahuan!R66) ->  | S65: =IF(Pengetahuan!S66="","",Pengetahuan!S66) ->  | T65: =IF(Pengetahuan!T66="","",Pengetahuan!T66) ->  | U65: =IF(Pengetahuan!U66="","",Pengetahuan!U66) -> 
A66: 47 | B66: ='Data '!D73 -> 0 | C66: =IF(Pengetahuan!C67="","",Pengetahuan!C67) ->  | D66: =IF(Pengetahuan!D67="","",Pengetahuan!D67) ->  | E66: =IF(Pengetahuan!E67="","",Pengetahuan!E67) ->  | F66: =IF(Pengetahuan!F67="","",Pengetahuan!F67) ->  | G66: =IF(Pengetahuan!G67="","",Pengetahuan!G67) ->  | H66: =IF(Pengetahuan!H67="","",Pengetahuan!H67) ->  | I66: =IF(Pengetahuan!I67="","",Pengetahuan!I67) ->  | J66: =IF(Pengetahuan!J67="","",Pengetahuan!J67) ->  | K66: =IF(Pengetahuan!K67="","",Pengetahuan!K67) ->  | L66: =IF(Pengetahuan!L67="","",Pengetahuan!L67) ->  | M66: =IF(Pengetahuan!M67="","",Pengetahuan!M67) ->  | N66: =IF(Pengetahuan!N67="","",Pengetahuan!N67) ->  | O66: =IF(Pengetahuan!O67="","",Pengetahuan!O67) ->  | P66: =IF(Pengetahuan!P67="","",Pengetahuan!P67) ->  | Q66: =IF(Pengetahuan!Q67="","",Pengetahuan!Q67) ->  | R66: =IF(Pengetahuan!R67="","",Pengetahuan!R67) ->  | S66: =IF(Pengetahuan!S67="","",Pengetahuan!S67) ->  | T66: =IF(Pengetahuan!T67="","",Pengetahuan!T67) ->  | U66: =IF(Pengetahuan!U67="","",Pengetahuan!U67) -> 
A67: 48 | B67: ='Data '!D74 -> 0 | C67: =IF(Pengetahuan!C68="","",Pengetahuan!C68) ->  | D67: =IF(Pengetahuan!D68="","",Pengetahuan!D68) ->  | E67: =IF(Pengetahuan!E68="","",Pengetahuan!E68) ->  | F67: =IF(Pengetahuan!F68="","",Pengetahuan!F68) ->  | G67: =IF(Pengetahuan!G68="","",Pengetahuan!G68) ->  | H67: =IF(Pengetahuan!H68="","",Pengetahuan!H68) ->  | I67: =IF(Pengetahuan!I68="","",Pengetahuan!I68) ->  | J67: =IF(Pengetahuan!J68="","",Pengetahuan!J68) ->  | K67: =IF(Pengetahuan!K68="","",Pengetahuan!K68) ->  | L67: =IF(Pengetahuan!L68="","",Pengetahuan!L68) ->  | M67: =IF(Pengetahuan!M68="","",Pengetahuan!M68) ->  | N67: =IF(Pengetahuan!N68="","",Pengetahuan!N68) ->  | O67: =IF(Pengetahuan!O68="","",Pengetahuan!O68) ->  | P67: =IF(Pengetahuan!P68="","",Pengetahuan!P68) ->  | Q67: =IF(Pengetahuan!Q68="","",Pengetahuan!Q68) ->  | R67: =IF(Pengetahuan!R68="","",Pengetahuan!R68) ->  | S67: =IF(Pengetahuan!S68="","",Pengetahuan!S68) ->  | T67: =IF(Pengetahuan!T68="","",Pengetahuan!T68) ->  | U67: =IF(Pengetahuan!U68="","",Pengetahuan!U68) -> 
A68: 49 | B68: ='Data '!D75 -> 0 | C68: =IF(Pengetahuan!C69="","",Pengetahuan!C69) ->  | D68: =IF(Pengetahuan!D69="","",Pengetahuan!D69) ->  | E68: =IF(Pengetahuan!E69="","",Pengetahuan!E69) ->  | F68: =IF(Pengetahuan!F69="","",Pengetahuan!F69) ->  | G68: =IF(Pengetahuan!G69="","",Pengetahuan!G69) ->  | H68: =IF(Pengetahuan!H69="","",Pengetahuan!H69) ->  | I68: =IF(Pengetahuan!I69="","",Pengetahuan!I69) ->  | J68: =IF(Pengetahuan!J69="","",Pengetahuan!J69) ->  | K68: =IF(Pengetahuan!K69="","",Pengetahuan!K69) ->  | L68: =IF(Pengetahuan!L69="","",Pengetahuan!L69) ->  | M68: =IF(Pengetahuan!M69="","",Pengetahuan!M69) ->  | N68: =IF(Pengetahuan!N69="","",Pengetahuan!N69) ->  | O68: =IF(Pengetahuan!O69="","",Pengetahuan!O69) ->  | P68: =IF(Pengetahuan!P69="","",Pengetahuan!P69) ->  | Q68: =IF(Pengetahuan!Q69="","",Pengetahuan!Q69) ->  | R68: =IF(Pengetahuan!R69="","",Pengetahuan!R69) ->  | S68: =IF(Pengetahuan!S69="","",Pengetahuan!S69) ->  | T68: =IF(Pengetahuan!T69="","",Pengetahuan!T69) ->  | U68: =IF(Pengetahuan!U69="","",Pengetahuan!U69) -> 
A69: 50 | B69: ='Data '!D76 -> 0 | C69: =IF(Pengetahuan!C70="","",Pengetahuan!C70) -> 67 | D69: =IF(Pengetahuan!D70="","",Pengetahuan!D70) ->  | E69: =IF(Pengetahuan!E70="","",Pengetahuan!E70) ->  | F69: =IF(Pengetahuan!F70="","",Pengetahuan!F70) ->  | G69: =IF(Pengetahuan!G70="","",Pengetahuan!G70) ->  | H69: =IF(Pengetahuan!H70="","",Pengetahuan!H70) -> 67 | I69: =IF(Pengetahuan!I70="","",Pengetahuan!I70) -> 90 | J69: =IF(Pengetahuan!J70="","",Pengetahuan!J70) ->  | K69: =IF(Pengetahuan!K70="","",Pengetahuan!K70) ->  | L69: =IF(Pengetahuan!L70="","",Pengetahuan!L70) ->  | M69: =IF(Pengetahuan!M70="","",Pengetahuan!M70) ->  | N69: =IF(Pengetahuan!N70="","",Pengetahuan!N70) -> 90 | O69: =IF(Pengetahuan!O70="","",Pengetahuan!O70) -> 78.5 | P69: =IF(Pengetahuan!P70="","",Pengetahuan!P70) -> 78 | Q69: =IF(Pengetahuan!Q70="","",Pengetahuan!Q70) -> 90 | R69: =IF(Pengetahuan!R70="","",Pengetahuan!R70) -> 81.25 | S69: =IF(Pengetahuan!S70="","",Pengetahuan!S70) -> 3.25 | T69: =IF(Pengetahuan!T70="","",Pengetahuan!T70) -> B+ | U69: =IF(Pengetahuan!U70="","",Pengetahuan!U70) -> Tuntas
B70: Nilai Rata-rata | C70: =IFERROR(AVERAGE(C20:C69)," ") -> 79.68292683 | D70: 80 | E70: 80 | F70: 80 | H70: 79.68292683 | I70: 80.24390244 | J70: 80 | K70: 80 | L70: 80 | N70: 80.24390244 | O70: 79.96341463 | P70: 75.07317073 | Q70: 75.36585366 | R70: 77.59146341 | S70: 3.103658537
C72: Jenis | E72: NP | F72: UTS | H72: UAS | I72: Jlh
C73: Bobot | E73: 2 | F73: 1 | H73: 1 | I73: =SUM(E73:H73) -> 4
B75: Mengetahui: | S75: ='Data '!D21 -> Blora, 20 Desember 2014
B76: ="Ka. " &'Data '!D7 -> Ka. SMP Negeri 6 Blora | S76: Guru Mata Pelajaran
B80: ='Data '!D15 -> Suparno, S.Pd.,M.Hum | S80: =Home!E12 -> Drs. Sarid Nugroho
B81: ='Data '!D16 -> NIP. 19620712 198403 1 012 | S81: =Home!E14 -> NIP. 19631223 198803 1 004
X141: Batas Halaman

Sheet Skill
C1: =UPPER('Data '!D10) -> PEMERINTAH KABUPATEN BLORA
C2: =UPPER('Data '!D6) -> DINAS PENDIDIKAN PEMUDA DAN OLAHRAGA
C3: =UPPER('Data '!D7) -> SMP NEGERI 6 BLORA
C4: DAFTAR NILAI SISWA ASPEK KETRAMPILAN (KI - 4)
B8: Mata Pelajaran : | C8: =Home!E16 -> PJOK | H8: Semester : | K8: ='Data '!D14 -> Ganjil | N8: KKM : | P8: =Home!E24 -> 2.67
B9: Kelas : | C9: =Home!E18 -> VII-A | H9: Tahun Pelajaran : | K9: ='Data '!D13 -> 2014/2015 | N9: Wali Kelas : | P9: ='Data '!D17 -> Mundari, S.Pd.
B10: Aspek : | C10: Ketrampilan
W11: PETUNJUK UNTUK MENCETAK/PRINT OUT
B12: KOMPETENSI DASAR ASPEK KETRAMPILAN (KI - 4)
B13: KD/Materi Pokok UK 1 | C13: menyelesaikan soal cerita bilangan
B14: KD/Materi Pokok UK 2 | C14: menyelesaikan soal cerita perbandingan
B15: KD/Materi Pokok UK 3 | C15: menyelesaikan soal cerita aritmatika sosial
B16: KD/Materi Pokok UK 4
A19: No. | B19: Nama | C19: Unjuk Kerja | G19: Rerata | H19: Projek | K19: Rerata | L19: Portofolio | N19: Rerata | O19: Nilai | R19: Ket | W19: Password pada sheet ini purnawanto. Gunakan untuk mengedit page setup halaman, dsb. Jika ingin mengurangi jumlah baris (misal jumlah siswa hanya 30 orang), JANGAN MENGHAPUS BARIS. Blok baris, klik kanan, pilih HIDE. Protek kembali sheet untuk keamanan rumus dan link antar sheet. TERIMA KASIH
C20: KD1 | D20: KD2 | E20: KD3 | F20: KD4 | G20: Ujk Kerja | H20: Pr1 | I20: Pr2 | J20: Pr3 | K20: Projek | L20: Pf1 | M20: Pf2 | N20: Porto | O20: 0-100 | P20: 0-4 | Q20: Konversi | R20: T/TT
A21: 1 | B21: ='Data '!D27 -> AHMAD ALEK BRIYANSAPUTRA | C21: =IF(Ketrampilan!C21="","",Ketrampilan!C21) -> 80 | D21: =IF(Ketrampilan!D21="","",Ketrampilan!D21) -> 80 | E21: =IF(Ketrampilan!E21="","",Ketrampilan!E21) -> 80 | F21: =IF(Ketrampilan!F21="","",Ketrampilan!F21) -> 80 | G21: =IF(Ketrampilan!G21="","",Ketrampilan!G21) -> 80 | H21: =IF(Ketrampilan!H21="","",Ketrampilan!H21) -> 80 | I21: =IF(Ketrampilan!I21="","",Ketrampilan!I21) ->  | J21: =IF(Ketrampilan!J21="","",Ketrampilan!J21) -> 0 | K21: =IF(Ketrampilan!K21="","",Ketrampilan!K21) -> 80 | L21: =IF(Ketrampilan!L21="","",Ketrampilan!L21) -> 80 | M21: =IF(Ketrampilan!M21="","",Ketrampilan!M21) -> 0 | N21: =IF(Ketrampilan!N21="","",Ketrampilan!N21) -> 80 | O21: =IF(Ketrampilan!O21="","",Ketrampilan!O21) -> 80 | P21: =IF(Ketrampilan!P21="","",Ketrampilan!P21) -> 3.2 | Q21: =IF(Ketrampilan!Q21="","",Ketrampilan!Q21) -> B+ | R21: =IF(Ketrampilan!R21="","",Ketrampilan!R21) -> Tuntas | BE21: =CONCATENATE(IF(O21>87.5,"Kompetensi ketrampilan rerata sangat baik. ",IF(O21>62.5,"Kompetensi ketrampilan rerata baik. ",IF(O21>37.5,"Kompetensi ketrampilan rerata cukup. ",IF(O21>1,"Kompetensi ketrampilan rerata kurang. "," ")))),IF(C21>87.5,"Sangat trampil "&$C$13,IF(C21>62.5,"Sudah trampil "&$C$13,IF(C21>37.5,"Masih perlu latihan "&$C$13,IF(C21>1,"Perlu bimbingan "&$C$13,IF(C21="",""))))),IF(D21>87.5,", sangat trampil "&$C$14,IF(D21>62.5,", sudah trampil "&$C$14,IF(D21>37.5,", masih perlu latihan "&$C$14,IF(D21>1,", perlu bimbingan "&$C$14,IF(D21="",""))))),IF(E21>87.25,", sangat trampil "&$C$15,IF(E21>62.5,", sudah trampil "&$C$15,IF(E21>37.5,", masih perlu latihan "&$C$15,IF(E21>1,", perlu bimbingan "&$C$15,IF(E21="",""))))),IF(F21>87.5,", sangat trampil "&$C$16,IF(F21>62.5,", sudah trampil "&$C$16,IF(F21>37.5,", masih perlu latihan "&$C$16,IF(F21>1,", perlu bimbingan "&$C$16,IF(F21="","")))))) -> Kompetensi ketrampilan rerata baik. Sudah trampil menyelesaikan soal cerita bilangan, sudah trampil menyelesaikan soal cerita perbandingan, sudah trampil menyelesaikan soal cerita aritmatika sosial, sudah trampil
A22: 2 | B22: ='Data '!D28 -> AULIA AYU FATINA | C22: =IF(Ketrampilan!C22="","",Ketrampilan!C22) -> 80 | D22: =IF(Ketrampilan!D22="","",Ketrampilan!D22) -> 80 | E22: =IF(Ketrampilan!E22="","",Ketrampilan!E22) -> 80 | F22: =IF(Ketrampilan!F22="","",Ketrampilan!F22) -> 80 | G22: =IF(Ketrampilan!G22="","",Ketrampilan!G22) -> 80 | H22: =IF(Ketrampilan!H22="","",Ketrampilan!H22) -> 80 | I22: =IF(Ketrampilan!I22="","",Ketrampilan!I22) -> 0 | J22: =IF(Ketrampilan!J22="","",Ketrampilan!J22) -> 0 | K22: =IF(Ketrampilan!K22="","",Ketrampilan!K22) -> 80 | L22: =IF(Ketrampilan!L22="","",Ketrampilan!L22) -> 80 | M22: =IF(Ketrampilan!M22="","",Ketrampilan!M22) -> 0 | N22: =IF(Ketrampilan!N22="","",Ketrampilan!N22) -> 80 | O22: =IF(Ketrampilan!O22="","",Ketrampilan!O22) -> 80 | P22: =IF(Ketrampilan!P22="","",Ketrampilan!P22) -> 3.2 | Q22: =IF(Ketrampilan!Q22="","",Ketrampilan!Q22) -> B+ | R22: =IF(Ketrampilan!R22="","",Ketrampilan!R22) -> Tuntas | BE22: =CONCATENATE(IF(O22>87.5,"Kompetensi ketrampilan rerata sangat baik. ",IF(O22>62.5,"Kompetensi ketrampilan rerata baik. ",IF(O22>37.5,"Kompetensi ketrampilan rerata cukup. ",IF(O22>1,"Kompetensi ketrampilan rerata kurang. "," ")))),IF(C22>87.5,"Sangat trampil "&$C$13,IF(C22>62.5,"Sudah trampil "&$C$13,IF(C22>37.5,"Masih perlu latihan "&$C$13,IF(C22>1,"Perlu bimbingan "&$C$13,IF(C22="",""))))),IF(D22>87.5,", sangat trampil "&$C$14,IF(D22>62.5,", sudah trampil "&$C$14,IF(D22>37.5,", masih perlu latihan "&$C$14,IF(D22>1,", perlu bimbingan "&$C$14,IF(D22="",""))))),IF(E22>87.25,", sangat trampil "&$C$15,IF(E22>62.5,", sudah trampil "&$C$15,IF(E22>37.5,", masih perlu latihan "&$C$15,IF(E22>1,", perlu bimbingan "&$C$15,IF(E22="",""))))),IF(F22>87.5,", sangat trampil "&$C$16,IF(F22>62.5,", sudah trampil "&$C$16,IF(F22>37.5,", masih perlu latihan "&$C$16,IF(F22>1,", perlu bimbingan "&$C$16,IF(F22="","")))))) -> Kompetensi ketrampilan rerata baik. Sudah trampil menyelesaikan soal cerita bilangan, sudah trampil menyelesaikan soal cerita perbandingan, sudah trampil menyelesaikan soal cerita aritmatika sosial, sudah trampil
A23: 3 | B23: ='Data '!D29 -> BAGAS YULANDRA PUTRA | C23: =IF(Ketrampilan!C23="","",Ketrampilan!C23) -> 80 | D23: =IF(Ketrampilan!D23="","",Ketrampilan!D23) -> 80 | E23: =IF(Ketrampilan!E23="","",Ketrampilan!E23) -> 80 | F23: =IF(Ketrampilan!F23="","",Ketrampilan!F23) -> 80 | G23: =IF(Ketrampilan!G23="","",Ketrampilan!G23) -> 80 | H23: =IF(Ketrampilan!H23="","",Ketrampilan!H23) -> 80 | I23: =IF(Ketrampilan!I23="","",Ketrampilan!I23) -> 0 | J23: =IF(Ketrampilan!J23="","",Ketrampilan!J23) -> 0 | K23: =IF(Ketrampilan!K23="","",Ketrampilan!K23) -> 80 | L23: =IF(Ketrampilan!L23="","",Ketrampilan!L23) -> 80 | M23: =IF(Ketrampilan!M23="","",Ketrampilan!M23) -> 0 | N23: =IF(Ketrampilan!N23="","",Ketrampilan!N23) -> 80 | O23: =IF(Ketrampilan!O23="","",Ketrampilan!O23) -> 80 | P23: =IF(Ketrampilan!P23="","",Ketrampilan!P23) -> 3.2 | Q23: =IF(Ketrampilan!Q23="","",Ketrampilan!Q23) -> B+ | R23: =IF(Ketrampilan!R23="","",Ketrampilan!R23) -> Tuntas | BE23: Kompetensi ketrampilan rerata baik. Sudah trampil menyelesaikan soal cerita bilangan, sudah trampil menyelesaikan soal cerita perbandingan, sudah trampil menyelesaikan soal cerita aritmatika sosial, sudah trampil
A24: 4 | B24: ='Data '!D30 -> CYNTIA AGUSTINA | C24: =IF(Ketrampilan!C24="","",Ketrampilan!C24) -> 80 | D24: =IF(Ketrampilan!D24="","",Ketrampilan!D24) -> 80 | E24: =IF(Ketrampilan!E24="","",Ketrampilan!E24) -> 80 | F24: =IF(Ketrampilan!F24="","",Ketrampilan!F24) -> 80 | G24: =IF(Ketrampilan!G24="","",Ketrampilan!G24) -> 80 | H24: =IF(Ketrampilan!H24="","",Ketrampilan!H24) -> 80 | I24: =IF(Ketrampilan!I24="","",Ketrampilan!I24) -> 0 | J24: =IF(Ketrampilan!J24="","",Ketrampilan!J24) -> 0 | K24: =IF(Ketrampilan!K24="","",Ketrampilan!K24) -> 80 | L24: =IF(Ketrampilan!L24="","",Ketrampilan!L24) -> 80 | M24: =IF(Ketrampilan!M24="","",Ketrampilan!M24) -> 0 | N24: =IF(Ketrampilan!N24="","",Ketrampilan!N24) -> 80 | O24: =IF(Ketrampilan!O24="","",Ketrampilan!O24) -> 80 | P24: =IF(Ketrampilan!P24="","",Ketrampilan!P24) -> 3.2 | Q24: =IF(Ketrampilan!Q24="","",Ketrampilan!Q24) -> B+ | R24: =IF(Ketrampilan!R24="","",Ketrampilan!R24) -> Tuntas | BE24: Kompetensi ketrampilan rerata baik. Sudah trampil menyelesaikan soal cerita bilangan, sudah trampil menyelesaikan soal cerita perbandingan, sudah trampil menyelesaikan soal cerita aritmatika sosial, sudah trampil
A25: 5 | B25: ='Data '!D31 -> DAFFA KRISNA PRAMUDYA | C25: =IF(Ketrampilan!C25="","",Ketrampilan!C25) -> 80 | D25: =IF(Ketrampilan!D25="","",Ketrampilan!D25) -> 80 | E25: =IF(Ketrampilan!E25="","",Ketrampilan!E25) -> 80 | F25: =IF(Ketrampilan!F25="","",Ketrampilan!F25) -> 80 | G25: =IF(Ketrampilan!G25="","",Ketrampilan!G25) -> 80 | H25: =IF(Ketrampilan!H25="","",Ketrampilan!H25) -> 80 | I25: =IF(Ketrampilan!I25="","",Ketrampilan!I25) -> 0 | J25: =IF(Ketrampilan!J25="","",Ketrampilan!J25) -> 0 | K25: =IF(Ketrampilan!K25="","",Ketrampilan!K25) -> 80 | L25: =IF(Ketrampilan!L25="","",Ketrampilan!L25) -> 80 | M25: =IF(Ketrampilan!M25="","",Ketrampilan!M25) -> 0 | N25: =IF(Ketrampilan!N25="","",Ketrampilan!N25) -> 80 | O25: =IF(Ketrampilan!O25="","",Ketrampilan!O25) -> 80 | P25: =IF(Ketrampilan!P25="","",Ketrampilan!P25) -> 3.2 | Q25: =IF(Ketrampilan!Q25="","",Ketrampilan!Q25) -> B+ | R25: =IF(Ketrampilan!R25="","",Ketrampilan!R25) -> Tuntas | BE25: Kompetensi ketrampilan rerata baik. Sudah trampil menyelesaikan soal cerita bilangan, sudah trampil menyelesaikan soal cerita perbandingan, sudah trampil menyelesaikan soal cerita aritmatika sosial, sudah trampil
A26: 6 | B26: ='Data '!D32 -> DANINDRA RAFIF IRAWAN | C26: =IF(Ketrampilan!C26="","",Ketrampilan!C26) -> 80 | D26: =IF(Ketrampilan!D26="","",Ketrampilan!D26) -> 80 | E26: =IF(Ketrampilan!E26="","",Ketrampilan!E26) -> 80 | F26: =IF(Ketrampilan!F26="","",Ketrampilan!F26) -> 80 | G26: =IF(Ketrampilan!G26="","",Ketrampilan!G26) -> 80 | H26: =IF(Ketrampilan!H26="","",Ketrampilan!H26) -> 80 | I26: =IF(Ketrampilan!I26="","",Ketrampilan!I26) -> 0 | J26: =IF(Ketrampilan!J26="","",Ketrampilan!J26) -> 0 | K26: =IF(Ketrampilan!K26="","",Ketrampilan!K26) -> 80 | L26: =IF(Ketrampilan!L26="","",Ketrampilan!L26) -> 80 | M26: =IF(Ketrampilan!M26="","",Ketrampilan!M26) -> 0 | N26: =IF(Ketrampilan!N26="","",Ketrampilan!N26) -> 80 | O26: =IF(Ketrampilan!O26="","",Ketrampilan!O26) -> 80 | P26: =IF(Ketrampilan!P26="","",Ketrampilan!P26) -> 3.2 | Q26: =IF(Ketrampilan!Q26="","",Ketrampilan!Q26) -> B+ | R26: =IF(Ketrampilan!R26="","",Ketrampilan!R26) -> Tuntas | BE26: Kompetensi ketrampilan rerata baik. Sudah trampil menyelesaikan soal cerita bilangan, sudah trampil menyelesaikan soal cerita perbandingan, sudah trampil menyelesaikan soal cerita aritmatika sosial, sudah trampil
A27: 7 | B27: ='Data '!D33 -> DENI PRATAMA | C27: =IF(Ketrampilan!C27="","",Ketrampilan!C27) -> 80 | D27: =IF(Ketrampilan!D27="","",Ketrampilan!D27) -> 80 | E27: =IF(Ketrampilan!E27="","",Ketrampilan!E27) -> 80 | F27: =IF(Ketrampilan!F27="","",Ketrampilan!F27) -> 80 | G27: =IF(Ketrampilan!G27="","",Ketrampilan!G27) -> 80 | H27: =IF(Ketrampilan!H27="","",Ketrampilan!H27) -> 80 | I27: =IF(Ketrampilan!I27="","",Ketrampilan!I27) -> 0 | J27: =IF(Ketrampilan!J27="","",Ketrampilan!J27) -> 0 | K27: =IF(Ketrampilan!K27="","",Ketrampilan!K27) -> 80 | L27: =IF(Ketrampilan!L27="","",Ketrampilan!L27) -> 80 | M27: =IF(Ketrampilan!M27="","",Ketrampilan!M27) -> 0 | N27: =IF(Ketrampilan!N27="","",Ketrampilan!N27) -> 80 | O27: =IF(Ketrampilan!O27="","",Ketrampilan!O27) -> 80 | P27: =IF(Ketrampilan!P27="","",Ketrampilan!P27) -> 3.2 | Q27: =IF(Ketrampilan!Q27="","",Ketrampilan!Q27) -> B+ | R27: =IF(Ketrampilan!R27="","",Ketrampilan!R27) -> Tuntas | BE27: Kompetensi ketrampilan rerata baik. Sudah trampil menyelesaikan soal cerita bilangan, sudah trampil menyelesaikan soal cerita perbandingan, sudah trampil menyelesaikan soal cerita aritmatika sosial, sudah trampil
A28: 8 | B28: ='Data '!D34 -> DIKA SUKMA AGUSTIN | C28: =IF(Ketrampilan!C28="","",Ketrampilan!C28) -> 80 | D28: =IF(Ketrampilan!D28="","",Ketrampilan!D28) -> 80 | E28: =IF(Ketrampilan!E28="","",Ketrampilan!E28) -> 80 | F28: =IF(Ketrampilan!F28="","",Ketrampilan!F28) -> 80 | G28: =IF(Ketrampilan!G28="","",Ketrampilan!G28) -> 80 | H28: =IF(Ketrampilan!H28="","",Ketrampilan!H28) -> 80 | I28: =IF(Ketrampilan!I28="","",Ketrampilan!I28) -> 0 | J28: =IF(Ketrampilan!J28="","",Ketrampilan!J28) -> 0 | K28: =IF(Ketrampilan!K28="","",Ketrampilan!K28) -> 80 | L28: =IF(Ketrampilan!L28="","",Ketrampilan!L28) -> 80 | M28: =IF(Ketrampilan!M28="","",Ketrampilan!M28) -> 0 | N28: =IF(Ketrampilan!N28="","",Ketrampilan!N28) -> 80 | O28: =IF(Ketrampilan!O28="","",Ketrampilan!O28) -> 80 | P28: =IF(Ketrampilan!P28="","",Ketrampilan!P28) -> 3.2 | Q28: =IF(Ketrampilan!Q28="","",Ketrampilan!Q28) -> B+ | R28: =IF(Ketrampilan!R28="","",Ketrampilan!R28) -> Tuntas | BE28: Kompetensi ketrampilan rerata baik. Sudah trampil menyelesaikan soal cerita bilangan, sudah trampil menyelesaikan soal cerita perbandingan, sudah trampil menyelesaikan soal cerita aritmatika sosial, sudah trampil
A29: 9 | B29: ='Data '!D35 -> DIVA ADITYA | C29: =IF(Ketrampilan!C29="","",Ketrampilan!C29) -> 80 | D29: =IF(Ketrampilan!D29="","",Ketrampilan!D29) -> 80 | E29: =IF(Ketrampilan!E29="","",Ketrampilan!E29) -> 80 | F29: =IF(Ketrampilan!F29="","",Ketrampilan!F29) -> 80 | G29: =IF(Ketrampilan!G29="","",Ketrampilan!G29) -> 80 | H29: =IF(Ketrampilan!H29="","",Ketrampilan!H29) -> 80 | I29: =IF(Ketrampilan!I29="","",Ketrampilan!I29) -> 0 | J29: =IF(Ketrampilan!J29="","",Ketrampilan!J29) -> 0 | K29: =IF(Ketrampilan!K29="","",Ketrampilan!K29) -> 80 | L29: =IF(Ketrampilan!L29="","",Ketrampilan!L29) -> 80 | M29: =IF(Ketrampilan!M29="","",Ketrampilan!M29) -> 0 | N29: =IF(Ketrampilan!N29="","",Ketrampilan!N29) -> 80 | O29: =IF(Ketrampilan!O29="","",Ketrampilan!O29) -> 80 | P29: =IF(Ketrampilan!P29="","",Ketrampilan!P29) -> 3.2 | Q29: =IF(Ketrampilan!Q29="","",Ketrampilan!Q29) -> B+ | R29: =IF(Ketrampilan!R29="","",Ketrampilan!R29) -> Tuntas | BE29: Kompetensi ketrampilan rerata baik. Sudah trampil menyelesaikan soal cerita bilangan, sudah trampil menyelesaikan soal cerita perbandingan, sudah trampil menyelesaikan soal cerita aritmatika sosial, sudah trampil
A30: 10 | B30: ='Data '!D36 -> EKO PRASTYO | C30: =IF(Ketrampilan!C30="","",Ketrampilan!C30) -> 80 | D30: =IF(Ketrampilan!D30="","",Ketrampilan!D30) -> 80 | E30: =IF(Ketrampilan!E30="","",Ketrampilan!E30) -> 80 | F30: =IF(Ketrampilan!F30="","",Ketrampilan!F30) -> 80 | G30: =IF(Ketrampilan!G30="","",Ketrampilan!G30) -> 80 | H30: =IF(Ketrampilan!H30="","",Ketrampilan!H30) -> 80 | I30: =IF(Ketrampilan!I30="","",Ketrampilan!I30) -> 0 | J30: =IF(Ketrampilan!J30="","",Ketrampilan!J30) -> 0 | K30: =IF(Ketrampilan!K30="","",Ketrampilan!K30) -> 80 | L30: =IF(Ketrampilan!L30="","",Ketrampilan!L30) -> 80 | M30: =IF(Ketrampilan!M30="","",Ketrampilan!M30) -> 0 | N30: =IF(Ketrampilan!N30="","",Ketrampilan!N30) -> 80 | O30: =IF(Ketrampilan!O30="","",Ketrampilan!O30) -> 80 | P30: =IF(Ketrampilan!P30="","",Ketrampilan!P30) -> 3.2 | Q30: =IF(Ketrampilan!Q30="","",Ketrampilan!Q30) -> B+ | R30: =IF(Ketrampilan!R30="","",Ketrampilan!R30) -> Tuntas | BE30: Kompetensi ketrampilan rerata baik. Sudah trampil menyelesaikan soal cerita bilangan, sudah trampil menyelesaikan soal cerita perbandingan, sudah trampil menyelesaikan soal cerita aritmatika sosial, sudah trampil
A31: 11 | B31: ='Data '!D37 -> FAIQUR RIJAL HAMMAM | C31: =IF(Ketrampilan!C31="","",Ketrampilan!C31) -> 80 | D31: =IF(Ketrampilan!D31="","",Ketrampilan!D31) -> 80 | E31: =IF(Ketrampilan!E31="","",Ketrampilan!E31) -> 80 | F31: =IF(Ketrampilan!F31="","",Ketrampilan!F31) -> 80 | G31: =IF(Ketrampilan!G31="","",Ketrampilan!G31) -> 80 | H31: =IF(Ketrampilan!H31="","",Ketrampilan!H31) -> 80 | I31: =IF(Ketrampilan!I31="","",Ketrampilan!I31) -> 0 | J31: =IF(Ketrampilan!J31="","",Ketrampilan!J31) -> 0 | K31: =IF(Ketrampilan!K31="","",Ketrampilan!K31) -> 80 | L31: =IF(Ketrampilan!L31="","",Ketrampilan!L31) -> 80 | M31: =IF(Ketrampilan!M31="","",Ketrampilan!M31) -> 0 | N31: =IF(Ketrampilan!N31="","",Ketrampilan!N31) -> 80 | O31: =IF(Ketrampilan!O31="","",Ketrampilan!O31) -> 80 | P31: =IF(Ketrampilan!P31="","",Ketrampilan!P31) -> 3.2 | Q31: =IF(Ketrampilan!Q31="","",Ketrampilan!Q31) -> B+ | R31: =IF(Ketrampilan!R31="","",Ketrampilan!R31) -> Tuntas | BE31: Kompetensi ketrampilan rerata baik. Sudah trampil menyelesaikan soal cerita bilangan, sudah trampil menyelesaikan soal cerita perbandingan, sudah trampil menyelesaikan soal cerita aritmatika sosial, sudah trampil
A32: 12 | B32: ='Data '!D38 -> FATESAR SARI PRASETYO | C32: =IF(Ketrampilan!C32="","",Ketrampilan!C32) -> 80 | D32: =IF(Ketrampilan!D32="","",Ketrampilan!D32) -> 80 | E32: =IF(Ketrampilan!E32="","",Ketrampilan!E32) -> 80 | F32: =IF(Ketrampilan!F32="","",Ketrampilan!F32) -> 80 | G32: =IF(Ketrampilan!G32="","",Ketrampilan!G32) -> 80 | H32: =IF(Ketrampilan!H32="","",Ketrampilan!H32) -> 80 | I32: =IF(Ketrampilan!I32="","",Ketrampilan!I32) -> 0 | J32: =IF(Ketrampilan!J32="","",Ketrampilan!J32) -> 0 | K32: =IF(Ketrampilan!K32="","",Ketrampilan!K32) -> 80 | L32: =IF(Ketrampilan!L32="","",Ketrampilan!L32) -> 80 | M32: =IF(Ketrampilan!M32="","",Ketrampilan!M32) -> 0 | N32: =IF(Ketrampilan!N32="","",Ketrampilan!N32) -> 80 | O32: =IF(Ketrampilan!O32="","",Ketrampilan!O32) -> 80 | P32: =IF(Ketrampilan!P32="","",Ketrampilan!P32) -> 3.2 | Q32: =IF(Ketrampilan!Q32="","",Ketrampilan!Q32) -> B+ | R32: =IF(Ketrampilan!R32="","",Ketrampilan!R32) -> Tuntas | BE32: Kompetensi ketrampilan rerata baik. Sudah trampil menyelesaikan soal cerita bilangan, sudah trampil menyelesaikan soal cerita perbandingan, sudah trampil menyelesaikan soal cerita aritmatika sosial, sudah trampil
A33: 13 | B33: ='Data '!D39 -> FEBRI SULISTIYO | C33: =IF(Ketrampilan!C33="","",Ketrampilan!C33) -> 80 | D33: =IF(Ketrampilan!D33="","",Ketrampilan!D33) -> 80 | E33: =IF(Ketrampilan!E33="","",Ketrampilan!E33) -> 80 | F33: =IF(Ketrampilan!F33="","",Ketrampilan!F33) -> 80 | G33: =IF(Ketrampilan!G33="","",Ketrampilan!G33) -> 80 | H33: =IF(Ketrampilan!H33="","",Ketrampilan!H33) -> 80 | I33: =IF(Ketrampilan!I33="","",Ketrampilan!I33) -> 0 | J33: =IF(Ketrampilan!J33="","",Ketrampilan!J33) -> 0 | K33: =IF(Ketrampilan!K33="","",Ketrampilan!K33) -> 80 | L33: =IF(Ketrampilan!L33="","",Ketrampilan!L33) -> 80 | M33: =IF(Ketrampilan!M33="","",Ketrampilan!M33) -> 0 | N33: =IF(Ketrampilan!N33="","",Ketrampilan!N33) -> 80 | O33: =IF(Ketrampilan!O33="","",Ketrampilan!O33) -> 80 | P33: =IF(Ketrampilan!P33="","",Ketrampilan!P33) -> 3.2 | Q33: =IF(Ketrampilan!Q33="","",Ketrampilan!Q33) -> B+ | R33: =IF(Ketrampilan!R33="","",Ketrampilan!R33) -> Tuntas | X33: halaman 2 | BE33: Kompetensi ketrampilan rerata baik. Sudah trampil menyelesaikan soal cerita bilangan, sudah trampil menyelesaikan soal cerita perbandingan, sudah trampil menyelesaikan soal cerita aritmatika sosial, sudah trampil
A34: 14 | B34: ='Data '!D40 -> FIONA NANDA FETRIAN | C34: =IF(Ketrampilan!C34="","",Ketrampilan!C34) -> 80 | D34: =IF(Ketrampilan!D34="","",Ketrampilan!D34) -> 80 | E34: =IF(Ketrampilan!E34="","",Ketrampilan!E34) -> 80 | F34: =IF(Ketrampilan!F34="","",Ketrampilan!F34) -> 80 | G34: =IF(Ketrampilan!G34="","",Ketrampilan!G34) -> 80 | H34: =IF(Ketrampilan!H34="","",Ketrampilan!H34) -> 80 | I34: =IF(Ketrampilan!I34="","",Ketrampilan!I34) -> 0 | J34: =IF(Ketrampilan!J34="","",Ketrampilan!J34) -> 0 | K34: =IF(Ketrampilan!K34="","",Ketrampilan!K34) -> 80 | L34: =IF(Ketrampilan!L34="","",Ketrampilan!L34) -> 80 | M34: =IF(Ketrampilan!M34="","",Ketrampilan!M34) -> 0 | N34: =IF(Ketrampilan!N34="","",Ketrampilan!N34) -> 80 | O34: =IF(Ketrampilan!O34="","",Ketrampilan!O34) -> 80 | P34: =IF(Ketrampilan!P34="","",Ketrampilan!P34) -> 3.2 | Q34: =IF(Ketrampilan!Q34="","",Ketrampilan!Q34) -> B+ | R34: =IF(Ketrampilan!R34="","",Ketrampilan!R34) -> Tuntas | BE34: Kompetensi ketrampilan rerata baik. Sudah trampil menyelesaikan soal cerita bilangan, sudah trampil menyelesaikan soal cerita perbandingan, sudah trampil menyelesaikan soal cerita aritmatika sosial, sudah trampil
A35: 15 | B35: ='Data '!D41 -> GILANG SYAHRUL RAMADHAN | C35: =IF(Ketrampilan!C35="","",Ketrampilan!C35) -> 80 | D35: =IF(Ketrampilan!D35="","",Ketrampilan!D35) -> 80 | E35: =IF(Ketrampilan!E35="","",Ketrampilan!E35) -> 80 | F35: =IF(Ketrampilan!F35="","",Ketrampilan!F35) -> 80 | G35: =IF(Ketrampilan!G35="","",Ketrampilan!G35) -> 80 | H35: =IF(Ketrampilan!H35="","",Ketrampilan!H35) -> 80 | I35: =IF(Ketrampilan!I35="","",Ketrampilan!I35) -> 0 | J35: =IF(Ketrampilan!J35="","",Ketrampilan!J35) -> 0 | K35: =IF(Ketrampilan!K35="","",Ketrampilan!K35) -> 80 | L35: =IF(Ketrampilan!L35="","",Ketrampilan!L35) -> 80 | M35: =IF(Ketrampilan!M35="","",Ketrampilan!M35) -> 0 | N35: =IF(Ketrampilan!N35="","",Ketrampilan!N35) -> 80 | O35: =IF(Ketrampilan!O35="","",Ketrampilan!O35) -> 80 | P35: =IF(Ketrampilan!P35="","",Ketrampilan!P35) -> 3.2 | Q35: =IF(Ketrampilan!Q35="","",Ketrampilan!Q35) -> B+ | R35: =IF(Ketrampilan!R35="","",Ketrampilan!R35) -> Tuntas | BE35: Kompetensi ketrampilan rerata baik. Sudah trampil menyelesaikan soal cerita bilangan, sudah trampil menyelesaikan soal cerita perbandingan, sudah trampil menyelesaikan soal cerita aritmatika sosial, sudah trampil
A36: 16 | B36: ='Data '!D42 -> IMAM AGUNG WAHYU PRATAMA | C36: =IF(Ketrampilan!C36="","",Ketrampilan!C36) -> 80 | D36: =IF(Ketrampilan!D36="","",Ketrampilan!D36) -> 80 | E36: =IF(Ketrampilan!E36="","",Ketrampilan!E36) -> 80 | F36: =IF(Ketrampilan!F36="","",Ketrampilan!F36) -> 80 | G36: =IF(Ketrampilan!G36="","",Ketrampilan!G36) -> 80 | H36: =IF(Ketrampilan!H36="","",Ketrampilan!H36) -> 80 | I36: =IF(Ketrampilan!I36="","",Ketrampilan!I36) -> 0 | J36: =IF(Ketrampilan!J36="","",Ketrampilan!J36) -> 0 | K36: =IF(Ketrampilan!K36="","",Ketrampilan!K36) -> 80 | L36: =IF(Ketrampilan!L36="","",Ketrampilan!L36) -> 80 | M36: =IF(Ketrampilan!M36="","",Ketrampilan!M36) -> 0 | N36: =IF(Ketrampilan!N36="","",Ketrampilan!N36) -> 80 | O36: =IF(Ketrampilan!O36="","",Ketrampilan!O36) -> 80 | P36: =IF(Ketrampilan!P36="","",Ketrampilan!P36) -> 3.2 | Q36: =IF(Ketrampilan!Q36="","",Ketrampilan!Q36) -> B+ | R36: =IF(Ketrampilan!R36="","",Ketrampilan!R36) -> Tuntas | BE36: Kompetensi ketrampilan rerata baik. Sudah trampil menyelesaikan soal cerita bilangan, sudah trampil menyelesaikan soal cerita perbandingan, sudah trampil menyelesaikan soal cerita aritmatika sosial, sudah trampil
A37: 17 | B37: ='Data '!D43 -> JOHAN MAULANA | C37: =IF(Ketrampilan!C37="","",Ketrampilan!C37) -> 80 | D37: =IF(Ketrampilan!D37="","",Ketrampilan!D37) -> 80 | E37: =IF(Ketrampilan!E37="","",Ketrampilan!E37) -> 80 | F37: =IF(Ketrampilan!F37="","",Ketrampilan!F37) -> 80 | G37: =IF(Ketrampilan!G37="","",Ketrampilan!G37) -> 80 | H37: =IF(Ketrampilan!H37="","",Ketrampilan!H37) -> 80 | I37: =IF(Ketrampilan!I37="","",Ketrampilan!I37) -> 0 | J37: =IF(Ketrampilan!J37="","",Ketrampilan!J37) -> 0 | K37: =IF(Ketrampilan!K37="","",Ketrampilan!K37) -> 80 | L37: =IF(Ketrampilan!L37="","",Ketrampilan!L37) -> 80 | M37: =IF(Ketrampilan!M37="","",Ketrampilan!M37) -> 0 | N37: =IF(Ketrampilan!N37="","",Ketrampilan!N37) -> 80 | O37: =IF(Ketrampilan!O37="","",Ketrampilan!O37) -> 80 | P37: =IF(Ketrampilan!P37="","",Ketrampilan!P37) -> 3.2 | Q37: =IF(Ketrampilan!Q37="","",Ketrampilan!Q37) -> B+ | R37: =IF(Ketrampilan!R37="","",Ketrampilan!R37) -> Tuntas | BE37: Kompetensi ketrampilan rerata baik. Sudah trampil menyelesaikan soal cerita bilangan, sudah trampil menyelesaikan soal cerita perbandingan, sudah trampil menyelesaikan soal cerita aritmatika sosial, sudah trampil
A38: 18 | B38: ='Data '!D44 -> JOKO SETIAWAN | C38: =IF(Ketrampilan!C38="","",Ketrampilan!C38) -> 80 | D38: =IF(Ketrampilan!D38="","",Ketrampilan!D38) -> 80 | E38: =IF(Ketrampilan!E38="","",Ketrampilan!E38) -> 80 | F38: =IF(Ketrampilan!F38="","",Ketrampilan!F38) -> 80 | G38: =IF(Ketrampilan!G38="","",Ketrampilan!G38) -> 80 | H38: =IF(Ketrampilan!H38="","",Ketrampilan!H38) -> 80 | I38: =IF(Ketrampilan!I38="","",Ketrampilan!I38) -> 0 | J38: =IF(Ketrampilan!J38="","",Ketrampilan!J38) -> 0 | K38: =IF(Ketrampilan!K38="","",Ketrampilan!K38) -> 80 | L38: =IF(Ketrampilan!L38="","",Ketrampilan!L38) -> 80 | M38: =IF(Ketrampilan!M38="","",Ketrampilan!M38) -> 0 | N38: =IF(Ketrampilan!N38="","",Ketrampilan!N38) -> 80 | O38: =IF(Ketrampilan!O38="","",Ketrampilan!O38) -> 80 | P38: =IF(Ketrampilan!P38="","",Ketrampilan!P38) -> 3.2 | Q38: =IF(Ketrampilan!Q38="","",Ketrampilan!Q38) -> B+ | R38: =IF(Ketrampilan!R38="","",Ketrampilan!R38) -> Tuntas | BE38: Kompetensi ketrampilan rerata baik. Sudah trampil menyelesaikan soal cerita bilangan, sudah trampil menyelesaikan soal cerita perbandingan, sudah trampil menyelesaikan soal cerita aritmatika sosial, sudah trampil
A39: 19 | B39: ='Data '!D45 -> LISA OKTAVINASARI | C39: =IF(Ketrampilan!C39="","",Ketrampilan!C39) -> 80 | D39: =IF(Ketrampilan!D39="","",Ketrampilan!D39) -> 80 | E39: =IF(Ketrampilan!E39="","",Ketrampilan!E39) -> 80 | F39: =IF(Ketrampilan!F39="","",Ketrampilan!F39) -> 80 | G39: =IF(Ketrampilan!G39="","",Ketrampilan!G39) -> 80 | H39: =IF(Ketrampilan!H39="","",Ketrampilan!H39) -> 80 | I39: =IF(Ketrampilan!I39="","",Ketrampilan!I39) -> 0 | J39: =IF(Ketrampilan!J39="","",Ketrampilan!J39) -> 0 | K39: =IF(Ketrampilan!K39="","",Ketrampilan!K39) -> 80 | L39: =IF(Ketrampilan!L39="","",Ketrampilan!L39) -> 80 | M39: =IF(Ketrampilan!M39="","",Ketrampilan!M39) -> 0 | N39: =IF(Ketrampilan!N39="","",Ketrampilan!N39) -> 80 | O39: =IF(Ketrampilan!O39="","",Ketrampilan!O39) -> 80 | P39: =IF(Ketrampilan!P39="","",Ketrampilan!P39) -> 3.2 | Q39: =IF(Ketrampilan!Q39="","",Ketrampilan!Q39) -> B+ | R39: =IF(Ketrampilan!R39="","",Ketrampilan!R39) -> Tuntas | BE39: Kompetensi ketrampilan rerata baik. Sudah trampil menyelesaikan soal cerita bilangan, sudah trampil menyelesaikan soal cerita perbandingan, sudah trampil menyelesaikan soal cerita aritmatika sosial, sudah trampil
A40: 20 | B40: ='Data '!D46 -> MARIA GILDA SIREGAR | C40: =IF(Ketrampilan!C40="","",Ketrampilan!C40) -> 80 | D40: =IF(Ketrampilan!D40="","",Ketrampilan!D40) -> 80 | E40: =IF(Ketrampilan!E40="","",Ketrampilan!E40) -> 80 | F40: =IF(Ketrampilan!F40="","",Ketrampilan!F40) -> 80 | G40: =IF(Ketrampilan!G40="","",Ketrampilan!G40) -> 80 | H40: =IF(Ketrampilan!H40="","",Ketrampilan!H40) -> 80 | I40: =IF(Ketrampilan!I40="","",Ketrampilan!I40) -> 0 | J40: =IF(Ketrampilan!J40="","",Ketrampilan!J40) -> 0 | K40: =IF(Ketrampilan!K40="","",Ketrampilan!K40) -> 80 | L40: =IF(Ketrampilan!L40="","",Ketrampilan!L40) -> 80 | M40: =IF(Ketrampilan!M40="","",Ketrampilan!M40) -> 0 | N40: =IF(Ketrampilan!N40="","",Ketrampilan!N40) -> 80 | O40: =IF(Ketrampilan!O40="","",Ketrampilan!O40) -> 80 | P40: =IF(Ketrampilan!P40="","",Ketrampilan!P40) -> 3.2 | Q40: =IF(Ketrampilan!Q40="","",Ketrampilan!Q40) -> B+ | R40: =IF(Ketrampilan!R40="","",Ketrampilan!R40) -> Tuntas | BE40: Kompetensi ketrampilan rerata baik. Sudah trampil menyelesaikan soal cerita bilangan, sudah trampil menyelesaikan soal cerita perbandingan, sudah trampil menyelesaikan soal cerita aritmatika sosial, sudah trampil
A41: 21 | B41: ='Data '!D47 -> MOHAMMAD NURKHOLISH | C41: =IF(Ketrampilan!C41="","",Ketrampilan!C41) -> 80 | D41: =IF(Ketrampilan!D41="","",Ketrampilan!D41) -> 80 | E41: =IF(Ketrampilan!E41="","",Ketrampilan!E41) -> 80 | F41: =IF(Ketrampilan!F41="","",Ketrampilan!F41) -> 80 | G41: =IF(Ketrampilan!G41="","",Ketrampilan!G41) -> 80 | H41: =IF(Ketrampilan!H41="","",Ketrampilan!H41) -> 80 | I41: =IF(Ketrampilan!I41="","",Ketrampilan!I41) -> 0 | J41: =IF(Ketrampilan!J41="","",Ketrampilan!J41) -> 0 | K41: =IF(Ketrampilan!K41="","",Ketrampilan!K41) -> 80 | L41: =IF(Ketrampilan!L41="","",Ketrampilan!L41) -> 80 | M41: =IF(Ketrampilan!M41="","",Ketrampilan!M41) -> 0 | N41: =IF(Ketrampilan!N41="","",Ketrampilan!N41) -> 80 | O41: =IF(Ketrampilan!O41="","",Ketrampilan!O41) -> 80 | P41: =IF(Ketrampilan!P41="","",Ketrampilan!P41) -> 3.2 | Q41: =IF(Ketrampilan!Q41="","",Ketrampilan!Q41) -> B+ | R41: =IF(Ketrampilan!R41="","",Ketrampilan!R41) -> Tuntas | BE41: Kompetensi ketrampilan rerata baik. Sudah trampil menyelesaikan soal cerita bilangan, sudah trampil menyelesaikan soal cerita perbandingan, sudah trampil menyelesaikan soal cerita aritmatika sosial, sudah trampil
A42: 22 | B42: ='Data '!D48 -> MUHAMAD FARIS ULIN NUHA | C42: =IF(Ketrampilan!C42="","",Ketrampilan!C42) -> 80 | D42: =IF(Ketrampilan!D42="","",Ketrampilan!D42) -> 80 | E42: =IF(Ketrampilan!E42="","",Ketrampilan!E42) -> 80 | F42: =IF(Ketrampilan!F42="","",Ketrampilan!F42) -> 80 | G42: =IF(Ketrampilan!G42="","",Ketrampilan!G42) -> 80 | H42: =IF(Ketrampilan!H42="","",Ketrampilan!H42) -> 80 | I42: =IF(Ketrampilan!I42="","",Ketrampilan!I42) -> 0 | J42: =IF(Ketrampilan!J42="","",Ketrampilan!J42) -> 0 | K42: =IF(Ketrampilan!K42="","",Ketrampilan!K42) -> 80 | L42: =IF(Ketrampilan!L42="","",Ketrampilan!L42) -> 80 | M42: =IF(Ketrampilan!M42="","",Ketrampilan!M42) -> 0 | N42: =IF(Ketrampilan!N42="","",Ketrampilan!N42) -> 80 | O42: =IF(Ketrampilan!O42="","",Ketrampilan!O42) -> 80 | P42: =IF(Ketrampilan!P42="","",Ketrampilan!P42) -> 3.2 | Q42: =IF(Ketrampilan!Q42="","",Ketrampilan!Q42) -> B+ | R42: =IF(Ketrampilan!R42="","",Ketrampilan!R42) -> Tuntas | BE42: Kompetensi ketrampilan rerata baik. Sudah trampil menyelesaikan soal cerita bilangan, sudah trampil menyelesaikan soal cerita perbandingan, sudah trampil menyelesaikan soal cerita aritmatika sosial, sudah trampil
A43: 23 | B43: ='Data '!D49 -> MUHAMMAD MUSTOFA | C43: =IF(Ketrampilan!C43="","",Ketrampilan!C43) -> 80 | D43: =IF(Ketrampilan!D43="","",Ketrampilan!D43) -> 80 | E43: =IF(Ketrampilan!E43="","",Ketrampilan!E43) -> 80 | F43: =IF(Ketrampilan!F43="","",Ketrampilan!F43) -> 80 | G43: =IF(Ketrampilan!G43="","",Ketrampilan!G43) -> 80 | H43: =IF(Ketrampilan!H43="","",Ketrampilan!H43) -> 80 | I43: =IF(Ketrampilan!I43="","",Ketrampilan!I43) -> 0 | J43: =IF(Ketrampilan!J43="","",Ketrampilan!J43) -> 0 | K43: =IF(Ketrampilan!K43="","",Ketrampilan!K43) -> 80 | L43: =IF(Ketrampilan!L43="","",Ketrampilan!L43) -> 80 | M43: =IF(Ketrampilan!M43="","",Ketrampilan!M43) -> 0 | N43: =IF(Ketrampilan!N43="","",Ketrampilan!N43) -> 80 | O43: =IF(Ketrampilan!O43="","",Ketrampilan!O43) -> 80 | P43: =IF(Ketrampilan!P43="","",Ketrampilan!P43) -> 3.2 | Q43: =IF(Ketrampilan!Q43="","",Ketrampilan!Q43) -> B+ | R43: =IF(Ketrampilan!R43="","",Ketrampilan!R43) -> Tuntas | BE43: Kompetensi ketrampilan rerata baik. Sudah trampil menyelesaikan soal cerita bilangan, sudah trampil menyelesaikan soal cerita perbandingan, sudah trampil menyelesaikan soal cerita aritmatika sosial, sudah trampil
A44: 24 | B44: ='Data '!D50 -> NANDA WINTYA PUTRI | C44: =IF(Ketrampilan!C44="","",Ketrampilan!C44) -> 80 | D44: =IF(Ketrampilan!D44="","",Ketrampilan!D44) -> 80 | E44: =IF(Ketrampilan!E44="","",Ketrampilan!E44) -> 80 | F44: =IF(Ketrampilan!F44="","",Ketrampilan!F44) -> 80 | G44: =IF(Ketrampilan!G44="","",Ketrampilan!G44) -> 80 | H44: =IF(Ketrampilan!H44="","",Ketrampilan!H44) -> 80 | I44: =IF(Ketrampilan!I44="","",Ketrampilan!I44) -> 0 | J44: =IF(Ketrampilan!J44="","",Ketrampilan!J44) -> 0 | K44: =IF(Ketrampilan!K44="","",Ketrampilan!K44) -> 80 | L44: =IF(Ketrampilan!L44="","",Ketrampilan!L44) -> 80 | M44: =IF(Ketrampilan!M44="","",Ketrampilan!M44) -> 0 | N44: =IF(Ketrampilan!N44="","",Ketrampilan!N44) -> 80 | O44: =IF(Ketrampilan!O44="","",Ketrampilan!O44) -> 80 | P44: =IF(Ketrampilan!P44="","",Ketrampilan!P44) -> 3.2 | Q44: =IF(Ketrampilan!Q44="","",Ketrampilan!Q44) -> B+ | R44: =IF(Ketrampilan!R44="","",Ketrampilan!R44) -> Tuntas | BE44: Kompetensi ketrampilan rerata baik. Sudah trampil menyelesaikan soal cerita bilangan, sudah trampil menyelesaikan soal cerita perbandingan, sudah trampil menyelesaikan soal cerita aritmatika sosial, sudah trampil
A45: 25 | B45: ='Data '!D51 -> NI'MA NOVA NUR FADHILAH | C45: =IF(Ketrampilan!C45="","",Ketrampilan!C45) -> 80 | D45: =IF(Ketrampilan!D45="","",Ketrampilan!D45) -> 80 | E45: =IF(Ketrampilan!E45="","",Ketrampilan!E45) -> 80 | F45: =IF(Ketrampilan!F45="","",Ketrampilan!F45) -> 80 | G45: =IF(Ketrampilan!G45="","",Ketrampilan!G45) -> 80 | H45: =IF(Ketrampilan!H45="","",Ketrampilan!H45) -> 80 | I45: =IF(Ketrampilan!I45="","",Ketrampilan!I45) -> 0 | J45: =IF(Ketrampilan!J45="","",Ketrampilan!J45) -> 0 | K45: =IF(Ketrampilan!K45="","",Ketrampilan!K45) -> 80 | L45: =IF(Ketrampilan!L45="","",Ketrampilan!L45) -> 80 | M45: =IF(Ketrampilan!M45="","",Ketrampilan!M45) -> 0 | N45: =IF(Ketrampilan!N45="","",Ketrampilan!N45) -> 80 | O45: =IF(Ketrampilan!O45="","",Ketrampilan!O45) -> 80 | P45: =IF(Ketrampilan!P45="","",Ketrampilan!P45) -> 3.2 | Q45: =IF(Ketrampilan!Q45="","",Ketrampilan!Q45) -> B+ | R45: =IF(Ketrampilan!R45="","",Ketrampilan!R45) -> Tuntas | BE45: Kompetensi ketrampilan rerata baik. Sudah trampil menyelesaikan soal cerita bilangan, sudah trampil menyelesaikan soal cerita perbandingan, sudah trampil menyelesaikan soal cerita aritmatika sosial, sudah trampil
A46: 26 | B46: ='Data '!D52 -> NITA ZUMROTUT TAQIYAH | C46: =IF(Ketrampilan!C46="","",Ketrampilan!C46) -> 80 | D46: =IF(Ketrampilan!D46="","",Ketrampilan!D46) -> 80 | E46: =IF(Ketrampilan!E46="","",Ketrampilan!E46) -> 80 | F46: =IF(Ketrampilan!F46="","",Ketrampilan!F46) -> 80 | G46: =IF(Ketrampilan!G46="","",Ketrampilan!G46) -> 80 | H46: =IF(Ketrampilan!H46="","",Ketrampilan!H46) -> 80 | I46: =IF(Ketrampilan!I46="","",Ketrampilan!I46) -> 0 | J46: =IF(Ketrampilan!J46="","",Ketrampilan!J46) -> 0 | K46: =IF(Ketrampilan!K46="","",Ketrampilan!K46) -> 80 | L46: =IF(Ketrampilan!L46="","",Ketrampilan!L46) -> 80 | M46: =IF(Ketrampilan!M46="","",Ketrampilan!M46) -> 0 | N46: =IF(Ketrampilan!N46="","",Ketrampilan!N46) -> 80 | O46: =IF(Ketrampilan!O46="","",Ketrampilan!O46) -> 80 | P46: =IF(Ketrampilan!P46="","",Ketrampilan!P46) -> 3.2 | Q46: =IF(Ketrampilan!Q46="","",Ketrampilan!Q46) -> B+ | R46: =IF(Ketrampilan!R46="","",Ketrampilan!R46) -> Tuntas | BE46: Kompetensi ketrampilan rerata baik. Sudah trampil menyelesaikan soal cerita bilangan, sudah trampil menyelesaikan soal cerita perbandingan, sudah trampil menyelesaikan soal cerita aritmatika sosial, sudah trampil
A47: 27 | B47: ='Data '!D53 -> RACHMAT SAPUTRA ANDRIANSYAH | C47: =IF(Ketrampilan!C47="","",Ketrampilan!C47) -> 80 | D47: =IF(Ketrampilan!D47="","",Ketrampilan!D47) -> 80 | E47: =IF(Ketrampilan!E47="","",Ketrampilan!E47) -> 80 | F47: =IF(Ketrampilan!F47="","",Ketrampilan!F47) -> 80 | G47: =IF(Ketrampilan!G47="","",Ketrampilan!G47) -> 80 | H47: =IF(Ketrampilan!H47="","",Ketrampilan!H47) -> 80 | I47: =IF(Ketrampilan!I47="","",Ketrampilan!I47) -> 0 | J47: =IF(Ketrampilan!J47="","",Ketrampilan!J47) -> 0 | K47: =IF(Ketrampilan!K47="","",Ketrampilan!K47) -> 80 | L47: =IF(Ketrampilan!L47="","",Ketrampilan!L47) -> 80 | M47: =IF(Ketrampilan!M47="","",Ketrampilan!M47) -> 0 | N47: =IF(Ketrampilan!N47="","",Ketrampilan!N47) -> 80 | O47: =IF(Ketrampilan!O47="","",Ketrampilan!O47) -> 80 | P47: =IF(Ketrampilan!P47="","",Ketrampilan!P47) -> 3.2 | Q47: =IF(Ketrampilan!Q47="","",Ketrampilan!Q47) -> B+ | R47: =IF(Ketrampilan!R47="","",Ketrampilan!R47) -> Tuntas | BE47: Kompetensi ketrampilan rerata baik. Sudah trampil menyelesaikan soal cerita bilangan, sudah trampil menyelesaikan soal cerita perbandingan, sudah trampil menyelesaikan soal cerita aritmatika sosial, sudah trampil
A48: 28 | B48: ='Data '!D54 -> RIZAL ANDRIYAN SAPUTRA | C48: =IF(Ketrampilan!C48="","",Ketrampilan!C48) -> 80 | D48: =IF(Ketrampilan!D48="","",Ketrampilan!D48) -> 80 | E48: =IF(Ketrampilan!E48="","",Ketrampilan!E48) -> 80 | F48: =IF(Ketrampilan!F48="","",Ketrampilan!F48) -> 80 | G48: =IF(Ketrampilan!G48="","",Ketrampilan!G48) -> 80 | H48: =IF(Ketrampilan!H48="","",Ketrampilan!H48) -> 80 | I48: =IF(Ketrampilan!I48="","",Ketrampilan!I48) -> 0 | J48: =IF(Ketrampilan!J48="","",Ketrampilan!J48) -> 0 | K48: =IF(Ketrampilan!K48="","",Ketrampilan!K48) -> 80 | L48: =IF(Ketrampilan!L48="","",Ketrampilan!L48) -> 80 | M48: =IF(Ketrampilan!M48="","",Ketrampilan!M48) -> 0 | N48: =IF(Ketrampilan!N48="","",Ketrampilan!N48) -> 80 | O48: =IF(Ketrampilan!O48="","",Ketrampilan!O48) -> 80 | P48: =IF(Ketrampilan!P48="","",Ketrampilan!P48) -> 3.2 | Q48: =IF(Ketrampilan!Q48="","",Ketrampilan!Q48) -> B+ | R48: =IF(Ketrampilan!R48="","",Ketrampilan!R48) -> Tuntas | BE48: Kompetensi ketrampilan rerata baik. Sudah trampil menyelesaikan soal cerita bilangan, sudah trampil menyelesaikan soal cerita perbandingan, sudah trampil menyelesaikan soal cerita aritmatika sosial, sudah trampil
A49: 29 | B49: ='Data '!D55 -> SAIFUL ANNAS | C49: =IF(Ketrampilan!C49="","",Ketrampilan!C49) -> 80 | D49: =IF(Ketrampilan!D49="","",Ketrampilan!D49) -> 80 | E49: =IF(Ketrampilan!E49="","",Ketrampilan!E49) -> 80 | F49: =IF(Ketrampilan!F49="","",Ketrampilan!F49) -> 80 | G49: =IF(Ketrampilan!G49="","",Ketrampilan!G49) -> 80 | H49: =IF(Ketrampilan!H49="","",Ketrampilan!H49) -> 80 | I49: =IF(Ketrampilan!I49="","",Ketrampilan!I49) -> 0 | J49: =IF(Ketrampilan!J49="","",Ketrampilan!J49) -> 0 | K49: =IF(Ketrampilan!K49="","",Ketrampilan!K49) -> 80 | L49: =IF(Ketrampilan!L49="","",Ketrampilan!L49) -> 80 | M49: =IF(Ketrampilan!M49="","",Ketrampilan!M49) -> 0 | N49: =IF(Ketrampilan!N49="","",Ketrampilan!N49) -> 80 | O49: =IF(Ketrampilan!O49="","",Ketrampilan!O49) -> 80 | P49: =IF(Ketrampilan!P49="","",Ketrampilan!P49) -> 3.2 | Q49: =IF(Ketrampilan!Q49="","",Ketrampilan!Q49) -> B+ | R49: =IF(Ketrampilan!R49="","",Ketrampilan!R49) -> Tuntas | BE49: Kompetensi ketrampilan rerata baik. Sudah trampil menyelesaikan soal cerita bilangan, sudah trampil menyelesaikan soal cerita perbandingan, sudah trampil menyelesaikan soal cerita aritmatika sosial, sudah trampil
A50: 30 | B50: ='Data '!D56 -> SELINA SEPTIANI | C50: =IF(Ketrampilan!C50="","",Ketrampilan!C50) -> 80 | D50: =IF(Ketrampilan!D50="","",Ketrampilan!D50) -> 80 | E50: =IF(Ketrampilan!E50="","",Ketrampilan!E50) -> 80 | F50: =IF(Ketrampilan!F50="","",Ketrampilan!F50) -> 80 | G50: =IF(Ketrampilan!G50="","",Ketrampilan!G50) -> 80 | H50: =IF(Ketrampilan!H50="","",Ketrampilan!H50) -> 80 | I50: =IF(Ketrampilan!I50="","",Ketrampilan!I50) -> 0 | J50: =IF(Ketrampilan!J50="","",Ketrampilan!J50) -> 0 | K50: =IF(Ketrampilan!K50="","",Ketrampilan!K50) -> 80 | L50: =IF(Ketrampilan!L50="","",Ketrampilan!L50) -> 80 | M50: =IF(Ketrampilan!M50="","",Ketrampilan!M50) -> 0 | N50: =IF(Ketrampilan!N50="","",Ketrampilan!N50) -> 80 | O50: =IF(Ketrampilan!O50="","",Ketrampilan!O50) -> 80 | P50: =IF(Ketrampilan!P50="","",Ketrampilan!P50) -> 3.2 | Q50: =IF(Ketrampilan!Q50="","",Ketrampilan!Q50) -> B+ | R50: =IF(Ketrampilan!R50="","",Ketrampilan!R50) -> Tuntas | BE50: Kompetensi ketrampilan rerata baik. Sudah trampil menyelesaikan soal cerita bilangan, sudah trampil menyelesaikan soal cerita perbandingan, sudah trampil menyelesaikan soal cerita aritmatika sosial, sudah trampil
A51: 31 | B51: ='Data '!D57 -> SHALSABILA SHINTA NIRMALA | C51: =IF(Ketrampilan!C51="","",Ketrampilan!C51) -> 80 | D51: =IF(Ketrampilan!D51="","",Ketrampilan!D51) -> 80 | E51: =IF(Ketrampilan!E51="","",Ketrampilan!E51) -> 80 | F51: =IF(Ketrampilan!F51="","",Ketrampilan!F51) -> 80 | G51: =IF(Ketrampilan!G51="","",Ketrampilan!G51) -> 80 | H51: =IF(Ketrampilan!H51="","",Ketrampilan!H51) -> 80 | I51: =IF(Ketrampilan!I51="","",Ketrampilan!I51) -> 0 | J51: =IF(Ketrampilan!J51="","",Ketrampilan!J51) -> 0 | K51: =IF(Ketrampilan!K51="","",Ketrampilan!K51) -> 80 | L51: =IF(Ketrampilan!L51="","",Ketrampilan!L51) -> 80 | M51: =IF(Ketrampilan!M51="","",Ketrampilan!M51) -> 0 | N51: =IF(Ketrampilan!N51="","",Ketrampilan!N51) -> 80 | O51: =IF(Ketrampilan!O51="","",Ketrampilan!O51) -> 80 | P51: =IF(Ketrampilan!P51="","",Ketrampilan!P51) -> 3.2 | Q51: =IF(Ketrampilan!Q51="","",Ketrampilan!Q51) -> B+ | R51: =IF(Ketrampilan!R51="","",Ketrampilan!R51) -> Tuntas | BE51: Kompetensi ketrampilan rerata baik. Sudah trampil menyelesaikan soal cerita bilangan, sudah trampil menyelesaikan soal cerita perbandingan, sudah trampil menyelesaikan soal cerita aritmatika sosial, sudah trampil
A52: 32 | B52: ='Data '!D58 -> SITI CHOIRIATUS SA'ADAH | C52: =IF(Ketrampilan!C52="","",Ketrampilan!C52) -> 80 | D52: =IF(Ketrampilan!D52="","",Ketrampilan!D52) -> 80 | E52: =IF(Ketrampilan!E52="","",Ketrampilan!E52) -> 80 | F52: =IF(Ketrampilan!F52="","",Ketrampilan!F52) -> 80 | G52: =IF(Ketrampilan!G52="","",Ketrampilan!G52) -> 80 | H52: =IF(Ketrampilan!H52="","",Ketrampilan!H52) -> 80 | I52: =IF(Ketrampilan!I52="","",Ketrampilan!I52) -> 0 | J52: =IF(Ketrampilan!J52="","",Ketrampilan!J52) -> 0 | K52: =IF(Ketrampilan!K52="","",Ketrampilan!K52) -> 80 | L52: =IF(Ketrampilan!L52="","",Ketrampilan!L52) -> 80 | M52: =IF(Ketrampilan!M52="","",Ketrampilan!M52) -> 0 | N52: =IF(Ketrampilan!N52="","",Ketrampilan!N52) -> 80 | O52: =IF(Ketrampilan!O52="","",Ketrampilan!O52) -> 80 | P52: =IF(Ketrampilan!P52="","",Ketrampilan!P52) -> 3.2 | Q52: =IF(Ketrampilan!Q52="","",Ketrampilan!Q52) -> B+ | R52: =IF(Ketrampilan!R52="","",Ketrampilan!R52) -> Tuntas | BE52: Kompetensi ketrampilan rerata baik. Sudah trampil menyelesaikan soal cerita bilangan, sudah trampil menyelesaikan soal cerita perbandingan, sudah trampil menyelesaikan soal cerita aritmatika sosial, sudah trampil
A53: 33 | B53: ='Data '!D59 -> SITI NURFAN AZIZAH | C53: =IF(Ketrampilan!C53="","",Ketrampilan!C53) -> 80 | D53: =IF(Ketrampilan!D53="","",Ketrampilan!D53) -> 80 | E53: =IF(Ketrampilan!E53="","",Ketrampilan!E53) -> 80 | F53: =IF(Ketrampilan!F53="","",Ketrampilan!F53) -> 80 | G53: =IF(Ketrampilan!G53="","",Ketrampilan!G53) -> 80 | H53: =IF(Ketrampilan!H53="","",Ketrampilan!H53) -> 80 | I53: =IF(Ketrampilan!I53="","",Ketrampilan!I53) -> 0 | J53: =IF(Ketrampilan!J53="","",Ketrampilan!J53) -> 0 | K53: =IF(Ketrampilan!K53="","",Ketrampilan!K53) -> 80 | L53: =IF(Ketrampilan!L53="","",Ketrampilan!L53) -> 80 | M53: =IF(Ketrampilan!M53="","",Ketrampilan!M53) -> 0 | N53: =IF(Ketrampilan!N53="","",Ketrampilan!N53) -> 80 | O53: =IF(Ketrampilan!O53="","",Ketrampilan!O53) -> 80 | P53: =IF(Ketrampilan!P53="","",Ketrampilan!P53) -> 3.2 | Q53: =IF(Ketrampilan!Q53="","",Ketrampilan!Q53) -> B+ | R53: =IF(Ketrampilan!R53="","",Ketrampilan!R53) -> Tuntas | BE53: Kompetensi ketrampilan rerata baik. Sudah trampil menyelesaikan soal cerita bilangan, sudah trampil menyelesaikan soal cerita perbandingan, sudah trampil menyelesaikan soal cerita aritmatika sosial, sudah trampil
A54: 34 | B54: ='Data '!D60 -> SITI RAHAYU | C54: =IF(Ketrampilan!C54="","",Ketrampilan!C54) -> 80 | D54: =IF(Ketrampilan!D54="","",Ketrampilan!D54) -> 80 | E54: =IF(Ketrampilan!E54="","",Ketrampilan!E54) -> 80 | F54: =IF(Ketrampilan!F54="","",Ketrampilan!F54) -> 80 | G54: =IF(Ketrampilan!G54="","",Ketrampilan!G54) -> 80 | H54: =IF(Ketrampilan!H54="","",Ketrampilan!H54) -> 80 | I54: =IF(Ketrampilan!I54="","",Ketrampilan!I54) -> 0 | J54: =IF(Ketrampilan!J54="","",Ketrampilan!J54) -> 0 | K54: =IF(Ketrampilan!K54="","",Ketrampilan!K54) -> 80 | L54: =IF(Ketrampilan!L54="","",Ketrampilan!L54) -> 80 | M54: =IF(Ketrampilan!M54="","",Ketrampilan!M54) -> 0 | N54: =IF(Ketrampilan!N54="","",Ketrampilan!N54) -> 80 | O54: =IF(Ketrampilan!O54="","",Ketrampilan!O54) -> 80 | P54: =IF(Ketrampilan!P54="","",Ketrampilan!P54) -> 3.2 | Q54: =IF(Ketrampilan!Q54="","",Ketrampilan!Q54) -> B+ | R54: =IF(Ketrampilan!R54="","",Ketrampilan!R54) -> Tuntas | BE54: Kompetensi ketrampilan rerata baik. Sudah trampil menyelesaikan soal cerita bilangan, sudah trampil menyelesaikan soal cerita perbandingan, sudah trampil menyelesaikan soal cerita aritmatika sosial, sudah trampil
A55: 35 | B55: ='Data '!D61 -> STEVIANA PUSPITA SARI | C55: =IF(Ketrampilan!C55="","",Ketrampilan!C55) -> 80 | D55: =IF(Ketrampilan!D55="","",Ketrampilan!D55) -> 80 | E55: =IF(Ketrampilan!E55="","",Ketrampilan!E55) -> 80 | F55: =IF(Ketrampilan!F55="","",Ketrampilan!F55) -> 80 | G55: =IF(Ketrampilan!G55="","",Ketrampilan!G55) -> 80 | H55: =IF(Ketrampilan!H55="","",Ketrampilan!H55) -> 80 | I55: =IF(Ketrampilan!I55="","",Ketrampilan!I55) -> 0 | J55: =IF(Ketrampilan!J55="","",Ketrampilan!J55) -> 0 | K55: =IF(Ketrampilan!K55="","",Ketrampilan!K55) -> 80 | L55: =IF(Ketrampilan!L55="","",Ketrampilan!L55) -> 80 | M55: =IF(Ketrampilan!M55="","",Ketrampilan!M55) -> 0 | N55: =IF(Ketrampilan!N55="","",Ketrampilan!N55) -> 80 | O55: =IF(Ketrampilan!O55="","",Ketrampilan!O55) -> 80 | P55: =IF(Ketrampilan!P55="","",Ketrampilan!P55) -> 3.2 | Q55: =IF(Ketrampilan!Q55="","",Ketrampilan!Q55) -> B+ | R55: =IF(Ketrampilan!R55="","",Ketrampilan!R55) -> Tuntas | BE55: Kompetensi ketrampilan rerata baik. Sudah trampil menyelesaikan soal cerita bilangan, sudah trampil menyelesaikan soal cerita perbandingan, sudah trampil menyelesaikan soal cerita aritmatika sosial, sudah trampil
A56: 36 | B56: ='Data '!D62 -> TAN LINGGAR PRAMUDITA | C56: =IF(Ketrampilan!C56="","",Ketrampilan!C56) -> 80 | D56: =IF(Ketrampilan!D56="","",Ketrampilan!D56) -> 80 | E56: =IF(Ketrampilan!E56="","",Ketrampilan!E56) -> 80 | F56: =IF(Ketrampilan!F56="","",Ketrampilan!F56) -> 80 | G56: =IF(Ketrampilan!G56="","",Ketrampilan!G56) -> 80 | H56: =IF(Ketrampilan!H56="","",Ketrampilan!H56) -> 80 | I56: =IF(Ketrampilan!I56="","",Ketrampilan!I56) -> 0 | J56: =IF(Ketrampilan!J56="","",Ketrampilan!J56) -> 0 | K56: =IF(Ketrampilan!K56="","",Ketrampilan!K56) -> 80 | L56: =IF(Ketrampilan!L56="","",Ketrampilan!L56) -> 80 | M56: =IF(Ketrampilan!M56="","",Ketrampilan!M56) -> 0 | N56: =IF(Ketrampilan!N56="","",Ketrampilan!N56) -> 80 | O56: =IF(Ketrampilan!O56="","",Ketrampilan!O56) -> 80 | P56: =IF(Ketrampilan!P56="","",Ketrampilan!P56) -> 3.2 | Q56: =IF(Ketrampilan!Q56="","",Ketrampilan!Q56) -> B+ | R56: =IF(Ketrampilan!R56="","",Ketrampilan!R56) -> Tuntas | BE56: Kompetensi ketrampilan rerata baik. Sudah trampil menyelesaikan soal cerita bilangan, sudah trampil menyelesaikan soal cerita perbandingan, sudah trampil menyelesaikan soal cerita aritmatika sosial, sudah trampil
A57: 37 | B57: ='Data '!D63 -> TAUFIK NUR AZIZ DANUARTA | C57: =IF(Ketrampilan!C57="","",Ketrampilan!C57) -> 80 | D57: =IF(Ketrampilan!D57="","",Ketrampilan!D57) -> 80 | E57: =IF(Ketrampilan!E57="","",Ketrampilan!E57) -> 80 | F57: =IF(Ketrampilan!F57="","",Ketrampilan!F57) -> 80 | G57: =IF(Ketrampilan!G57="","",Ketrampilan!G57) -> 80 | H57: =IF(Ketrampilan!H57="","",Ketrampilan!H57) -> 80 | I57: =IF(Ketrampilan!I57="","",Ketrampilan!I57) -> 0 | J57: =IF(Ketrampilan!J57="","",Ketrampilan!J57) -> 0 | K57: =IF(Ketrampilan!K57="","",Ketrampilan!K57) -> 80 | L57: =IF(Ketrampilan!L57="","",Ketrampilan!L57) -> 80 | M57: =IF(Ketrampilan!M57="","",Ketrampilan!M57) -> 0 | N57: =IF(Ketrampilan!N57="","",Ketrampilan!N57) -> 80 | O57: =IF(Ketrampilan!O57="","",Ketrampilan!O57) -> 80 | P57: =IF(Ketrampilan!P57="","",Ketrampilan!P57) -> 3.2 | Q57: =IF(Ketrampilan!Q57="","",Ketrampilan!Q57) -> B+ | R57: =IF(Ketrampilan!R57="","",Ketrampilan!R57) -> Tuntas | BE57: Kompetensi ketrampilan rerata baik. Sudah trampil menyelesaikan soal cerita bilangan, sudah trampil menyelesaikan soal cerita perbandingan, sudah trampil menyelesaikan soal cerita aritmatika sosial, sudah trampil
A58: 38 | B58: ='Data '!D64 -> TIARA PUTRI AYUNINGTIAS | C58: =IF(Ketrampilan!C58="","",Ketrampilan!C58) -> 80 | D58: =IF(Ketrampilan!D58="","",Ketrampilan!D58) -> 80 | E58: =IF(Ketrampilan!E58="","",Ketrampilan!E58) -> 80 | F58: =IF(Ketrampilan!F58="","",Ketrampilan!F58) -> 80 | G58: =IF(Ketrampilan!G58="","",Ketrampilan!G58) -> 80 | H58: =IF(Ketrampilan!H58="","",Ketrampilan!H58) -> 80 | I58: =IF(Ketrampilan!I58="","",Ketrampilan!I58) -> 0 | J58: =IF(Ketrampilan!J58="","",Ketrampilan!J58) -> 0 | K58: =IF(Ketrampilan!K58="","",Ketrampilan!K58) -> 80 | L58: =IF(Ketrampilan!L58="","",Ketrampilan!L58) -> 80 | M58: =IF(Ketrampilan!M58="","",Ketrampilan!M58) -> 0 | N58: =IF(Ketrampilan!N58="","",Ketrampilan!N58) -> 80 | O58: =IF(Ketrampilan!O58="","",Ketrampilan!O58) -> 80 | P58: =IF(Ketrampilan!P58="","",Ketrampilan!P58) -> 3.2 | Q58: =IF(Ketrampilan!Q58="","",Ketrampilan!Q58) -> B+ | R58: =IF(Ketrampilan!R58="","",Ketrampilan!R58) -> Tuntas | X58: halaman 3 | BE58: Kompetensi ketrampilan rerata baik. Sudah trampil menyelesaikan soal cerita bilangan, sudah trampil menyelesaikan soal cerita perbandingan, sudah trampil menyelesaikan soal cerita aritmatika sosial, sudah trampil
A59: 39 | B59: ='Data '!D65 -> TITANIA GAYATRI PRIANJANI | C59: =IF(Ketrampilan!C59="","",Ketrampilan!C59) -> 80 | D59: =IF(Ketrampilan!D59="","",Ketrampilan!D59) -> 80 | E59: =IF(Ketrampilan!E59="","",Ketrampilan!E59) -> 80 | F59: =IF(Ketrampilan!F59="","",Ketrampilan!F59) -> 80 | G59: =IF(Ketrampilan!G59="","",Ketrampilan!G59) -> 80 | H59: =IF(Ketrampilan!H59="","",Ketrampilan!H59) -> 80 | I59: =IF(Ketrampilan!I59="","",Ketrampilan!I59) -> 0 | J59: =IF(Ketrampilan!J59="","",Ketrampilan!J59) -> 0 | K59: =IF(Ketrampilan!K59="","",Ketrampilan!K59) -> 80 | L59: =IF(Ketrampilan!L59="","",Ketrampilan!L59) -> 80 | M59: =IF(Ketrampilan!M59="","",Ketrampilan!M59) -> 0 | N59: =IF(Ketrampilan!N59="","",Ketrampilan!N59) -> 80 | O59: =IF(Ketrampilan!O59="","",Ketrampilan!O59) -> 80 | P59: =IF(Ketrampilan!P59="","",Ketrampilan!P59) -> 3.2 | Q59: =IF(Ketrampilan!Q59="","",Ketrampilan!Q59) -> B+ | R59: =IF(Ketrampilan!R59="","",Ketrampilan!R59) -> Tuntas | BE59: Kompetensi ketrampilan rerata baik. Sudah trampil menyelesaikan soal cerita bilangan, sudah trampil menyelesaikan soal cerita perbandingan, sudah trampil menyelesaikan soal cerita aritmatika sosial, sudah trampil
A60: 40 | B60: ='Data '!D66 -> ULFATUN NI'MAH | C60: =IF(Ketrampilan!C60="","",Ketrampilan!C60) -> 80 | D60: =IF(Ketrampilan!D60="","",Ketrampilan!D60) -> 80 | E60: =IF(Ketrampilan!E60="","",Ketrampilan!E60) -> 80 | F60: =IF(Ketrampilan!F60="","",Ketrampilan!F60) -> 80 | G60: =IF(Ketrampilan!G60="","",Ketrampilan!G60) -> 80 | H60: =IF(Ketrampilan!H60="","",Ketrampilan!H60) -> 80 | I60: =IF(Ketrampilan!I60="","",Ketrampilan!I60) -> 0 | J60: =IF(Ketrampilan!J60="","",Ketrampilan!J60) -> 0 | K60: =IF(Ketrampilan!K60="","",Ketrampilan!K60) -> 80 | L60: =IF(Ketrampilan!L60="","",Ketrampilan!L60) -> 80 | M60: =IF(Ketrampilan!M60="","",Ketrampilan!M60) -> 0 | N60: =IF(Ketrampilan!N60="","",Ketrampilan!N60) -> 80 | O60: =IF(Ketrampilan!O60="","",Ketrampilan!O60) -> 80 | P60: =IF(Ketrampilan!P60="","",Ketrampilan!P60) -> 3.2 | Q60: =IF(Ketrampilan!Q60="","",Ketrampilan!Q60) -> B+ | R60: =IF(Ketrampilan!R60="","",Ketrampilan!R60) -> Tuntas | BE60: Kompetensi ketrampilan rerata baik. Sudah trampil menyelesaikan soal cerita bilangan, sudah trampil menyelesaikan soal cerita perbandingan, sudah trampil menyelesaikan soal cerita aritmatika sosial, sudah trampil
A61: 41 | B61: ='Data '!D67 -> 0 | C61: =IF(Ketrampilan!C61="","",Ketrampilan!C61) ->  | D61: =IF(Ketrampilan!D61="","",Ketrampilan!D61) ->  | E61: =IF(Ketrampilan!E61="","",Ketrampilan!E61) ->  | F61: =IF(Ketrampilan!F61="","",Ketrampilan!F61) ->  | G61: =IF(Ketrampilan!G61="","",Ketrampilan!G61) -> 0 | H61: =IF(Ketrampilan!H61="","",Ketrampilan!H61) -> 0 | I61: =IF(Ketrampilan!I61="","",Ketrampilan!I61) -> 0 | J61: =IF(Ketrampilan!J61="","",Ketrampilan!J61) -> 0 | K61: =IF(Ketrampilan!K61="","",Ketrampilan!K61) -> 0 | L61: =IF(Ketrampilan!L61="","",Ketrampilan!L61) -> 0 | M61: =IF(Ketrampilan!M61="","",Ketrampilan!M61) -> 0 | N61: =IF(Ketrampilan!N61="","",Ketrampilan!N61) -> 0 | O61: =IF(Ketrampilan!O61="","",Ketrampilan!O61) -> 0 | P61: =IF(Ketrampilan!P61="","",Ketrampilan!P61) -> 0 | Q61: =IF(Ketrampilan!Q61="","",Ketrampilan!Q61) -> D | R61: =IF(Ketrampilan!R61="","",Ketrampilan!R61) -> Tidak Tuntas | BE61: Sangat trampil menyelesaikan soal cerita bilangan, sangat trampil menyelesaikan soal cerita perbandingan, sangat trampil menyelesaikan soal cerita aritmatika sosial, sangat trampil
A62: 42 | B62: ='Data '!D68 -> 0 | C62: =IF(Ketrampilan!C62="","",Ketrampilan!C62) ->  | D62: =IF(Ketrampilan!D62="","",Ketrampilan!D62) ->  | E62: =IF(Ketrampilan!E62="","",Ketrampilan!E62) ->  | F62: =IF(Ketrampilan!F62="","",Ketrampilan!F62) ->  | G62: =IF(Ketrampilan!G62="","",Ketrampilan!G62) -> 0 | H62: =IF(Ketrampilan!H62="","",Ketrampilan!H62) -> 0 | I62: =IF(Ketrampilan!I62="","",Ketrampilan!I62) -> 0 | J62: =IF(Ketrampilan!J62="","",Ketrampilan!J62) -> 0 | K62: =IF(Ketrampilan!K62="","",Ketrampilan!K62) -> 0 | L62: =IF(Ketrampilan!L62="","",Ketrampilan!L62) -> 0 | M62: =IF(Ketrampilan!M62="","",Ketrampilan!M62) -> 0 | N62: =IF(Ketrampilan!N62="","",Ketrampilan!N62) -> 0 | O62: =IF(Ketrampilan!O62="","",Ketrampilan!O62) -> 0 | P62: =IF(Ketrampilan!P62="","",Ketrampilan!P62) -> 0 | Q62: =IF(Ketrampilan!Q62="","",Ketrampilan!Q62) -> D | R62: =IF(Ketrampilan!R62="","",Ketrampilan!R62) -> Tidak Tuntas | BE62: Sangat trampil menyelesaikan soal cerita bilangan, sangat trampil menyelesaikan soal cerita perbandingan, sangat trampil menyelesaikan soal cerita aritmatika sosial, sangat trampil
A63: 43 | B63: ='Data '!D69 -> 0 | C63: =IF(Ketrampilan!C63="","",Ketrampilan!C63) ->  | D63: =IF(Ketrampilan!D63="","",Ketrampilan!D63) ->  | E63: =IF(Ketrampilan!E63="","",Ketrampilan!E63) ->  | F63: =IF(Ketrampilan!F63="","",Ketrampilan!F63) ->  | G63: =IF(Ketrampilan!G63="","",Ketrampilan!G63) -> 0 | H63: =IF(Ketrampilan!H63="","",Ketrampilan!H63) -> 0 | I63: =IF(Ketrampilan!I63="","",Ketrampilan!I63) -> 0 | J63: =IF(Ketrampilan!J63="","",Ketrampilan!J63) -> 0 | K63: =IF(Ketrampilan!K63="","",Ketrampilan!K63) -> 0 | L63: =IF(Ketrampilan!L63="","",Ketrampilan!L63) -> 0 | M63: =IF(Ketrampilan!M63="","",Ketrampilan!M63) -> 0 | N63: =IF(Ketrampilan!N63="","",Ketrampilan!N63) -> 0 | O63: =IF(Ketrampilan!O63="","",Ketrampilan!O63) -> 0 | P63: =IF(Ketrampilan!P63="","",Ketrampilan!P63) -> 0 | Q63: =IF(Ketrampilan!Q63="","",Ketrampilan!Q63) -> D | R63: =IF(Ketrampilan!R63="","",Ketrampilan!R63) -> Tidak Tuntas | BE63: Sangat trampil menyelesaikan soal cerita bilangan, sangat trampil menyelesaikan soal cerita perbandingan, sangat trampil menyelesaikan soal cerita aritmatika sosial, sangat trampil
A64: 44 | B64: ='Data '!D70 -> 0 | C64: =IF(Ketrampilan!C64="","",Ketrampilan!C64) ->  | D64: =IF(Ketrampilan!D64="","",Ketrampilan!D64) ->  | E64: =IF(Ketrampilan!E64="","",Ketrampilan!E64) ->  | F64: =IF(Ketrampilan!F64="","",Ketrampilan!F64) ->  | G64: =IF(Ketrampilan!G64="","",Ketrampilan!G64) -> 0 | H64: =IF(Ketrampilan!H64="","",Ketrampilan!H64) -> 0 | I64: =IF(Ketrampilan!I64="","",Ketrampilan!I64) -> 0 | J64: =IF(Ketrampilan!J64="","",Ketrampilan!J64) -> 0 | K64: =IF(Ketrampilan!K64="","",Ketrampilan!K64) -> 0 | L64: =IF(Ketrampilan!L64="","",Ketrampilan!L64) -> 0 | M64: =IF(Ketrampilan!M64="","",Ketrampilan!M64) -> 0 | N64: =IF(Ketrampilan!N64="","",Ketrampilan!N64) -> 0 | O64: =IF(Ketrampilan!O64="","",Ketrampilan!O64) -> 0 | P64: =IF(Ketrampilan!P64="","",Ketrampilan!P64) -> 0 | Q64: =IF(Ketrampilan!Q64="","",Ketrampilan!Q64) -> D | R64: =IF(Ketrampilan!R64="","",Ketrampilan!R64) -> Tidak Tuntas | BE64: Sangat trampil menyelesaikan soal cerita bilangan, sangat trampil menyelesaikan soal cerita perbandingan, sangat trampil menyelesaikan soal cerita aritmatika sosial, sangat trampil
A65: 45 | B65: ='Data '!D71 -> 0 | C65: =IF(Ketrampilan!C65="","",Ketrampilan!C65) ->  | D65: =IF(Ketrampilan!D65="","",Ketrampilan!D65) ->  | E65: =IF(Ketrampilan!E65="","",Ketrampilan!E65) ->  | F65: =IF(Ketrampilan!F65="","",Ketrampilan!F65) ->  | G65: =IF(Ketrampilan!G65="","",Ketrampilan!G65) -> 0 | H65: =IF(Ketrampilan!H65="","",Ketrampilan!H65) -> 0 | I65: =IF(Ketrampilan!I65="","",Ketrampilan!I65) -> 0 | J65: =IF(Ketrampilan!J65="","",Ketrampilan!J65) -> 0 | K65: =IF(Ketrampilan!K65="","",Ketrampilan!K65) -> 0 | L65: =IF(Ketrampilan!L65="","",Ketrampilan!L65) -> 0 | M65: =IF(Ketrampilan!M65="","",Ketrampilan!M65) -> 0 | N65: =IF(Ketrampilan!N65="","",Ketrampilan!N65) -> 0 | O65: =IF(Ketrampilan!O65="","",Ketrampilan!O65) -> 0 | P65: =IF(Ketrampilan!P65="","",Ketrampilan!P65) -> 0 | Q65: =IF(Ketrampilan!Q65="","",Ketrampilan!Q65) -> D | R65: =IF(Ketrampilan!R65="","",Ketrampilan!R65) -> Tidak Tuntas | BE65: Sangat trampil menyelesaikan soal cerita bilangan, sangat trampil menyelesaikan soal cerita perbandingan, sangat trampil menyelesaikan soal cerita aritmatika sosial, sangat trampil
A66: 46 | B66: ='Data '!D72 -> 0 | C66: =IF(Ketrampilan!C66="","",Ketrampilan!C66) ->  | D66: =IF(Ketrampilan!D66="","",Ketrampilan!D66) ->  | E66: =IF(Ketrampilan!E66="","",Ketrampilan!E66) ->  | F66: =IF(Ketrampilan!F66="","",Ketrampilan!F66) ->  | G66: =IF(Ketrampilan!G66="","",Ketrampilan!G66) -> 0 | H66: =IF(Ketrampilan!H66="","",Ketrampilan!H66) -> 0 | I66: =IF(Ketrampilan!I66="","",Ketrampilan!I66) -> 0 | J66: =IF(Ketrampilan!J66="","",Ketrampilan!J66) -> 0 | K66: =IF(Ketrampilan!K66="","",Ketrampilan!K66) -> 0 | L66: =IF(Ketrampilan!L66="","",Ketrampilan!L66) -> 0 | M66: =IF(Ketrampilan!M66="","",Ketrampilan!M66) -> 0 | N66: =IF(Ketrampilan!N66="","",Ketrampilan!N66) -> 0 | O66: =IF(Ketrampilan!O66="","",Ketrampilan!O66) -> 0 | P66: =IF(Ketrampilan!P66="","",Ketrampilan!P66) -> 0 | Q66: =IF(Ketrampilan!Q66="","",Ketrampilan!Q66) -> D | R66: =IF(Ketrampilan!R66="","",Ketrampilan!R66) -> Tidak Tuntas
A67: 47 | B67: ='Data '!D73 -> 0 | C67: =IF(Ketrampilan!C67="","",Ketrampilan!C67) ->  | D67: =IF(Ketrampilan!D67="","",Ketrampilan!D67) ->  | E67: =IF(Ketrampilan!E67="","",Ketrampilan!E67) ->  | F67: =IF(Ketrampilan!F67="","",Ketrampilan!F67) ->  | G67: =IF(Ketrampilan!G67="","",Ketrampilan!G67) -> 0 | H67: =IF(Ketrampilan!H67="","",Ketrampilan!H67) -> 0 | I67: =IF(Ketrampilan!I67="","",Ketrampilan!I67) -> 0 | J67: =IF(Ketrampilan!J67="","",Ketrampilan!J67) -> 0 | K67: =IF(Ketrampilan!K67="","",Ketrampilan!K67) -> 0 | L67: =IF(Ketrampilan!L67="","",Ketrampilan!L67) -> 0 | M67: =IF(Ketrampilan!M67="","",Ketrampilan!M67) -> 0 | N67: =IF(Ketrampilan!N67="","",Ketrampilan!N67) -> 0 | O67: =IF(Ketrampilan!O67="","",Ketrampilan!O67) -> 0 | P67: =IF(Ketrampilan!P67="","",Ketrampilan!P67) -> 0 | Q67: =IF(Ketrampilan!Q67="","",Ketrampilan!Q67) -> D | R67: =IF(Ketrampilan!R67="","",Ketrampilan!R67) -> Tidak Tuntas
A68: 48 | B68: ='Data '!D74 -> 0 | C68: =IF(Ketrampilan!C68="","",Ketrampilan!C68) ->  | D68: =IF(Ketrampilan!D68="","",Ketrampilan!D68) ->  | E68: =IF(Ketrampilan!E68="","",Ketrampilan!E68) ->  | F68: =IF(Ketrampilan!F68="","",Ketrampilan!F68) ->  | G68: =IF(Ketrampilan!G68="","",Ketrampilan!G68) -> 0 | H68: =IF(Ketrampilan!H68="","",Ketrampilan!H68) -> 0 | I68: =IF(Ketrampilan!I68="","",Ketrampilan!I68) -> 0 | J68: =IF(Ketrampilan!J68="","",Ketrampilan!J68) -> 0 | K68: =IF(Ketrampilan!K68="","",Ketrampilan!K68) -> 0 | L68: =IF(Ketrampilan!L68="","",Ketrampilan!L68) -> 0 | M68: =IF(Ketrampilan!M68="","",Ketrampilan!M68) -> 0 | N68: =IF(Ketrampilan!N68="","",Ketrampilan!N68) -> 0 | O68: =IF(Ketrampilan!O68="","",Ketrampilan!O68) -> 0 | P68: =IF(Ketrampilan!P68="","",Ketrampilan!P68) -> 0 | Q68: =IF(Ketrampilan!Q68="","",Ketrampilan!Q68) -> D | R68: =IF(Ketrampilan!R68="","",Ketrampilan!R68) -> Tidak Tuntas
A69: 49 | B69: ='Data '!D75 -> 0 | C69: =IF(Ketrampilan!C69="","",Ketrampilan!C69) ->  | D69: =IF(Ketrampilan!D69="","",Ketrampilan!D69) ->  | E69: =IF(Ketrampilan!E69="","",Ketrampilan!E69) ->  | F69: =IF(Ketrampilan!F69="","",Ketrampilan!F69) ->  | G69: =IF(Ketrampilan!G69="","",Ketrampilan!G69) -> 0 | H69: =IF(Ketrampilan!H69="","",Ketrampilan!H69) -> 0 | I69: =IF(Ketrampilan!I69="","",Ketrampilan!I69) -> 0 | J69: =IF(Ketrampilan!J69="","",Ketrampilan!J69) -> 0 | K69: =IF(Ketrampilan!K69="","",Ketrampilan!K69) -> 0 | L69: =IF(Ketrampilan!L69="","",Ketrampilan!L69) -> 0 | M69: =IF(Ketrampilan!M69="","",Ketrampilan!M69) -> 0 | N69: =IF(Ketrampilan!N69="","",Ketrampilan!N69) -> 0 | O69: =IF(Ketrampilan!O69="","",Ketrampilan!O69) -> 0 | P69: =IF(Ketrampilan!P69="","",Ketrampilan!P69) -> 0 | Q69: =IF(Ketrampilan!Q69="","",Ketrampilan!Q69) -> D | R69: =IF(Ketrampilan!R69="","",Ketrampilan!R69) -> Tidak Tuntas
A70: 50 | B70: ='Data '!D76 -> 0 | C70: =IF(Ketrampilan!C70="","",Ketrampilan!C70) -> 56 | D70: =IF(Ketrampilan!D70="","",Ketrampilan!D70) -> 8 | E70: =IF(Ketrampilan!E70="","",Ketrampilan!E70) ->  | F70: =IF(Ketrampilan!F70="","",Ketrampilan!F70) ->  | G70: =IF(Ketrampilan!G70="","",Ketrampilan!G70) -> 56 | H70: =IF(Ketrampilan!H70="","",Ketrampilan!H70) -> 90 | I70: =IF(Ketrampilan!I70="","",Ketrampilan!I70) -> 0 | J70: =IF(Ketrampilan!J70="","",Ketrampilan!J70) -> 0 | K70: =IF(Ketrampilan!K70="","",Ketrampilan!K70) -> 90 | L70: =IF(Ketrampilan!L70="","",Ketrampilan!L70) -> 78 | M70: =IF(Ketrampilan!M70="","",Ketrampilan!M70) -> 0 | N70: =IF(Ketrampilan!N70="","",Ketrampilan!N70) -> 78 | O70: =IF(Ketrampilan!O70="","",Ketrampilan!O70) -> 70 | P70: =IF(Ketrampilan!P70="","",Ketrampilan!P70) -> 2.8 | Q70: =IF(Ketrampilan!Q70="","",Ketrampilan!Q70) -> B- | R70: =IF(Ketrampilan!R70="","",Ketrampilan!R70) -> Tuntas
B71: Nilai Rata-rata | C71: =IFERROR(AVERAGE(C21:C70)," ") -> 79.41463415 | D71: =IFERROR(AVERAGE(D21:D70)," ") -> 78.24390244 | E71: 80 | F71: 80 | G71: 65.12 | H71: 65.8 | I71: 0 | J71: 0 | K71: 65.8 | L71: 65.56 | M71: 0 | N71: 65.56 | O71: 65.4 | P71: 2.616
C73: Jenis | D73: Uj.K | E73: Proj | G73: Port | H73: Jlh
C74: Bobot | D74: 2 | E74: 1 | G74: 1 | H74: =SUM(D74:G74) -> 4
B76: Mengetahui: | P76: ='Data '!D21 -> Blora, 20 Desember 2014
B77: ="Ka. "&'Data '!D7 -> Ka. SMP Negeri 6 Blora | P77: Guru Mata Pelajaran
B81: ='Data '!D15 -> Suparno, S.Pd.,M.Hum | P81: =Home!E12 -> Drs. Sarid Nugroho
B82: ='Data '!D16 -> NIP. 19620712 198403 1 012 | P82: =Home!E14 -> NIP. 19631223 198803 1 004

Sheet Attitude
C1: =UPPER('Data '!D10) -> PEMERINTAH KABUPATEN BLORA
C2: =UPPER('Data '!D6) -> DINAS PENDIDIKAN PEMUDA DAN OLAHRAGA
C3: =UPPER('Data '!D7) -> SMP NEGERI 6 BLORA
C4: DAFTAR REKAP NILAI SIKAP SISWA (KI - 1 & 2)
B8: Mata Pelajaran : | C8: =Home!E16 -> PJOK | G8: Semester : | J8: ='Data '!D14 -> Ganjil | L8: KKM : | N8: =Home!E26 -> 3
B9: Kelas : | C9: =Home!E18 -> VII-A | G9: Tahun Pelajaran : | J9: ='Data '!D13 -> 2014/2015 | L9: Wali Kelas : | N9: ='Data '!D17 -> Mundari, S.Pd.
B10: Aspek : | C10: Sikap
A12: No. | B12: Nama | C12: Observasi | F12: Penilaian Diri | I12: Penilaian Teman | L12: Jurnal | M12: Nilai | N12: Nilai | O12: Ket | S12: Deskripsi Kemajuan Belajar
C13: Ob1 | D13: Ob2 | E13: Rerata | F13: Pd1 | G13: Pd2 | H13: Rerata | I13: PT1 | J13: PT2 | K13: Rerata | M13: Raport | N13: Konversi | O13: T/TT
A14: 1 | B14: ='Data '!D27 -> AHMAD ALEK BRIYANSAPUTRA | C14: =Sikap!C14 -> 3 | D14: =Sikap!D14 -> 3 | E14: =Sikap!E14 -> 3 | F14: =Sikap!F14 -> 3 | G14: =Sikap!G14 -> 3 | H14: =Sikap!H14 -> 3 | I14: =Sikap!I14 -> 3 | J14: =Sikap!J14 -> 3 | K14: =Sikap!K14 -> 3 | L14: =Sikap!L14 -> 3 | M14: =Sikap!M14 -> 3 | N14: =Sikap!N14 -> B | O14: =Sikap!O14 -> Tuntas | R14: PETUNJUK UNTUK MENCETAK/PRINT OUT | S14: =Obs!AV13 -> Menunjukkan sikap baik dalam spiritual, baik dalam jujur, baik dalam disiplin, baik dalam tanggungjawab, baik dalam toleransi, baik dalam gotong royong, baik dalam santun, baik dalam percaya diri, baik dalam ramah tamah, baik dalam ingin tahu
A15: 2 | B15: ='Data '!D28 -> AULIA AYU FATINA | C15: =Sikap!C15 -> 3 | D15: =Sikap!D15 -> 3 | E15: =Sikap!E15 -> 3 | F15: =Sikap!F15 -> 3 | G15: =Sikap!G15 -> 3 | H15: =Sikap!H15 -> 3 | I15: =Sikap!I15 -> 3 | J15: =Sikap!J15 -> 3 | K15: =Sikap!K15 -> 3 | L15: =Sikap!L15 -> 3 | M15: =Sikap!M15 -> 3 | N15: =Sikap!N15 -> B | O15: =Sikap!O15 -> Tuntas | S15: =Obs!AV14 -> Menunjukkan sikap baik dalam spiritual, baik dalam jujur, baik dalam disiplin, baik dalam tanggungjawab, baik dalam toleransi, baik dalam gotong royong, baik dalam santun, baik dalam percaya diri, baik dalam ramah tamah, baik dalam ingin tahu
A16: 3 | B16: ='Data '!D29 -> BAGAS YULANDRA PUTRA | C16: =Sikap!C16 -> 3 | D16: =Sikap!D16 -> 3 | E16: =Sikap!E16 -> 3 | F16: =Sikap!F16 -> 3 | G16: =Sikap!G16 -> 3 | H16: =Sikap!H16 -> 3 | I16: =Sikap!I16 -> 3 | J16: =Sikap!J16 -> 3 | K16: =Sikap!K16 -> 3 | L16: =Sikap!L16 -> 3 | M16: =Sikap!M16 -> 3 | N16: =Sikap!N16 -> B | O16: =Sikap!O16 -> Tuntas | R16: Password pada sheet ini purnawanto. Gunakan untuk mengedit page setup halaman, dsb. Jika ingin mengurangi jumlah baris (misal jumlah siswa hanya 30 orang), JANGAN MENGHAPUS BARIS. Blok baris, klik kanan, pilih HIDE. Protek kembali sheet untuk keamanan rumus dan link antar sheet. TERIMA KASIH | S16: =Obs!AV15 -> Menunjukkan sikap baik dalam spiritual, baik dalam jujur, baik dalam disiplin, baik dalam tanggungjawab, baik dalam toleransi, baik dalam gotong royong, baik dalam santun, baik dalam percaya diri, baik dalam ramah tamah, baik dalam ingin tahu
A17: 4 | B17: ='Data '!D30 -> CYNTIA AGUSTINA | C17: =Sikap!C17 -> 3 | D17: =Sikap!D17 -> 3 | E17: =Sikap!E17 -> 3 | F17: =Sikap!F17 -> 3 | G17: =Sikap!G17 -> 3 | H17: =Sikap!H17 -> 3 | I17: =Sikap!I17 -> 3 | J17: =Sikap!J17 -> 3 | K17: =Sikap!K17 -> 3 | L17: =Sikap!L17 -> 3 | M17: =Sikap!M17 -> 3 | N17: =Sikap!N17 -> B | O17: =Sikap!O17 -> Tuntas | S17: =Obs!AV16 -> Menunjukkan sikap baik dalam spiritual, baik dalam jujur, baik dalam disiplin, baik dalam tanggungjawab, baik dalam toleransi, baik dalam gotong royong, baik dalam santun, baik dalam percaya diri, baik dalam ramah tamah, baik dalam ingin tahu
A18: 5 | B18: ='Data '!D31 -> DAFFA KRISNA PRAMUDYA | C18: =Sikap!C18 -> 3 | D18: =Sikap!D18 -> 3 | E18: =Sikap!E18 -> 3 | F18: =Sikap!F18 -> 3 | G18: =Sikap!G18 -> 3 | H18: =Sikap!H18 -> 3 | I18: =Sikap!I18 -> 3 | J18: =Sikap!J18 -> 3 | K18: =Sikap!K18 -> 3 | L18: =Sikap!L18 -> 3 | M18: =Sikap!M18 -> 3 | N18: =Sikap!N18 -> B | O18: =Sikap!O18 -> Tuntas | S18: =Obs!AV17 -> Menunjukkan sikap baik dalam spiritual, baik dalam jujur, baik dalam disiplin, baik dalam tanggungjawab, baik dalam toleransi, baik dalam gotong royong, baik dalam santun, baik dalam percaya diri, baik dalam ramah tamah, baik dalam ingin tahu
A19: 6 | B19: ='Data '!D32 -> DANINDRA RAFIF IRAWAN | C19: =Sikap!C19 -> 3 | D19: =Sikap!D19 -> 3 | E19: =Sikap!E19 -> 3 | F19: =Sikap!F19 -> 3 | G19: =Sikap!G19 -> 3 | H19: =Sikap!H19 -> 3 | I19: =Sikap!I19 -> 3 | J19: =Sikap!J19 -> 3 | K19: =Sikap!K19 -> 3 | L19: =Sikap!L19 -> 3 | M19: =Sikap!M19 -> 3 | N19: =Sikap!N19 -> B | O19: =Sikap!O19 -> Tuntas | S19: =Obs!AV18 -> Menunjukkan sikap baik dalam spiritual, baik dalam jujur, baik dalam disiplin, baik dalam tanggungjawab, baik dalam toleransi, baik dalam gotong royong, baik dalam santun, baik dalam percaya diri, baik dalam ramah tamah, baik dalam ingin tahu
A20: 7 | B20: ='Data '!D33 -> DENI PRATAMA | C20: =Sikap!C20 -> 3 | D20: =Sikap!D20 -> 3 | E20: =Sikap!E20 -> 3 | F20: =Sikap!F20 -> 3 | G20: =Sikap!G20 -> 3 | H20: =Sikap!H20 -> 3 | I20: =Sikap!I20 -> 3 | J20: =Sikap!J20 -> 3 | K20: =Sikap!K20 -> 3 | L20: =Sikap!L20 -> 3 | M20: =Sikap!M20 -> 3 | N20: =Sikap!N20 -> B | O20: =Sikap!O20 -> Tuntas | S20: =Obs!AV19 -> Menunjukkan sikap baik dalam spiritual, baik dalam jujur, baik dalam disiplin, baik dalam tanggungjawab, baik dalam toleransi, baik dalam gotong royong, baik dalam santun, baik dalam percaya diri, baik dalam ramah tamah, baik dalam ingin tahu
A21: 8 | B21: ='Data '!D34 -> DIKA SUKMA AGUSTIN | C21: =Sikap!C21 -> 3 | D21: =Sikap!D21 -> 3 | E21: =Sikap!E21 -> 3 | F21: =Sikap!F21 -> 3 | G21: =Sikap!G21 -> 3 | H21: =Sikap!H21 -> 3 | I21: =Sikap!I21 -> 3 | J21: =Sikap!J21 -> 3 | K21: =Sikap!K21 -> 3 | L21: =Sikap!L21 -> 3 | M21: =Sikap!M21 -> 3 | N21: =Sikap!N21 -> B | O21: =Sikap!O21 -> Tuntas | S21: =Obs!AV20 -> Menunjukkan sikap baik dalam spiritual, baik dalam jujur, baik dalam disiplin, baik dalam tanggungjawab, baik dalam toleransi, baik dalam gotong royong, baik dalam santun, baik dalam percaya diri, baik dalam ramah tamah, baik dalam ingin tahu
A22: 9 | B22: ='Data '!D35 -> DIVA ADITYA | C22: =Sikap!C22 -> 3 | D22: =Sikap!D22 -> 3 | E22: =Sikap!E22 -> 3 | F22: =Sikap!F22 -> 3 | G22: =Sikap!G22 -> 3 | H22: =Sikap!H22 -> 3 | I22: =Sikap!I22 -> 3 | J22: =Sikap!J22 -> 3 | K22: =Sikap!K22 -> 3 | L22: =Sikap!L22 -> 3 | M22: =Sikap!M22 -> 3 | N22: =Sikap!N22 -> B | O22: =Sikap!O22 -> Tuntas | S22: =Obs!AV21 -> Menunjukkan sikap baik dalam spiritual, baik dalam jujur, baik dalam disiplin, baik dalam tanggungjawab, baik dalam toleransi, baik dalam gotong royong, baik dalam santun, baik dalam percaya diri, baik dalam ramah tamah, baik dalam ingin tahu
A23: 10 | B23: ='Data '!D36 -> EKO PRASTYO | C23: =Sikap!C23 -> 3 | D23: =Sikap!D23 -> 3 | E23: =Sikap!E23 -> 3 | F23: =Sikap!F23 -> 3 | G23: =Sikap!G23 -> 3 | H23: =Sikap!H23 -> 3 | I23: =Sikap!I23 -> 3 | J23: =Sikap!J23 -> 3 | K23: =Sikap!K23 -> 3 | L23: =Sikap!L23 -> 3 | M23: =Sikap!M23 -> 3 | N23: =Sikap!N23 -> B | O23: =Sikap!O23 -> Tuntas | S23: =Obs!AV22 -> Menunjukkan sikap baik dalam spiritual, baik dalam jujur, baik dalam disiplin, baik dalam tanggungjawab, baik dalam toleransi, baik dalam gotong royong, baik dalam santun, baik dalam percaya diri, baik dalam ramah tamah, baik dalam ingin tahu
A24: 11 | B24: ='Data '!D37 -> FAIQUR RIJAL HAMMAM | C24: =Sikap!C24 -> 3 | D24: =Sikap!D24 -> 3 | E24: =Sikap!E24 -> 3 | F24: =Sikap!F24 -> 3 | G24: =Sikap!G24 -> 3 | H24: =Sikap!H24 -> 3 | I24: =Sikap!I24 -> 3 | J24: =Sikap!J24 -> 3 | K24: =Sikap!K24 -> 3 | L24: =Sikap!L24 -> 3 | M24: =Sikap!M24 -> 3 | N24: =Sikap!N24 -> B | O24: =Sikap!O24 -> Tuntas | S24: =Obs!AV23 -> Menunjukkan sikap baik dalam spiritual, baik dalam jujur, baik dalam disiplin, baik dalam tanggungjawab, baik dalam toleransi, baik dalam gotong royong, baik dalam santun, baik dalam percaya diri, baik dalam ramah tamah, baik dalam ingin tahu
A25: 12 | B25: ='Data '!D38 -> FATESAR SARI PRASETYO | C25: =Sikap!C25 -> 3 | D25: =Sikap!D25 -> 3 | E25: =Sikap!E25 -> 3 | F25: =Sikap!F25 -> 3 | G25: =Sikap!G25 -> 3 | H25: =Sikap!H25 -> 3 | I25: =Sikap!I25 -> 3 | J25: =Sikap!J25 -> 3 | K25: =Sikap!K25 -> 3 | L25: =Sikap!L25 -> 3 | M25: =Sikap!M25 -> 3 | N25: =Sikap!N25 -> B | O25: =Sikap!O25 -> Tuntas | S25: =Obs!AV24 -> Menunjukkan sikap baik dalam spiritual, baik dalam jujur, baik dalam disiplin, baik dalam tanggungjawab, baik dalam toleransi, baik dalam gotong royong, baik dalam santun, baik dalam percaya diri, baik dalam ramah tamah, baik dalam ingin tahu
A26: 13 | B26: ='Data '!D39 -> FEBRI SULISTIYO | C26: =Sikap!C26 -> 3 | D26: =Sikap!D26 -> 3 | E26: =Sikap!E26 -> 3 | F26: =Sikap!F26 -> 3 | G26: =Sikap!G26 -> 3 | H26: =Sikap!H26 -> 3 | I26: =Sikap!I26 -> 3 | J26: =Sikap!J26 -> 3 | K26: =Sikap!K26 -> 3 | L26: =Sikap!L26 -> 3 | M26: =Sikap!M26 -> 3 | N26: =Sikap!N26 -> B | O26: =Sikap!O26 -> Tuntas | S26: =Obs!AV25 -> Menunjukkan sikap baik dalam spiritual, baik dalam jujur, baik dalam disiplin, baik dalam tanggungjawab, baik dalam toleransi, baik dalam gotong royong, baik dalam santun, baik dalam percaya diri, baik dalam ramah tamah, baik dalam ingin tahu
A27: 14 | B27: ='Data '!D40 -> FIONA NANDA FETRIAN | C27: =Sikap!C27 -> 3 | D27: =Sikap!D27 -> 3 | E27: =Sikap!E27 -> 3 | F27: =Sikap!F27 -> 3 | G27: =Sikap!G27 -> 3 | H27: =Sikap!H27 -> 3 | I27: =Sikap!I27 -> 3 | J27: =Sikap!J27 -> 3 | K27: =Sikap!K27 -> 3 | L27: =Sikap!L27 -> 3 | M27: =Sikap!M27 -> 3 | N27: =Sikap!N27 -> B | O27: =Sikap!O27 -> Tuntas | S27: =Obs!AV26 -> Menunjukkan sikap baik dalam spiritual, baik dalam jujur, baik dalam disiplin, baik dalam tanggungjawab, baik dalam toleransi, baik dalam gotong royong, baik dalam santun, baik dalam percaya diri, baik dalam ramah tamah, baik dalam ingin tahu
A28: 15 | B28: ='Data '!D41 -> GILANG SYAHRUL RAMADHAN | C28: =Sikap!C28 -> 3 | D28: =Sikap!D28 -> 3 | E28: =Sikap!E28 -> 3 | F28: =Sikap!F28 -> 3 | G28: =Sikap!G28 -> 3 | H28: =Sikap!H28 -> 3 | I28: =Sikap!I28 -> 3 | J28: =Sikap!J28 -> 3 | K28: =Sikap!K28 -> 3 | L28: =Sikap!L28 -> 3 | M28: =Sikap!M28 -> 3 | N28: =Sikap!N28 -> B | O28: =Sikap!O28 -> Tuntas | S28: =Obs!AV27 -> Menunjukkan sikap baik dalam spiritual, baik dalam jujur, baik dalam disiplin, baik dalam tanggungjawab, baik dalam toleransi, baik dalam gotong royong, baik dalam santun, baik dalam percaya diri, baik dalam ramah tamah, baik dalam ingin tahu
A29: 16 | B29: ='Data '!D42 -> IMAM AGUNG WAHYU PRATAMA | C29: =Sikap!C29 -> 3 | D29: =Sikap!D29 -> 3 | E29: =Sikap!E29 -> 3 | F29: =Sikap!F29 -> 3 | G29: =Sikap!G29 -> 3 | H29: =Sikap!H29 -> 3 | I29: =Sikap!I29 -> 3 | J29: =Sikap!J29 -> 3 | K29: =Sikap!K29 -> 3 | L29: =Sikap!L29 -> 3 | M29: =Sikap!M29 -> 3 | N29: =Sikap!N29 -> B | O29: =Sikap!O29 -> Tuntas | S29: =Obs!AV28 -> Menunjukkan sikap baik dalam spiritual, baik dalam jujur, baik dalam disiplin, baik dalam tanggungjawab, baik dalam toleransi, baik dalam gotong royong, baik dalam santun, baik dalam percaya diri, baik dalam ramah tamah, baik dalam ingin tahu
A30: 17 | B30: ='Data '!D43 -> JOHAN MAULANA | C30: =Sikap!C30 -> 3 | D30: =Sikap!D30 -> 3 | E30: =Sikap!E30 -> 3 | F30: =Sikap!F30 -> 3 | G30: =Sikap!G30 -> 3 | H30: =Sikap!H30 -> 3 | I30: =Sikap!I30 -> 3 | J30: =Sikap!J30 -> 3 | K30: =Sikap!K30 -> 3 | L30: =Sikap!L30 -> 3 | M30: =Sikap!M30 -> 3 | N30: =Sikap!N30 -> B | O30: =Sikap!O30 -> Tuntas | S30: =Obs!AV29 -> Menunjukkan sikap baik dalam spiritual, baik dalam jujur, baik dalam disiplin, baik dalam tanggungjawab, baik dalam toleransi, baik dalam gotong royong, baik dalam santun, baik dalam percaya diri, baik dalam ramah tamah, baik dalam ingin tahu
A31: 18 | B31: ='Data '!D44 -> JOKO SETIAWAN | C31: =Sikap!C31 -> 3 | D31: =Sikap!D31 -> 3 | E31: =Sikap!E31 -> 3 | F31: =Sikap!F31 -> 3 | G31: =Sikap!G31 -> 3 | H31: =Sikap!H31 -> 3 | I31: =Sikap!I31 -> 3 | J31: =Sikap!J31 -> 3 | K31: =Sikap!K31 -> 3 | L31: =Sikap!L31 -> 3 | M31: =Sikap!M31 -> 3 | N31: =Sikap!N31 -> B | O31: =Sikap!O31 -> Tuntas | S31: =Obs!AV30 -> Menunjukkan sikap baik dalam spiritual, baik dalam jujur, baik dalam disiplin, baik dalam tanggungjawab, baik dalam toleransi, baik dalam gotong royong, baik dalam santun, baik dalam percaya diri, baik dalam ramah tamah, baik dalam ingin tahu
A32: 19 | B32: ='Data '!D45 -> LISA OKTAVINASARI | C32: =Sikap!C32 -> 3 | D32: =Sikap!D32 -> 3 | E32: =Sikap!E32 -> 3 | F32: =Sikap!F32 -> 3 | G32: =Sikap!G32 -> 3 | H32: =Sikap!H32 -> 3 | I32: =Sikap!I32 -> 3 | J32: =Sikap!J32 -> 3 | K32: =Sikap!K32 -> 3 | L32: =Sikap!L32 -> 3 | M32: =Sikap!M32 -> 3 | N32: =Sikap!N32 -> B | O32: =Sikap!O32 -> Tuntas | S32: =Obs!AV31 -> Menunjukkan sikap baik dalam spiritual, baik dalam jujur, baik dalam disiplin, baik dalam tanggungjawab, baik dalam toleransi, baik dalam gotong royong, baik dalam santun, baik dalam percaya diri, baik dalam ramah tamah, baik dalam ingin tahu
A33: 20 | B33: ='Data '!D46 -> MARIA GILDA SIREGAR | C33: =Sikap!C33 -> 3 | D33: =Sikap!D33 -> 3 | E33: =Sikap!E33 -> 3 | F33: =Sikap!F33 -> 3 | G33: =Sikap!G33 -> 3 | H33: =Sikap!H33 -> 3 | I33: =Sikap!I33 -> 3 | J33: =Sikap!J33 -> 3 | K33: =Sikap!K33 -> 3 | L33: =Sikap!L33 -> 3 | M33: =Sikap!M33 -> 3 | N33: =Sikap!N33 -> B | O33: =Sikap!O33 -> Tuntas | S33: =Obs!AV32 -> Menunjukkan sikap baik dalam spiritual, baik dalam jujur, baik dalam disiplin, baik dalam tanggungjawab, baik dalam toleransi, baik dalam gotong royong, baik dalam santun, baik dalam percaya diri, baik dalam ramah tamah, baik dalam ingin tahu
A34: 21 | B34: ='Data '!D47 -> MOHAMMAD NURKHOLISH | C34: =Sikap!C34 -> 3 | D34: =Sikap!D34 -> 3 | E34: =Sikap!E34 -> 3 | F34: =Sikap!F34 -> 3 | G34: =Sikap!G34 -> 3 | H34: =Sikap!H34 -> 3 | I34: =Sikap!I34 -> 3 | J34: =Sikap!J34 -> 3 | K34: =Sikap!K34 -> 3 | L34: =Sikap!L34 -> 3 | M34: =Sikap!M34 -> 3 | N34: =Sikap!N34 -> B | O34: =Sikap!O34 -> Tuntas | S34: =Obs!AV33 -> Menunjukkan sikap baik dalam spiritual, baik dalam jujur, baik dalam disiplin, baik dalam tanggungjawab, baik dalam toleransi, baik dalam gotong royong, baik dalam santun, baik dalam percaya diri, baik dalam ramah tamah, baik dalam ingin tahu
A35: 22 | B35: ='Data '!D48 -> MUHAMAD FARIS ULIN NUHA | C35: =Sikap!C35 -> 3 | D35: =Sikap!D35 -> 3 | E35: =Sikap!E35 -> 3 | F35: =Sikap!F35 -> 3 | G35: =Sikap!G35 -> 3 | H35: =Sikap!H35 -> 3 | I35: =Sikap!I35 -> 3 | J35: =Sikap!J35 -> 3 | K35: =Sikap!K35 -> 3 | L35: =Sikap!L35 -> 3 | M35: =Sikap!M35 -> 3 | N35: =Sikap!N35 -> B | O35: =Sikap!O35 -> Tuntas | S35: =Obs!AV34 -> Menunjukkan sikap baik dalam spiritual, baik dalam jujur, baik dalam disiplin, baik dalam tanggungjawab, baik dalam toleransi, baik dalam gotong royong, baik dalam santun, baik dalam percaya diri, baik dalam ramah tamah, baik dalam ingin tahu
A36: 23 | B36: ='Data '!D49 -> MUHAMMAD MUSTOFA | C36: =Sikap!C36 -> 3 | D36: =Sikap!D36 -> 3 | E36: =Sikap!E36 -> 3 | F36: =Sikap!F36 -> 3 | G36: =Sikap!G36 -> 3 | H36: =Sikap!H36 -> 3 | I36: =Sikap!I36 -> 3 | J36: =Sikap!J36 -> 3 | K36: =Sikap!K36 -> 3 | L36: =Sikap!L36 -> 3 | M36: =Sikap!M36 -> 3 | N36: =Sikap!N36 -> B | O36: =Sikap!O36 -> Tuntas | S36: =Obs!AV35 -> Menunjukkan sikap baik dalam spiritual, baik dalam jujur, baik dalam disiplin, baik dalam tanggungjawab, baik dalam toleransi, baik dalam gotong royong, baik dalam santun, baik dalam percaya diri, baik dalam ramah tamah, baik dalam ingin tahu
A37: 24 | B37: ='Data '!D50 -> NANDA WINTYA PUTRI | C37: =Sikap!C37 -> 3 | D37: =Sikap!D37 -> 3 | E37: =Sikap!E37 -> 3 | F37: =Sikap!F37 -> 3 | G37: =Sikap!G37 -> 3 | H37: =Sikap!H37 -> 3 | I37: =Sikap!I37 -> 3 | J37: =Sikap!J37 -> 3 | K37: =Sikap!K37 -> 3 | L37: =Sikap!L37 -> 3 | M37: =Sikap!M37 -> 3 | N37: =Sikap!N37 -> B | O37: =Sikap!O37 -> Tuntas | S37: =Obs!AV36 -> Menunjukkan sikap baik dalam spiritual, baik dalam jujur, baik dalam disiplin, baik dalam tanggungjawab, baik dalam toleransi, baik dalam gotong royong, baik dalam santun, baik dalam percaya diri, baik dalam ramah tamah, baik dalam ingin tahu
A38: 25 | B38: ='Data '!D51 -> NI'MA NOVA NUR FADHILAH | C38: =Sikap!C38 -> 3 | D38: =Sikap!D38 -> 3 | E38: =Sikap!E38 -> 3 | F38: =Sikap!F38 -> 3 | G38: =Sikap!G38 -> 3 | H38: =Sikap!H38 -> 3 | I38: =Sikap!I38 -> 3 | J38: =Sikap!J38 -> 3 | K38: =Sikap!K38 -> 3 | L38: =Sikap!L38 -> 3 | M38: =Sikap!M38 -> 3 | N38: =Sikap!N38 -> B | O38: =Sikap!O38 -> Tuntas | S38: =Obs!AV37 -> Menunjukkan sikap baik dalam spiritual, baik dalam jujur, baik dalam disiplin, baik dalam tanggungjawab, baik dalam toleransi, baik dalam gotong royong, baik dalam santun, baik dalam percaya diri, baik dalam ramah tamah, baik dalam ingin tahu
A39: 26 | B39: ='Data '!D52 -> NITA ZUMROTUT TAQIYAH | C39: =Sikap!C39 -> 3 | D39: =Sikap!D39 -> 3 | E39: =Sikap!E39 -> 3 | F39: =Sikap!F39 -> 3 | G39: =Sikap!G39 -> 3 | H39: =Sikap!H39 -> 3 | I39: =Sikap!I39 -> 3 | J39: =Sikap!J39 -> 3 | K39: =Sikap!K39 -> 3 | L39: =Sikap!L39 -> 3 | M39: =Sikap!M39 -> 3 | N39: =Sikap!N39 -> B | O39: =Sikap!O39 -> Tuntas | S39: =Obs!AV38 -> Menunjukkan sikap baik dalam spiritual, baik dalam jujur, baik dalam disiplin, baik dalam tanggungjawab, baik dalam toleransi, baik dalam gotong royong, baik dalam santun, baik dalam percaya diri, baik dalam ramah tamah, baik dalam ingin tahu
A40: 27 | B40: ='Data '!D53 -> RACHMAT SAPUTRA ANDRIANSYAH | C40: =Sikap!C40 -> 3 | D40: =Sikap!D40 -> 3 | E40: =Sikap!E40 -> 3 | F40: =Sikap!F40 -> 3 | G40: =Sikap!G40 -> 3 | H40: =Sikap!H40 -> 3 | I40: =Sikap!I40 -> 3 | J40: =Sikap!J40 -> 3 | K40: =Sikap!K40 -> 3 | L40: =Sikap!L40 -> 3 | M40: =Sikap!M40 -> 3 | N40: =Sikap!N40 -> B | O40: =Sikap!O40 -> Tuntas | S40: =Obs!AV39 -> Menunjukkan sikap baik dalam spiritual, baik dalam jujur, baik dalam disiplin, baik dalam tanggungjawab, baik dalam toleransi, baik dalam gotong royong, baik dalam santun, baik dalam percaya diri, baik dalam ramah tamah, baik dalam ingin tahu
A41: 28 | B41: ='Data '!D54 -> RIZAL ANDRIYAN SAPUTRA | C41: =Sikap!C41 -> 3 | D41: =Sikap!D41 -> 3 | E41: =Sikap!E41 -> 3 | F41: =Sikap!F41 -> 3 | G41: =Sikap!G41 -> 3 | H41: =Sikap!H41 -> 3 | I41: =Sikap!I41 -> 3 | J41: =Sikap!J41 -> 3 | K41: =Sikap!K41 -> 3 | L41: =Sikap!L41 -> 3 | M41: =Sikap!M41 -> 3 | N41: =Sikap!N41 -> B | O41: =Sikap!O41 -> Tuntas | S41: =Obs!AV40 -> Menunjukkan sikap baik dalam spiritual, baik dalam jujur, baik dalam disiplin, baik dalam tanggungjawab, baik dalam toleransi, baik dalam gotong royong, baik dalam santun, baik dalam percaya diri, baik dalam ramah tamah, baik dalam ingin tahu
A42: 29 | B42: ='Data '!D55 -> SAIFUL ANNAS | C42: =Sikap!C42 -> 3 | D42: =Sikap!D42 -> 3 | E42: =Sikap!E42 -> 3 | F42: =Sikap!F42 -> 3 | G42: =Sikap!G42 -> 3 | H42: =Sikap!H42 -> 3 | I42: =Sikap!I42 -> 3 | J42: =Sikap!J42 -> 3 | K42: =Sikap!K42 -> 3 | L42: =Sikap!L42 -> 3 | M42: =Sikap!M42 -> 3 | N42: =Sikap!N42 -> B | O42: =Sikap!O42 -> Tuntas | S42: =Obs!AV41 -> Menunjukkan sikap baik dalam spiritual, baik dalam jujur, baik dalam disiplin, baik dalam tanggungjawab, baik dalam toleransi, baik dalam gotong royong, baik dalam santun, baik dalam percaya diri, baik dalam ramah tamah, baik dalam ingin tahu
A43: 30 | B43: ='Data '!D56 -> SELINA SEPTIANI | C43: =Sikap!C43 -> 3 | D43: =Sikap!D43 -> 3 | E43: =Sikap!E43 -> 3 | F43: =Sikap!F43 -> 3 | G43: =Sikap!G43 -> 3 | H43: =Sikap!H43 -> 3 | I43: =Sikap!I43 -> 3 | J43: =Sikap!J43 -> 3 | K43: =Sikap!K43 -> 3 | L43: =Sikap!L43 -> 3 | M43: =Sikap!M43 -> 3 | N43: =Sikap!N43 -> B | O43: =Sikap!O43 -> Tuntas | S43: =Obs!AV42 -> Menunjukkan sikap baik dalam spiritual, baik dalam jujur, baik dalam disiplin, baik dalam tanggungjawab, baik dalam toleransi, baik dalam gotong royong, baik dalam santun, baik dalam percaya diri, baik dalam ramah tamah, baik dalam ingin tahu
A44: 31 | B44: ='Data '!D57 -> SHALSABILA SHINTA NIRMALA | C44: =Sikap!C44 -> 3 | D44: =Sikap!D44 -> 3 | E44: =Sikap!E44 -> 3 | F44: =Sikap!F44 -> 3 | G44: =Sikap!G44 -> 3 | H44: =Sikap!H44 -> 3 | I44: =Sikap!I44 -> 3 | J44: =Sikap!J44 -> 3 | K44: =Sikap!K44 -> 3 | L44: =Sikap!L44 -> 3 | M44: =Sikap!M44 -> 3 | N44: =Sikap!N44 -> B | O44: =Sikap!O44 -> Tuntas | S44: =Obs!AV43 -> Menunjukkan sikap baik dalam spiritual, baik dalam jujur, baik dalam disiplin, baik dalam tanggungjawab, baik dalam toleransi, baik dalam gotong royong, baik dalam santun, baik dalam percaya diri, baik dalam ramah tamah, baik dalam ingin tahu
A45: 32 | B45: ='Data '!D58 -> SITI CHOIRIATUS SA'ADAH | C45: =Sikap!C45 -> 3 | D45: =Sikap!D45 -> 3 | E45: =Sikap!E45 -> 3 | F45: =Sikap!F45 -> 3 | G45: =Sikap!G45 -> 3 | H45: =Sikap!H45 -> 3 | I45: =Sikap!I45 -> 3 | J45: =Sikap!J45 -> 3 | K45: =Sikap!K45 -> 3 | L45: =Sikap!L45 -> 3 | M45: =Sikap!M45 -> 3 | N45: =Sikap!N45 -> B | O45: =Sikap!O45 -> Tuntas | S45: =Obs!AV44 -> Menunjukkan sikap baik dalam spiritual, baik dalam jujur, baik dalam disiplin, baik dalam tanggungjawab, baik dalam toleransi, baik dalam gotong royong, baik dalam santun, baik dalam percaya diri, baik dalam ramah tamah, baik dalam ingin tahu
A46: 33 | B46: ='Data '!D59 -> SITI NURFAN AZIZAH | C46: =Sikap!C46 -> 3 | D46: =Sikap!D46 -> 3 | E46: =Sikap!E46 -> 3 | F46: =Sikap!F46 -> 3 | G46: =Sikap!G46 -> 3 | H46: =Sikap!H46 -> 3 | I46: =Sikap!I46 -> 3 | J46: =Sikap!J46 -> 3 | K46: =Sikap!K46 -> 3 | L46: =Sikap!L46 -> 3 | M46: =Sikap!M46 -> 3 | N46: =Sikap!N46 -> B | O46: =Sikap!O46 -> Tuntas | S46: =Obs!AV45 -> Menunjukkan sikap baik dalam spiritual, baik dalam jujur, baik dalam disiplin, baik dalam tanggungjawab, baik dalam toleransi, baik dalam gotong royong, baik dalam santun, baik dalam percaya diri, baik dalam ramah tamah, baik dalam ingin tahu
A47: 34 | B47: ='Data '!D60 -> SITI RAHAYU | C47: =Sikap!C47 -> 3 | D47: =Sikap!D47 -> 3 | E47: =Sikap!E47 -> 3 | F47: =Sikap!F47 -> 3 | G47: =Sikap!G47 -> 3 | H47: =Sikap!H47 -> 3 | I47: =Sikap!I47 -> 3 | J47: =Sikap!J47 -> 3 | K47: =Sikap!K47 -> 3 | L47: =Sikap!L47 -> 3 | M47: =Sikap!M47 -> 3 | N47: =Sikap!N47 -> B | O47: =Sikap!O47 -> Tuntas | S47: =Obs!AV46 -> Menunjukkan sikap baik dalam spiritual, baik dalam jujur, baik dalam disiplin, baik dalam tanggungjawab, baik dalam toleransi, baik dalam gotong royong, baik dalam santun, baik dalam percaya diri, baik dalam ramah tamah, baik dalam ingin tahu
A48: 35 | B48: ='Data '!D61 -> STEVIANA PUSPITA SARI | C48: =Sikap!C48 -> 3 | D48: =Sikap!D48 -> 3 | E48: =Sikap!E48 -> 3 | F48: =Sikap!F48 -> 3 | G48: =Sikap!G48 -> 3 | H48: =Sikap!H48 -> 3 | I48: =Sikap!I48 -> 3 | J48: =Sikap!J48 -> 3 | K48: =Sikap!K48 -> 3 | L48: =Sikap!L48 -> 3 | M48: =Sikap!M48 -> 3 | N48: =Sikap!N48 -> B | O48: =Sikap!O48 -> Tuntas | S48: =Obs!AV47 -> Menunjukkan sikap baik dalam spiritual, baik dalam jujur, baik dalam disiplin, baik dalam tanggungjawab, baik dalam toleransi, baik dalam gotong royong, baik dalam santun, baik dalam percaya diri, baik dalam ramah tamah, baik dalam ingin tahu
A49: 36 | B49: ='Data '!D62 -> TAN LINGGAR PRAMUDITA | C49: =Sikap!C49 -> 3 | D49: =Sikap!D49 -> 3 | E49: =Sikap!E49 -> 3 | F49: =Sikap!F49 -> 3 | G49: =Sikap!G49 -> 3 | H49: =Sikap!H49 -> 3 | I49: =Sikap!I49 -> 3 | J49: =Sikap!J49 -> 3 | K49: =Sikap!K49 -> 3 | L49: =Sikap!L49 -> 3 | M49: =Sikap!M49 -> 3 | N49: =Sikap!N49 -> B | O49: =Sikap!O49 -> Tuntas | R49: halaman 2 | S49: =Obs!AV48 -> Menunjukkan sikap baik dalam spiritual, baik dalam jujur, baik dalam disiplin, baik dalam tanggungjawab, baik dalam toleransi, baik dalam gotong royong, baik dalam santun, baik dalam percaya diri, baik dalam ramah tamah, baik dalam ingin tahu
A50: 37 | B50: ='Data '!D63 -> TAUFIK NUR AZIZ DANUARTA | C50: =Sikap!C50 -> 3 | D50: =Sikap!D50 -> 3 | E50: =Sikap!E50 -> 3 | F50: =Sikap!F50 -> 3 | G50: =Sikap!G50 -> 3 | H50: =Sikap!H50 -> 3 | I50: =Sikap!I50 -> 3 | J50: =Sikap!J50 -> 3 | K50: =Sikap!K50 -> 3 | L50: =Sikap!L50 -> 3 | M50: =Sikap!M50 -> 3 | N50: =Sikap!N50 -> B | O50: =Sikap!O50 -> Tuntas | S50: =Obs!AV49 -> Menunjukkan sikap baik dalam spiritual, baik dalam jujur, baik dalam disiplin, baik dalam tanggungjawab, baik dalam toleransi, baik dalam gotong royong, baik dalam santun, baik dalam percaya diri, baik dalam ramah tamah, baik dalam ingin tahu
A51: 38 | B51: ='Data '!D64 -> TIARA PUTRI AYUNINGTIAS | C51: =Sikap!C51 -> 3 | D51: =Sikap!D51 -> 3 | E51: =Sikap!E51 -> 3 | F51: =Sikap!F51 -> 3 | G51: =Sikap!G51 -> 3 | H51: =Sikap!H51 -> 3 | I51: =Sikap!I51 -> 3 | J51: =Sikap!J51 -> 3 | K51: =Sikap!K51 -> 3 | L51: =Sikap!L51 -> 3 | M51: =Sikap!M51 -> 3 | N51: =Sikap!N51 -> B | O51: =Sikap!O51 -> Tuntas | S51: =Obs!AV50 -> Menunjukkan sikap baik dalam spiritual, baik dalam jujur, baik dalam disiplin, baik dalam tanggungjawab, baik dalam toleransi, baik dalam gotong royong, baik dalam santun, baik dalam percaya diri, baik dalam ramah tamah, baik dalam ingin tahu
A52: 39 | B52: ='Data '!D65 -> TITANIA GAYATRI PRIANJANI | C52: =Sikap!C52 -> 3 | D52: =Sikap!D52 -> 3 | E52: =Sikap!E52 -> 3 | F52: =Sikap!F52 -> 3 | G52: =Sikap!G52 -> 3 | H52: =Sikap!H52 -> 3 | I52: =Sikap!I52 -> 3 | J52: =Sikap!J52 -> 3 | K52: =Sikap!K52 -> 3 | L52: =Sikap!L52 -> 3 | M52: =Sikap!M52 -> 3 | N52: =Sikap!N52 -> B | O52: =Sikap!O52 -> Tuntas | S52: =Obs!AV51 -> Menunjukkan sikap baik dalam spiritual, baik dalam jujur, baik dalam disiplin, baik dalam tanggungjawab, baik dalam toleransi, baik dalam gotong royong, baik dalam santun, baik dalam percaya diri, baik dalam ramah tamah, baik dalam ingin tahu
A53: 40 | B53: ='Data '!D66 -> ULFATUN NI'MAH | C53: =Sikap!C53 -> 3 | D53: =Sikap!D53 -> 3 | E53: =Sikap!E53 -> 3 | F53: =Sikap!F53 -> 3 | G53: =Sikap!G53 -> 3 | H53: =Sikap!H53 -> 3 | I53: =Sikap!I53 -> 3 | J53: =Sikap!J53 -> 3 | K53: =Sikap!K53 -> 3 | L53: =Sikap!L53 -> 3 | M53: =Sikap!M53 -> 3 | N53: =Sikap!N53 -> B | O53: =Sikap!O53 -> Tuntas | S53: =Obs!AV52 -> Menunjukkan sikap baik dalam spiritual, baik dalam jujur, baik dalam disiplin, baik dalam tanggungjawab, baik dalam toleransi, baik dalam gotong royong, baik dalam santun, baik dalam percaya diri, baik dalam ramah tamah, baik dalam ingin tahu
A54: 41 | B54: ='Data '!D67 -> 0 | C54: =Sikap!C54 ->  | D54: =Sikap!D54 ->  | E54: =Sikap!E54 ->  | F54: =Sikap!F54 ->  | G54: =Sikap!G54 ->  | H54: =Sikap!H54 ->  | I54: =Sikap!I54 ->  | J54: =Sikap!J54 ->  | K54: =Sikap!K54 ->  | L54: =Sikap!L54 ->  | M54: =Sikap!M54 ->  | N54: =Sikap!N54 -> SB | O54: =Sikap!O54 -> Tuntas | S54: =Obs!AV53 -> 
A55: 42 | B55: ='Data '!D68 -> 0 | C55: =Sikap!C55 ->  | D55: =Sikap!D55 ->  | E55: =Sikap!E55 ->  | F55: =Sikap!F55 ->  | G55: =Sikap!G55 ->  | H55: =Sikap!H55 ->  | I55: =Sikap!I55 ->  | J55: =Sikap!J55 ->  | K55: =Sikap!K55 ->  | L55: =Sikap!L55 ->  | M55: =Sikap!M55 ->  | N55: =Sikap!N55 -> SB | O55: =Sikap!O55 -> Tuntas | S55: =Obs!AV54 -> 
A56: 43 | B56: ='Data '!D69 -> 0 | C56: =Sikap!C56 ->  | D56: =Sikap!D56 ->  | E56: =Sikap!E56 ->  | F56: =Sikap!F56 ->  | G56: =Sikap!G56 ->  | H56: =Sikap!H56 ->  | I56: =Sikap!I56 ->  | J56: =Sikap!J56 ->  | K56: =Sikap!K56 ->  | L56: =Sikap!L56 ->  | M56: =Sikap!M56 ->  | N56: =Sikap!N56 -> SB | O56: =Sikap!O56 -> Tuntas | S56: =Obs!AV55 -> 
A57: 44 | B57: ='Data '!D70 -> 0 | C57: =Sikap!C57 ->  | D57: =Sikap!D57 ->  | E57: =Sikap!E57 ->  | F57: =Sikap!F57 ->  | G57: =Sikap!G57 ->  | H57: =Sikap!H57 ->  | I57: =Sikap!I57 ->  | J57: =Sikap!J57 ->  | K57: =Sikap!K57 ->  | L57: =Sikap!L57 ->  | M57: =Sikap!M57 ->  | N57: =Sikap!N57 -> SB | O57: =Sikap!O57 -> Tuntas | S57: =Obs!AV56 -> 
A58: 45 | B58: ='Data '!D71 -> 0 | C58: =Sikap!C58 ->  | D58: =Sikap!D58 ->  | E58: =Sikap!E58 ->  | F58: =Sikap!F58 ->  | G58: =Sikap!G58 ->  | H58: =Sikap!H58 ->  | I58: =Sikap!I58 ->  | J58: =Sikap!J58 ->  | K58: =Sikap!K58 ->  | L58: =Sikap!L58 ->  | M58: =Sikap!M58 ->  | N58: =Sikap!N58 -> SB | O58: =Sikap!O58 -> Tuntas | S58: =Obs!AV57 -> 
A59: 46 | B59: ='Data '!D72 -> 0 | C59: =Sikap!C59 ->  | D59: =Sikap!D59 ->  | E59: =Sikap!E59 ->  | F59: =Sikap!F59 ->  | G59: =Sikap!G59 ->  | H59: =Sikap!H59 ->  | I59: =Sikap!I59 ->  | J59: =Sikap!J59 ->  | K59: =Sikap!K59 ->  | L59: =Sikap!L59 ->  | M59: =Sikap!M59 ->  | N59: =Sikap!N59 -> SB | O59: =Sikap!O59 -> Tuntas
A60: 47 | B60: ='Data '!D73 -> 0 | C60: =Sikap!C60 ->  | D60: =Sikap!D60 ->  | E60: =Sikap!E60 ->  | F60: =Sikap!F60 ->  | G60: =Sikap!G60 ->  | H60: =Sikap!H60 ->  | I60: =Sikap!I60 ->  | J60: =Sikap!J60 ->  | K60: =Sikap!K60 ->  | L60: =Sikap!L60 ->  | M60: =Sikap!M60 ->  | N60: =Sikap!N60 -> SB | O60: =Sikap!O60 -> Tuntas
A61: 48 | B61: ='Data '!D74 -> 0 | C61: =Sikap!C61 ->  | D61: =Sikap!D61 ->  | E61: =Sikap!E61 ->  | F61: =Sikap!F61 ->  | G61: =Sikap!G61 ->  | H61: =Sikap!H61 ->  | I61: =Sikap!I61 ->  | J61: =Sikap!J61 ->  | K61: =Sikap!K61 ->  | L61: =Sikap!L61 ->  | M61: =Sikap!M61 ->  | N61: =Sikap!N61 -> SB | O61: =Sikap!O61 -> Tuntas
A62: 49 | B62: ='Data '!D75 -> 0 | C62: =Sikap!C62 ->  | D62: =Sikap!D62 ->  | E62: =Sikap!E62 ->  | F62: =Sikap!F62 ->  | G62: =Sikap!G62 ->  | H62: =Sikap!H62 ->  | I62: =Sikap!I62 ->  | J62: =Sikap!J62 ->  | K62: =Sikap!K62 ->  | L62: =Sikap!L62 ->  | M62: =Sikap!M62 ->  | N62: =Sikap!N62 -> SB | O62: =Sikap!O62 -> Tuntas
A63: 50 | B63: ='Data '!D76 -> 0 | C63: =Sikap!C63 ->  | D63: =Sikap!D63 ->  | E63: =Sikap!E63 ->  | F63: =Sikap!F63 ->  | G63: =Sikap!G63 ->  | H63: =Sikap!H63 ->  | I63: =Sikap!I63 ->  | J63: =Sikap!J63 ->  | K63: =Sikap!K63 ->  | L63: =Sikap!L63 ->  | M63: =Sikap!M63 ->  | N63: =Sikap!N63 -> SB | O63: =Sikap!O63 -> Tuntas
B64: Nilai Rata-rata | C64: =IFERROR(AVERAGE(C14:C63)," ") -> 3 | D64: =IFERROR(AVERAGE(D14:D63)," ") -> 3 | E64: 3 | F64: 3 | G64: 3 | H64: 3 | I64: 3 | J64: 3 | K64: 3 | L64: 3 | M64: 3
C66: Jenis | D66: Obs | E66: Pdiri | F66: Ptman | G66: Jurnal | H66: Jlh
C67: Bobot | D67: 2 | E67: 1 | F67: 1 | G67: 1 | H67: =SUM(D67:G67) -> 5
B68: Mengetahui: | E68: CATATAN: | M68: ='Data '!D21 -> Blora, 20 Desember 2014
B69: ="Ka. "&'Data '!D7 -> Ka. SMP Negeri 6 Blora | E69: - Nilai Observasi menggunakan skala 1 s/d 4 | M69: Guru Mata Pelajaran
E70: - Nilai Obs1 berasal dari sheet Observasi 1.
E71: - Nilai Obs2 berasal dari sheet Observasi 2.
B73: ='Data '!D15 -> Suparno, S.Pd.,M.Hum | M73: =Home!E12 -> Drs. Sarid Nugroho
B74: ='Data '!D16 -> NIP. 19620712 198403 1 012 | M74: =Home!E14 -> NIP. 19631223 198803 1 004

Sheet 4UTS
C1: =UPPER('Data '!D10) -> PEMERINTAH KABUPATEN BLORA
C2: =UPPER('Data '!D6) -> DINAS PENDIDIKAN PEMUDA DAN OLAHRAGA
C3: =UPPER('Data '!D7) -> SMP NEGERI 6 BLORA
C4: DAFTAR NILAI LAPORAN ULANGAN TENGAH SEMESTER (UTS)
B8: Mata Pelajaran : | C8: =Home!E16 -> PJOK | G8: Semester : | J8: ='Data '!D14 -> Ganjil | L8: KKM : | N8: =Home!E22 -> 2.67
B9: Kelas : | C9: =Home!E18 -> VII-A | G9: Tahun Pelajaran : | J9: ='Data '!D13 -> 2014/2015 | L9: Wali Kelas : | N9: ='Data '!D17 -> Mundari, S.Pd.
A12: No. | B12: Nama | C12: Aspek Pengetahuan | H12: Aspek Ketrampilan | M12: Aspek Sikap
C13: Nilai Rerata | E13: Nilai | F13: Capaian | G13: Deskripsi | H13: Nilai Rerata | K13: Capaian | L13: Deskripsi | M13: Obser- | N13: Disi | O13: Antar | P13: Jurnal | Q13: Capaian
C14: UH | D14: Tugas | E14: UTS | F14: Kualitatif | G14: Capaian Hasil belajar | H14: UK | I14: Proyek | J14: Portf | K14: Kualitatif | L14: Capaian Hasil belajar | M14: vasi | N14: Sendiri | O14: Teman | Q14: Kualitatif
A15: 1 | B15: ='Data '!D27 -> AHMAD ALEK BRIYANSAPUTRA | C15: =IF(Pengetahuan!H21="","",Pengetahuan!H21) -> 80 | D15: =IF(Pengetahuan!N21="","",Pengetahuan!N21) -> 80 | E15: =IF(Pengetahuan!P21="","",Pengetahuan!P21) -> 75 | F15: =IF(Pengetahuan!AA20="","",Pengetahuan!AA20) -> B | G15: =IF(Pengetahuan!AB21="","",Pengetahuan!AB21) -> Kompetensi pengetahuan rerata sangat baik. | H15: =IF(Ketrampilan!G21="","",Ketrampilan!G21) -> 80 | I15: =IF(Ketrampilan!K21="","",Ketrampilan!K21) -> 80 | J15: =IF(Ketrampilan!N21="","",Ketrampilan!N21) -> 80 | K15: =IF(Ketrampilan!Q21="","",Ketrampilan!Q21) -> B+ | L15: =IF(Ketrampilan!AA21="","",Ketrampilan!AA21) -> Kompetensi ketrampilan rerata baik. | M15: =IF(Sikap!E14="","",Sikap!E14) -> 3 | N15: =IF(Sikap!H14=" "," ",Sikap!H14) -> 3 | O15: =IF(Sikap!K14="","",Sikap!K14) -> 3 | P15: =IF(Sikap!L14="","",Sikap!L14) -> 3 | Q15: =IF(Sikap!N14="","",Sikap!N14) -> B | BB15: =CONCATENATE(IF(Q15>87.5,"Kompetensi pengetahuan rerata sangat baik. ",IF(Q15>62.5,"Kompetensi pengetahuan rerata baik. ",IF(Q15>37.5,"Kompetensi pengetahuan rerata cukup. ",IF(Q15>1,"Kompetensi pengetahuan rerata kurang. ",IF(Q15="",""))))),IF(C15>87.5,"Sangat menguasai KD "&#REF!,IF(C15>62.5,"Menguasai KD "&#REF!,IF(C15>37.5,"Masih perlu latihan KD "&#REF!,IF(C15>1,"Perlu bimbingan KD "&#REF!,IF(C15="",""))))),IF(D15>87.5,", sangat menguasai KD "&#REF!,IF(D15>62.5,", menguasai KD "&#REF!,IF(D15>37.5,", masih perlu latihan KD "&#REF!,IF(D15>1,", perlu bimbingan KD "&#REF!,IF(D15="",""))))),IF(E15>87.5,". Sangat menguasai KD "&#REF!,IF(E15>62.5,". Menguasai KD "&#REF!,IF(E15>37.5,". Masih perlu latihan KD "&#REF!,IF(E15>1,". Perlu bimbingan KD "&#REF!,IF(E15="",""))))),IF(F15>87.5,", sangat menguasai KD "&#REF!,IF(F15>62.5,", menguasai KD "&#REF!,IF(F15>37.5,", masih perlu latihan KD "&#REF!,IF(F15>1,", perlu bimbingan KD "&#REF!,IF(F15="","")))))) -> 
A16: 2 | B16: ='Data '!D28 -> AULIA AYU FATINA | C16: =IF(Pengetahuan!H22="","",Pengetahuan!H22) -> 80 | D16: =IF(Pengetahuan!N22="","",Pengetahuan!N22) -> 80 | E16: =IF(Pengetahuan!P22="","",Pengetahuan!P22) -> 75 | F16: =IF(Pengetahuan!AA21="","",Pengetahuan!AA21) -> B | G16: =IF(Pengetahuan!AB22="","",Pengetahuan!AB22) -> Kompetensi pengetahuan rerata sangat baik. | H16: =IF(Ketrampilan!G22="","",Ketrampilan!G22) -> 80 | I16: =IF(Ketrampilan!K22="","",Ketrampilan!K22) -> 80 | J16: =IF(Ketrampilan!N22="","",Ketrampilan!N22) -> 80 | K16: =IF(Ketrampilan!Q22="","",Ketrampilan!Q22) -> B+ | L16: =IF(Ketrampilan!AA22="","",Ketrampilan!AA22) -> Kompetensi ketrampilan rerata baik. | M16: =IF(Sikap!E15="","",Sikap!E15) -> 3 | N16: =IF(Sikap!H15=" "," ",Sikap!H15) -> 3 | O16: =IF(Sikap!K15="","",Sikap!K15) -> 3 | P16: =IF(Sikap!L15="","",Sikap!L15) -> 3 | Q16: =IF(Sikap!N15="","",Sikap!N15) -> B | BB16: =CONCATENATE(IF(Q16>87.5,"Kompetensi pengetahuan rerata sangat baik. ",IF(Q16>62.5,"Kompetensi pengetahuan rerata baik. ",IF(Q16>37.5,"Kompetensi pengetahuan rerata cukup. ",IF(Q16>1,"Kompetensi pengetahuan rerata kurang. ",IF(Q16="",""))))),IF(C16>87.5,"Sangat menguasai KD "&#REF!,IF(C16>62.5,"Menguasai KD "&#REF!,IF(C16>37.5,"Masih perlu latihan KD "&#REF!,IF(C16>1,"Perlu bimbingan KD "&#REF!,IF(C16="",""))))),IF(D16>87.5,", sangat menguasai KD "&#REF!,IF(D16>62.5,", menguasai KD "&#REF!,IF(D16>37.5,", masih perlu latihan KD "&#REF!,IF(D16>1,", perlu bimbingan KD "&#REF!,IF(D16="",""))))),IF(E16>87.5,". Sangat menguasai KD "&#REF!,IF(E16>62.5,". Menguasai KD "&#REF!,IF(E16>37.5,". Masih perlu latihan KD "&#REF!,IF(E16>1,". Perlu bimbingan KD "&#REF!,IF(E16="",""))))),IF(F16>87.5,", sangat menguasai KD "&#REF!,IF(F16>62.5,", menguasai KD "&#REF!,IF(F16>37.5,", masih perlu latihan KD "&#REF!,IF(F16>1,", perlu bimbingan KD "&#REF!,IF(F16="","")))))) -> 
A17: 3 | B17: ='Data '!D29 -> BAGAS YULANDRA PUTRA | C17: =IF(Pengetahuan!H23="","",Pengetahuan!H23) -> 80 | D17: =IF(Pengetahuan!N23="","",Pengetahuan!N23) -> 80 | E17: =IF(Pengetahuan!P23="","",Pengetahuan!P23) -> 75 | F17: =IF(Pengetahuan!AA22="","",Pengetahuan!AA22) -> B | G17: =IF(Pengetahuan!AB23="","",Pengetahuan!AB23) -> Kompetensi pengetahuan rerata sangat baik. | H17: =IF(Ketrampilan!G23="","",Ketrampilan!G23) -> 80 | I17: =IF(Ketrampilan!K23="","",Ketrampilan!K23) -> 80 | J17: =IF(Ketrampilan!N23="","",Ketrampilan!N23) -> 80 | K17: =IF(Ketrampilan!Q23="","",Ketrampilan!Q23) -> B+ | L17: =IF(Ketrampilan!AA23="","",Ketrampilan!AA23) -> Kompetensi ketrampilan rerata baik. | M17: =IF(Sikap!E16="","",Sikap!E16) -> 3 | N17: =IF(Sikap!H16=" "," ",Sikap!H16) -> 3 | O17: =IF(Sikap!K16="","",Sikap!K16) -> 3 | P17: =IF(Sikap!L16="","",Sikap!L16) -> 3 | Q17: =IF(Sikap!N16="","",Sikap!N16) -> B | BB17: =CONCATENATE(IF(Q17>87.5,"Kompetensi pengetahuan rerata sangat baik. ",IF(Q17>62.5,"Kompetensi pengetahuan rerata baik. ",IF(Q17>37.5,"Kompetensi pengetahuan rerata cukup. ",IF(Q17>1,"Kompetensi pengetahuan rerata kurang. ",IF(Q17="",""))))),IF(C17>87.5,"Sangat menguasai KD "&#REF!,IF(C17>62.5,"Menguasai KD "&#REF!,IF(C17>37.5,"Masih perlu latihan KD "&#REF!,IF(C17>1,"Perlu bimbingan KD "&#REF!,IF(C17="",""))))),IF(D17>87.5,", sangat menguasai KD "&#REF!,IF(D17>62.5,", menguasai KD "&#REF!,IF(D17>37.5,", masih perlu latihan KD "&#REF!,IF(D17>1,", perlu bimbingan KD "&#REF!,IF(D17="",""))))),IF(E17>87.5,". Sangat menguasai KD "&#REF!,IF(E17>62.5,". Menguasai KD "&#REF!,IF(E17>37.5,". Masih perlu latihan KD "&#REF!,IF(E17>1,". Perlu bimbingan KD "&#REF!,IF(E17="",""))))),IF(F17>87.5,", sangat menguasai KD "&#REF!,IF(F17>62.5,", menguasai KD "&#REF!,IF(F17>37.5,", masih perlu latihan KD "&#REF!,IF(F17>1,", perlu bimbingan KD "&#REF!,IF(F17="","")))))) -> 
A18: 4 | B18: ='Data '!D30 -> CYNTIA AGUSTINA | C18: =IF(Pengetahuan!H24="","",Pengetahuan!H24) -> 80 | D18: =IF(Pengetahuan!N24="","",Pengetahuan!N24) -> 80 | E18: =IF(Pengetahuan!P24="","",Pengetahuan!P24) -> 75 | F18: =IF(Pengetahuan!AA23="","",Pengetahuan!AA23) -> B | G18: =IF(Pengetahuan!AB24="","",Pengetahuan!AB24) -> Kompetensi pengetahuan rerata sangat baik. | H18: =IF(Ketrampilan!G24="","",Ketrampilan!G24) -> 80 | I18: =IF(Ketrampilan!K24="","",Ketrampilan!K24) -> 80 | J18: =IF(Ketrampilan!N24="","",Ketrampilan!N24) -> 80 | K18: =IF(Ketrampilan!Q24="","",Ketrampilan!Q24) -> B+ | L18: =IF(Ketrampilan!AA24="","",Ketrampilan!AA24) -> Kompetensi ketrampilan rerata baik. | M18: =IF(Sikap!E17="","",Sikap!E17) -> 3 | N18: =IF(Sikap!H17=" "," ",Sikap!H17) -> 3 | O18: =IF(Sikap!K17="","",Sikap!K17) -> 3 | P18: =IF(Sikap!L17="","",Sikap!L17) -> 3 | Q18: =IF(Sikap!N17="","",Sikap!N17) -> B | BB18: =CONCATENATE(IF(Q18>87.5,"Kompetensi pengetahuan rerata sangat baik. ",IF(Q18>62.5,"Kompetensi pengetahuan rerata baik. ",IF(Q18>37.5,"Kompetensi pengetahuan rerata cukup. ",IF(Q18>1,"Kompetensi pengetahuan rerata kurang. ",IF(Q18="",""))))),IF(C18>87.5,"Sangat menguasai KD "&#REF!,IF(C18>62.5,"Menguasai KD "&#REF!,IF(C18>37.5,"Masih perlu latihan KD "&#REF!,IF(C18>1,"Perlu bimbingan KD "&#REF!,IF(C18="",""))))),IF(D18>87.5,", sangat menguasai KD "&#REF!,IF(D18>62.5,", menguasai KD "&#REF!,IF(D18>37.5,", masih perlu latihan KD "&#REF!,IF(D18>1,", perlu bimbingan KD "&#REF!,IF(D18="",""))))),IF(E18>87.5,". Sangat menguasai KD "&#REF!,IF(E18>62.5,". Menguasai KD "&#REF!,IF(E18>37.5,". Masih perlu latihan KD "&#REF!,IF(E18>1,". Perlu bimbingan KD "&#REF!,IF(E18="",""))))),IF(F18>87.5,", sangat menguasai KD "&#REF!,IF(F18>62.5,", menguasai KD "&#REF!,IF(F18>37.5,", masih perlu latihan KD "&#REF!,IF(F18>1,", perlu bimbingan KD "&#REF!,IF(F18="","")))))) -> 
A19: 5 | B19: ='Data '!D31 -> DAFFA KRISNA PRAMUDYA | C19: =IF(Pengetahuan!H25="","",Pengetahuan!H25) -> 80 | D19: =IF(Pengetahuan!N25="","",Pengetahuan!N25) -> 80 | E19: =IF(Pengetahuan!P25="","",Pengetahuan!P25) -> 75 | F19: =IF(Pengetahuan!AA24="","",Pengetahuan!AA24) -> B | G19: =IF(Pengetahuan!AB25="","",Pengetahuan!AB25) -> Kompetensi pengetahuan rerata sangat baik. | H19: =IF(Ketrampilan!G25="","",Ketrampilan!G25) -> 80 | I19: =IF(Ketrampilan!K25="","",Ketrampilan!K25) -> 80 | J19: =IF(Ketrampilan!N25="","",Ketrampilan!N25) -> 80 | K19: =IF(Ketrampilan!Q25="","",Ketrampilan!Q25) -> B+ | L19: =IF(Ketrampilan!AA25="","",Ketrampilan!AA25) -> Kompetensi ketrampilan rerata baik. | M19: =IF(Sikap!E18="","",Sikap!E18) -> 3 | N19: =IF(Sikap!H18=" "," ",Sikap!H18) -> 3 | O19: =IF(Sikap!K18="","",Sikap!K18) -> 3 | P19: =IF(Sikap!L18="","",Sikap!L18) -> 3 | Q19: =IF(Sikap!N18="","",Sikap!N18) -> B | BB19: =CONCATENATE(IF(Q19>87.5,"Kompetensi pengetahuan rerata sangat baik. ",IF(Q19>62.5,"Kompetensi pengetahuan rerata baik. ",IF(Q19>37.5,"Kompetensi pengetahuan rerata cukup. ",IF(Q19>1,"Kompetensi pengetahuan rerata kurang. ",IF(Q19="",""))))),IF(C19>87.5,"Sangat menguasai KD "&#REF!,IF(C19>62.5,"Menguasai KD "&#REF!,IF(C19>37.5,"Masih perlu latihan KD "&#REF!,IF(C19>1,"Perlu bimbingan KD "&#REF!,IF(C19="",""))))),IF(D19>87.5,", sangat menguasai KD "&#REF!,IF(D19>62.5,", menguasai KD "&#REF!,IF(D19>37.5,", masih perlu latihan KD "&#REF!,IF(D19>1,", perlu bimbingan KD "&#REF!,IF(D19="",""))))),IF(E19>87.5,". Sangat menguasai KD "&#REF!,IF(E19>62.5,". Menguasai KD "&#REF!,IF(E19>37.5,". Masih perlu latihan KD "&#REF!,IF(E19>1,". Perlu bimbingan KD "&#REF!,IF(E19="",""))))),IF(F19>87.5,", sangat menguasai KD "&#REF!,IF(F19>62.5,", menguasai KD "&#REF!,IF(F19>37.5,", masih perlu latihan KD "&#REF!,IF(F19>1,", perlu bimbingan KD "&#REF!,IF(F19="","")))))) -> 
A20: 6 | B20: ='Data '!D32 -> DANINDRA RAFIF IRAWAN | C20: =IF(Pengetahuan!H26="","",Pengetahuan!H26) -> 80 | D20: =IF(Pengetahuan!N26="","",Pengetahuan!N26) -> 80 | E20: =IF(Pengetahuan!P26="","",Pengetahuan!P26) -> 75 | F20: =IF(Pengetahuan!AA25="","",Pengetahuan!AA25) -> B | G20: =IF(Pengetahuan!AB26="","",Pengetahuan!AB26) -> Kompetensi pengetahuan rerata sangat baik. | H20: =IF(Ketrampilan!G26="","",Ketrampilan!G26) -> 80 | I20: =IF(Ketrampilan!K26="","",Ketrampilan!K26) -> 80 | J20: =IF(Ketrampilan!N26="","",Ketrampilan!N26) -> 80 | K20: =IF(Ketrampilan!Q26="","",Ketrampilan!Q26) -> B+ | L20: =IF(Ketrampilan!AA26="","",Ketrampilan!AA26) -> Kompetensi ketrampilan rerata baik. | M20: =IF(Sikap!E19="","",Sikap!E19) -> 3 | N20: =IF(Sikap!H19=" "," ",Sikap!H19) -> 3 | O20: =IF(Sikap!K19="","",Sikap!K19) -> 3 | P20: =IF(Sikap!L19="","",Sikap!L19) -> 3 | Q20: =IF(Sikap!N19="","",Sikap!N19) -> B | BB20: =CONCATENATE(IF(Q20>87.5,"Kompetensi pengetahuan rerata sangat baik. ",IF(Q20>62.5,"Kompetensi pengetahuan rerata baik. ",IF(Q20>37.5,"Kompetensi pengetahuan rerata cukup. ",IF(Q20>1,"Kompetensi pengetahuan rerata kurang. ",IF(Q20="",""))))),IF(C20>87.5,"Sangat menguasai KD "&#REF!,IF(C20>62.5,"Menguasai KD "&#REF!,IF(C20>37.5,"Masih perlu latihan KD "&#REF!,IF(C20>1,"Perlu bimbingan KD "&#REF!,IF(C20="",""))))),IF(D20>87.5,", sangat menguasai KD "&#REF!,IF(D20>62.5,", menguasai KD "&#REF!,IF(D20>37.5,", masih perlu latihan KD "&#REF!,IF(D20>1,", perlu bimbingan KD "&#REF!,IF(D20="",""))))),IF(E20>87.5,". Sangat menguasai KD "&#REF!,IF(E20>62.5,". Menguasai KD "&#REF!,IF(E20>37.5,". Masih perlu latihan KD "&#REF!,IF(E20>1,". Perlu bimbingan KD "&#REF!,IF(E20="",""))))),IF(F20>87.5,", sangat menguasai KD "&#REF!,IF(F20>62.5,", menguasai KD "&#REF!,IF(F20>37.5,", masih perlu latihan KD "&#REF!,IF(F20>1,", perlu bimbingan KD "&#REF!,IF(F20="","")))))) -> 
A21: 7 | B21: ='Data '!D33 -> DENI PRATAMA | C21: =IF(Pengetahuan!H27="","",Pengetahuan!H27) -> 80 | D21: =IF(Pengetahuan!N27="","",Pengetahuan!N27) -> 80 | E21: =IF(Pengetahuan!P27="","",Pengetahuan!P27) -> 75 | F21: =IF(Pengetahuan!AA26="","",Pengetahuan!AA26) -> B | G21: =IF(Pengetahuan!AB27="","",Pengetahuan!AB27) -> Kompetensi pengetahuan rerata sangat baik. | H21: =IF(Ketrampilan!G27="","",Ketrampilan!G27) -> 80 | I21: =IF(Ketrampilan!K27="","",Ketrampilan!K27) -> 80 | J21: =IF(Ketrampilan!N27="","",Ketrampilan!N27) -> 80 | K21: =IF(Ketrampilan!Q27="","",Ketrampilan!Q27) -> B+ | L21: =IF(Ketrampilan!AA27="","",Ketrampilan!AA27) -> Kompetensi ketrampilan rerata baik. | M21: =IF(Sikap!E20="","",Sikap!E20) -> 3 | N21: =IF(Sikap!H20=" "," ",Sikap!H20) -> 3 | O21: =IF(Sikap!K20="","",Sikap!K20) -> 3 | P21: =IF(Sikap!L20="","",Sikap!L20) -> 3 | Q21: =IF(Sikap!N20="","",Sikap!N20) -> B | BB21: =CONCATENATE(IF(Q21>87.5,"Kompetensi pengetahuan rerata sangat baik. ",IF(Q21>62.5,"Kompetensi pengetahuan rerata baik. ",IF(Q21>37.5,"Kompetensi pengetahuan rerata cukup. ",IF(Q21>1,"Kompetensi pengetahuan rerata kurang. ",IF(Q21="",""))))),IF(C21>87.5,"Sangat menguasai KD "&#REF!,IF(C21>62.5,"Menguasai KD "&#REF!,IF(C21>37.5,"Masih perlu latihan KD "&#REF!,IF(C21>1,"Perlu bimbingan KD "&#REF!,IF(C21="",""))))),IF(D21>87.5,", sangat menguasai KD "&#REF!,IF(D21>62.5,", menguasai KD "&#REF!,IF(D21>37.5,", masih perlu latihan KD "&#REF!,IF(D21>1,", perlu bimbingan KD "&#REF!,IF(D21="",""))))),IF(E21>87.5,". Sangat menguasai KD "&#REF!,IF(E21>62.5,". Menguasai KD "&#REF!,IF(E21>37.5,". Masih perlu latihan KD "&#REF!,IF(E21>1,". Perlu bimbingan KD "&#REF!,IF(E21="",""))))),IF(F21>87.5,", sangat menguasai KD "&#REF!,IF(F21>62.5,", menguasai KD "&#REF!,IF(F21>37.5,", masih perlu latihan KD "&#REF!,IF(F21>1,", perlu bimbingan KD "&#REF!,IF(F21="","")))))) -> 
A22: 8 | B22: ='Data '!D34 -> DIKA SUKMA AGUSTIN | C22: =IF(Pengetahuan!H28="","",Pengetahuan!H28) -> 80 | D22: =IF(Pengetahuan!N28="","",Pengetahuan!N28) -> 80 | E22: =IF(Pengetahuan!P28="","",Pengetahuan!P28) -> 75 | F22: =IF(Pengetahuan!AA27="","",Pengetahuan!AA27) -> B | G22: =IF(Pengetahuan!AB28="","",Pengetahuan!AB28) -> Kompetensi pengetahuan rerata sangat baik. | H22: =IF(Ketrampilan!G28="","",Ketrampilan!G28) -> 80 | I22: =IF(Ketrampilan!K28="","",Ketrampilan!K28) -> 80 | J22: =IF(Ketrampilan!N28="","",Ketrampilan!N28) -> 80 | K22: =IF(Ketrampilan!Q28="","",Ketrampilan!Q28) -> B+ | L22: =IF(Ketrampilan!AA28="","",Ketrampilan!AA28) -> Kompetensi ketrampilan rerata baik. | M22: =IF(Sikap!E21="","",Sikap!E21) -> 3 | N22: =IF(Sikap!H21=" "," ",Sikap!H21) -> 3 | O22: =IF(Sikap!K21="","",Sikap!K21) -> 3 | P22: =IF(Sikap!L21="","",Sikap!L21) -> 3 | Q22: =IF(Sikap!N21="","",Sikap!N21) -> B | BB22: =CONCATENATE(IF(Q22>87.5,"Kompetensi pengetahuan rerata sangat baik. ",IF(Q22>62.5,"Kompetensi pengetahuan rerata baik. ",IF(Q22>37.5,"Kompetensi pengetahuan rerata cukup. ",IF(Q22>1,"Kompetensi pengetahuan rerata kurang. ",IF(Q22="",""))))),IF(C22>87.5,"Sangat menguasai KD "&#REF!,IF(C22>62.5,"Menguasai KD "&#REF!,IF(C22>37.5,"Masih perlu latihan KD "&#REF!,IF(C22>1,"Perlu bimbingan KD "&#REF!,IF(C22="",""))))),IF(D22>87.5,", sangat menguasai KD "&#REF!,IF(D22>62.5,", menguasai KD "&#REF!,IF(D22>37.5,", masih perlu latihan KD "&#REF!,IF(D22>1,", perlu bimbingan KD "&#REF!,IF(D22="",""))))),IF(E22>87.5,". Sangat menguasai KD "&#REF!,IF(E22>62.5,". Menguasai KD "&#REF!,IF(E22>37.5,". Masih perlu latihan KD "&#REF!,IF(E22>1,". Perlu bimbingan KD "&#REF!,IF(E22="",""))))),IF(F22>87.5,", sangat menguasai KD "&#REF!,IF(F22>62.5,", menguasai KD "&#REF!,IF(F22>37.5,", masih perlu latihan KD "&#REF!,IF(F22>1,", perlu bimbingan KD "&#REF!,IF(F22="","")))))) -> 
A23: 9 | B23: ='Data '!D35 -> DIVA ADITYA | C23: =IF(Pengetahuan!H29="","",Pengetahuan!H29) -> 80 | D23: =IF(Pengetahuan!N29="","",Pengetahuan!N29) -> 80 | E23: =IF(Pengetahuan!P29="","",Pengetahuan!P29) -> 75 | F23: =IF(Pengetahuan!AA28="","",Pengetahuan!AA28) -> B | G23: =IF(Pengetahuan!AB29="","",Pengetahuan!AB29) -> Kompetensi pengetahuan rerata sangat baik. | H23: =IF(Ketrampilan!G29="","",Ketrampilan!G29) -> 80 | I23: =IF(Ketrampilan!K29="","",Ketrampilan!K29) -> 80 | J23: =IF(Ketrampilan!N29="","",Ketrampilan!N29) -> 80 | K23: =IF(Ketrampilan!Q29="","",Ketrampilan!Q29) -> B+ | L23: =IF(Ketrampilan!AA29="","",Ketrampilan!AA29) -> Kompetensi ketrampilan rerata baik. | M23: =IF(Sikap!E22="","",Sikap!E22) -> 3 | N23: =IF(Sikap!H22=" "," ",Sikap!H22) -> 3 | O23: =IF(Sikap!K22="","",Sikap!K22) -> 3 | P23: =IF(Sikap!L22="","",Sikap!L22) -> 3 | Q23: =IF(Sikap!N22="","",Sikap!N22) -> B | BB23: =CONCATENATE(IF(Q23>87.5,"Kompetensi pengetahuan rerata sangat baik. ",IF(Q23>62.5,"Kompetensi pengetahuan rerata baik. ",IF(Q23>37.5,"Kompetensi pengetahuan rerata cukup. ",IF(Q23>1,"Kompetensi pengetahuan rerata kurang. ",IF(Q23="",""))))),IF(C23>87.5,"Sangat menguasai KD "&#REF!,IF(C23>62.5,"Menguasai KD "&#REF!,IF(C23>37.5,"Masih perlu latihan KD "&#REF!,IF(C23>1,"Perlu bimbingan KD "&#REF!,IF(C23="",""))))),IF(D23>87.5,", sangat menguasai KD "&#REF!,IF(D23>62.5,", menguasai KD "&#REF!,IF(D23>37.5,", masih perlu latihan KD "&#REF!,IF(D23>1,", perlu bimbingan KD "&#REF!,IF(D23="",""))))),IF(E23>87.5,". Sangat menguasai KD "&#REF!,IF(E23>62.5,". Menguasai KD "&#REF!,IF(E23>37.5,". Masih perlu latihan KD "&#REF!,IF(E23>1,". Perlu bimbingan KD "&#REF!,IF(E23="",""))))),IF(F23>87.5,", sangat menguasai KD "&#REF!,IF(F23>62.5,", menguasai KD "&#REF!,IF(F23>37.5,", masih perlu latihan KD "&#REF!,IF(F23>1,", perlu bimbingan KD "&#REF!,IF(F23="","")))))) -> 
A24: 10 | B24: ='Data '!D36 -> EKO PRASTYO | C24: =IF(Pengetahuan!H30="","",Pengetahuan!H30) -> 80 | D24: =IF(Pengetahuan!N30="","",Pengetahuan!N30) -> 80 | E24: =IF(Pengetahuan!P30="","",Pengetahuan!P30) -> 75 | F24: =IF(Pengetahuan!AA29="","",Pengetahuan!AA29) -> B | G24: =IF(Pengetahuan!AB30="","",Pengetahuan!AB30) -> Kompetensi pengetahuan rerata sangat baik. | H24: =IF(Ketrampilan!G30="","",Ketrampilan!G30) -> 80 | I24: =IF(Ketrampilan!K30="","",Ketrampilan!K30) -> 80 | J24: =IF(Ketrampilan!N30="","",Ketrampilan!N30) -> 80 | K24: =IF(Ketrampilan!Q30="","",Ketrampilan!Q30) -> B+ | L24: =IF(Ketrampilan!AA30="","",Ketrampilan!AA30) -> Kompetensi ketrampilan rerata baik. | M24: =IF(Sikap!E23="","",Sikap!E23) -> 3 | N24: =IF(Sikap!H23=" "," ",Sikap!H23) -> 3 | O24: =IF(Sikap!K23="","",Sikap!K23) -> 3 | P24: =IF(Sikap!L23="","",Sikap!L23) -> 3 | Q24: =IF(Sikap!N23="","",Sikap!N23) -> B | BB24: =CONCATENATE(IF(Q24>87.5,"Kompetensi pengetahuan rerata sangat baik. ",IF(Q24>62.5,"Kompetensi pengetahuan rerata baik. ",IF(Q24>37.5,"Kompetensi pengetahuan rerata cukup. ",IF(Q24>1,"Kompetensi pengetahuan rerata kurang. ",IF(Q24="",""))))),IF(C24>87.5,"Sangat menguasai KD "&#REF!,IF(C24>62.5,"Menguasai KD "&#REF!,IF(C24>37.5,"Masih perlu latihan KD "&#REF!,IF(C24>1,"Perlu bimbingan KD "&#REF!,IF(C24="",""))))),IF(D24>87.5,", sangat menguasai KD "&#REF!,IF(D24>62.5,", menguasai KD "&#REF!,IF(D24>37.5,", masih perlu latihan KD "&#REF!,IF(D24>1,", perlu bimbingan KD "&#REF!,IF(D24="",""))))),IF(E24>87.5,". Sangat menguasai KD "&#REF!,IF(E24>62.5,". Menguasai KD "&#REF!,IF(E24>37.5,". Masih perlu latihan KD "&#REF!,IF(E24>1,". Perlu bimbingan KD "&#REF!,IF(E24="",""))))),IF(F24>87.5,", sangat menguasai KD "&#REF!,IF(F24>62.5,", menguasai KD "&#REF!,IF(F24>37.5,", masih perlu latihan KD "&#REF!,IF(F24>1,", perlu bimbingan KD "&#REF!,IF(F24="","")))))) -> 
